Workbook

Sheet Introduction

Sheet Glossary (hidden)
E3: AA | G3: Annual average. Environmental quality standard for the assessment of chronic exposures.
E4: BioF | G4: The bioavailability factor. The BioF is based on a comparison between the expected bioavailability at the reference site and that relating to site-specific conditions. Through the use of a BioF, differences in (bio)availability are accounted for by adjustments to the monitoring data, but the EQS remains the same. BioF is calculated by dividing the Generic or Reference EQSbioavailable by the calculated site-specific dissolved EQS.
E5: BLM | G5: Biotic Ligand Model. This is a predictive tool that can account for variation in metal toxicity and calculates a site-specific PNEC using information on the chemistry of local water sources, i.e. pH, dissolved organic carbon, etc.
E6: DOC | G6: Dissolved organic carbon. The input to the screening tool for DOC should be site-specific median concentrations from at least eight sampling occasions. This is because metal EQS are expressed as AA concentrations, and the short-term EQS or Maximum Allowable Concentrations are not relevant here.
E7: EQSbioavailable | G7: This is representative of conditions of high bioavailability and is expressed as “bioavailable” metal concentration.
E8: PNEC | G8: Predicted No Effect Concentration. This concentration is derived from the ecotoxicological data and site specific water quality data using the BLM.
E9: Site-Specific PNEC | G9: The Site-specific PNEC (Predicted No Effect Concentration) is the calculated dissolved concentration of metal that is equivalent the EQSbioavailabe at the local water conditions at the site.
E11: RCR | G11: Risk Characterisation Ratio, also sometimes called the risk quotient. This is calculated by dividing the PEC by the PNEC. Values equal to or greater than 1 present a potential risk.
E12: User-friendly BLM Tool | G12: The User-friendly tool mimics the BLM outputs in a precautionary way. It requires relatively few inputs and can readily be used in a compliance assessment framework. Several are available including this one, M-BAT, Bio-Met and PNECpro
E15: Validation range | G15: Each of the BLMs has a validated range of operation that refers to the water chemistries
G16: over which the ecotoxicity test data to generate the models was performed. For M-BAT this specifically refers to pH and Ca. DOC is restricted to 20 mg/L, although the relation is likley linear to greater DOC concentrations.

Sheet Help (hidden)

Sheet AdminMenu (hidden)

Sheet EQSbioavailable (hidden)
C3: Metal | E3: EQSbioavailable Concentration (µg l-1)
C4: Copper (Cu) | E4: 1
C5: Zinc (Zn) | E5: =ZnThreshold -> 10.9
C6: Manganese (Mn) | E6: =MnThreshold -> 123
C7: Nickel (Ni) | E7: =NiThreshold -> 4

Sheet ThresholdValues (hidden)
C3: Metal | E3: Threshold Concentration (equivalent to EQSbioavailable) (µg l-1)
C4: Copper (Cu) | E4: 1
C5: Zinc (Zn) | E5: Threshold Concentration (TC) | F5: Old Threshold Concentration (OTC) | G5: Ratio (OTC/TC)
E6: 10.9 | F6: 7.8 | G6: =ZnThreshold/OldZnThreshold -> 1.397435897
C7: Manganese (Mn) | E7: 123
C9: Metal | E9: Reference Value EC10 Values (mg/l) for Calculating BioF
C10: Manganese (Mn) | E10: Fish | F10: Algae
E11: 0.426 | F11: 0.31
C14: Metal | E14: PNEC generic value | F14: 4
C15: Nickel(Ni) | E15: Ni Threshold | F15: 4
C19: Metal | E19: pH Low | F19: pH High | G19: Ca Low | H19: Ca High | I19: Doc
C21: Cu | E21: 6 | F21: 8.5 | G21: 3.1 | H21: 93 | I21: 15
C22: Ni | E22: 6.5 | F22: 8.7 | G22: 2 | H22: 88 | I22: 20
C23: Mn | E23: 5.5 | F23: 8.5 | G23: 1 | H23: 200 | I23: 20
C24: Zn | E24: 6 | F24: 8 | G24: 3 | H24: 160 | I24: 20

Sheet flags_new (hidden)
A1: =IF(B1=G1,1,0) -> 1 | B1: The measured pH is above the upper limit of the validated range for Cu. The Site-specific PNEC has been calculated using a pH value of 8.5. For furthur clarification please seek advice. | C1: ="The measured pH is "&E1&" the "& F1& " limit of the validated range for " & D1&". The Site-specific PNEC has been calculated using a pH value of " & CuPhDefaultHigh & ". For furthur clarification please seek advice." -> The measured pH is above the upper limit of the validated range for Cu. The Site-specific PNEC has been calculated using a pH value of 8.5. For furthur clarification please seek advice. | D1: Cu | E1: above | F1: upper | G1: The measured pH is above the upper limit of the validated range for Cu. The Site-specific PNEC has been calculated using a pH value of 8.5. For furthur clarification please seek advice.
A2: =IF(B2=G2,1,0) -> 0 | B2: The measured pH is below the lower limit of the validated range for Cu. The Site-specific PNEC has been calculated using a pH value of 6. For furthur clarification please seek advice. | C2: ="The measured pH is "&E2&" the "& F2& " limit of the validated range for " & D2&". The Site-specific PNEC has been calculated using a pH value of " & cuPhDefaultLow & ". For furthur clarification please seek advice." -> The measured pH is below the lower limit of the validated range for Cu. The Site-specific PNEC has been calculated using a pH value of 6. For furthur clarification please seek advice. | D2: Cu | E2: below | F2: lower | G2: The measured pH is below the lower limit of the validated range for Cu. The Site-specific PNEC has been calculated using a pH value of 6.0. For furthur clarification please seek advice.
A3: 1 | B3: The measured pH is above the upper limit of the validated range for Ni. The Site-specific PNEC has been calculated using a pH value of 8.7. For furthur clarification please seek advice. | C3: ="The measured pH is "&E3&" the "& F3& " limit of the validated range for " & D3&". The Site-specific PNEC has been calculated using a pH value of " & NiPhDefaultHigh & ". For furthur clarification please seek advice." -> The measured pH is above the upper limit of the validated range for Ni. The Site-specific PNEC has been calculated using a pH value of 8.7. For furthur clarification please seek advice. | D3: Ni | E3: above | F3: upper | G3: The measured pH is above the upper limit of the validated range for Ni. The Site-specific PNEC has been calculated using a pH value of 8.7. For furthur clarification please seek advice.
A4: 1 | B4: The measured pH is below the lower limit of the validated range for Ni. The Site-specific PNEC has been calculated using a pH value of 6.5. For furthur clarification please seek advice. | C4: ="The measured pH is "&E4&" the "& F4& " limit of the validated range for " & D4&". The Site-specific PNEC has been calculated using a pH value of " & NiPhDefaultLow & ". For furthur clarification please seek advice." -> The measured pH is below the lower limit of the validated range for Ni. The Site-specific PNEC has been calculated using a pH value of 6.5. For furthur clarification please seek advice. | D4: Ni | E4: below | F4: lower | G4: The measured pH is below the lower limit of the validated range for Ni. The Site-specific PNEC has been calculated using a pH value of 6.5. For furthur clarification please seek advice.
A5: 1 | B5: The measured pH is above the upper limit of the validated range for Mn. The Site-specific PNEC has been calculated using a pH value of 8.5. For furthur clarification please seek advice. | C5: ="The measured pH is "&E5&" the "& F5& " limit of the validated range for " & D5&". The Site-specific PNEC has been calculated using a pH value of " & MnPhDefaultHigh & ". For furthur clarification please seek advice." -> The measured pH is above the upper limit of the validated range for Mn. The Site-specific PNEC has been calculated using a pH value of 8.5. For furthur clarification please seek advice. | D5: Mn | E5: above | F5: upper | G5: The measured pH is above the upper limit of the validated range for Mn. The Site-specific PNEC has been calculated using a pH value of 8.5. For furthur clarification please seek advice.
A6: 1 | B6: The measured pH is below the lower limit of the validated range for Mn. The Site-specific PNEC has been calculated using a pH value of 5.5. For furthur clarification please seek advice. | C6: ="The measured pH is "&E6&" the "& F6& " limit of the validated range for " & D6&". The Site-specific PNEC has been calculated using a pH value of " & MnPhDefaultLow & ". For furthur clarification please seek advice." -> The measured pH is below the lower limit of the validated range for Mn. The Site-specific PNEC has been calculated using a pH value of 5.5. For furthur clarification please seek advice. | D6: Mn | E6: below | F6: lower | G6: The measured pH is below the lower limit of the validated range for Mn. The Site-specific PNEC has been calculated using a pH value of 5.5. For furthur clarification please seek advice.
A7: 0 | B7: The measured pH is above the upper limit of the validated range for Zn. The Site-specific PNEC has been calculated using a pH value of 8. For furthur clarification please seek advice. | C7: ="The measured pH is "&E7&" the "& F7& " limit of the validated range for " & D7&". The Site-specific PNEC has been calculated using a pH value of " & ZnPhDefaultHigh & ". For furthur clarification please seek advice." -> The measured pH is above the upper limit of the validated range for Zn. The Site-specific PNEC has been calculated using a pH value of 8. For furthur clarification please seek advice. | D7: Zn | E7: above | F7: upper | G7: The measured pH is above the upper limit of the validated range for Zn. The Site-specific PNEC has been calculated using a pH value of 8.0. For furthur clarification please seek advice.
A8: 0 | B8: The measured pH is below the lower limit of the validated range for Zn. The Site-specific PNEC has been calculated using a pH value of 6. For furthur clarification please seek advice. | C8: ="The measured pH is "&E8&" the "& F8& " limit of the validated range for " & D8&". The Site-specific PNEC has been calculated using a pH value of " & ZnPhDefaultLow & ". For furthur clarification please seek advice." -> The measured pH is below the lower limit of the validated range for Zn. The Site-specific PNEC has been calculated using a pH value of 6. For furthur clarification please seek advice. | D8: Zn | E8: below | F8: lower | G8: The measured pH is below the lower limit of the validated range for Zn. The Site-specific PNEC has been calculated using a pH value of 6.0. For furthur clarification please seek advice.
A9: 1
A10: 0 | B10: The measured Ca is above the upper limit of the validated range for Cu. The Site-specific PNEC has been calculated using a Ca value of 93. For furthur clarification please seek advice. | C10: ="The measured Ca is "&E10&" the "& F10& " limit of the validated range for " & D10&". The Site-specific PNEC has been calculated using a Ca value of " & CuCaDefaultHigh & ". For furthur clarification please seek advice." -> The measured Ca is above the upper limit of the validated range for Cu. The Site-specific PNEC has been calculated using a Ca value of 93. For furthur clarification please seek advice. | D10: Cu | E10: above | F10: upper | G10: The measured Ca is above the upper limit of the validated range for Cu. The Site-specific PNEC has been calculated using a Ca value of 93.0. For furthur clarification please seek advice.
A11: 1 | B11: The measured Ca is below the lower limit of the validated range for Cu. The Site-specific PNEC has been calculated using a Ca value of 3.1. For furthur clarification please seek advice. | C11: ="The measured Ca is "&E11&" the "& F11& " limit of the validated range for " & D11&". The Site-specific PNEC has been calculated using a Ca value of " & CuCaDefaultLow & ". For furthur clarification please seek advice." -> The measured Ca is below the lower limit of the validated range for Cu. The Site-specific PNEC has been calculated using a Ca value of 3.1. For furthur clarification please seek advice. | D11: Cu | E11: below | F11: lower | G11: The measured Ca is below the lower limit of the validated range for Cu. The Site-specific PNEC has been calculated using a Ca value of 3.1. For furthur clarification please seek advice.
A12: 0 | B12: The measured Ca is above the upper limit of the validated range for Ni. The Site-specific PNEC has been calculated using a Ca value of 88. For furthur clarification please seek advice. | C12: ="The measured Ca is "&E12&" the "& F12& " limit of the validated range for " & D12&". The Site-specific PNEC has been calculated using a Ca value of " & NiCaDefaultHigh & ". For furthur clarification please seek advice." -> The measured Ca is above the upper limit of the validated range for Ni. The Site-specific PNEC has been calculated using a Ca value of 88. For furthur clarification please seek advice. | D12: Ni | E12: above | F12: upper | G12: The measured Ca is above the upper limit of the validated range for Ni. The Site-specific PNEC has been calculated using a Ca value of 88.0. For furthur clarification please seek advice.
A13: 0 | B13: The measured Ca is below the lower limit of the validated range for Ni. The Site-specific PNEC has been calculated using a Ca value of 2. For furthur clarification please seek advice. | C13: ="The measured Ca is "&E13&" the "& F13& " limit of the validated range for " & D13&". The Site-specific PNEC has been calculated using a Ca value of " & NiCaDefaultLow & ". For furthur clarification please seek advice." -> The measured Ca is below the lower limit of the validated range for Ni. The Site-specific PNEC has been calculated using a Ca value of 2. For furthur clarification please seek advice. | D13: Ni | E13: below | F13: lower | G13: The measured Ca is below the lower limit of the validated range for Ni. The Site-specific PNEC has been calculated using a Ca value of 2.0. For furthur clarification please seek advice.
A14: 0 | B14: The measured Ca is above the upper limit of the validated range for Mn. The Site-specific PNEC has been calculated using a Ca value of 200. For furthur clarification please seek advice. | C14: ="The measured Ca is "&E14&" the "& F14& " limit of the validated range for " & D14&". The Site-specific PNEC has been calculated using a Ca value of " & MnCaDefaultHigh & ". For furthur clarification please seek advice." -> The measured Ca is above the upper limit of the validated range for Mn. The Site-specific PNEC has been calculated using a Ca value of 200. For furthur clarification please seek advice. | D14: Mn | E14: above | F14: upper | G14: The measured Ca is above the upper limit of the validated range for Mn. The Site-specific PNEC has been calculated using a Ca value of 200.0. For furthur clarification please seek advice.
A15: 0 | B15: The measured Ca is below the lower limit of the validated range for Mn. The Site-specific PNEC has been calculated using a Ca value of 1. For furthur clarification please seek advice. | C15: ="The measured Ca is "&E15&" the "& F15& " limit of the validated range for " & D15&". The Site-specific PNEC has been calculated using a Ca value of " & MnCaDefaultLow & ". For furthur clarification please seek advice." -> The measured Ca is below the lower limit of the validated range for Mn. The Site-specific PNEC has been calculated using a Ca value of 1. For furthur clarification please seek advice. | D15: Mn | E15: below | F15: lower | G15: The measured Ca is below the lower limit of the validated range for Mn. The Site-specific PNEC has been calculated using a Ca value of 1.0. For furthur clarification please seek advice.
A16: 0 | B16: The measured Ca is above the upper limit of the validated range for Zn. The Site-specific PNEC has been calculated using a Ca value of 160. For furthur clarification please seek advice. | C16: ="The measured Ca is "&E16&" the "& F16& " limit of the validated range for " & D16&". The Site-specific PNEC has been calculated using a Ca value of " & ZnCaDefaultHigh & ". For furthur clarification please seek advice." -> The measured Ca is above the upper limit of the validated range for Zn. The Site-specific PNEC has been calculated using a Ca value of 160. For furthur clarification please seek advice. | D16: Zn | E16: above | F16: upper | G16: The measured Ca is above the upper limit of the validated range for Zn. The Site-specific PNEC has been calculated using a Ca value of 160.0. For furthur clarification please seek advice.
A17: 0 | B17: The measured Ca is below the lower limit of the validated range for Zn. The Site-specific PNEC has been calculated using a Ca value of 3. For furthur clarification please seek advice. | C17: ="The measured Ca is "&E17&" the "& F17& " limit of the validated range for " & D17&". The Site-specific PNEC has been calculated using a Ca value of " & ZnCaDefaultLow & ". For furthur clarification please seek advice." -> The measured Ca is below the lower limit of the validated range for Zn. The Site-specific PNEC has been calculated using a Ca value of 3. For furthur clarification please seek advice. | D17: Zn | E17: below | F17: lower | G17: The measured Ca is below the lower limit of the validated range for Zn. The Site-specific PNEC has been calculated using a Ca value of 3.0. For furthur clarification please seek advice.
B19: The measured DOC is above the upper limit of the validated range for Cu. The Site-specific PNEC has been calculated using a DOC value of 15mg /L.For further clarification please seek advice. | C19: ="The measured DOC is "&E19&" the "&F19&" limit of the validated range for "&D19&". The Site-specific PNEC has been calculated using a DOC value of " & CuDocDefault & "mg /L"&".For further clarification please seek advice." -> The measured DOC is above the upper limit of the validated range for Cu. The Site-specific PNEC has been calculated using a DOC value of 15mg /L.For further clarification please seek advice. | D19: Cu | E19: above | F19: upper
B20: The measured DOC is above the upper limit of the validated range for Ni. The Site-specific PNEC has been calculated using a DOC value of 20mg /L.For further clarification please seek advice. | C20: ="The measured DOC is "&E20&" the "& F20& " limit of the validated range for " & D20&". The Site-specific PNEC has been calculated using a DOC value of " & ZnDocDefault & "mg /L"&".For further clarification please seek advice." -> The measured DOC is above the upper limit of the validated range for Ni. The Site-specific PNEC has been calculated using a DOC value of 20mg /L.For further clarification please seek advice. | D20: Ni | E20: above | F20: upper
B21: The measured DOC is above the upper limit of the validated range for Mn. The Site-specific PNEC has been calculated using a DOC value of 20mg /L.For further clarification please seek advice. | C21: ="The measured DOC is "&E21&" the "& F21& " limit of the validated range for " & D21&". The Site-specific PNEC has been calculated using a DOC value of " & ZnDocDefault & "mg /L"&".For further clarification please seek advice." -> The measured DOC is above the upper limit of the validated range for Mn. The Site-specific PNEC has been calculated using a DOC value of 20mg /L.For further clarification please seek advice. | D21: Mn | E21: above | F21: upper
B22: The measured DOC is above the upper limit of the validated range for Zn. The Site-specific PNEC has been calculated using a DOC value of 20mg /L.For further clarification please seek advice. | C22: ="The measured DOC is "&E22&" the "& F22& " limit of the validated range for " & D22&". The Site-specific PNEC has been calculated using a DOC value of " & ZnDocDefault& "mg /L"&".For further clarification please seek advice." -> The measured DOC is above the upper limit of the validated range for Zn. The Site-specific PNEC has been calculated using a DOC value of 20mg /L.For further clarification please seek advice. | D22: Zn | E22: above | F22: upper
B30: Bioavailable metal concentration exceeds EQS based on site-specific conditions.

Sheet TestDataCu (hidden)
A1: EXPECTED RESULTS | Y1: ACTUAL RESULTS | AI1: COMPARISON
A2: Location | B2: WB | C2: Date | D2: CuMeas | E2: ZnMeas | F2: MnMeas | G2: pH | H2: DOC | I2: Ca | J2: Basic PNEC | K2: Basic PNEC (trimmed) | L2: Default pH | M2: Default PNEC | N2: Default PNEC (trimmed) | O2: BioFBasic | P2: Default BioF | Q2: Shape2 | R2: Extended BioF | S2: Extended PNEC | T2: Extended PNEC trimmed | U2: PNEC Displayed | V2: BioFDisplayed | W2: Bioavailable Cu | X2: RCR | Y2: Measured Copper Concentration (dissolved) (µg l-1) | Z2: Measured Zinc Concentration (dissolved) (µg l-1) | AA2: Measured Mn Concentration (dissolved) (µg l-1) | AB2: pH | AC2: DOC | AD2: Ca | AE2: PNEC | AF2: BioF | AG2: BioM | AH2: RCR | AI2: PNEC | AJ2: BioF | AK2: BioM | AL2: RCR
A3: 1 | G3: 1 | H3: 0.9 | I3: 5 | J3: =m_433*$G3^4*$H3^3*$I3^3+m_432*$G3^4*$H3^3*$I3^2+m_431*$G3^4*$H3^3*$I3^1+m_430*$G3^4*$H3^3*$I3^0 +m_423*$G3^4*$H3^2*$I3^3+m_422*$G3^4*$H3^2*$I3^2+m_421*$G3^4*$H3^2*$I3^1+m_420*$G3^4*$H3^2*$I3^0 +m_413*$G3^4*$H3^1*$I3^3+m_412*$G3^4*$H3^1*$I3^2+m_411*$G3^4*$H3^1*$I3^1+m_410*$G3^4*$H3^1*$I3^0 +m_403*$G3^4*$H3^0*$I3^3+m_402*$G3^4*$H3^0*$I3^2+m_401*$G3^4*$H3^0*$I3^1+m_400*$G3^4*$H3^0*$I3^0 +m_333*$G3^3*$H3^3*$I3^3+m_332*$G3^3*$H3^3*$I3^2+m_331*$G3^3*$H3^3*$I3^1+m_330*$G3^3*$H3^3*$I3^0 +m_323*$G3^3*$H3^2*$I3^3+m_322*$G3^3*$H3^2*$I3^2+m_321*$G3^3*$H3^2*$I3^1+m_320*$G3^3*$H3^2*$I3^0 +m_313*$G3^3*$H3^1*$I3^3+m_312*$G3^3*$H3^1*$I3^2+m_311*$G3^3*$H3^1*$I3^1+m_310*$G3^3*$H3^1*$I3^0 +m_303*$G3^3*$H3^0*$I3^3+m_302*$G3^3*$H3^0*$I3^2+m_301*$G3^3*$H3^0*$I3^1+m_300*$G3^3*$H3^0*$I3^0 +m_233*$G3^2*$H3^3*$I3^3+m_232*$G3^2*$H3^3*$I3^2+m_231*$G3^2*$H3^3*$I3^1+m_230*$G3^2*$H3^3*$I3^0 +m_223*$G3^2*$H3^2*$I3^3+m_222*$G3^2*$H3^2*$I3^2+m_221*$G3^2*$H3^2*$I3^1+m_220*$G3^2*$H3^2*$I3^0 +m_213*$G3^2*$H3^1*$I3^3+m_212*$G3^2*$H3^1*$I3^2+m_211*$G3^2*$H3^1*$I3^1+m_210*$G3^2*$H3^1*$I3^0 +m_203*$G3^2*$H3^0*$I3^3+m_202*$G3^2*$H3^0*$I3^2+m_201*$G3^2*$H3^0*$I3^1+m_200*$G3^2*$H3^0*$I3^0 +m_133*$G3^1*$H3^3*$I3^3+m_132*$G3^1*$H3^3*$I3^2+m_131*$G3^1*$H3^3*$I3^1+m_130*$G3^1*$H3^3*$I3^0 +m_123*$G3^1*$H3^2*$I3^3+m_122*$G3^1*$H3^2*$I3^2+m_121*$G3^1*$H3^2*$I3^1+m_120*$G3^1*$H3^2*$I3^0 +m_113*$G3^1*$H3^1*$I3^3+m_112*$G3^1*$H3^1*$I3^2+m_111*$G3^1*$H3^1*$I3^1+m_110*$G3^1*$H3^1*$I3^0 +m_103*$G3^1*$H3^0*$I3^3+m_102*$G3^1*$H3^0*$I3^2+m_101*$G3^1*$H3^0*$I3^1+m_100*$G3^1*$H3^0*$I3^0 +m_033*$G3^0*$H3^3*$I3^3+m_032*$G3^0*$H3^3*$I3^2+m_031*$G3^0*$H3^3*$I3^1+m_030*$G3^0*$H3^3*$I3^0 +m_023*$G3^0*$H3^2*$I3^3+m_022*$G3^0*$H3^2*$I3^2+m_021*$G3^0*$H3^2*$I3^1+m_020*$G3^0*$H3^2*$I3^0 +m_013*$G3^0*$H3^1*$I3^3+m_012*$G3^0*$H3^1*$I3^2+m_011*$G3^0*$H3^1*$I3^1+m_010*$G3^0*$H3^1*$I3^0 +m_003*$G3^0*$H3^0*$I3^3+m_002*$G3^0*$H3^0*$I3^2+m_001*$G3^0*$H3^0*$I3^1+m_000*$G3^0*$H3^0*$I3^0 -> 1269.150648 | K3: =IF(J3<CopperThreshold,CopperThreshold,J3) -> 1269.150648 | L3: =IF(TestDataCu!G3 >CupHMaximum, CuPhDefaultHigh, cuPhDefaultLow) ->  | M3: =m_433*$L3^4*$H3^3*$I3^3+m_432*$L3^4*$H3^3*$I3^2+m_431*$L3^4*$H3^3*$I3^1+m_430*$L3^4*$H3^3*$I3^0 +m_423*$L3^4*$H3^2*$I3^3+m_422*$L3^4*$H3^2*$I3^2+m_421*$L3^4*$H3^2*$I3^1+m_420*$L3^4*$H3^2*$I3^0 +m_413*$L3^4*$H3^1*$I3^3+m_412*$L3^4*$H3^1*$I3^2+m_411*$L3^4*$H3^1*$I3^1+m_410*$L3^4*$H3^1*$I3^0 +m_403*$L3^4*$H3^0*$I3^3+m_402*$L3^4*$H3^0*$I3^2+m_401*$L3^4*$H3^0*$I3^1+m_400*$L3^4*$H3^0*$I3^0 +m_333*$L3^3*$H3^3*$I3^3+m_332*$L3^3*$H3^3*$I3^2+m_331*$L3^3*$H3^3*$I3^1+m_330*$L3^3*$H3^3*$I3^0 +m_323*$L3^3*$H3^2*$I3^3+m_322*$L3^3*$H3^2*$I3^2+m_321*$L3^3*$H3^2*$I3^1+m_320*$L3^3*$H3^2*$I3^0 +m_313*$L3^3*$H3^1*$I3^3+m_312*$L3^3*$H3^1*$I3^2+m_311*$L3^3*$H3^1*$I3^1+m_310*$L3^3*$H3^1*$I3^0 +m_303*$L3^3*$H3^0*$I3^3+m_302*$L3^3*$H3^0*$I3^2+m_301*$L3^3*$H3^0*$I3^1+m_300*$L3^3*$H3^0*$I3^0 +m_233*$L3^2*$H3^3*$I3^3+m_232*$L3^2*$H3^3*$I3^2+m_231*$L3^2*$H3^3*$I3^1+m_230*$L3^2*$H3^3*$I3^0 +m_223*$L3^2*$H3^2*$I3^3+m_222*$L3^2*$H3^2*$I3^2+m_221*$L3^2*$H3^2*$I3^1+m_220*$L3^2*$H3^2*$I3^0 +m_213*$L3^2*$H3^1*$I3^3+m_212*$L3^2*$H3^1*$I3^2+m_211*$L3^2*$H3^1*$I3^1+m_210*$L3^2*$H3^1*$I3^0 +m_203*$L3^2*$H3^0*$I3^3+m_202*$L3^2*$H3^0*$I3^2+m_201*$L3^2*$H3^0*$I3^1+m_200*$L3^2*$H3^0*$I3^0 +m_133*$L3^1*$H3^3*$I3^3+m_132*$L3^1*$H3^3*$I3^2+m_131*$L3^1*$H3^3*$I3^1+m_130*$L3^1*$H3^3*$I3^0 +m_123*$L3^1*$H3^2*$I3^3+m_122*$L3^1*$H3^2*$I3^2+m_121*$L3^1*$H3^2*$I3^1+m_120*$L3^1*$H3^2*$I3^0 +m_113*$L3^1*$H3^1*$I3^3+m_112*$L3^1*$H3^1*$I3^2+m_111*$L3^1*$H3^1*$I3^1+m_110*$L3^1*$H3^1*$I3^0 +m_103*$L3^1*$H3^0*$I3^3+m_102*$L3^1*$H3^0*$I3^2+m_101*$L3^1*$H3^0*$I3^1+m_100*$L3^1*$H3^0*$I3^0 +m_033*$L3^0*$H3^3*$I3^3+m_032*$L3^0*$H3^3*$I3^2+m_031*$L3^0*$H3^3*$I3^1+m_030*$L3^0*$H3^3*$I3^0 +m_023*$L3^0*$H3^2*$I3^3+m_022*$L3^0*$H3^2*$I3^2+m_021*$L3^0*$H3^2*$I3^1+m_020*$L3^0*$H3^2*$I3^0 +m_013*$L3^0*$H3^1*$I3^3+m_012*$L3^0*$H3^1*$I3^2+m_011*$L3^0*$H3^1*$I3^1+m_010*$L3^0*$H3^1*$I3^0 +m_003*$L3^0*$H3^0*$I3^3+m_002*$L3^0*$H3^0*$I3^2+m_001*$L3^0*$H3^0*$I3^1+m_000*$L3^0*$H3^0*$I3^0 ->  | N3: =IF(M3<CopperThreshold,CopperThreshold,M3) ->  | O3: =CopperThreshold/K3 -> 0.0007879285268 | P3: =CopperThreshold/N3 ->  | Q3: =((1-(1-2.718282^-(((1-P3)/0.027)^0.35)))*12+1)-(0.5*((1-P3)^4)) ->  | R3: =(1-(1-2.718282^-(((G3-4)/Q3)^2.7))) ->  | S3: =CopperThreshold/R3 ->  | T3: =IF(S3<CopperThreshold,CopperThreshold,S3) ->  | U3: =IF(G3<CupHMinimum, CopperThreshold, (IF(G3 <cuPhDefaultLow, T3, (IF(G3<CupHMaximum, K3, N3))))) ->  | V3: =IF(G3<CupHMinimum, 1, (IF(G3 <cuPhDefaultLow, R3, (IF(G3<CupHMaximum, O3, P3))))) ->  | AB3: 1 | AC3: 1 | AD3: 5 | AE3: 1 | AF3: 1 | AI3: =IF(AE3<>U3,"mismatch","") ->  | AJ3: =IF(AF3<>V3,"mismatch","") ->  | AK3: =IF(AG3<>W3,"mismatch","") ->  | AL3: =IF(AH3<>X3,"mismatch","") -> 
A4: 2 | G4: 5 | H4: 0.9 | I4: 5 | J4: 13.81112862 | K4: 13.81112862 | L4: =IF(TestDataCu!G4 >CupHMaximum, CuPhDefaultHigh, cuPhDefaultLow) ->  | O4: 0.07240537885 | AB4: 4 | AC4: 1 | AD4: 5 | AE4: 1.582827566 | AF4: 0.6317807585
A5: 3 | G5: 7.1 | H5: 0.9 | I5: 5 | J5: 3.476306884 | K5: 3.476306884 | L5: =IF(TestDataCu!G5 >CupHMaximum, CuPhDefaultHigh, cuPhDefaultLow) ->  | O5: 0.2876615999 | AB5: 7.1 | AC5: 1 | AD5: 5 | AE5: 3.476306884 | AF5: 0.2876615999
A6: 4 | G6: 8.6 | H6: 0.9 | I6: 5 | J6: 1.711895087 | K6: 1.711895087 | L6: =IF(TestDataCu!G6 >CupHMaximum, CuPhDefaultHigh, cuPhDefaultLow) ->  | O6: 0.5841479468 | AB6: 8.6 | AC6: 1 | AD6: 5 | AE6: 1.71047723 | AF6: 0.5846321615
A7: 5 | G7: 1 | H7: 0.9 | I7: 31 | J7: 1403.318048 | K7: 1403.318048 | L7: =IF(TestDataCu!G7 >CupHMaximum, CuPhDefaultHigh, cuPhDefaultLow) ->  | O7: 0.0007125968355 | AB7: 1 | AC7: 1 | AD7: 31 | AE7: 1 | AF7: 1
A8: 6 | G8: 5 | H8: 0.9 | I8: 31 | J8: 15.33211857 | K8: 15.33211857 | L8: =IF(TestDataCu!G8 >CupHMaximum, CuPhDefaultHigh, cuPhDefaultLow) ->  | O8: 0.06522255847 | AB8: 4 | AC8: 1 | AD8: 31 | AE8: 1.634931348 | AF8: 0.6116464777
A9: 7 | G9: 7.1 | H9: 0.9 | I9: 31 | J9: 3.373193677 | K9: 3.373193677 | L9: =IF(TestDataCu!G9 >CupHMaximum, CuPhDefaultHigh, cuPhDefaultLow) ->  | O9: 0.296454961 | AB9: 7.1 | AC9: 1 | AD9: 31 | AE9: 3.373193677 | AF9: 0.296454961
A10: 8 | G10: 8.6 | H10: 0.9 | I10: 31 | J10: 1.504107173 | K10: 1.504107173 | L10: =IF(TestDataCu!G10 >CupHMaximum, CuPhDefaultHigh, cuPhDefaultLow) ->  | O10: 0.6648462411 | AB10: 8.6 | AC10: 1 | AD10: 31 | AE10: 1.466407509 | AF10: 0.6819386792
A11: 9 | G11: 1 | H11: 1.1 | I11: 5 | J11: 1572.33553 | K11: 1572.33553 | L11: =IF(TestDataCu!G11 >CupHMaximum, CuPhDefaultHigh, cuPhDefaultLow) ->  | O11: 0.0006359965676 | AB11: 1 | AC11: 1.1 | AD11: 5 | AE11: 1 | AF11: 1
A12: 10 | G12: 5 | H12: 1.1 | I12: 5 | J12: 16.77751769 | K12: 16.77751769 | L12: =IF(TestDataCu!G12 >CupHMaximum, CuPhDefaultHigh, cuPhDefaultLow) ->  | O12: 0.05960357297 | AB12: 4 | AC12: 1.1 | AD12: 5 | AE12: 1.685586067 | AF12: 0.5932654639
A13: 11 | G13: 7.1 | H13: 1.1 | I13: 5 | J13: 4.269822373 | K13: 4.269822373 | L13: =IF(TestDataCu!G13 >CupHMaximum, CuPhDefaultHigh, cuPhDefaultLow) ->  | O13: 0.23420178 | AB13: 7.1 | AC13: 1.1 | AD13: 5 | AE13: 4.269822373 | AF13: 0.23420178
A14: 12 | G14: 8.6 | H14: 1.1 | I14: 5 | J14: 2.019098505 | K14: 2.019098505 | L14: =IF(TestDataCu!G14 >CupHMaximum, CuPhDefaultHigh, cuPhDefaultLow) ->  | O14: 0.4952705366 | AB14: 8.6 | AC14: 1.1 | AD14: 5 | AE14: 2.028156481 | AF14: 0.4930586024
A15: 13 | G15: 1 | H15: 1.1 | I15: 31 | J15: 1776.401152 | K15: 1776.401152 | L15: =IF(TestDataCu!G15 >CupHMaximum, CuPhDefaultHigh, cuPhDefaultLow) ->  | O15: 0.0005629359106 | AB15: 1 | AC15: 1.1 | AD15: 31 | AE15: 1 | AF15: 1
A16: 14 | G16: 5 | H16: 1.1 | I16: 31 | J16: 19.15528922 | K16: 19.15528922 | L16: =IF(TestDataCu!G16 >CupHMaximum, CuPhDefaultHigh, cuPhDefaultLow) ->  | O16: 0.05220490219 | AB16: 4 | AC16: 1.1 | AD16: 31 | AE16: 1.764545554 | AF16: 0.5667181547
A17: 15 | G17: 7.1 | H17: 1.1 | I17: 31 | J17: 4.144845262 | K17: 4.144845262 | L17: =IF(TestDataCu!G17 >CupHMaximum, CuPhDefaultHigh, cuPhDefaultLow) ->  | O17: 0.2412635302 | AB17: 7.1 | AC17: 1.1 | AD17: 31 | AE17: 4.144845262 | AF17: 0.2412635302
A18: 16 | G18: 8.6 | H18: 1.1 | I18: 31 | J18: 1.729067872 | K18: 1.729067872 | L18: =IF(TestDataCu!G18 >CupHMaximum, CuPhDefaultHigh, cuPhDefaultLow) ->  | O18: 0.5783462963 | AB18: 8.6 | AC18: 1.1 | AD18: 31 | AE18: 1.691746172 | AF18: 0.5911052239
A19: 17 | G19: 1 | H19: 3.1 | I19: 5 | J19: 4663.466043 | K19: 4663.466043 | L19: =IF(TestDataCu!G19 >CupHMaximum, CuPhDefaultHigh, cuPhDefaultLow) ->  | O19: 0.0002144327826 | AB19: 1 | AC19: 3.1 | AD19: 5 | AE19: 1 | AF19: 1
A20: 18 | G20: 5 | H20: 3.1 | I20: 5 | J20: 48.81984071 | K20: 48.81984071 | L20: =IF(TestDataCu!G20 >CupHMaximum, CuPhDefaultHigh, cuPhDefaultLow) ->  | O20: 0.02048347527 | AB20: 4 | AC20: 3.1 | AD20: 5 | AE20: 2.559805829 | AF20: 0.3906546304
A21: 19 | G21: 7.1 | H21: 3.1 | I21: 5 | J21: 12.38825003 | K21: 12.38825003 | L21: =IF(TestDataCu!G21 >CupHMaximum, CuPhDefaultHigh, cuPhDefaultLow) ->  | O21: 0.08072165135 | AB21: 7.1 | AC21: 3.1 | AD21: 5 | AE21: 12.38825003 | AF21: 0.08072165135
A22: 20 | G22: 8.6 | H22: 3.1 | I22: 5 | J22: 5.35827562 | K22: 5.35827562 | L22: =IF(TestDataCu!G22 >CupHMaximum, CuPhDefaultHigh, cuPhDefaultLow) ->  | O22: 0.1866272045 | AB22: 8.6 | AC22: 3.1 | AD22: 5 | AE22: 5.553685437 | AF22: 0.1800606123
A23: 21 | G23: 1 | H23: 3.1 | I23: 31 | J23: 4847.920207 | K23: 4847.920207 | L23: =IF(TestDataCu!G23 >CupHMaximum, CuPhDefaultHigh, cuPhDefaultLow) ->  | O23: 0.0002062740221 | AB23: 1 | AC23: 3.1 | AD23: 31 | AE23: 1 | AF23: 1
A24: 22 | G24: 5 | H24: 3.1 | I24: 31 | J24: 49.43892794 | K24: 49.43892794 | L24: =IF(TestDataCu!G24 >CupHMaximum, CuPhDefaultHigh, cuPhDefaultLow) ->  | O24: 0.02022697582 | AB24: 4 | AC24: 3.1 | AD24: 31 | AE24: 2.543406554 | AF24: 0.3931734777
A25: 23 | G25: 7.1 | H25: 3.1 | I25: 31 | J25: 12.40738644 | K25: 12.40738644 | L25: =IF(TestDataCu!G25 >CupHMaximum, CuPhDefaultHigh, cuPhDefaultLow) ->  | O25: 0.08059715112 | AB25: 7.1 | AC25: 3.1 | AD25: 31 | AE25: 12.40738644 | AF25: 0.08059715112
A26: 24 | G26: 8.6 | H26: 3.1 | I26: 31 | J26: 4.621977866 | K26: 4.621977866 | L26: =IF(TestDataCu!G26 >CupHMaximum, CuPhDefaultHigh, cuPhDefaultLow) ->  | O26: 0.2163575917 | AB26: 8.6 | AC26: 3.1 | AD26: 31 | AE26: 4.79156765 | AF26: 0.2086999648
A27: 25 | G27: 1 | H27: 10.1 | I27: 5 | J27: 15436.05369 | K27: 15436.05369 | L27: =IF(TestDataCu!G27 >CupHMaximum, CuPhDefaultHigh, cuPhDefaultLow) ->  | O27: 6.478339737e-05 | AB27: 1 | AC27: 10.1 | AD27: 5 | AE27: 1 | AF27: 1
A28: 26 | G28: 5 | H28: 10.1 | I28: 5 | J28: 176.1872211 | K28: 176.1872211 | L28: =IF(TestDataCu!G28 >CupHMaximum, CuPhDefaultHigh, cuPhDefaultLow) ->  | O28: 0.005675780535 | AB28: 4 | AC28: 10.1 | AD28: 5 | AE28: 3.834949213 | AF28: 0.2607596462
A29: 27 | G29: 7.1 | H29: 10.1 | I29: 5 | J29: 41.11936805 | K29: 41.11936805 | L29: =IF(TestDataCu!G29 >CupHMaximum, CuPhDefaultHigh, cuPhDefaultLow) ->  | O29: 0.0243194399 | AB29: 7.1 | AC29: 10.1 | AD29: 5 | AE29: 41.11936805 | AF29: 0.0243194399
A30: 28 | G30: 8.6 | H30: 10.1 | I30: 5 | J30: 17.22650392 | K30: 17.22650392 | L30: =IF(TestDataCu!G30 >CupHMaximum, CuPhDefaultHigh, cuPhDefaultLow) ->  | O30: 0.05805008404 | AB30: 8.6 | AC30: 10.1 | AD30: 5 | AE30: 18.69499139 | AF30: 0.05349026266
A31: 29 | G31: 1 | H31: 10.1 | I31: 31 | J31: 18191.77145 | K31: 18191.77145 | L31: =IF(TestDataCu!G31 >CupHMaximum, CuPhDefaultHigh, cuPhDefaultLow) ->  | O31: 5.496990784e-05 | AB31: 1 | AC31: 10.1 | AD31: 31 | AE31: 1 | AF31: 1
A32: 30 | G32: 5 | H32: 10.1 | I32: 31 | J32: 197.8417423 | K32: 197.8417423 | L32: =IF(TestDataCu!G32 >CupHMaximum, CuPhDefaultHigh, cuPhDefaultLow) ->  | O32: 0.005054545054 | AB32: 4 | AC32: 10.1 | AD32: 31 | AE32: 3.871669958 | AF32: 0.2582864787
A33: 31 | G33: 7.1 | H33: 10.1 | I33: 31 | J33: 42.54117145 | K33: 42.54117145 | L33: =IF(TestDataCu!G33 >CupHMaximum, CuPhDefaultHigh, cuPhDefaultLow) ->  | O33: 0.02350663994 | AB33: 7.1 | AC33: 10.1 | AD33: 31 | AE33: 42.54117145 | AF33: 0.02350663994
A34: 32 | G34: 8.6 | H34: 10.1 | I34: 31 | J34: 15.64082249 | K34: 15.64082249 | L34: =IF(TestDataCu!G34 >CupHMaximum, CuPhDefaultHigh, cuPhDefaultLow) ->  | O34: 0.06393525664 | AB34: 8.6 | AC34: 10.1 | AD34: 31 | AE34: 16.49142615 | AF34: 0.06063756953
A35: 33 | G35: 1 | H35: 30.1 | I35: 5 | J35: =m_433*$G35^4*$H35^3*$I35^3+m_432*$G35^4*$H35^3*$I35^2+m_431*$G35^4*$H35^3*$I35^1+m_430*$G35^4*$H35^3*$I35^0 +m_423*$G35^4*$H35^2*$I35^3+m_422*$G35^4*$H35^2*$I35^2+m_421*$G35^4*$H35^2*$I35^1+m_420*$G35^4*$H35^2*$I35^0 +m_413*$G35^4*$H35^1*$I35^3+m_412*$G35^4*$H35^1*$I35^2+m_411*$G35^4*$H35^1*$I35^1+m_410*$G35^4*$H35^1*$I35^0 +m_403*$G35^4*$H35^0*$I35^3+m_402*$G35^4*$H35^0*$I35^2+m_401*$G35^4*$H35^0*$I35^1+m_400*$G35^4*$H35^0*$I35^0 +m_333*$G35^3*$H35^3*$I35^3+m_332*$G35^3*$H35^3*$I35^2+m_331*$G35^3*$H35^3*$I35^1+m_330*$G35^3*$H35^3*$I35^0 +m_323*$G35^3*$H35^2*$I35^3+m_322*$G35^3*$H35^2*$I35^2+m_321*$G35^3*$H35^2*$I35^1+m_320*$G35^3*$H35^2*$I35^0 +m_313*$G35^3*$H35^1*$I35^3+m_312*$G35^3*$H35^1*$I35^2+m_311*$G35^3*$H35^1*$I35^1+m_310*$G35^3*$H35^1*$I35^0 +m_303*$G35^3*$H35^0*$I35^3+m_302*$G35^3*$H35^0*$I35^2+m_301*$G35^3*$H35^0*$I35^1+m_300*$G35^3*$H35^0*$I35^0 +m_233*$G35^2*$H35^3*$I35^3+m_232*$G35^2*$H35^3*$I35^2+m_231*$G35^2*$H35^3*$I35^1+m_230*$G35^2*$H35^3*$I35^0 +m_223*$G35^2*$H35^2*$I35^3+m_222*$G35^2*$H35^2*$I35^2+m_221*$G35^2*$H35^2*$I35^1+m_220*$G35^2*$H35^2*$I35^0 +m_213*$G35^2*$H35^1*$I35^3+m_212*$G35^2*$H35^1*$I35^2+m_211*$G35^2*$H35^1*$I35^1+m_210*$G35^2*$H35^1*$I35^0 +m_203*$G35^2*$H35^0*$I35^3+m_202*$G35^2*$H35^0*$I35^2+m_201*$G35^2*$H35^0*$I35^1+m_200*$G35^2*$H35^0*$I35^0 +m_133*$G35^1*$H35^3*$I35^3+m_132*$G35^1*$H35^3*$I35^2+m_131*$G35^1*$H35^3*$I35^1+m_130*$G35^1*$H35^3*$I35^0 +m_123*$G35^1*$H35^2*$I35^3+m_122*$G35^1*$H35^2*$I35^2+m_121*$G35^1*$H35^2*$I35^1+m_120*$G35^1*$H35^2*$I35^0 +m_113*$G35^1*$H35^1*$I35^3+m_112*$G35^1*$H35^1*$I35^2+m_111*$G35^1*$H35^1*$I35^1+m_110*$G35^1*$H35^1*$I35^0 +m_103*$G35^1*$H35^0*$I35^3+m_102*$G35^1*$H35^0*$I35^2+m_101*$G35^1*$H35^0*$I35^1+m_100*$G35^1*$H35^0*$I35^0 +m_033*$G35^0*$H35^3*$I35^3+m_032*$G35^0*$H35^3*$I35^2+m_031*$G35^0*$H35^3*$I35^1+m_030*$G35^0*$H35^3*$I35^0 +m_023*$G35^0*$H35^2*$I35^3+m_022*$G35^0*$H35^2*$I35^2+m_021*$G35^0*$H35^2*$I35^1+m_020*$G35^0*$H35^2*$I35^0 +m_013*$G35^0*$H35^1*$I35^3+m_012*$G35^0*$H35^1*$I35^2+m_011*$G35^0*$H35^1*$I35^1+m_010*$G35^0*$H35^1*$I35^0 +m_003*$G35^0*$H35^0*$I35^3+m_002*$G35^0*$H35^0*$I35^2+m_001*$G35^0*$H35^0*$I35^1+m_000*$G35^0*$H35^0*$I35^0 -> 21631.01512 | K35: =IF(J35<CopperThreshold,CopperThreshold,J35) -> 21631.01512 | L35: =IF(TestDataCu!G35 >CupHMaximum, CuPhDefaultHigh, cuPhDefaultLow) ->  | M35: =m_433*$L35^4*$H35^3*$I35^3+m_432*$L35^4*$H35^3*$I35^2+m_431*$L35^4*$H35^3*$I35^1+m_430*$L35^4*$H35^3*$I35^0 +m_423*$L35^4*$H35^2*$I35^3+m_422*$L35^4*$H35^2*$I35^2+m_421*$L35^4*$H35^2*$I35^1+m_420*$L35^4*$H35^2*$I35^0 +m_413*$L35^4*$H35^1*$I35^3+m_412*$L35^4*$H35^1*$I35^2+m_411*$L35^4*$H35^1*$I35^1+m_410*$L35^4*$H35^1*$I35^0 +m_403*$L35^4*$H35^0*$I35^3+m_402*$L35^4*$H35^0*$I35^2+m_401*$L35^4*$H35^0*$I35^1+m_400*$L35^4*$H35^0*$I35^0 +m_333*$L35^3*$H35^3*$I35^3+m_332*$L35^3*$H35^3*$I35^2+m_331*$L35^3*$H35^3*$I35^1+m_330*$L35^3*$H35^3*$I35^0 +m_323*$L35^3*$H35^2*$I35^3+m_322*$L35^3*$H35^2*$I35^2+m_321*$L35^3*$H35^2*$I35^1+m_320*$L35^3*$H35^2*$I35^0 +m_313*$L35^3*$H35^1*$I35^3+m_312*$L35^3*$H35^1*$I35^2+m_311*$L35^3*$H35^1*$I35^1+m_310*$L35^3*$H35^1*$I35^0 +m_303*$L35^3*$H35^0*$I35^3+m_302*$L35^3*$H35^0*$I35^2+m_301*$L35^3*$H35^0*$I35^1+m_300*$L35^3*$H35^0*$I35^0 +m_233*$L35^2*$H35^3*$I35^3+m_232*$L35^2*$H35^3*$I35^2+m_231*$L35^2*$H35^3*$I35^1+m_230*$L35^2*$H35^3*$I35^0 +m_223*$L35^2*$H35^2*$I35^3+m_222*$L35^2*$H35^2*$I35^2+m_221*$L35^2*$H35^2*$I35^1+m_220*$L35^2*$H35^2*$I35^0 +m_213*$L35^2*$H35^1*$I35^3+m_212*$L35^2*$H35^1*$I35^2+m_211*$L35^2*$H35^1*$I35^1+m_210*$L35^2*$H35^1*$I35^0 +m_203*$L35^2*$H35^0*$I35^3+m_202*$L35^2*$H35^0*$I35^2+m_201*$L35^2*$H35^0*$I35^1+m_200*$L35^2*$H35^0*$I35^0 +m_133*$L35^1*$H35^3*$I35^3+m_132*$L35^1*$H35^3*$I35^2+m_131*$L35^1*$H35^3*$I35^1+m_130*$L35^1*$H35^3*$I35^0 +m_123*$L35^1*$H35^2*$I35^3+m_122*$L35^1*$H35^2*$I35^2+m_121*$L35^1*$H35^2*$I35^1+m_120*$L35^1*$H35^2*$I35^0 +m_113*$L35^1*$H35^1*$I35^3+m_112*$L35^1*$H35^1*$I35^2+m_111*$L35^1*$H35^1*$I35^1+m_110*$L35^1*$H35^1*$I35^0 +m_103*$L35^1*$H35^0*$I35^3+m_102*$L35^1*$H35^0*$I35^2+m_101*$L35^1*$H35^0*$I35^1+m_100*$L35^1*$H35^0*$I35^0 +m_033*$L35^0*$H35^3*$I35^3+m_032*$L35^0*$H35^3*$I35^2+m_031*$L35^0*$H35^3*$I35^1+m_030*$L35^0*$H35^3*$I35^0 +m_023*$L35^0*$H35^2*$I35^3+m_022*$L35^0*$H35^2*$I35^2+m_021*$L35^0*$H35^2*$I35^1+m_020*$L35^0*$H35^2*$I35^0 +m_013*$L35^0*$H35^1*$I35^3+m_012*$L35^0*$H35^1*$I35^2+m_011*$L35^0*$H35^1*$I35^1+m_010*$L35^0*$H35^1*$I35^0 +m_003*$L35^0*$H35^0*$I35^3+m_002*$L35^0*$H35^0*$I35^2+m_001*$L35^0*$H35^0*$I35^1+m_000*$L35^0*$H35^0*$I35^0 ->  | O35: =CopperThreshold/K35 -> 4.622991545e-05 | P35: =CopperThreshold/N35 ->  | R35: =(1-(1-2.718282^-(((G35-4)/Q35)^2.7))) ->  | U35: =IF(G35<CupHMinimum, CopperThreshold, (IF(G35 <cuPhDefaultLow, T35, (IF(G35<CupHMaximum, K35, N35))))) ->  | V35: =IF(G35<CupHMinimum, 1, (IF(G35 <cuPhDefaultLow, R35, (IF(G35<CupHMaximum, O35, P35))))) ->  | AB35: 1 | AC35: 30.1 | AD35: 5 | AE35: 1 | AF35: 1 | AI35: =IF(AE35<>U35,"mismatch","") ->  | AJ35: =IF(AF35<>V35,"mismatch","") ->  | AK35: =IF(AG35<>W35,"mismatch","") ->  | AL35: =IF(AH35<>X35,"mismatch","") -> 
A36: 34 | G36: 5 | H36: 30.1 | I36: 5 | J36: 161.633201 | K36: 161.633201 | L36: =IF(TestDataCu!G36 >CupHMaximum, CuPhDefaultHigh, cuPhDefaultLow) ->  | O36: 0.006186847715 | AB36: 4 | AC36: 30.1 | AD36: 5 | AE36: 4.04513258 | AF36: 0.247210686
A37: 35 | G37: 7.1 | H37: 30.1 | I37: 5 | J37: 63.57636331 | K37: 63.57636331 | L37: =IF(TestDataCu!G37 >CupHMaximum, CuPhDefaultHigh, cuPhDefaultLow) ->  | O37: 0.01572911611 | AB37: 7.1 | AC37: 30.1 | AD37: 5 | AE37: 63.57636331 | AF37: 0.01572911611
A38: 36 | G38: 8.6 | H38: 30.1 | I38: 5 | J38: -45.76491549 | K38: 1 | L38: =IF(TestDataCu!G38 >CupHMaximum, CuPhDefaultHigh, cuPhDefaultLow) ->  | O38: 1 | AB38: 8.6 | AC38: 30.1 | AD38: 5 | AE38: 1 | AF38: 1
A39: 37 | G39: 1 | H39: 30.1 | I39: 31 | J39: 403681.04 | K39: 403681.04 | L39: =IF(TestDataCu!G39 >CupHMaximum, CuPhDefaultHigh, cuPhDefaultLow) ->  | O39: 2.477203289e-06 | AB39: 1 | AC39: 30.1 | AD39: 31 | AE39: 1 | AF39: 1
A40: 38 | G40: 5 | H40: 30.1 | I40: 31 | J40: 5205.998381 | K40: 5205.998381 | L40: =IF(TestDataCu!G40 >CupHMaximum, CuPhDefaultHigh, cuPhDefaultLow) ->  | O40: 0.0001920861143 | AB40: 4 | AC40: 30.1 | AD40: 31 | AE40: 4.719385393 | AF40: 0.211891998
A41: 39 | G41: 7.1 | H41: 30.1 | I41: 31 | J41: -39.35836481 | K41: 1 | L41: =IF(TestDataCu!G41 >CupHMaximum, CuPhDefaultHigh, cuPhDefaultLow) ->  | O41: 1 | AB41: 7.1 | AC41: 30.1 | AD41: 31 | AE41: 1 | AF41: 1
A42: 40 | G42: 8.6 | H42: 30.1 | I42: 31 | J42: -169.9380855 | K42: 1 | L42: =IF(TestDataCu!G42 >CupHMaximum, CuPhDefaultHigh, cuPhDefaultLow) ->  | O42: 1 | AB42: 8.6 | AC42: 30.1 | AD42: 31 | AE42: 1 | AF42: 1
A43: 41 | D43: 15 | G43: 1 | H43: 0.9 | I43: 5 | J43: 1269.150648 | K43: 1269.150648 | L43: =IF(TestDataCu!G43 >CupHMaximum, CuPhDefaultHigh, cuPhDefaultLow) ->  | O43: 0.0007879285268 | W43: =D43*V43 ->  | X43: =W43/CopperThreshold ->  | Y43: 15 | AB43: 1 | AC43: 1 | AD43: 5 | AE43: 1 | AF43: 1 | AG43: 15 | AH43: 15
A44: 42 | D44: 15 | G44: 5 | H44: 0.9 | I44: 5 | J44: 13.81112862 | K44: 13.81112862 | L44: =IF(TestDataCu!G44 >CupHMaximum, CuPhDefaultHigh, cuPhDefaultLow) ->  | O44: 0.07240537885 | Y44: 15 | AB44: 4 | AC44: 1 | AD44: 5 | AE44: 1.582827566 | AF44: 0.6317807585 | AG44: 9.476711378 | AH44: 9.476711378
A45: 43 | D45: 15 | G45: 7.1 | H45: 0.9 | I45: 5 | J45: 3.476306884 | K45: 3.476306884 | L45: =IF(TestDataCu!G45 >CupHMaximum, CuPhDefaultHigh, cuPhDefaultLow) ->  | O45: 0.2876615999 | Y45: 15 | AB45: 7.1 | AC45: 1 | AD45: 5 | AE45: 3.476306884 | AF45: 0.2876615999 | AG45: 4.314923999 | AH45: 4.314923999
A46: 44 | D46: 15 | G46: 8.6 | H46: 0.9 | I46: 5 | J46: 1.711895087 | K46: 1.711895087 | L46: =IF(TestDataCu!G46 >CupHMaximum, CuPhDefaultHigh, cuPhDefaultLow) ->  | O46: 0.5841479468 | Y46: 15 | AB46: 8.6 | AC46: 1 | AD46: 5 | AE46: 1.71047723 | AF46: 0.5846321615 | AG46: 8.769482423 | AH46: 8.769482423
A47: 45 | D47: 15 | G47: 1 | H47: 0.9 | I47: 31 | J47: 1403.318048 | K47: 1403.318048 | L47: =IF(TestDataCu!G47 >CupHMaximum, CuPhDefaultHigh, cuPhDefaultLow) ->  | O47: 0.0007125968355 | Y47: 15 | AB47: 1 | AC47: 1 | AD47: 31 | AE47: 1 | AF47: 1 | AG47: 15 | AH47: 15
A48: 46 | D48: 15 | G48: 5 | H48: 0.9 | I48: 31 | J48: 15.33211857 | K48: 15.33211857 | L48: =IF(TestDataCu!G48 >CupHMaximum, CuPhDefaultHigh, cuPhDefaultLow) ->  | O48: 0.06522255847 | Y48: 15 | AB48: 4 | AC48: 1 | AD48: 31 | AE48: 1.634931348 | AF48: 0.6116464777 | AG48: 9.174697165 | AH48: 9.174697165
A49: 47 | D49: 15 | G49: 7.1 | H49: 0.9 | I49: 31 | J49: 3.373193677 | K49: 3.373193677 | L49: =IF(TestDataCu!G49 >CupHMaximum, CuPhDefaultHigh, cuPhDefaultLow) ->  | O49: 0.296454961 | Y49: 15 | AB49: 7.1 | AC49: 1 | AD49: 31 | AE49: 3.373193677 | AF49: 0.296454961 | AG49: 4.446824415 | AH49: 4.446824415
A50: 48 | D50: 15 | G50: 8.6 | H50: 0.9 | I50: 31 | J50: 1.504107173 | K50: 1.504107173 | L50: =IF(TestDataCu!G50 >CupHMaximum, CuPhDefaultHigh, cuPhDefaultLow) ->  | O50: 0.6648462411 | Y50: 15 | AB50: 8.6 | AC50: 1 | AD50: 31 | AE50: 1.466407509 | AF50: 0.6819386792 | AG50: 10.22908019 | AH50: 10.22908019
A51: 49 | D51: 15 | G51: 1 | H51: 1.1 | I51: 5 | J51: 1572.33553 | K51: 1572.33553 | L51: =IF(TestDataCu!G51 >CupHMaximum, CuPhDefaultHigh, cuPhDefaultLow) ->  | O51: 0.0006359965676 | Y51: 15 | AB51: 1 | AC51: 1.1 | AD51: 5 | AE51: 1 | AF51: 1 | AG51: 15 | AH51: 15
A52: 50 | D52: 15 | G52: 5 | H52: 1.1 | I52: 5 | J52: 16.77751769 | K52: 16.77751769 | L52: =IF(TestDataCu!G52 >CupHMaximum, CuPhDefaultHigh, cuPhDefaultLow) ->  | O52: 0.05960357297 | Y52: 15 | AB52: 4 | AC52: 1.1 | AD52: 5 | AE52: 1.685586067 | AF52: 0.5932654639 | AG52: 8.898981958 | AH52: 8.898981958
A53: 51 | D53: 15 | G53: 7.1 | H53: 1.1 | I53: 5 | J53: 4.269822373 | K53: 4.269822373 | L53: =IF(TestDataCu!G53 >CupHMaximum, CuPhDefaultHigh, cuPhDefaultLow) ->  | O53: 0.23420178 | Y53: 15 | AB53: 7.1 | AC53: 1.1 | AD53: 5 | AE53: 4.269822373 | AF53: 0.23420178 | AG53: 3.5130267 | AH53: 3.5130267
A54: 52 | D54: 15 | G54: 8.6 | H54: 1.1 | I54: 5 | J54: 2.019098505 | K54: 2.019098505 | L54: =IF(TestDataCu!G54 >CupHMaximum, CuPhDefaultHigh, cuPhDefaultLow) ->  | O54: 0.4952705366 | Y54: 15 | AB54: 8.6 | AC54: 1.1 | AD54: 5 | AE54: 2.028156481 | AF54: 0.4930586024 | AG54: 7.395879036 | AH54: 7.395879036
A55: 53 | D55: 15 | G55: 1 | H55: 1.1 | I55: 31 | J55: 1776.401152 | K55: 1776.401152 | L55: =IF(TestDataCu!G55 >CupHMaximum, CuPhDefaultHigh, cuPhDefaultLow) ->  | O55: 0.0005629359106 | Y55: 15 | AB55: 1 | AC55: 1.1 | AD55: 31 | AE55: 1 | AF55: 1 | AG55: 15 | AH55: 15
A56: 54 | D56: 15 | G56: 5 | H56: 1.1 | I56: 31 | J56: 19.15528922 | K56: 19.15528922 | L56: =IF(TestDataCu!G56 >CupHMaximum, CuPhDefaultHigh, cuPhDefaultLow) ->  | O56: 0.05220490219 | Y56: 15 | AB56: 4 | AC56: 1.1 | AD56: 31 | AE56: 1.764545554 | AF56: 0.5667181547 | AG56: 8.500772321 | AH56: 8.500772321
A57: 55 | D57: 15 | G57: 7.1 | H57: 1.1 | I57: 31 | J57: 4.144845262 | K57: 4.144845262 | L57: =IF(TestDataCu!G57 >CupHMaximum, CuPhDefaultHigh, cuPhDefaultLow) ->  | O57: 0.2412635302 | Y57: 15 | AB57: 7.1 | AC57: 1.1 | AD57: 31 | AE57: 4.144845262 | AF57: 0.2412635302 | AG57: 3.618952952 | AH57: 3.618952952
A58: 56 | D58: 15 | G58: 8.6 | H58: 1.1 | I58: 31 | J58: 1.729067872 | K58: 1.729067872 | L58: =IF(TestDataCu!G58 >CupHMaximum, CuPhDefaultHigh, cuPhDefaultLow) ->  | O58: 0.5783462963 | Y58: 15 | AB58: 8.6 | AC58: 1.1 | AD58: 31 | AE58: 1.691746172 | AF58: 0.5911052239 | AG58: 8.866578358 | AH58: 8.866578358
A59: 57 | D59: 15 | G59: 1 | H59: 3.1 | I59: 5 | J59: 4663.466043 | K59: 4663.466043 | L59: =IF(TestDataCu!G59 >CupHMaximum, CuPhDefaultHigh, cuPhDefaultLow) ->  | O59: 0.0002144327826 | Y59: 15 | AB59: 1 | AC59: 3.1 | AD59: 5 | AE59: 1 | AF59: 1 | AG59: 15 | AH59: 15
A60: 58 | D60: 15 | G60: 5 | H60: 3.1 | I60: 5 | J60: 48.81984071 | K60: 48.81984071 | L60: =IF(TestDataCu!G60 >CupHMaximum, CuPhDefaultHigh, cuPhDefaultLow) ->  | O60: 0.02048347527 | Y60: 15 | AB60: 4 | AC60: 3.1 | AD60: 5 | AE60: 2.559805829 | AF60: 0.3906546304 | AG60: 5.859819456 | AH60: 5.859819456
A61: 59 | D61: 15 | G61: 7.1 | H61: 3.1 | I61: 5 | J61: 12.38825003 | K61: 12.38825003 | L61: =IF(TestDataCu!G61 >CupHMaximum, CuPhDefaultHigh, cuPhDefaultLow) ->  | O61: 0.08072165135 | Y61: 15 | AB61: 7.1 | AC61: 3.1 | AD61: 5 | AE61: 12.38825003 | AF61: 0.08072165135 | AG61: 1.21082477 | AH61: 1.21082477
A62: 60 | D62: 15 | G62: 8.6 | H62: 3.1 | I62: 5 | J62: 5.35827562 | K62: 5.35827562 | L62: =IF(TestDataCu!G62 >CupHMaximum, CuPhDefaultHigh, cuPhDefaultLow) ->  | O62: 0.1866272045 | Y62: 15 | AB62: 8.6 | AC62: 3.1 | AD62: 5 | AE62: 5.553685437 | AF62: 0.1800606123 | AG62: 2.700909184 | AH62: 2.700909184
A63: 61 | D63: 15 | G63: 1 | H63: 3.1 | I63: 31 | J63: 4847.920207 | K63: 4847.920207 | L63: =IF(TestDataCu!G63 >CupHMaximum, CuPhDefaultHigh, cuPhDefaultLow) ->  | O63: 0.0002062740221 | Y63: 15 | AB63: 1 | AC63: 3.1 | AD63: 31 | AE63: 1 | AF63: 1 | AG63: 15 | AH63: 15
A64: 62 | D64: 15 | G64: 5 | H64: 3.1 | I64: 31 | J64: 49.43892794 | K64: 49.43892794 | L64: =IF(TestDataCu!G64 >CupHMaximum, CuPhDefaultHigh, cuPhDefaultLow) ->  | O64: 0.02022697582 | Y64: 15 | AB64: 4 | AC64: 3.1 | AD64: 31 | AE64: 2.543406554 | AF64: 0.3931734777 | AG64: 5.897602166 | AH64: 5.897602166
A65: 63 | D65: 15 | G65: 7.1 | H65: 3.1 | I65: 31 | J65: 12.40738644 | K65: 12.40738644 | L65: =IF(TestDataCu!G65 >CupHMaximum, CuPhDefaultHigh, cuPhDefaultLow) ->  | O65: 0.08059715112 | Y65: 15 | AB65: 7.1 | AC65: 3.1 | AD65: 31 | AE65: 12.40738644 | AF65: 0.08059715112 | AG65: 1.208957267 | AH65: 1.208957267
A66: 64 | D66: 15 | G66: 8.6 | H66: 3.1 | I66: 31 | J66: 4.621977866 | K66: 4.621977866 | L66: =IF(TestDataCu!G66 >CupHMaximum, CuPhDefaultHigh, cuPhDefaultLow) ->  | O66: 0.2163575917 | Y66: 15 | AB66: 8.6 | AC66: 3.1 | AD66: 31 | AE66: 4.79156765 | AF66: 0.2086999648 | AG66: 3.130499472 | AH66: 3.130499472
A67: 65 | D67: 15 | G67: 1 | H67: 10.1 | I67: 5 | J67: =m_433*$G67^4*$H67^3*$I67^3+m_432*$G67^4*$H67^3*$I67^2+m_431*$G67^4*$H67^3*$I67^1+m_430*$G67^4*$H67^3*$I67^0 +m_423*$G67^4*$H67^2*$I67^3+m_422*$G67^4*$H67^2*$I67^2+m_421*$G67^4*$H67^2*$I67^1+m_420*$G67^4*$H67^2*$I67^0 +m_413*$G67^4*$H67^1*$I67^3+m_412*$G67^4*$H67^1*$I67^2+m_411*$G67^4*$H67^1*$I67^1+m_410*$G67^4*$H67^1*$I67^0 +m_403*$G67^4*$H67^0*$I67^3+m_402*$G67^4*$H67^0*$I67^2+m_401*$G67^4*$H67^0*$I67^1+m_400*$G67^4*$H67^0*$I67^0 +m_333*$G67^3*$H67^3*$I67^3+m_332*$G67^3*$H67^3*$I67^2+m_331*$G67^3*$H67^3*$I67^1+m_330*$G67^3*$H67^3*$I67^0 +m_323*$G67^3*$H67^2*$I67^3+m_322*$G67^3*$H67^2*$I67^2+m_321*$G67^3*$H67^2*$I67^1+m_320*$G67^3*$H67^2*$I67^0 +m_313*$G67^3*$H67^1*$I67^3+m_312*$G67^3*$H67^1*$I67^2+m_311*$G67^3*$H67^1*$I67^1+m_310*$G67^3*$H67^1*$I67^0 +m_303*$G67^3*$H67^0*$I67^3+m_302*$G67^3*$H67^0*$I67^2+m_301*$G67^3*$H67^0*$I67^1+m_300*$G67^3*$H67^0*$I67^0 +m_233*$G67^2*$H67^3*$I67^3+m_232*$G67^2*$H67^3*$I67^2+m_231*$G67^2*$H67^3*$I67^1+m_230*$G67^2*$H67^3*$I67^0 +m_223*$G67^2*$H67^2*$I67^3+m_222*$G67^2*$H67^2*$I67^2+m_221*$G67^2*$H67^2*$I67^1+m_220*$G67^2*$H67^2*$I67^0 +m_213*$G67^2*$H67^1*$I67^3+m_212*$G67^2*$H67^1*$I67^2+m_211*$G67^2*$H67^1*$I67^1+m_210*$G67^2*$H67^1*$I67^0 +m_203*$G67^2*$H67^0*$I67^3+m_202*$G67^2*$H67^0*$I67^2+m_201*$G67^2*$H67^0*$I67^1+m_200*$G67^2*$H67^0*$I67^0 +m_133*$G67^1*$H67^3*$I67^3+m_132*$G67^1*$H67^3*$I67^2+m_131*$G67^1*$H67^3*$I67^1+m_130*$G67^1*$H67^3*$I67^0 +m_123*$G67^1*$H67^2*$I67^3+m_122*$G67^1*$H67^2*$I67^2+m_121*$G67^1*$H67^2*$I67^1+m_120*$G67^1*$H67^2*$I67^0 +m_113*$G67^1*$H67^1*$I67^3+m_112*$G67^1*$H67^1*$I67^2+m_111*$G67^1*$H67^1*$I67^1+m_110*$G67^1*$H67^1*$I67^0 +m_103*$G67^1*$H67^0*$I67^3+m_102*$G67^1*$H67^0*$I67^2+m_101*$G67^1*$H67^0*$I67^1+m_100*$G67^1*$H67^0*$I67^0 +m_033*$G67^0*$H67^3*$I67^3+m_032*$G67^0*$H67^3*$I67^2+m_031*$G67^0*$H67^3*$I67^1+m_030*$G67^0*$H67^3*$I67^0 +m_023*$G67^0*$H67^2*$I67^3+m_022*$G67^0*$H67^2*$I67^2+m_021*$G67^0*$H67^2*$I67^1+m_020*$G67^0*$H67^2*$I67^0 +m_013*$G67^0*$H67^1*$I67^3+m_012*$G67^0*$H67^1*$I67^2+m_011*$G67^0*$H67^1*$I67^1+m_010*$G67^0*$H67^1*$I67^0 +m_003*$G67^0*$H67^0*$I67^3+m_002*$G67^0*$H67^0*$I67^2+m_001*$G67^0*$H67^0*$I67^1+m_000*$G67^0*$H67^0*$I67^0 -> 15436.05369 | K67: =IF(J67<CopperThreshold,CopperThreshold,J67) -> 15436.05369 | L67: =IF(TestDataCu!G67 >CupHMaximum, CuPhDefaultHigh, cuPhDefaultLow) ->  | M67: =m_433*$L67^4*$H67^3*$I67^3+m_432*$L67^4*$H67^3*$I67^2+m_431*$L67^4*$H67^3*$I67^1+m_430*$L67^4*$H67^3*$I67^0 +m_423*$L67^4*$H67^2*$I67^3+m_422*$L67^4*$H67^2*$I67^2+m_421*$L67^4*$H67^2*$I67^1+m_420*$L67^4*$H67^2*$I67^0 +m_413*$L67^4*$H67^1*$I67^3+m_412*$L67^4*$H67^1*$I67^2+m_411*$L67^4*$H67^1*$I67^1+m_410*$L67^4*$H67^1*$I67^0 +m_403*$L67^4*$H67^0*$I67^3+m_402*$L67^4*$H67^0*$I67^2+m_401*$L67^4*$H67^0*$I67^1+m_400*$L67^4*$H67^0*$I67^0 +m_333*$L67^3*$H67^3*$I67^3+m_332*$L67^3*$H67^3*$I67^2+m_331*$L67^3*$H67^3*$I67^1+m_330*$L67^3*$H67^3*$I67^0 +m_323*$L67^3*$H67^2*$I67^3+m_322*$L67^3*$H67^2*$I67^2+m_321*$L67^3*$H67^2*$I67^1+m_320*$L67^3*$H67^2*$I67^0 +m_313*$L67^3*$H67^1*$I67^3+m_312*$L67^3*$H67^1*$I67^2+m_311*$L67^3*$H67^1*$I67^1+m_310*$L67^3*$H67^1*$I67^0 +m_303*$L67^3*$H67^0*$I67^3+m_302*$L67^3*$H67^0*$I67^2+m_301*$L67^3*$H67^0*$I67^1+m_300*$L67^3*$H67^0*$I67^0 +m_233*$L67^2*$H67^3*$I67^3+m_232*$L67^2*$H67^3*$I67^2+m_231*$L67^2*$H67^3*$I67^1+m_230*$L67^2*$H67^3*$I67^0 +m_223*$L67^2*$H67^2*$I67^3+m_222*$L67^2*$H67^2*$I67^2+m_221*$L67^2*$H67^2*$I67^1+m_220*$L67^2*$H67^2*$I67^0 +m_213*$L67^2*$H67^1*$I67^3+m_212*$L67^2*$H67^1*$I67^2+m_211*$L67^2*$H67^1*$I67^1+m_210*$L67^2*$H67^1*$I67^0 +m_203*$L67^2*$H67^0*$I67^3+m_202*$L67^2*$H67^0*$I67^2+m_201*$L67^2*$H67^0*$I67^1+m_200*$L67^2*$H67^0*$I67^0 +m_133*$L67^1*$H67^3*$I67^3+m_132*$L67^1*$H67^3*$I67^2+m_131*$L67^1*$H67^3*$I67^1+m_130*$L67^1*$H67^3*$I67^0 +m_123*$L67^1*$H67^2*$I67^3+m_122*$L67^1*$H67^2*$I67^2+m_121*$L67^1*$H67^2*$I67^1+m_120*$L67^1*$H67^2*$I67^0 +m_113*$L67^1*$H67^1*$I67^3+m_112*$L67^1*$H67^1*$I67^2+m_111*$L67^1*$H67^1*$I67^1+m_110*$L67^1*$H67^1*$I67^0 +m_103*$L67^1*$H67^0*$I67^3+m_102*$L67^1*$H67^0*$I67^2+m_101*$L67^1*$H67^0*$I67^1+m_100*$L67^1*$H67^0*$I67^0 +m_033*$L67^0*$H67^3*$I67^3+m_032*$L67^0*$H67^3*$I67^2+m_031*$L67^0*$H67^3*$I67^1+m_030*$L67^0*$H67^3*$I67^0 +m_023*$L67^0*$H67^2*$I67^3+m_022*$L67^0*$H67^2*$I67^2+m_021*$L67^0*$H67^2*$I67^1+m_020*$L67^0*$H67^2*$I67^0 +m_013*$L67^0*$H67^1*$I67^3+m_012*$L67^0*$H67^1*$I67^2+m_011*$L67^0*$H67^1*$I67^1+m_010*$L67^0*$H67^1*$I67^0 +m_003*$L67^0*$H67^0*$I67^3+m_002*$L67^0*$H67^0*$I67^2+m_001*$L67^0*$H67^0*$I67^1+m_000*$L67^0*$H67^0*$I67^0 ->  | N67: =IF(M67<CopperThreshold,CopperThreshold,M67) ->  | O67: =CopperThreshold/K67 -> 6.478339737e-05 | P67: =CopperThreshold/N67 ->  | Q67: =((1-(1-2.718282^-(((1-P67)/0.027)^0.35)))*12+1)-(0.5*((1-P67)^4)) ->  | R67: =(1-(1-2.718282^-(((G67-4)/Q67)^2.7))) ->  | S67: =CopperThreshold/R67 ->  | T67: =IF(S67<CopperThreshold,CopperThreshold,S67) ->  | U67: =IF(G67<CupHMinimum, CopperThreshold, (IF(G67 <cuPhDefaultLow, T67, (IF(G67<CupHMaximum, K67, N67))))) ->  | V67: =IF(G67<CupHMinimum, 1, (IF(G67 <cuPhDefaultLow, R67, (IF(G67<CupHMaximum, O67, P67))))) ->  | Y67: 15 | AB67: 1 | AC67: 10.1 | AD67: 5 | AE67: 1 | AF67: 1 | AG67: 15 | AH67: 15 | AI67: =IF(AE67<>U67,"mismatch","") ->  | AJ67: =IF(AF67<>V67,"mismatch","") ->  | AK67: =IF(AG67<>W67,"mismatch","") ->  | AL67: =IF(AH67<>X67,"mismatch","") -> 
A68: 66 | D68: 15 | G68: 5 | H68: 10.1 | I68: 5 | J68: 176.1872211 | K68: 176.1872211 | L68: =IF(TestDataCu!G68 >CupHMaximum, CuPhDefaultHigh, cuPhDefaultLow) ->  | O68: 0.005675780535 | Y68: 15 | AB68: 4 | AC68: 10.1 | AD68: 5 | AE68: 3.834949213 | AF68: 0.2607596462 | AG68: 3.911394693 | AH68: 3.911394693
A69: 67 | D69: 15 | G69: 7.1 | H69: 10.1 | I69: 5 | J69: 41.11936805 | K69: 41.11936805 | L69: =IF(TestDataCu!G69 >CupHMaximum, CuPhDefaultHigh, cuPhDefaultLow) ->  | O69: 0.0243194399 | Y69: 15 | AB69: 7.1 | AC69: 10.1 | AD69: 5 | AE69: 41.11936805 | AF69: 0.0243194399 | AG69: 0.3647915985 | AH69: 0.3647915985
A70: 68 | D70: 15 | G70: 8.6 | H70: 10.1 | I70: 5 | J70: 17.22650392 | K70: 17.22650392 | L70: =IF(TestDataCu!G70 >CupHMaximum, CuPhDefaultHigh, cuPhDefaultLow) ->  | O70: 0.05805008404 | Y70: 15 | AB70: 8.6 | AC70: 10.1 | AD70: 5 | AE70: 18.69499139 | AF70: 0.05349026266 | AG70: 0.8023539398 | AH70: 0.8023539398
A71: 69 | D71: 15 | G71: 1 | H71: 10.1 | I71: 31 | J71: 18191.77145 | K71: 18191.77145 | L71: =IF(TestDataCu!G71 >CupHMaximum, CuPhDefaultHigh, cuPhDefaultLow) ->  | O71: 5.496990784e-05 | Y71: 15 | AB71: 1 | AC71: 10.1 | AD71: 31 | AE71: 1 | AF71: 1 | AG71: 15 | AH71: 15
A72: 70 | D72: 15 | G72: 5 | H72: 10.1 | I72: 31 | J72: 197.8417423 | K72: 197.8417423 | L72: =IF(TestDataCu!G72 >CupHMaximum, CuPhDefaultHigh, cuPhDefaultLow) ->  | O72: 0.005054545054 | Y72: 15 | AB72: 4 | AC72: 10.1 | AD72: 31 | AE72: 3.871669958 | AF72: 0.2582864787 | AG72: 3.87429718 | AH72: 3.87429718
A73: 71 | D73: 15 | G73: 7.1 | H73: 10.1 | I73: 31 | J73: 42.54117145 | K73: 42.54117145 | L73: =IF(TestDataCu!G73 >CupHMaximum, CuPhDefaultHigh, cuPhDefaultLow) ->  | O73: 0.02350663994 | Y73: 15 | AB73: 7.1 | AC73: 10.1 | AD73: 31 | AE73: 42.54117145 | AF73: 0.02350663994 | AG73: 0.3525995991 | AH73: 0.3525995991
A74: 72 | D74: 15 | G74: 8.6 | H74: 10.1 | I74: 31 | J74: 15.64082249 | K74: 15.64082249 | L74: =IF(TestDataCu!G74 >CupHMaximum, CuPhDefaultHigh, cuPhDefaultLow) ->  | O74: 0.06393525664 | Y74: 15 | AB74: 8.6 | AC74: 10.1 | AD74: 31 | AE74: 16.49142615 | AF74: 0.06063756953 | AG74: 0.909563543 | AH74: 0.909563543
A75: 73 | D75: 15 | G75: 1 | H75: 30.1 | I75: 5 | J75: 21631.01512 | K75: 21631.01512 | L75: =IF(TestDataCu!G75 >CupHMaximum, CuPhDefaultHigh, cuPhDefaultLow) ->  | O75: 4.622991545e-05 | Y75: 15 | AB75: 1 | AC75: 30.1 | AD75: 5 | AE75: 1 | AF75: 1 | AG75: 15 | AH75: 15
A76: 74 | D76: 15 | G76: 5 | H76: 30.1 | I76: 5 | J76: 161.633201 | K76: 161.633201 | L76: =IF(TestDataCu!G76 >CupHMaximum, CuPhDefaultHigh, cuPhDefaultLow) ->  | O76: 0.006186847715 | Y76: 15 | AB76: 4 | AC76: 30.1 | AD76: 5 | AE76: 4.04513258 | AF76: 0.247210686 | AG76: 3.708160289 | AH76: 3.708160289
A77: 75 | D77: 15 | G77: 7.1 | H77: 30.1 | I77: 5 | J77: 63.57636331 | K77: 63.57636331 | L77: =IF(TestDataCu!G77 >CupHMaximum, CuPhDefaultHigh, cuPhDefaultLow) ->  | O77: 0.01572911611 | Y77: 15 | AB77: 7.1 | AC77: 30.1 | AD77: 5 | AE77: 63.57636331 | AF77: 0.01572911611 | AG77: 0.2359367416 | AH77: 0.2359367416
A78: 76 | D78: 15 | G78: 8.6 | H78: 30.1 | I78: 5 | J78: -45.76491549 | K78: 1 | L78: =IF(TestDataCu!G78 >CupHMaximum, CuPhDefaultHigh, cuPhDefaultLow) ->  | O78: 1 | Y78: 15 | AB78: 8.6 | AC78: 30.1 | AD78: 5 | AE78: 1 | AF78: 1 | AG78: 15 | AH78: 15
A79: 77 | D79: 15 | G79: 1 | H79: 30.1 | I79: 31 | J79: 403681.04 | K79: 403681.04 | L79: =IF(TestDataCu!G79 >CupHMaximum, CuPhDefaultHigh, cuPhDefaultLow) ->  | O79: 2.477203289e-06 | Y79: 15 | AB79: 1 | AC79: 30.1 | AD79: 31 | AE79: 1 | AF79: 1 | AG79: 15 | AH79: 15
A80: 78 | D80: 15 | G80: 5 | H80: 30.1 | I80: 31 | J80: 5205.998381 | K80: 5205.998381 | L80: =IF(TestDataCu!G80 >CupHMaximum, CuPhDefaultHigh, cuPhDefaultLow) ->  | O80: 0.0001920861143 | Y80: 15 | AB80: 4 | AC80: 30.1 | AD80: 31 | AE80: 4.719385393 | AF80: 0.211891998 | AG80: 3.178379969 | AH80: 3.178379969
A81: 79 | D81: 15 | G81: 7.1 | H81: 30.1 | I81: 31 | J81: -39.35836481 | K81: 1 | L81: =IF(TestDataCu!G81 >CupHMaximum, CuPhDefaultHigh, cuPhDefaultLow) ->  | O81: =CopperThreshold/K81 -> 1 | Y81: 15 | AB81: 7.1 | AC81: 30.1 | AD81: 31 | AE81: 1 | AF81: 1 | AG81: 15 | AH81: 15
A82: 80 | D82: 15 | G82: 8.6 | H82: 30.1 | I82: 31 | J82: -169.9380855 | K82: 1 | L82: =IF(TestDataCu!G82 >CupHMaximum, CuPhDefaultHigh, cuPhDefaultLow) ->  | O82: 1 | Y82: 15 | AB82: 8.6 | AC82: 30.1 | AD82: 31 | AE82: 1 | AF82: 1 | AG82: 15 | AH82: 15

Sheet Bio Ass test Data
B3: INPUT DATA | M3: RESULTS (Copper) | Q3: RESULTS (Zinc) | U3: RESULTS (Mn) | Y3: RESULTS (Ni)
A4: =SUM(ModelConstantsNi!D$7:D$26*(6^ModelConstantsNi!E$7:E$26)*(20^ModelConstantsNi!F$7:F$26)*(88^ModelConstantsNi!G$7:G$26)) -> 42.52237823 | B4: ID | C4: Location | D4: Waterbody | E4: Date | F4: Measured Cu Concentration (dissolved) (µg l-1) | G4: Measured Zn Concentration (dissolved) (µg l-1) | H4: Measured Mn Concentration (dissolved) (µg l-1) | I4: Measured Ni Concentration (dissolved) (µg l-1) | J4: pH | K4: DOC | L4: Ca | M4: Site-specific PNEC Dissolved Copper (µg l-1) | N4: BioF | O4: Bioavailable Copper Concentration (µg l-1) | P4: Risk Characterisation Ratio | Q4: Site-specific PNEC Dissolved Zinc (µg l-1) | R4: BioF | S4: Bioavailable Zinc Concentration (µg l-1) | T4: Risk Characterisation Ratio | U4: Site-specific PNEC Dissolved Manganese (µg l-1) | V4: BioF | W4: Bioavailable Manganese Concentration (µg l-1) | X4: Risk Characterisation Ratio | Y4: Site-specific PNEC Dissolved Nickel (µg l-1) | Z4: BioF | AA4: Bioavailable Nickel Concentration (µg l-1) | AB4: Risk Characterisation Ratio
B5: 1 | C5: Test | D5: test | J5: 5.8 | K5: 10 | L5: 60 | M5: 11.40896213 | N5: 0.08765039176 | O5: 1.314755876 | P5: 1.314755876 | Q5: 19.90063482 | R5: 0.5477212209 | U5: 2124.203636 | V5: 0.05790405303 | Y5: 30.98094262 | Z5: 0.12911163

Sheet Licence

Sheet validation (hidden)
B3: INPUT DATA | M3: RESULTS (Copper) | Q3: RESULTS (Zinc) | U3: RESULTS (Mn) | Y3: RESULTS (Ni)
B4: ID | C4: Location | D4: Waterbody | E4: Date | F4: Measured Cu Concentration (dissolved) (µg l-1) | G4: Measured Zn Concentration (dissolved) (µg l-1) | H4: Measured Mn Concentration (dissolved) (µg l-1) | I4: Measured Ni Concentration (dissolved) (µg l-1) | J4: pH | K4: DOC | L4: Ca | M4: Site-specific PNEC Dissolved Copper (µg l-1) | N4: BioF | O4: Bioavailable Copper Concentration (µg l-1) | P4: Risk Characterisation Ratio | Q4: Site-specific PNEC Dissolved Zinc (µg l-1) | R4: BioF | S4: Bioavailable Zinc Concentration (µg l-1) | T4: Risk Characterisation Ratio | U4: Site-specific PNEC Dissolved Manganese (µg l-1) | V4: BioF | W4: Bioavailable Manganese Concentration (µg l-1) | X4: Risk Characterisation Ratio | Y4: Site-specific PNEC Dissolved Nickel (µg l-1) | Z4: BioF | AA4: Bioavailable Nickel Concentration (µg l-1) | AB4: Risk Characterisation Ratio
B5: 1 | F5: 15 | J5: 5.8 | K5: 10 | L5: 60 | M5: =IF('Bio Ass test Data'!M5='Bioavailability Assessment Tool'!M5,"",'Bio Ass test Data'!M5-'Bioavailability Assessment Tool'!M5) -> -17.21732783 | N5: =IF('Bio Ass test Data'!N5='Bioavailability Assessment Tool'!N5,"",'Bio Ass test Data'!N5-'Bioavailability Assessment Tool'!N5) -> 0.05271746816 | O5: =IF('Bio Ass test Data'!O5='Bioavailability Assessment Tool'!O5,"",'Bio Ass test Data'!O5-'Bioavailability Assessment Tool'!O5) -> 1.314755876 | P5: =IF('Bio Ass test Data'!P5='Bioavailability Assessment Tool'!P5,"",'Bio Ass test Data'!P5-'Bioavailability Assessment Tool'!P5) -> 1.314755876 | Q5: =IF('Bio Ass test Data'!Q5='Bioavailability Assessment Tool'!Q5,"",'Bio Ass test Data'!Q5-'Bioavailability Assessment Tool'!Q5) -> -28.18342022 | R5: =IF('Bio Ass test Data'!R5='Bioavailability Assessment Tool'!R5,"",'Bio Ass test Data'!R5-'Bioavailability Assessment Tool'!R5) -> 0.3210348486 | S5: =IF('Bio Ass test Data'!S5='Bioavailability Assessment Tool'!S5,"",'Bio Ass test Data'!S5-'Bioavailability Assessment Tool'!S5) ->  | T5: =IF('Bio Ass test Data'!T5='Bioavailability Assessment Tool'!T5,"",'Bio Ass test Data'!T5-'Bioavailability Assessment Tool'!T5) ->  | U5: =IF('Bio Ass test Data'!U5='Bioavailability Assessment Tool'!U5,"",'Bio Ass test Data'!U5-'Bioavailability Assessment Tool'!U5) -> 1912.989774 | V5: =IF('Bio Ass test Data'!V5='Bioavailability Assessment Tool'!V5,"",'Bio Ass test Data'!V5-'Bioavailability Assessment Tool'!V5) -> -0.5244440885 | W5: =IF('Bio Ass test Data'!W5='Bioavailability Assessment Tool'!W5,"",'Bio Ass test Data'!W5-'Bioavailability Assessment Tool'!W5) ->  | X5: =IF('Bio Ass test Data'!X5='Bioavailability Assessment Tool'!X5,"",'Bio Ass test Data'!X5-'Bioavailability Assessment Tool'!X5) ->  | Y5: =IF('Bio Ass test Data'!Y5='Bioavailability Assessment Tool'!Y5,"",'Bio Ass test Data'!Y5-'Bioavailability Assessment Tool'!Y5) -> 14.12486027 | Z5: =IF('Bio Ass test Data'!Z5='Bioavailability Assessment Tool'!Z5,"",'Bio Ass test Data'!Z5-'Bioavailability Assessment Tool'!Z5) -> -0.1081914347 | AA5: =IF('Bio Ass test Data'!AA5='Bioavailability Assessment Tool'!AA5,"",'Bio Ass test Data'!AA5-'Bioavailability Assessment Tool'!AA5) ->  | AB5: =IF('Bio Ass test Data'!AB5='Bioavailability Assessment Tool'!AB5,"",'Bio Ass test Data'!AB5-'Bioavailability Assessment Tool'!AB5) -> 
B6: 2 | F6: 15 | J6: 6 | K6: 10 | L6: 60 | M6: =IF('Bio Ass test Data'!M6='Bioavailability Assessment Tool'!M6,"",'Bio Ass test Data'!M6-'Bioavailability Assessment Tool'!M6) ->  | N6: =IF('Bio Ass test Data'!N6='Bioavailability Assessment Tool'!N6,"",'Bio Ass test Data'!N6-'Bioavailability Assessment Tool'!N6) ->  | O6: =IF('Bio Ass test Data'!O6='Bioavailability Assessment Tool'!O6,"",'Bio Ass test Data'!O6-'Bioavailability Assessment Tool'!O6) ->  | P6: =IF('Bio Ass test Data'!P6='Bioavailability Assessment Tool'!P6,"",'Bio Ass test Data'!P6-'Bioavailability Assessment Tool'!P6) ->  | Q6: =IF('Bio Ass test Data'!Q6='Bioavailability Assessment Tool'!Q6,"",'Bio Ass test Data'!Q6-'Bioavailability Assessment Tool'!Q6) ->  | R6: =IF('Bio Ass test Data'!R6='Bioavailability Assessment Tool'!R6,"",'Bio Ass test Data'!R6-'Bioavailability Assessment Tool'!R6) ->  | S6: =IF('Bio Ass test Data'!S6='Bioavailability Assessment Tool'!S6,"",'Bio Ass test Data'!S6-'Bioavailability Assessment Tool'!S6) ->  | T6: =IF('Bio Ass test Data'!T6='Bioavailability Assessment Tool'!T6,"",'Bio Ass test Data'!T6-'Bioavailability Assessment Tool'!T6) ->  | U6: =IF('Bio Ass test Data'!U6='Bioavailability Assessment Tool'!U6,"",'Bio Ass test Data'!U6-'Bioavailability Assessment Tool'!U6) ->  | V6: =IF('Bio Ass test Data'!V6='Bioavailability Assessment Tool'!V6,"",'Bio Ass test Data'!V6-'Bioavailability Assessment Tool'!V6) ->  | W6: =IF('Bio Ass test Data'!W6='Bioavailability Assessment Tool'!W6,"",'Bio Ass test Data'!W6-'Bioavailability Assessment Tool'!W6) ->  | X6: =IF('Bio Ass test Data'!X6='Bioavailability Assessment Tool'!X6,"",'Bio Ass test Data'!X6-'Bioavailability Assessment Tool'!X6) ->  | Y6: =IF('Bio Ass test Data'!Y6='Bioavailability Assessment Tool'!Y6,"",'Bio Ass test Data'!Y6-'Bioavailability Assessment Tool'!Y6) ->  | Z6: =IF('Bio Ass test Data'!Z6='Bioavailability Assessment Tool'!Z6,"",'Bio Ass test Data'!Z6-'Bioavailability Assessment Tool'!Z6) ->  | AA6: =IF('Bio Ass test Data'!AA6='Bioavailability Assessment Tool'!AA6,"",'Bio Ass test Data'!AA6-'Bioavailability Assessment Tool'!AA6) ->  | AB6: =IF('Bio Ass test Data'!AB6='Bioavailability Assessment Tool'!AB6,"",'Bio Ass test Data'!AB6-'Bioavailability Assessment Tool'!AB6) -> 
B7: 3 | F7: 15 | J7: 6.2 | K7: 10 | L7: 60 | M7: =IF('Bio Ass test Data'!M7='Bioavailability Assessment Tool'!M7,"",'Bio Ass test Data'!M7-'Bioavailability Assessment Tool'!M7) ->  | N7: =IF('Bio Ass test Data'!N7='Bioavailability Assessment Tool'!N7,"",'Bio Ass test Data'!N7-'Bioavailability Assessment Tool'!N7) ->  | O7: =IF('Bio Ass test Data'!O7='Bioavailability Assessment Tool'!O7,"",'Bio Ass test Data'!O7-'Bioavailability Assessment Tool'!O7) ->  | P7: =IF('Bio Ass test Data'!P7='Bioavailability Assessment Tool'!P7,"",'Bio Ass test Data'!P7-'Bioavailability Assessment Tool'!P7) ->  | Q7: =IF('Bio Ass test Data'!Q7='Bioavailability Assessment Tool'!Q7,"",'Bio Ass test Data'!Q7-'Bioavailability Assessment Tool'!Q7) ->  | R7: =IF('Bio Ass test Data'!R7='Bioavailability Assessment Tool'!R7,"",'Bio Ass test Data'!R7-'Bioavailability Assessment Tool'!R7) ->  | S7: =IF('Bio Ass test Data'!S7='Bioavailability Assessment Tool'!S7,"",'Bio Ass test Data'!S7-'Bioavailability Assessment Tool'!S7) ->  | T7: =IF('Bio Ass test Data'!T7='Bioavailability Assessment Tool'!T7,"",'Bio Ass test Data'!T7-'Bioavailability Assessment Tool'!T7) ->  | U7: =IF('Bio Ass test Data'!U7='Bioavailability Assessment Tool'!U7,"",'Bio Ass test Data'!U7-'Bioavailability Assessment Tool'!U7) ->  | V7: =IF('Bio Ass test Data'!V7='Bioavailability Assessment Tool'!V7,"",'Bio Ass test Data'!V7-'Bioavailability Assessment Tool'!V7) ->  | W7: =IF('Bio Ass test Data'!W7='Bioavailability Assessment Tool'!W7,"",'Bio Ass test Data'!W7-'Bioavailability Assessment Tool'!W7) ->  | X7: =IF('Bio Ass test Data'!X7='Bioavailability Assessment Tool'!X7,"",'Bio Ass test Data'!X7-'Bioavailability Assessment Tool'!X7) ->  | Y7: =IF('Bio Ass test Data'!Y7='Bioavailability Assessment Tool'!Y7,"",'Bio Ass test Data'!Y7-'Bioavailability Assessment Tool'!Y7) ->  | Z7: =IF('Bio Ass test Data'!Z7='Bioavailability Assessment Tool'!Z7,"",'Bio Ass test Data'!Z7-'Bioavailability Assessment Tool'!Z7) ->  | AA7: =IF('Bio Ass test Data'!AA7='Bioavailability Assessment Tool'!AA7,"",'Bio Ass test Data'!AA7-'Bioavailability Assessment Tool'!AA7) ->  | AB7: =IF('Bio Ass test Data'!AB7='Bioavailability Assessment Tool'!AB7,"",'Bio Ass test Data'!AB7-'Bioavailability Assessment Tool'!AB7) -> 
B8: 4 | F8: 15 | J8: 8.4 | K8: 10 | L8: 60 | M8: =IF('Bio Ass test Data'!M8='Bioavailability Assessment Tool'!M8,"",'Bio Ass test Data'!M8-'Bioavailability Assessment Tool'!M8) ->  | N8: =IF('Bio Ass test Data'!N8='Bioavailability Assessment Tool'!N8,"",'Bio Ass test Data'!N8-'Bioavailability Assessment Tool'!N8) ->  | O8: =IF('Bio Ass test Data'!O8='Bioavailability Assessment Tool'!O8,"",'Bio Ass test Data'!O8-'Bioavailability Assessment Tool'!O8) ->  | P8: =IF('Bio Ass test Data'!P8='Bioavailability Assessment Tool'!P8,"",'Bio Ass test Data'!P8-'Bioavailability Assessment Tool'!P8) ->  | Q8: =IF('Bio Ass test Data'!Q8='Bioavailability Assessment Tool'!Q8,"",'Bio Ass test Data'!Q8-'Bioavailability Assessment Tool'!Q8) ->  | R8: =IF('Bio Ass test Data'!R8='Bioavailability Assessment Tool'!R8,"",'Bio Ass test Data'!R8-'Bioavailability Assessment Tool'!R8) ->  | S8: =IF('Bio Ass test Data'!S8='Bioavailability Assessment Tool'!S8,"",'Bio Ass test Data'!S8-'Bioavailability Assessment Tool'!S8) ->  | T8: =IF('Bio Ass test Data'!T8='Bioavailability Assessment Tool'!T8,"",'Bio Ass test Data'!T8-'Bioavailability Assessment Tool'!T8) ->  | U8: =IF('Bio Ass test Data'!U8='Bioavailability Assessment Tool'!U8,"",'Bio Ass test Data'!U8-'Bioavailability Assessment Tool'!U8) ->  | V8: =IF('Bio Ass test Data'!V8='Bioavailability Assessment Tool'!V8,"",'Bio Ass test Data'!V8-'Bioavailability Assessment Tool'!V8) ->  | W8: =IF('Bio Ass test Data'!W8='Bioavailability Assessment Tool'!W8,"",'Bio Ass test Data'!W8-'Bioavailability Assessment Tool'!W8) ->  | X8: =IF('Bio Ass test Data'!X8='Bioavailability Assessment Tool'!X8,"",'Bio Ass test Data'!X8-'Bioavailability Assessment Tool'!X8) ->  | Y8: =IF('Bio Ass test Data'!Y8='Bioavailability Assessment Tool'!Y8,"",'Bio Ass test Data'!Y8-'Bioavailability Assessment Tool'!Y8) ->  | Z8: =IF('Bio Ass test Data'!Z8='Bioavailability Assessment Tool'!Z8,"",'Bio Ass test Data'!Z8-'Bioavailability Assessment Tool'!Z8) ->  | AA8: =IF('Bio Ass test Data'!AA8='Bioavailability Assessment Tool'!AA8,"",'Bio Ass test Data'!AA8-'Bioavailability Assessment Tool'!AA8) ->  | AB8: =IF('Bio Ass test Data'!AB8='Bioavailability Assessment Tool'!AB8,"",'Bio Ass test Data'!AB8-'Bioavailability Assessment Tool'!AB8) -> 
B9: 5 | F9: 15 | J9: 8.7 | K9: 10 | L9: 60 | M9: =IF('Bio Ass test Data'!M9='Bioavailability Assessment Tool'!M9,"",'Bio Ass test Data'!M9-'Bioavailability Assessment Tool'!M9) ->  | N9: =IF('Bio Ass test Data'!N9='Bioavailability Assessment Tool'!N9,"",'Bio Ass test Data'!N9-'Bioavailability Assessment Tool'!N9) ->  | O9: =IF('Bio Ass test Data'!O9='Bioavailability Assessment Tool'!O9,"",'Bio Ass test Data'!O9-'Bioavailability Assessment Tool'!O9) ->  | P9: =IF('Bio Ass test Data'!P9='Bioavailability Assessment Tool'!P9,"",'Bio Ass test Data'!P9-'Bioavailability Assessment Tool'!P9) ->  | Q9: =IF('Bio Ass test Data'!Q9='Bioavailability Assessment Tool'!Q9,"",'Bio Ass test Data'!Q9-'Bioavailability Assessment Tool'!Q9) ->  | R9: =IF('Bio Ass test Data'!R9='Bioavailability Assessment Tool'!R9,"",'Bio Ass test Data'!R9-'Bioavailability Assessment Tool'!R9) ->  | S9: =IF('Bio Ass test Data'!S9='Bioavailability Assessment Tool'!S9,"",'Bio Ass test Data'!S9-'Bioavailability Assessment Tool'!S9) ->  | T9: =IF('Bio Ass test Data'!T9='Bioavailability Assessment Tool'!T9,"",'Bio Ass test Data'!T9-'Bioavailability Assessment Tool'!T9) ->  | U9: =IF('Bio Ass test Data'!U9='Bioavailability Assessment Tool'!U9,"",'Bio Ass test Data'!U9-'Bioavailability Assessment Tool'!U9) ->  | V9: =IF('Bio Ass test Data'!V9='Bioavailability Assessment Tool'!V9,"",'Bio Ass test Data'!V9-'Bioavailability Assessment Tool'!V9) ->  | W9: =IF('Bio Ass test Data'!W9='Bioavailability Assessment Tool'!W9,"",'Bio Ass test Data'!W9-'Bioavailability Assessment Tool'!W9) ->  | X9: =IF('Bio Ass test Data'!X9='Bioavailability Assessment Tool'!X9,"",'Bio Ass test Data'!X9-'Bioavailability Assessment Tool'!X9) ->  | Y9: =IF('Bio Ass test Data'!Y9='Bioavailability Assessment Tool'!Y9,"",'Bio Ass test Data'!Y9-'Bioavailability Assessment Tool'!Y9) ->  | Z9: =IF('Bio Ass test Data'!Z9='Bioavailability Assessment Tool'!Z9,"",'Bio Ass test Data'!Z9-'Bioavailability Assessment Tool'!Z9) ->  | AA9: =IF('Bio Ass test Data'!AA9='Bioavailability Assessment Tool'!AA9,"",'Bio Ass test Data'!AA9-'Bioavailability Assessment Tool'!AA9) ->  | AB9: =IF('Bio Ass test Data'!AB9='Bioavailability Assessment Tool'!AB9,"",'Bio Ass test Data'!AB9-'Bioavailability Assessment Tool'!AB9) -> 
B10: 6 | F10: 15 | J10: 8.5 | K10: 10 | L10: 60 | M10: =IF('Bio Ass test Data'!M10='Bioavailability Assessment Tool'!M10,"",'Bio Ass test Data'!M10-'Bioavailability Assessment Tool'!M10) ->  | N10: =IF('Bio Ass test Data'!N10='Bioavailability Assessment Tool'!N10,"",'Bio Ass test Data'!N10-'Bioavailability Assessment Tool'!N10) ->  | O10: =IF('Bio Ass test Data'!O10='Bioavailability Assessment Tool'!O10,"",'Bio Ass test Data'!O10-'Bioavailability Assessment Tool'!O10) ->  | P10: =IF('Bio Ass test Data'!P10='Bioavailability Assessment Tool'!P10,"",'Bio Ass test Data'!P10-'Bioavailability Assessment Tool'!P10) ->  | Q10: =IF('Bio Ass test Data'!Q10='Bioavailability Assessment Tool'!Q10,"",'Bio Ass test Data'!Q10-'Bioavailability Assessment Tool'!Q10) ->  | R10: =IF('Bio Ass test Data'!R10='Bioavailability Assessment Tool'!R10,"",'Bio Ass test Data'!R10-'Bioavailability Assessment Tool'!R10) ->  | S10: =IF('Bio Ass test Data'!S10='Bioavailability Assessment Tool'!S10,"",'Bio Ass test Data'!S10-'Bioavailability Assessment Tool'!S10) ->  | T10: =IF('Bio Ass test Data'!T10='Bioavailability Assessment Tool'!T10,"",'Bio Ass test Data'!T10-'Bioavailability Assessment Tool'!T10) ->  | U10: =IF('Bio Ass test Data'!U10='Bioavailability Assessment Tool'!U10,"",'Bio Ass test Data'!U10-'Bioavailability Assessment Tool'!U10) ->  | V10: =IF('Bio Ass test Data'!V10='Bioavailability Assessment Tool'!V10,"",'Bio Ass test Data'!V10-'Bioavailability Assessment Tool'!V10) ->  | W10: =IF('Bio Ass test Data'!W10='Bioavailability Assessment Tool'!W10,"",'Bio Ass test Data'!W10-'Bioavailability Assessment Tool'!W10) ->  | X10: =IF('Bio Ass test Data'!X10='Bioavailability Assessment Tool'!X10,"",'Bio Ass test Data'!X10-'Bioavailability Assessment Tool'!X10) ->  | Y10: =IF('Bio Ass test Data'!Y10='Bioavailability Assessment Tool'!Y10,"",'Bio Ass test Data'!Y10-'Bioavailability Assessment Tool'!Y10) ->  | Z10: =IF('Bio Ass test Data'!Z10='Bioavailability Assessment Tool'!Z10,"",'Bio Ass test Data'!Z10-'Bioavailability Assessment Tool'!Z10) ->  | AA10: =IF('Bio Ass test Data'!AA10='Bioavailability Assessment Tool'!AA10,"",'Bio Ass test Data'!AA10-'Bioavailability Assessment Tool'!AA10) ->  | AB10: =IF('Bio Ass test Data'!AB10='Bioavailability Assessment Tool'!AB10,"",'Bio Ass test Data'!AB10-'Bioavailability Assessment Tool'!AB10) -> 
B11: 7 | F11: 15 | J11: 7 | K11: 10 | L11: 3 | M11: =IF('Bio Ass test Data'!M11='Bioavailability Assessment Tool'!M11,"",'Bio Ass test Data'!M11-'Bioavailability Assessment Tool'!M11) ->  | N11: =IF('Bio Ass test Data'!N11='Bioavailability Assessment Tool'!N11,"",'Bio Ass test Data'!N11-'Bioavailability Assessment Tool'!N11) ->  | O11: =IF('Bio Ass test Data'!O11='Bioavailability Assessment Tool'!O11,"",'Bio Ass test Data'!O11-'Bioavailability Assessment Tool'!O11) ->  | P11: =IF('Bio Ass test Data'!P11='Bioavailability Assessment Tool'!P11,"",'Bio Ass test Data'!P11-'Bioavailability Assessment Tool'!P11) ->  | Q11: =IF('Bio Ass test Data'!Q11='Bioavailability Assessment Tool'!Q11,"",'Bio Ass test Data'!Q11-'Bioavailability Assessment Tool'!Q11) ->  | R11: =IF('Bio Ass test Data'!R11='Bioavailability Assessment Tool'!R11,"",'Bio Ass test Data'!R11-'Bioavailability Assessment Tool'!R11) ->  | S11: =IF('Bio Ass test Data'!S11='Bioavailability Assessment Tool'!S11,"",'Bio Ass test Data'!S11-'Bioavailability Assessment Tool'!S11) ->  | T11: =IF('Bio Ass test Data'!T11='Bioavailability Assessment Tool'!T11,"",'Bio Ass test Data'!T11-'Bioavailability Assessment Tool'!T11) ->  | U11: =IF('Bio Ass test Data'!U11='Bioavailability Assessment Tool'!U11,"",'Bio Ass test Data'!U11-'Bioavailability Assessment Tool'!U11) ->  | V11: =IF('Bio Ass test Data'!V11='Bioavailability Assessment Tool'!V11,"",'Bio Ass test Data'!V11-'Bioavailability Assessment Tool'!V11) ->  | W11: =IF('Bio Ass test Data'!W11='Bioavailability Assessment Tool'!W11,"",'Bio Ass test Data'!W11-'Bioavailability Assessment Tool'!W11) ->  | X11: =IF('Bio Ass test Data'!X11='Bioavailability Assessment Tool'!X11,"",'Bio Ass test Data'!X11-'Bioavailability Assessment Tool'!X11) ->  | Y11: =IF('Bio Ass test Data'!Y11='Bioavailability Assessment Tool'!Y11,"",'Bio Ass test Data'!Y11-'Bioavailability Assessment Tool'!Y11) ->  | Z11: =IF('Bio Ass test Data'!Z11='Bioavailability Assessment Tool'!Z11,"",'Bio Ass test Data'!Z11-'Bioavailability Assessment Tool'!Z11) ->  | AA11: =IF('Bio Ass test Data'!AA11='Bioavailability Assessment Tool'!AA11,"",'Bio Ass test Data'!AA11-'Bioavailability Assessment Tool'!AA11) ->  | AB11: =IF('Bio Ass test Data'!AB11='Bioavailability Assessment Tool'!AB11,"",'Bio Ass test Data'!AB11-'Bioavailability Assessment Tool'!AB11) -> 
B12: 8 | F12: 15 | J12: 7 | K12: 10 | L12: 3.1 | M12: =IF('Bio Ass test Data'!M12='Bioavailability Assessment Tool'!M12,"",'Bio Ass test Data'!M12-'Bioavailability Assessment Tool'!M12) ->  | N12: =IF('Bio Ass test Data'!N12='Bioavailability Assessment Tool'!N12,"",'Bio Ass test Data'!N12-'Bioavailability Assessment Tool'!N12) ->  | O12: =IF('Bio Ass test Data'!O12='Bioavailability Assessment Tool'!O12,"",'Bio Ass test Data'!O12-'Bioavailability Assessment Tool'!O12) ->  | P12: =IF('Bio Ass test Data'!P12='Bioavailability Assessment Tool'!P12,"",'Bio Ass test Data'!P12-'Bioavailability Assessment Tool'!P12) ->  | Q12: =IF('Bio Ass test Data'!Q12='Bioavailability Assessment Tool'!Q12,"",'Bio Ass test Data'!Q12-'Bioavailability Assessment Tool'!Q12) ->  | R12: =IF('Bio Ass test Data'!R12='Bioavailability Assessment Tool'!R12,"",'Bio Ass test Data'!R12-'Bioavailability Assessment Tool'!R12) ->  | S12: =IF('Bio Ass test Data'!S12='Bioavailability Assessment Tool'!S12,"",'Bio Ass test Data'!S12-'Bioavailability Assessment Tool'!S12) ->  | T12: =IF('Bio Ass test Data'!T12='Bioavailability Assessment Tool'!T12,"",'Bio Ass test Data'!T12-'Bioavailability Assessment Tool'!T12) ->  | U12: =IF('Bio Ass test Data'!U12='Bioavailability Assessment Tool'!U12,"",'Bio Ass test Data'!U12-'Bioavailability Assessment Tool'!U12) ->  | V12: =IF('Bio Ass test Data'!V12='Bioavailability Assessment Tool'!V12,"",'Bio Ass test Data'!V12-'Bioavailability Assessment Tool'!V12) ->  | W12: =IF('Bio Ass test Data'!W12='Bioavailability Assessment Tool'!W12,"",'Bio Ass test Data'!W12-'Bioavailability Assessment Tool'!W12) ->  | X12: =IF('Bio Ass test Data'!X12='Bioavailability Assessment Tool'!X12,"",'Bio Ass test Data'!X12-'Bioavailability Assessment Tool'!X12) ->  | Y12: =IF('Bio Ass test Data'!Y12='Bioavailability Assessment Tool'!Y12,"",'Bio Ass test Data'!Y12-'Bioavailability Assessment Tool'!Y12) ->  | Z12: =IF('Bio Ass test Data'!Z12='Bioavailability Assessment Tool'!Z12,"",'Bio Ass test Data'!Z12-'Bioavailability Assessment Tool'!Z12) ->  | AA12: =IF('Bio Ass test Data'!AA12='Bioavailability Assessment Tool'!AA12,"",'Bio Ass test Data'!AA12-'Bioavailability Assessment Tool'!AA12) ->  | AB12: =IF('Bio Ass test Data'!AB12='Bioavailability Assessment Tool'!AB12,"",'Bio Ass test Data'!AB12-'Bioavailability Assessment Tool'!AB12) -> 
B13: 9 | F13: 15 | J13: 7 | K13: 10 | L13: 3.3 | M13: =IF('Bio Ass test Data'!M13='Bioavailability Assessment Tool'!M13,"",'Bio Ass test Data'!M13-'Bioavailability Assessment Tool'!M13) ->  | N13: =IF('Bio Ass test Data'!N13='Bioavailability Assessment Tool'!N13,"",'Bio Ass test Data'!N13-'Bioavailability Assessment Tool'!N13) ->  | O13: =IF('Bio Ass test Data'!O13='Bioavailability Assessment Tool'!O13,"",'Bio Ass test Data'!O13-'Bioavailability Assessment Tool'!O13) ->  | P13: =IF('Bio Ass test Data'!P13='Bioavailability Assessment Tool'!P13,"",'Bio Ass test Data'!P13-'Bioavailability Assessment Tool'!P13) ->  | Q13: =IF('Bio Ass test Data'!Q13='Bioavailability Assessment Tool'!Q13,"",'Bio Ass test Data'!Q13-'Bioavailability Assessment Tool'!Q13) ->  | R13: =IF('Bio Ass test Data'!R13='Bioavailability Assessment Tool'!R13,"",'Bio Ass test Data'!R13-'Bioavailability Assessment Tool'!R13) ->  | S13: =IF('Bio Ass test Data'!S13='Bioavailability Assessment Tool'!S13,"",'Bio Ass test Data'!S13-'Bioavailability Assessment Tool'!S13) ->  | T13: =IF('Bio Ass test Data'!T13='Bioavailability Assessment Tool'!T13,"",'Bio Ass test Data'!T13-'Bioavailability Assessment Tool'!T13) ->  | U13: =IF('Bio Ass test Data'!U13='Bioavailability Assessment Tool'!U13,"",'Bio Ass test Data'!U13-'Bioavailability Assessment Tool'!U13) ->  | V13: =IF('Bio Ass test Data'!V13='Bioavailability Assessment Tool'!V13,"",'Bio Ass test Data'!V13-'Bioavailability Assessment Tool'!V13) ->  | W13: =IF('Bio Ass test Data'!W13='Bioavailability Assessment Tool'!W13,"",'Bio Ass test Data'!W13-'Bioavailability Assessment Tool'!W13) ->  | X13: =IF('Bio Ass test Data'!X13='Bioavailability Assessment Tool'!X13,"",'Bio Ass test Data'!X13-'Bioavailability Assessment Tool'!X13) ->  | Y13: =IF('Bio Ass test Data'!Y13='Bioavailability Assessment Tool'!Y13,"",'Bio Ass test Data'!Y13-'Bioavailability Assessment Tool'!Y13) ->  | Z13: =IF('Bio Ass test Data'!Z13='Bioavailability Assessment Tool'!Z13,"",'Bio Ass test Data'!Z13-'Bioavailability Assessment Tool'!Z13) ->  | AA13: =IF('Bio Ass test Data'!AA13='Bioavailability Assessment Tool'!AA13,"",'Bio Ass test Data'!AA13-'Bioavailability Assessment Tool'!AA13) ->  | AB13: =IF('Bio Ass test Data'!AB13='Bioavailability Assessment Tool'!AB13,"",'Bio Ass test Data'!AB13-'Bioavailability Assessment Tool'!AB13) -> 
B14: 10 | F14: 15 | J14: 7 | K14: 10 | L14: 92 | M14: =IF('Bio Ass test Data'!M14='Bioavailability Assessment Tool'!M14,"",'Bio Ass test Data'!M14-'Bioavailability Assessment Tool'!M14) ->  | N14: =IF('Bio Ass test Data'!N14='Bioavailability Assessment Tool'!N14,"",'Bio Ass test Data'!N14-'Bioavailability Assessment Tool'!N14) ->  | O14: =IF('Bio Ass test Data'!O14='Bioavailability Assessment Tool'!O14,"",'Bio Ass test Data'!O14-'Bioavailability Assessment Tool'!O14) ->  | P14: =IF('Bio Ass test Data'!P14='Bioavailability Assessment Tool'!P14,"",'Bio Ass test Data'!P14-'Bioavailability Assessment Tool'!P14) ->  | Q14: =IF('Bio Ass test Data'!Q14='Bioavailability Assessment Tool'!Q14,"",'Bio Ass test Data'!Q14-'Bioavailability Assessment Tool'!Q14) ->  | R14: =IF('Bio Ass test Data'!R14='Bioavailability Assessment Tool'!R14,"",'Bio Ass test Data'!R14-'Bioavailability Assessment Tool'!R14) ->  | S14: =IF('Bio Ass test Data'!S14='Bioavailability Assessment Tool'!S14,"",'Bio Ass test Data'!S14-'Bioavailability Assessment Tool'!S14) ->  | T14: =IF('Bio Ass test Data'!T14='Bioavailability Assessment Tool'!T14,"",'Bio Ass test Data'!T14-'Bioavailability Assessment Tool'!T14) ->  | U14: =IF('Bio Ass test Data'!U14='Bioavailability Assessment Tool'!U14,"",'Bio Ass test Data'!U14-'Bioavailability Assessment Tool'!U14) ->  | V14: =IF('Bio Ass test Data'!V14='Bioavailability Assessment Tool'!V14,"",'Bio Ass test Data'!V14-'Bioavailability Assessment Tool'!V14) ->  | W14: =IF('Bio Ass test Data'!W14='Bioavailability Assessment Tool'!W14,"",'Bio Ass test Data'!W14-'Bioavailability Assessment Tool'!W14) ->  | X14: =IF('Bio Ass test Data'!X14='Bioavailability Assessment Tool'!X14,"",'Bio Ass test Data'!X14-'Bioavailability Assessment Tool'!X14) ->  | Y14: =IF('Bio Ass test Data'!Y14='Bioavailability Assessment Tool'!Y14,"",'Bio Ass test Data'!Y14-'Bioavailability Assessment Tool'!Y14) ->  | Z14: =IF('Bio Ass test Data'!Z14='Bioavailability Assessment Tool'!Z14,"",'Bio Ass test Data'!Z14-'Bioavailability Assessment Tool'!Z14) ->  | AA14: =IF('Bio Ass test Data'!AA14='Bioavailability Assessment Tool'!AA14,"",'Bio Ass test Data'!AA14-'Bioavailability Assessment Tool'!AA14) ->  | AB14: =IF('Bio Ass test Data'!AB14='Bioavailability Assessment Tool'!AB14,"",'Bio Ass test Data'!AB14-'Bioavailability Assessment Tool'!AB14) -> 
B15: 11 | F15: 15 | J15: 7 | K15: 10 | L15: 93 | M15: =IF('Bio Ass test Data'!M15='Bioavailability Assessment Tool'!M15,"",'Bio Ass test Data'!M15-'Bioavailability Assessment Tool'!M15) ->  | N15: =IF('Bio Ass test Data'!N15='Bioavailability Assessment Tool'!N15,"",'Bio Ass test Data'!N15-'Bioavailability Assessment Tool'!N15) ->  | O15: =IF('Bio Ass test Data'!O15='Bioavailability Assessment Tool'!O15,"",'Bio Ass test Data'!O15-'Bioavailability Assessment Tool'!O15) ->  | P15: =IF('Bio Ass test Data'!P15='Bioavailability Assessment Tool'!P15,"",'Bio Ass test Data'!P15-'Bioavailability Assessment Tool'!P15) ->  | Q15: =IF('Bio Ass test Data'!Q15='Bioavailability Assessment Tool'!Q15,"",'Bio Ass test Data'!Q15-'Bioavailability Assessment Tool'!Q15) ->  | R15: =IF('Bio Ass test Data'!R15='Bioavailability Assessment Tool'!R15,"",'Bio Ass test Data'!R15-'Bioavailability Assessment Tool'!R15) ->  | S15: =IF('Bio Ass test Data'!S15='Bioavailability Assessment Tool'!S15,"",'Bio Ass test Data'!S15-'Bioavailability Assessment Tool'!S15) ->  | T15: =IF('Bio Ass test Data'!T15='Bioavailability Assessment Tool'!T15,"",'Bio Ass test Data'!T15-'Bioavailability Assessment Tool'!T15) ->  | U15: =IF('Bio Ass test Data'!U15='Bioavailability Assessment Tool'!U15,"",'Bio Ass test Data'!U15-'Bioavailability Assessment Tool'!U15) ->  | V15: =IF('Bio Ass test Data'!V15='Bioavailability Assessment Tool'!V15,"",'Bio Ass test Data'!V15-'Bioavailability Assessment Tool'!V15) ->  | W15: =IF('Bio Ass test Data'!W15='Bioavailability Assessment Tool'!W15,"",'Bio Ass test Data'!W15-'Bioavailability Assessment Tool'!W15) ->  | X15: =IF('Bio Ass test Data'!X15='Bioavailability Assessment Tool'!X15,"",'Bio Ass test Data'!X15-'Bioavailability Assessment Tool'!X15) ->  | Y15: =IF('Bio Ass test Data'!Y15='Bioavailability Assessment Tool'!Y15,"",'Bio Ass test Data'!Y15-'Bioavailability Assessment Tool'!Y15) ->  | Z15: =IF('Bio Ass test Data'!Z15='Bioavailability Assessment Tool'!Z15,"",'Bio Ass test Data'!Z15-'Bioavailability Assessment Tool'!Z15) ->  | AA15: =IF('Bio Ass test Data'!AA15='Bioavailability Assessment Tool'!AA15,"",'Bio Ass test Data'!AA15-'Bioavailability Assessment Tool'!AA15) ->  | AB15: =IF('Bio Ass test Data'!AB15='Bioavailability Assessment Tool'!AB15,"",'Bio Ass test Data'!AB15-'Bioavailability Assessment Tool'!AB15) -> 
B16: 12 | F16: 15 | J16: 7 | K16: 10 | L16: 95 | M16: =IF('Bio Ass test Data'!M16='Bioavailability Assessment Tool'!M16,"",'Bio Ass test Data'!M16-'Bioavailability Assessment Tool'!M16) ->  | N16: =IF('Bio Ass test Data'!N16='Bioavailability Assessment Tool'!N16,"",'Bio Ass test Data'!N16-'Bioavailability Assessment Tool'!N16) ->  | O16: =IF('Bio Ass test Data'!O16='Bioavailability Assessment Tool'!O16,"",'Bio Ass test Data'!O16-'Bioavailability Assessment Tool'!O16) ->  | P16: =IF('Bio Ass test Data'!P16='Bioavailability Assessment Tool'!P16,"",'Bio Ass test Data'!P16-'Bioavailability Assessment Tool'!P16) ->  | Q16: =IF('Bio Ass test Data'!Q16='Bioavailability Assessment Tool'!Q16,"",'Bio Ass test Data'!Q16-'Bioavailability Assessment Tool'!Q16) ->  | R16: =IF('Bio Ass test Data'!R16='Bioavailability Assessment Tool'!R16,"",'Bio Ass test Data'!R16-'Bioavailability Assessment Tool'!R16) ->  | S16: =IF('Bio Ass test Data'!S16='Bioavailability Assessment Tool'!S16,"",'Bio Ass test Data'!S16-'Bioavailability Assessment Tool'!S16) ->  | T16: =IF('Bio Ass test Data'!T16='Bioavailability Assessment Tool'!T16,"",'Bio Ass test Data'!T16-'Bioavailability Assessment Tool'!T16) ->  | U16: =IF('Bio Ass test Data'!U16='Bioavailability Assessment Tool'!U16,"",'Bio Ass test Data'!U16-'Bioavailability Assessment Tool'!U16) ->  | V16: =IF('Bio Ass test Data'!V16='Bioavailability Assessment Tool'!V16,"",'Bio Ass test Data'!V16-'Bioavailability Assessment Tool'!V16) ->  | W16: =IF('Bio Ass test Data'!W16='Bioavailability Assessment Tool'!W16,"",'Bio Ass test Data'!W16-'Bioavailability Assessment Tool'!W16) ->  | X16: =IF('Bio Ass test Data'!X16='Bioavailability Assessment Tool'!X16,"",'Bio Ass test Data'!X16-'Bioavailability Assessment Tool'!X16) ->  | Y16: =IF('Bio Ass test Data'!Y16='Bioavailability Assessment Tool'!Y16,"",'Bio Ass test Data'!Y16-'Bioavailability Assessment Tool'!Y16) ->  | Z16: =IF('Bio Ass test Data'!Z16='Bioavailability Assessment Tool'!Z16,"",'Bio Ass test Data'!Z16-'Bioavailability Assessment Tool'!Z16) ->  | AA16: =IF('Bio Ass test Data'!AA16='Bioavailability Assessment Tool'!AA16,"",'Bio Ass test Data'!AA16-'Bioavailability Assessment Tool'!AA16) ->  | AB16: =IF('Bio Ass test Data'!AB16='Bioavailability Assessment Tool'!AB16,"",'Bio Ass test Data'!AB16-'Bioavailability Assessment Tool'!AB16) -> 
B17: 13 | F17: 15 | J17: 7 | K17: 10 | L17: 60 | M17: =IF('Bio Ass test Data'!M17='Bioavailability Assessment Tool'!M17,"",'Bio Ass test Data'!M17-'Bioavailability Assessment Tool'!M17) ->  | N17: =IF('Bio Ass test Data'!N17='Bioavailability Assessment Tool'!N17,"",'Bio Ass test Data'!N17-'Bioavailability Assessment Tool'!N17) ->  | O17: =IF('Bio Ass test Data'!O17='Bioavailability Assessment Tool'!O17,"",'Bio Ass test Data'!O17-'Bioavailability Assessment Tool'!O17) ->  | P17: =IF('Bio Ass test Data'!P17='Bioavailability Assessment Tool'!P17,"",'Bio Ass test Data'!P17-'Bioavailability Assessment Tool'!P17) ->  | Q17: =IF('Bio Ass test Data'!Q17='Bioavailability Assessment Tool'!Q17,"",'Bio Ass test Data'!Q17-'Bioavailability Assessment Tool'!Q17) ->  | R17: =IF('Bio Ass test Data'!R17='Bioavailability Assessment Tool'!R17,"",'Bio Ass test Data'!R17-'Bioavailability Assessment Tool'!R17) ->  | S17: =IF('Bio Ass test Data'!S17='Bioavailability Assessment Tool'!S17,"",'Bio Ass test Data'!S17-'Bioavailability Assessment Tool'!S17) ->  | T17: =IF('Bio Ass test Data'!T17='Bioavailability Assessment Tool'!T17,"",'Bio Ass test Data'!T17-'Bioavailability Assessment Tool'!T17) ->  | U17: =IF('Bio Ass test Data'!U17='Bioavailability Assessment Tool'!U17,"",'Bio Ass test Data'!U17-'Bioavailability Assessment Tool'!U17) ->  | V17: =IF('Bio Ass test Data'!V17='Bioavailability Assessment Tool'!V17,"",'Bio Ass test Data'!V17-'Bioavailability Assessment Tool'!V17) ->  | W17: =IF('Bio Ass test Data'!W17='Bioavailability Assessment Tool'!W17,"",'Bio Ass test Data'!W17-'Bioavailability Assessment Tool'!W17) ->  | X17: =IF('Bio Ass test Data'!X17='Bioavailability Assessment Tool'!X17,"",'Bio Ass test Data'!X17-'Bioavailability Assessment Tool'!X17) ->  | Y17: =IF('Bio Ass test Data'!Y17='Bioavailability Assessment Tool'!Y17,"",'Bio Ass test Data'!Y17-'Bioavailability Assessment Tool'!Y17) ->  | Z17: =IF('Bio Ass test Data'!Z17='Bioavailability Assessment Tool'!Z17,"",'Bio Ass test Data'!Z17-'Bioavailability Assessment Tool'!Z17) ->  | AA17: =IF('Bio Ass test Data'!AA17='Bioavailability Assessment Tool'!AA17,"",'Bio Ass test Data'!AA17-'Bioavailability Assessment Tool'!AA17) ->  | AB17: =IF('Bio Ass test Data'!AB17='Bioavailability Assessment Tool'!AB17,"",'Bio Ass test Data'!AB17-'Bioavailability Assessment Tool'!AB17) -> 
B18: 14 | F18: 15 | J18: 7 | K18: 11 | L18: 60 | M18: =IF('Bio Ass test Data'!M18='Bioavailability Assessment Tool'!M18,"",'Bio Ass test Data'!M18-'Bioavailability Assessment Tool'!M18) ->  | N18: =IF('Bio Ass test Data'!N18='Bioavailability Assessment Tool'!N18,"",'Bio Ass test Data'!N18-'Bioavailability Assessment Tool'!N18) ->  | O18: =IF('Bio Ass test Data'!O18='Bioavailability Assessment Tool'!O18,"",'Bio Ass test Data'!O18-'Bioavailability Assessment Tool'!O18) ->  | P18: =IF('Bio Ass test Data'!P18='Bioavailability Assessment Tool'!P18,"",'Bio Ass test Data'!P18-'Bioavailability Assessment Tool'!P18) ->  | Q18: =IF('Bio Ass test Data'!Q18='Bioavailability Assessment Tool'!Q18,"",'Bio Ass test Data'!Q18-'Bioavailability Assessment Tool'!Q18) ->  | R18: =IF('Bio Ass test Data'!R18='Bioavailability Assessment Tool'!R18,"",'Bio Ass test Data'!R18-'Bioavailability Assessment Tool'!R18) ->  | S18: =IF('Bio Ass test Data'!S18='Bioavailability Assessment Tool'!S18,"",'Bio Ass test Data'!S18-'Bioavailability Assessment Tool'!S18) ->  | T18: =IF('Bio Ass test Data'!T18='Bioavailability Assessment Tool'!T18,"",'Bio Ass test Data'!T18-'Bioavailability Assessment Tool'!T18) ->  | U18: =IF('Bio Ass test Data'!U18='Bioavailability Assessment Tool'!U18,"",'Bio Ass test Data'!U18-'Bioavailability Assessment Tool'!U18) ->  | V18: =IF('Bio Ass test Data'!V18='Bioavailability Assessment Tool'!V18,"",'Bio Ass test Data'!V18-'Bioavailability Assessment Tool'!V18) ->  | W18: =IF('Bio Ass test Data'!W18='Bioavailability Assessment Tool'!W18,"",'Bio Ass test Data'!W18-'Bioavailability Assessment Tool'!W18) ->  | X18: =IF('Bio Ass test Data'!X18='Bioavailability Assessment Tool'!X18,"",'Bio Ass test Data'!X18-'Bioavailability Assessment Tool'!X18) ->  | Y18: =IF('Bio Ass test Data'!Y18='Bioavailability Assessment Tool'!Y18,"",'Bio Ass test Data'!Y18-'Bioavailability Assessment Tool'!Y18) ->  | Z18: =IF('Bio Ass test Data'!Z18='Bioavailability Assessment Tool'!Z18,"",'Bio Ass test Data'!Z18-'Bioavailability Assessment Tool'!Z18) ->  | AA18: =IF('Bio Ass test Data'!AA18='Bioavailability Assessment Tool'!AA18,"",'Bio Ass test Data'!AA18-'Bioavailability Assessment Tool'!AA18) ->  | AB18: =IF('Bio Ass test Data'!AB18='Bioavailability Assessment Tool'!AB18,"",'Bio Ass test Data'!AB18-'Bioavailability Assessment Tool'!AB18) -> 
B19: 15 | F19: 15 | J19: 7 | K19: 12 | L19: 60 | M19: =IF('Bio Ass test Data'!M19='Bioavailability Assessment Tool'!M19,"",'Bio Ass test Data'!M19-'Bioavailability Assessment Tool'!M19) ->  | N19: =IF('Bio Ass test Data'!N19='Bioavailability Assessment Tool'!N19,"",'Bio Ass test Data'!N19-'Bioavailability Assessment Tool'!N19) ->  | O19: =IF('Bio Ass test Data'!O19='Bioavailability Assessment Tool'!O19,"",'Bio Ass test Data'!O19-'Bioavailability Assessment Tool'!O19) ->  | P19: =IF('Bio Ass test Data'!P19='Bioavailability Assessment Tool'!P19,"",'Bio Ass test Data'!P19-'Bioavailability Assessment Tool'!P19) ->  | Q19: =IF('Bio Ass test Data'!Q19='Bioavailability Assessment Tool'!Q19,"",'Bio Ass test Data'!Q19-'Bioavailability Assessment Tool'!Q19) ->  | R19: =IF('Bio Ass test Data'!R19='Bioavailability Assessment Tool'!R19,"",'Bio Ass test Data'!R19-'Bioavailability Assessment Tool'!R19) ->  | S19: =IF('Bio Ass test Data'!S19='Bioavailability Assessment Tool'!S19,"",'Bio Ass test Data'!S19-'Bioavailability Assessment Tool'!S19) ->  | T19: =IF('Bio Ass test Data'!T19='Bioavailability Assessment Tool'!T19,"",'Bio Ass test Data'!T19-'Bioavailability Assessment Tool'!T19) ->  | U19: =IF('Bio Ass test Data'!U19='Bioavailability Assessment Tool'!U19,"",'Bio Ass test Data'!U19-'Bioavailability Assessment Tool'!U19) ->  | V19: =IF('Bio Ass test Data'!V19='Bioavailability Assessment Tool'!V19,"",'Bio Ass test Data'!V19-'Bioavailability Assessment Tool'!V19) ->  | W19: =IF('Bio Ass test Data'!W19='Bioavailability Assessment Tool'!W19,"",'Bio Ass test Data'!W19-'Bioavailability Assessment Tool'!W19) ->  | X19: =IF('Bio Ass test Data'!X19='Bioavailability Assessment Tool'!X19,"",'Bio Ass test Data'!X19-'Bioavailability Assessment Tool'!X19) ->  | Y19: =IF('Bio Ass test Data'!Y19='Bioavailability Assessment Tool'!Y19,"",'Bio Ass test Data'!Y19-'Bioavailability Assessment Tool'!Y19) ->  | Z19: =IF('Bio Ass test Data'!Z19='Bioavailability Assessment Tool'!Z19,"",'Bio Ass test Data'!Z19-'Bioavailability Assessment Tool'!Z19) ->  | AA19: =IF('Bio Ass test Data'!AA19='Bioavailability Assessment Tool'!AA19,"",'Bio Ass test Data'!AA19-'Bioavailability Assessment Tool'!AA19) ->  | AB19: =IF('Bio Ass test Data'!AB19='Bioavailability Assessment Tool'!AB19,"",'Bio Ass test Data'!AB19-'Bioavailability Assessment Tool'!AB19) -> 
B20: 16 | F20: 15 | J20: 7 | K20: 13 | L20: 60 | M20: =IF('Bio Ass test Data'!M20='Bioavailability Assessment Tool'!M20,"",'Bio Ass test Data'!M20-'Bioavailability Assessment Tool'!M20) ->  | N20: =IF('Bio Ass test Data'!N20='Bioavailability Assessment Tool'!N20,"",'Bio Ass test Data'!N20-'Bioavailability Assessment Tool'!N20) ->  | O20: =IF('Bio Ass test Data'!O20='Bioavailability Assessment Tool'!O20,"",'Bio Ass test Data'!O20-'Bioavailability Assessment Tool'!O20) ->  | P20: =IF('Bio Ass test Data'!P20='Bioavailability Assessment Tool'!P20,"",'Bio Ass test Data'!P20-'Bioavailability Assessment Tool'!P20) ->  | Q20: =IF('Bio Ass test Data'!Q20='Bioavailability Assessment Tool'!Q20,"",'Bio Ass test Data'!Q20-'Bioavailability Assessment Tool'!Q20) ->  | R20: =IF('Bio Ass test Data'!R20='Bioavailability Assessment Tool'!R20,"",'Bio Ass test Data'!R20-'Bioavailability Assessment Tool'!R20) ->  | S20: =IF('Bio Ass test Data'!S20='Bioavailability Assessment Tool'!S20,"",'Bio Ass test Data'!S20-'Bioavailability Assessment Tool'!S20) ->  | T20: =IF('Bio Ass test Data'!T20='Bioavailability Assessment Tool'!T20,"",'Bio Ass test Data'!T20-'Bioavailability Assessment Tool'!T20) ->  | U20: =IF('Bio Ass test Data'!U20='Bioavailability Assessment Tool'!U20,"",'Bio Ass test Data'!U20-'Bioavailability Assessment Tool'!U20) ->  | V20: =IF('Bio Ass test Data'!V20='Bioavailability Assessment Tool'!V20,"",'Bio Ass test Data'!V20-'Bioavailability Assessment Tool'!V20) ->  | W20: =IF('Bio Ass test Data'!W20='Bioavailability Assessment Tool'!W20,"",'Bio Ass test Data'!W20-'Bioavailability Assessment Tool'!W20) ->  | X20: =IF('Bio Ass test Data'!X20='Bioavailability Assessment Tool'!X20,"",'Bio Ass test Data'!X20-'Bioavailability Assessment Tool'!X20) ->  | Y20: =IF('Bio Ass test Data'!Y20='Bioavailability Assessment Tool'!Y20,"",'Bio Ass test Data'!Y20-'Bioavailability Assessment Tool'!Y20) ->  | Z20: =IF('Bio Ass test Data'!Z20='Bioavailability Assessment Tool'!Z20,"",'Bio Ass test Data'!Z20-'Bioavailability Assessment Tool'!Z20) ->  | AA20: =IF('Bio Ass test Data'!AA20='Bioavailability Assessment Tool'!AA20,"",'Bio Ass test Data'!AA20-'Bioavailability Assessment Tool'!AA20) ->  | AB20: =IF('Bio Ass test Data'!AB20='Bioavailability Assessment Tool'!AB20,"",'Bio Ass test Data'!AB20-'Bioavailability Assessment Tool'!AB20) -> 
B21: 17 | F21: 15 | J21: 7 | K21: 14 | L21: 60 | M21: =IF('Bio Ass test Data'!M21='Bioavailability Assessment Tool'!M21,"",'Bio Ass test Data'!M21-'Bioavailability Assessment Tool'!M21) ->  | N21: =IF('Bio Ass test Data'!N21='Bioavailability Assessment Tool'!N21,"",'Bio Ass test Data'!N21-'Bioavailability Assessment Tool'!N21) ->  | O21: =IF('Bio Ass test Data'!O21='Bioavailability Assessment Tool'!O21,"",'Bio Ass test Data'!O21-'Bioavailability Assessment Tool'!O21) ->  | P21: =IF('Bio Ass test Data'!P21='Bioavailability Assessment Tool'!P21,"",'Bio Ass test Data'!P21-'Bioavailability Assessment Tool'!P21) ->  | Q21: =IF('Bio Ass test Data'!Q21='Bioavailability Assessment Tool'!Q21,"",'Bio Ass test Data'!Q21-'Bioavailability Assessment Tool'!Q21) ->  | R21: =IF('Bio Ass test Data'!R21='Bioavailability Assessment Tool'!R21,"",'Bio Ass test Data'!R21-'Bioavailability Assessment Tool'!R21) ->  | S21: =IF('Bio Ass test Data'!S21='Bioavailability Assessment Tool'!S21,"",'Bio Ass test Data'!S21-'Bioavailability Assessment Tool'!S21) ->  | T21: =IF('Bio Ass test Data'!T21='Bioavailability Assessment Tool'!T21,"",'Bio Ass test Data'!T21-'Bioavailability Assessment Tool'!T21) ->  | U21: =IF('Bio Ass test Data'!U21='Bioavailability Assessment Tool'!U21,"",'Bio Ass test Data'!U21-'Bioavailability Assessment Tool'!U21) ->  | V21: =IF('Bio Ass test Data'!V21='Bioavailability Assessment Tool'!V21,"",'Bio Ass test Data'!V21-'Bioavailability Assessment Tool'!V21) ->  | W21: =IF('Bio Ass test Data'!W21='Bioavailability Assessment Tool'!W21,"",'Bio Ass test Data'!W21-'Bioavailability Assessment Tool'!W21) ->  | X21: =IF('Bio Ass test Data'!X21='Bioavailability Assessment Tool'!X21,"",'Bio Ass test Data'!X21-'Bioavailability Assessment Tool'!X21) ->  | Y21: =IF('Bio Ass test Data'!Y21='Bioavailability Assessment Tool'!Y21,"",'Bio Ass test Data'!Y21-'Bioavailability Assessment Tool'!Y21) ->  | Z21: =IF('Bio Ass test Data'!Z21='Bioavailability Assessment Tool'!Z21,"",'Bio Ass test Data'!Z21-'Bioavailability Assessment Tool'!Z21) ->  | AA21: =IF('Bio Ass test Data'!AA21='Bioavailability Assessment Tool'!AA21,"",'Bio Ass test Data'!AA21-'Bioavailability Assessment Tool'!AA21) ->  | AB21: =IF('Bio Ass test Data'!AB21='Bioavailability Assessment Tool'!AB21,"",'Bio Ass test Data'!AB21-'Bioavailability Assessment Tool'!AB21) -> 
B22: 18 | F22: 15 | J22: 7 | K22: 15 | L22: 60 | M22: =IF('Bio Ass test Data'!M22='Bioavailability Assessment Tool'!M22,"",'Bio Ass test Data'!M22-'Bioavailability Assessment Tool'!M22) ->  | N22: =IF('Bio Ass test Data'!N22='Bioavailability Assessment Tool'!N22,"",'Bio Ass test Data'!N22-'Bioavailability Assessment Tool'!N22) ->  | O22: =IF('Bio Ass test Data'!O22='Bioavailability Assessment Tool'!O22,"",'Bio Ass test Data'!O22-'Bioavailability Assessment Tool'!O22) ->  | P22: =IF('Bio Ass test Data'!P22='Bioavailability Assessment Tool'!P22,"",'Bio Ass test Data'!P22-'Bioavailability Assessment Tool'!P22) ->  | Q22: =IF('Bio Ass test Data'!Q22='Bioavailability Assessment Tool'!Q22,"",'Bio Ass test Data'!Q22-'Bioavailability Assessment Tool'!Q22) ->  | R22: =IF('Bio Ass test Data'!R22='Bioavailability Assessment Tool'!R22,"",'Bio Ass test Data'!R22-'Bioavailability Assessment Tool'!R22) ->  | S22: =IF('Bio Ass test Data'!S22='Bioavailability Assessment Tool'!S22,"",'Bio Ass test Data'!S22-'Bioavailability Assessment Tool'!S22) ->  | T22: =IF('Bio Ass test Data'!T22='Bioavailability Assessment Tool'!T22,"",'Bio Ass test Data'!T22-'Bioavailability Assessment Tool'!T22) ->  | U22: =IF('Bio Ass test Data'!U22='Bioavailability Assessment Tool'!U22,"",'Bio Ass test Data'!U22-'Bioavailability Assessment Tool'!U22) ->  | V22: =IF('Bio Ass test Data'!V22='Bioavailability Assessment Tool'!V22,"",'Bio Ass test Data'!V22-'Bioavailability Assessment Tool'!V22) ->  | W22: =IF('Bio Ass test Data'!W22='Bioavailability Assessment Tool'!W22,"",'Bio Ass test Data'!W22-'Bioavailability Assessment Tool'!W22) ->  | X22: =IF('Bio Ass test Data'!X22='Bioavailability Assessment Tool'!X22,"",'Bio Ass test Data'!X22-'Bioavailability Assessment Tool'!X22) ->  | Y22: =IF('Bio Ass test Data'!Y22='Bioavailability Assessment Tool'!Y22,"",'Bio Ass test Data'!Y22-'Bioavailability Assessment Tool'!Y22) ->  | Z22: =IF('Bio Ass test Data'!Z22='Bioavailability Assessment Tool'!Z22,"",'Bio Ass test Data'!Z22-'Bioavailability Assessment Tool'!Z22) ->  | AA22: =IF('Bio Ass test Data'!AA22='Bioavailability Assessment Tool'!AA22,"",'Bio Ass test Data'!AA22-'Bioavailability Assessment Tool'!AA22) ->  | AB22: =IF('Bio Ass test Data'!AB22='Bioavailability Assessment Tool'!AB22,"",'Bio Ass test Data'!AB22-'Bioavailability Assessment Tool'!AB22) -> 
B23: 19 | F23: 15 | J23: 7 | K23: 16 | L23: 60 | M23: =IF('Bio Ass test Data'!M23='Bioavailability Assessment Tool'!M23,"",'Bio Ass test Data'!M23-'Bioavailability Assessment Tool'!M23) ->  | N23: =IF('Bio Ass test Data'!N23='Bioavailability Assessment Tool'!N23,"",'Bio Ass test Data'!N23-'Bioavailability Assessment Tool'!N23) ->  | O23: =IF('Bio Ass test Data'!O23='Bioavailability Assessment Tool'!O23,"",'Bio Ass test Data'!O23-'Bioavailability Assessment Tool'!O23) ->  | P23: =IF('Bio Ass test Data'!P23='Bioavailability Assessment Tool'!P23,"",'Bio Ass test Data'!P23-'Bioavailability Assessment Tool'!P23) ->  | Q23: =IF('Bio Ass test Data'!Q23='Bioavailability Assessment Tool'!Q23,"",'Bio Ass test Data'!Q23-'Bioavailability Assessment Tool'!Q23) ->  | R23: =IF('Bio Ass test Data'!R23='Bioavailability Assessment Tool'!R23,"",'Bio Ass test Data'!R23-'Bioavailability Assessment Tool'!R23) ->  | S23: =IF('Bio Ass test Data'!S23='Bioavailability Assessment Tool'!S23,"",'Bio Ass test Data'!S23-'Bioavailability Assessment Tool'!S23) ->  | T23: =IF('Bio Ass test Data'!T23='Bioavailability Assessment Tool'!T23,"",'Bio Ass test Data'!T23-'Bioavailability Assessment Tool'!T23) ->  | U23: =IF('Bio Ass test Data'!U23='Bioavailability Assessment Tool'!U23,"",'Bio Ass test Data'!U23-'Bioavailability Assessment Tool'!U23) ->  | V23: =IF('Bio Ass test Data'!V23='Bioavailability Assessment Tool'!V23,"",'Bio Ass test Data'!V23-'Bioavailability Assessment Tool'!V23) ->  | W23: =IF('Bio Ass test Data'!W23='Bioavailability Assessment Tool'!W23,"",'Bio Ass test Data'!W23-'Bioavailability Assessment Tool'!W23) ->  | X23: =IF('Bio Ass test Data'!X23='Bioavailability Assessment Tool'!X23,"",'Bio Ass test Data'!X23-'Bioavailability Assessment Tool'!X23) ->  | Y23: =IF('Bio Ass test Data'!Y23='Bioavailability Assessment Tool'!Y23,"",'Bio Ass test Data'!Y23-'Bioavailability Assessment Tool'!Y23) ->  | Z23: =IF('Bio Ass test Data'!Z23='Bioavailability Assessment Tool'!Z23,"",'Bio Ass test Data'!Z23-'Bioavailability Assessment Tool'!Z23) ->  | AA23: =IF('Bio Ass test Data'!AA23='Bioavailability Assessment Tool'!AA23,"",'Bio Ass test Data'!AA23-'Bioavailability Assessment Tool'!AA23) ->  | AB23: =IF('Bio Ass test Data'!AB23='Bioavailability Assessment Tool'!AB23,"",'Bio Ass test Data'!AB23-'Bioavailability Assessment Tool'!AB23) -> 
B24: 20 | F24: 15 | J24: 7 | K24: 17 | L24: 60 | M24: =IF('Bio Ass test Data'!M24='Bioavailability Assessment Tool'!M24,"",'Bio Ass test Data'!M24-'Bioavailability Assessment Tool'!M24) ->  | N24: =IF('Bio Ass test Data'!N24='Bioavailability Assessment Tool'!N24,"",'Bio Ass test Data'!N24-'Bioavailability Assessment Tool'!N24) ->  | O24: =IF('Bio Ass test Data'!O24='Bioavailability Assessment Tool'!O24,"",'Bio Ass test Data'!O24-'Bioavailability Assessment Tool'!O24) ->  | P24: =IF('Bio Ass test Data'!P24='Bioavailability Assessment Tool'!P24,"",'Bio Ass test Data'!P24-'Bioavailability Assessment Tool'!P24) ->  | Q24: =IF('Bio Ass test Data'!Q24='Bioavailability Assessment Tool'!Q24,"",'Bio Ass test Data'!Q24-'Bioavailability Assessment Tool'!Q24) ->  | R24: =IF('Bio Ass test Data'!R24='Bioavailability Assessment Tool'!R24,"",'Bio Ass test Data'!R24-'Bioavailability Assessment Tool'!R24) ->  | S24: =IF('Bio Ass test Data'!S24='Bioavailability Assessment Tool'!S24,"",'Bio Ass test Data'!S24-'Bioavailability Assessment Tool'!S24) ->  | T24: =IF('Bio Ass test Data'!T24='Bioavailability Assessment Tool'!T24,"",'Bio Ass test Data'!T24-'Bioavailability Assessment Tool'!T24) ->  | U24: =IF('Bio Ass test Data'!U24='Bioavailability Assessment Tool'!U24,"",'Bio Ass test Data'!U24-'Bioavailability Assessment Tool'!U24) ->  | V24: =IF('Bio Ass test Data'!V24='Bioavailability Assessment Tool'!V24,"",'Bio Ass test Data'!V24-'Bioavailability Assessment Tool'!V24) ->  | W24: =IF('Bio Ass test Data'!W24='Bioavailability Assessment Tool'!W24,"",'Bio Ass test Data'!W24-'Bioavailability Assessment Tool'!W24) ->  | X24: =IF('Bio Ass test Data'!X24='Bioavailability Assessment Tool'!X24,"",'Bio Ass test Data'!X24-'Bioavailability Assessment Tool'!X24) ->  | Y24: =IF('Bio Ass test Data'!Y24='Bioavailability Assessment Tool'!Y24,"",'Bio Ass test Data'!Y24-'Bioavailability Assessment Tool'!Y24) ->  | Z24: =IF('Bio Ass test Data'!Z24='Bioavailability Assessment Tool'!Z24,"",'Bio Ass test Data'!Z24-'Bioavailability Assessment Tool'!Z24) ->  | AA24: =IF('Bio Ass test Data'!AA24='Bioavailability Assessment Tool'!AA24,"",'Bio Ass test Data'!AA24-'Bioavailability Assessment Tool'!AA24) ->  | AB24: =IF('Bio Ass test Data'!AB24='Bioavailability Assessment Tool'!AB24,"",'Bio Ass test Data'!AB24-'Bioavailability Assessment Tool'!AB24) -> 
B25: 21 | G25: 15 | J25: 5.9 | K25: 10 | L25: 60 | M25: =IF('Bio Ass test Data'!M25='Bioavailability Assessment Tool'!M25,"",'Bio Ass test Data'!M25-'Bioavailability Assessment Tool'!M25) ->  | N25: =IF('Bio Ass test Data'!N25='Bioavailability Assessment Tool'!N25,"",'Bio Ass test Data'!N25-'Bioavailability Assessment Tool'!N25) ->  | O25: =IF('Bio Ass test Data'!O25='Bioavailability Assessment Tool'!O25,"",'Bio Ass test Data'!O25-'Bioavailability Assessment Tool'!O25) ->  | P25: =IF('Bio Ass test Data'!P25='Bioavailability Assessment Tool'!P25,"",'Bio Ass test Data'!P25-'Bioavailability Assessment Tool'!P25) ->  | Q25: =IF('Bio Ass test Data'!Q25='Bioavailability Assessment Tool'!Q25,"",'Bio Ass test Data'!Q25-'Bioavailability Assessment Tool'!Q25) ->  | R25: =IF('Bio Ass test Data'!R25='Bioavailability Assessment Tool'!R25,"",'Bio Ass test Data'!R25-'Bioavailability Assessment Tool'!R25) ->  | S25: =IF('Bio Ass test Data'!S25='Bioavailability Assessment Tool'!S25,"",'Bio Ass test Data'!S25-'Bioavailability Assessment Tool'!S25) ->  | T25: =IF('Bio Ass test Data'!T25='Bioavailability Assessment Tool'!T25,"",'Bio Ass test Data'!T25-'Bioavailability Assessment Tool'!T25) ->  | U25: =IF('Bio Ass test Data'!U25='Bioavailability Assessment Tool'!U25,"",'Bio Ass test Data'!U25-'Bioavailability Assessment Tool'!U25) ->  | V25: =IF('Bio Ass test Data'!V25='Bioavailability Assessment Tool'!V25,"",'Bio Ass test Data'!V25-'Bioavailability Assessment Tool'!V25) ->  | W25: =IF('Bio Ass test Data'!W25='Bioavailability Assessment Tool'!W25,"",'Bio Ass test Data'!W25-'Bioavailability Assessment Tool'!W25) ->  | X25: =IF('Bio Ass test Data'!X25='Bioavailability Assessment Tool'!X25,"",'Bio Ass test Data'!X25-'Bioavailability Assessment Tool'!X25) ->  | Y25: =IF('Bio Ass test Data'!Y25='Bioavailability Assessment Tool'!Y25,"",'Bio Ass test Data'!Y25-'Bioavailability Assessment Tool'!Y25) ->  | Z25: =IF('Bio Ass test Data'!Z25='Bioavailability Assessment Tool'!Z25,"",'Bio Ass test Data'!Z25-'Bioavailability Assessment Tool'!Z25) ->  | AA25: =IF('Bio Ass test Data'!AA25='Bioavailability Assessment Tool'!AA25,"",'Bio Ass test Data'!AA25-'Bioavailability Assessment Tool'!AA25) ->  | AB25: =IF('Bio Ass test Data'!AB25='Bioavailability Assessment Tool'!AB25,"",'Bio Ass test Data'!AB25-'Bioavailability Assessment Tool'!AB25) -> 
B26: 22 | G26: 15 | J26: 6 | K26: 10 | L26: 60 | M26: =IF('Bio Ass test Data'!M26='Bioavailability Assessment Tool'!M26,"",'Bio Ass test Data'!M26-'Bioavailability Assessment Tool'!M26) ->  | N26: =IF('Bio Ass test Data'!N26='Bioavailability Assessment Tool'!N26,"",'Bio Ass test Data'!N26-'Bioavailability Assessment Tool'!N26) ->  | O26: =IF('Bio Ass test Data'!O26='Bioavailability Assessment Tool'!O26,"",'Bio Ass test Data'!O26-'Bioavailability Assessment Tool'!O26) ->  | P26: =IF('Bio Ass test Data'!P26='Bioavailability Assessment Tool'!P26,"",'Bio Ass test Data'!P26-'Bioavailability Assessment Tool'!P26) ->  | Q26: =IF('Bio Ass test Data'!Q26='Bioavailability Assessment Tool'!Q26,"",'Bio Ass test Data'!Q26-'Bioavailability Assessment Tool'!Q26) ->  | R26: =IF('Bio Ass test Data'!R26='Bioavailability Assessment Tool'!R26,"",'Bio Ass test Data'!R26-'Bioavailability Assessment Tool'!R26) ->  | S26: =IF('Bio Ass test Data'!S26='Bioavailability Assessment Tool'!S26,"",'Bio Ass test Data'!S26-'Bioavailability Assessment Tool'!S26) ->  | T26: =IF('Bio Ass test Data'!T26='Bioavailability Assessment Tool'!T26,"",'Bio Ass test Data'!T26-'Bioavailability Assessment Tool'!T26) ->  | U26: =IF('Bio Ass test Data'!U26='Bioavailability Assessment Tool'!U26,"",'Bio Ass test Data'!U26-'Bioavailability Assessment Tool'!U26) ->  | V26: =IF('Bio Ass test Data'!V26='Bioavailability Assessment Tool'!V26,"",'Bio Ass test Data'!V26-'Bioavailability Assessment Tool'!V26) ->  | W26: =IF('Bio Ass test Data'!W26='Bioavailability Assessment Tool'!W26,"",'Bio Ass test Data'!W26-'Bioavailability Assessment Tool'!W26) ->  | X26: =IF('Bio Ass test Data'!X26='Bioavailability Assessment Tool'!X26,"",'Bio Ass test Data'!X26-'Bioavailability Assessment Tool'!X26) ->  | Y26: =IF('Bio Ass test Data'!Y26='Bioavailability Assessment Tool'!Y26,"",'Bio Ass test Data'!Y26-'Bioavailability Assessment Tool'!Y26) ->  | Z26: =IF('Bio Ass test Data'!Z26='Bioavailability Assessment Tool'!Z26,"",'Bio Ass test Data'!Z26-'Bioavailability Assessment Tool'!Z26) ->  | AA26: =IF('Bio Ass test Data'!AA26='Bioavailability Assessment Tool'!AA26,"",'Bio Ass test Data'!AA26-'Bioavailability Assessment Tool'!AA26) ->  | AB26: =IF('Bio Ass test Data'!AB26='Bioavailability Assessment Tool'!AB26,"",'Bio Ass test Data'!AB26-'Bioavailability Assessment Tool'!AB26) -> 
B27: 23 | G27: 15 | J27: 6.1 | K27: 10 | L27: 60 | M27: =IF('Bio Ass test Data'!M27='Bioavailability Assessment Tool'!M27,"",'Bio Ass test Data'!M27-'Bioavailability Assessment Tool'!M27) ->  | N27: =IF('Bio Ass test Data'!N27='Bioavailability Assessment Tool'!N27,"",'Bio Ass test Data'!N27-'Bioavailability Assessment Tool'!N27) ->  | O27: =IF('Bio Ass test Data'!O27='Bioavailability Assessment Tool'!O27,"",'Bio Ass test Data'!O27-'Bioavailability Assessment Tool'!O27) ->  | P27: =IF('Bio Ass test Data'!P27='Bioavailability Assessment Tool'!P27,"",'Bio Ass test Data'!P27-'Bioavailability Assessment Tool'!P27) ->  | Q27: =IF('Bio Ass test Data'!Q27='Bioavailability Assessment Tool'!Q27,"",'Bio Ass test Data'!Q27-'Bioavailability Assessment Tool'!Q27) ->  | R27: =IF('Bio Ass test Data'!R27='Bioavailability Assessment Tool'!R27,"",'Bio Ass test Data'!R27-'Bioavailability Assessment Tool'!R27) ->  | S27: =IF('Bio Ass test Data'!S27='Bioavailability Assessment Tool'!S27,"",'Bio Ass test Data'!S27-'Bioavailability Assessment Tool'!S27) ->  | T27: =IF('Bio Ass test Data'!T27='Bioavailability Assessment Tool'!T27,"",'Bio Ass test Data'!T27-'Bioavailability Assessment Tool'!T27) ->  | U27: =IF('Bio Ass test Data'!U27='Bioavailability Assessment Tool'!U27,"",'Bio Ass test Data'!U27-'Bioavailability Assessment Tool'!U27) ->  | V27: =IF('Bio Ass test Data'!V27='Bioavailability Assessment Tool'!V27,"",'Bio Ass test Data'!V27-'Bioavailability Assessment Tool'!V27) ->  | W27: =IF('Bio Ass test Data'!W27='Bioavailability Assessment Tool'!W27,"",'Bio Ass test Data'!W27-'Bioavailability Assessment Tool'!W27) ->  | X27: =IF('Bio Ass test Data'!X27='Bioavailability Assessment Tool'!X27,"",'Bio Ass test Data'!X27-'Bioavailability Assessment Tool'!X27) ->  | Y27: =IF('Bio Ass test Data'!Y27='Bioavailability Assessment Tool'!Y27,"",'Bio Ass test Data'!Y27-'Bioavailability Assessment Tool'!Y27) ->  | Z27: =IF('Bio Ass test Data'!Z27='Bioavailability Assessment Tool'!Z27,"",'Bio Ass test Data'!Z27-'Bioavailability Assessment Tool'!Z27) ->  | AA27: =IF('Bio Ass test Data'!AA27='Bioavailability Assessment Tool'!AA27,"",'Bio Ass test Data'!AA27-'Bioavailability Assessment Tool'!AA27) ->  | AB27: =IF('Bio Ass test Data'!AB27='Bioavailability Assessment Tool'!AB27,"",'Bio Ass test Data'!AB27-'Bioavailability Assessment Tool'!AB27) -> 
B28: 24 | G28: 15 | J28: 7.9 | K28: 10 | L28: 60 | M28: =IF('Bio Ass test Data'!M28='Bioavailability Assessment Tool'!M28,"",'Bio Ass test Data'!M28-'Bioavailability Assessment Tool'!M28) ->  | N28: =IF('Bio Ass test Data'!N28='Bioavailability Assessment Tool'!N28,"",'Bio Ass test Data'!N28-'Bioavailability Assessment Tool'!N28) ->  | O28: =IF('Bio Ass test Data'!O28='Bioavailability Assessment Tool'!O28,"",'Bio Ass test Data'!O28-'Bioavailability Assessment Tool'!O28) ->  | P28: =IF('Bio Ass test Data'!P28='Bioavailability Assessment Tool'!P28,"",'Bio Ass test Data'!P28-'Bioavailability Assessment Tool'!P28) ->  | Q28: =IF('Bio Ass test Data'!Q28='Bioavailability Assessment Tool'!Q28,"",'Bio Ass test Data'!Q28-'Bioavailability Assessment Tool'!Q28) ->  | R28: =IF('Bio Ass test Data'!R28='Bioavailability Assessment Tool'!R28,"",'Bio Ass test Data'!R28-'Bioavailability Assessment Tool'!R28) ->  | S28: =IF('Bio Ass test Data'!S28='Bioavailability Assessment Tool'!S28,"",'Bio Ass test Data'!S28-'Bioavailability Assessment Tool'!S28) ->  | T28: =IF('Bio Ass test Data'!T28='Bioavailability Assessment Tool'!T28,"",'Bio Ass test Data'!T28-'Bioavailability Assessment Tool'!T28) ->  | U28: =IF('Bio Ass test Data'!U28='Bioavailability Assessment Tool'!U28,"",'Bio Ass test Data'!U28-'Bioavailability Assessment Tool'!U28) ->  | V28: =IF('Bio Ass test Data'!V28='Bioavailability Assessment Tool'!V28,"",'Bio Ass test Data'!V28-'Bioavailability Assessment Tool'!V28) ->  | W28: =IF('Bio Ass test Data'!W28='Bioavailability Assessment Tool'!W28,"",'Bio Ass test Data'!W28-'Bioavailability Assessment Tool'!W28) ->  | X28: =IF('Bio Ass test Data'!X28='Bioavailability Assessment Tool'!X28,"",'Bio Ass test Data'!X28-'Bioavailability Assessment Tool'!X28) ->  | Y28: =IF('Bio Ass test Data'!Y28='Bioavailability Assessment Tool'!Y28,"",'Bio Ass test Data'!Y28-'Bioavailability Assessment Tool'!Y28) ->  | Z28: =IF('Bio Ass test Data'!Z28='Bioavailability Assessment Tool'!Z28,"",'Bio Ass test Data'!Z28-'Bioavailability Assessment Tool'!Z28) ->  | AA28: =IF('Bio Ass test Data'!AA28='Bioavailability Assessment Tool'!AA28,"",'Bio Ass test Data'!AA28-'Bioavailability Assessment Tool'!AA28) ->  | AB28: =IF('Bio Ass test Data'!AB28='Bioavailability Assessment Tool'!AB28,"",'Bio Ass test Data'!AB28-'Bioavailability Assessment Tool'!AB28) -> 
B29: 25 | G29: 15 | J29: 8 | K29: 10 | L29: 60 | M29: =IF('Bio Ass test Data'!M29='Bioavailability Assessment Tool'!M29,"",'Bio Ass test Data'!M29-'Bioavailability Assessment Tool'!M29) ->  | N29: =IF('Bio Ass test Data'!N29='Bioavailability Assessment Tool'!N29,"",'Bio Ass test Data'!N29-'Bioavailability Assessment Tool'!N29) ->  | O29: =IF('Bio Ass test Data'!O29='Bioavailability Assessment Tool'!O29,"",'Bio Ass test Data'!O29-'Bioavailability Assessment Tool'!O29) ->  | P29: =IF('Bio Ass test Data'!P29='Bioavailability Assessment Tool'!P29,"",'Bio Ass test Data'!P29-'Bioavailability Assessment Tool'!P29) ->  | Q29: =IF('Bio Ass test Data'!Q29='Bioavailability Assessment Tool'!Q29,"",'Bio Ass test Data'!Q29-'Bioavailability Assessment Tool'!Q29) ->  | R29: =IF('Bio Ass test Data'!R29='Bioavailability Assessment Tool'!R29,"",'Bio Ass test Data'!R29-'Bioavailability Assessment Tool'!R29) ->  | S29: =IF('Bio Ass test Data'!S29='Bioavailability Assessment Tool'!S29,"",'Bio Ass test Data'!S29-'Bioavailability Assessment Tool'!S29) ->  | T29: =IF('Bio Ass test Data'!T29='Bioavailability Assessment Tool'!T29,"",'Bio Ass test Data'!T29-'Bioavailability Assessment Tool'!T29) ->  | U29: =IF('Bio Ass test Data'!U29='Bioavailability Assessment Tool'!U29,"",'Bio Ass test Data'!U29-'Bioavailability Assessment Tool'!U29) ->  | V29: =IF('Bio Ass test Data'!V29='Bioavailability Assessment Tool'!V29,"",'Bio Ass test Data'!V29-'Bioavailability Assessment Tool'!V29) ->  | W29: =IF('Bio Ass test Data'!W29='Bioavailability Assessment Tool'!W29,"",'Bio Ass test Data'!W29-'Bioavailability Assessment Tool'!W29) ->  | X29: =IF('Bio Ass test Data'!X29='Bioavailability Assessment Tool'!X29,"",'Bio Ass test Data'!X29-'Bioavailability Assessment Tool'!X29) ->  | Y29: =IF('Bio Ass test Data'!Y29='Bioavailability Assessment Tool'!Y29,"",'Bio Ass test Data'!Y29-'Bioavailability Assessment Tool'!Y29) ->  | Z29: =IF('Bio Ass test Data'!Z29='Bioavailability Assessment Tool'!Z29,"",'Bio Ass test Data'!Z29-'Bioavailability Assessment Tool'!Z29) ->  | AA29: =IF('Bio Ass test Data'!AA29='Bioavailability Assessment Tool'!AA29,"",'Bio Ass test Data'!AA29-'Bioavailability Assessment Tool'!AA29) ->  | AB29: =IF('Bio Ass test Data'!AB29='Bioavailability Assessment Tool'!AB29,"",'Bio Ass test Data'!AB29-'Bioavailability Assessment Tool'!AB29) -> 
B30: 26 | G30: 15 | J30: 8.2 | K30: 10 | L30: 60 | M30: =IF('Bio Ass test Data'!M30='Bioavailability Assessment Tool'!M30,"",'Bio Ass test Data'!M30-'Bioavailability Assessment Tool'!M30) ->  | N30: =IF('Bio Ass test Data'!N30='Bioavailability Assessment Tool'!N30,"",'Bio Ass test Data'!N30-'Bioavailability Assessment Tool'!N30) ->  | O30: =IF('Bio Ass test Data'!O30='Bioavailability Assessment Tool'!O30,"",'Bio Ass test Data'!O30-'Bioavailability Assessment Tool'!O30) ->  | P30: =IF('Bio Ass test Data'!P30='Bioavailability Assessment Tool'!P30,"",'Bio Ass test Data'!P30-'Bioavailability Assessment Tool'!P30) ->  | Q30: =IF('Bio Ass test Data'!Q30='Bioavailability Assessment Tool'!Q30,"",'Bio Ass test Data'!Q30-'Bioavailability Assessment Tool'!Q30) ->  | R30: =IF('Bio Ass test Data'!R30='Bioavailability Assessment Tool'!R30,"",'Bio Ass test Data'!R30-'Bioavailability Assessment Tool'!R30) ->  | S30: =IF('Bio Ass test Data'!S30='Bioavailability Assessment Tool'!S30,"",'Bio Ass test Data'!S30-'Bioavailability Assessment Tool'!S30) ->  | T30: =IF('Bio Ass test Data'!T30='Bioavailability Assessment Tool'!T30,"",'Bio Ass test Data'!T30-'Bioavailability Assessment Tool'!T30) ->  | U30: =IF('Bio Ass test Data'!U30='Bioavailability Assessment Tool'!U30,"",'Bio Ass test Data'!U30-'Bioavailability Assessment Tool'!U30) ->  | V30: =IF('Bio Ass test Data'!V30='Bioavailability Assessment Tool'!V30,"",'Bio Ass test Data'!V30-'Bioavailability Assessment Tool'!V30) ->  | W30: =IF('Bio Ass test Data'!W30='Bioavailability Assessment Tool'!W30,"",'Bio Ass test Data'!W30-'Bioavailability Assessment Tool'!W30) ->  | X30: =IF('Bio Ass test Data'!X30='Bioavailability Assessment Tool'!X30,"",'Bio Ass test Data'!X30-'Bioavailability Assessment Tool'!X30) ->  | Y30: =IF('Bio Ass test Data'!Y30='Bioavailability Assessment Tool'!Y30,"",'Bio Ass test Data'!Y30-'Bioavailability Assessment Tool'!Y30) ->  | Z30: =IF('Bio Ass test Data'!Z30='Bioavailability Assessment Tool'!Z30,"",'Bio Ass test Data'!Z30-'Bioavailability Assessment Tool'!Z30) ->  | AA30: =IF('Bio Ass test Data'!AA30='Bioavailability Assessment Tool'!AA30,"",'Bio Ass test Data'!AA30-'Bioavailability Assessment Tool'!AA30) ->  | AB30: =IF('Bio Ass test Data'!AB30='Bioavailability Assessment Tool'!AB30,"",'Bio Ass test Data'!AB30-'Bioavailability Assessment Tool'!AB30) -> 
B31: 27 | G31: 15 | J31: 7 | K31: 10 | L31: 2.9 | M31: =IF('Bio Ass test Data'!M31='Bioavailability Assessment Tool'!M31,"",'Bio Ass test Data'!M31-'Bioavailability Assessment Tool'!M31) ->  | N31: =IF('Bio Ass test Data'!N31='Bioavailability Assessment Tool'!N31,"",'Bio Ass test Data'!N31-'Bioavailability Assessment Tool'!N31) ->  | O31: =IF('Bio Ass test Data'!O31='Bioavailability Assessment Tool'!O31,"",'Bio Ass test Data'!O31-'Bioavailability Assessment Tool'!O31) ->  | P31: =IF('Bio Ass test Data'!P31='Bioavailability Assessment Tool'!P31,"",'Bio Ass test Data'!P31-'Bioavailability Assessment Tool'!P31) ->  | Q31: =IF('Bio Ass test Data'!Q31='Bioavailability Assessment Tool'!Q31,"",'Bio Ass test Data'!Q31-'Bioavailability Assessment Tool'!Q31) ->  | R31: =IF('Bio Ass test Data'!R31='Bioavailability Assessment Tool'!R31,"",'Bio Ass test Data'!R31-'Bioavailability Assessment Tool'!R31) ->  | S31: =IF('Bio Ass test Data'!S31='Bioavailability Assessment Tool'!S31,"",'Bio Ass test Data'!S31-'Bioavailability Assessment Tool'!S31) ->  | T31: =IF('Bio Ass test Data'!T31='Bioavailability Assessment Tool'!T31,"",'Bio Ass test Data'!T31-'Bioavailability Assessment Tool'!T31) ->  | U31: =IF('Bio Ass test Data'!U31='Bioavailability Assessment Tool'!U31,"",'Bio Ass test Data'!U31-'Bioavailability Assessment Tool'!U31) ->  | V31: =IF('Bio Ass test Data'!V31='Bioavailability Assessment Tool'!V31,"",'Bio Ass test Data'!V31-'Bioavailability Assessment Tool'!V31) ->  | W31: =IF('Bio Ass test Data'!W31='Bioavailability Assessment Tool'!W31,"",'Bio Ass test Data'!W31-'Bioavailability Assessment Tool'!W31) ->  | X31: =IF('Bio Ass test Data'!X31='Bioavailability Assessment Tool'!X31,"",'Bio Ass test Data'!X31-'Bioavailability Assessment Tool'!X31) ->  | Y31: =IF('Bio Ass test Data'!Y31='Bioavailability Assessment Tool'!Y31,"",'Bio Ass test Data'!Y31-'Bioavailability Assessment Tool'!Y31) ->  | Z31: =IF('Bio Ass test Data'!Z31='Bioavailability Assessment Tool'!Z31,"",'Bio Ass test Data'!Z31-'Bioavailability Assessment Tool'!Z31) ->  | AA31: =IF('Bio Ass test Data'!AA31='Bioavailability Assessment Tool'!AA31,"",'Bio Ass test Data'!AA31-'Bioavailability Assessment Tool'!AA31) ->  | AB31: =IF('Bio Ass test Data'!AB31='Bioavailability Assessment Tool'!AB31,"",'Bio Ass test Data'!AB31-'Bioavailability Assessment Tool'!AB31) -> 
B32: 28 | G32: 15 | J32: 7 | K32: 10 | L32: 3 | M32: =IF('Bio Ass test Data'!M32='Bioavailability Assessment Tool'!M32,"",'Bio Ass test Data'!M32-'Bioavailability Assessment Tool'!M32) ->  | N32: =IF('Bio Ass test Data'!N32='Bioavailability Assessment Tool'!N32,"",'Bio Ass test Data'!N32-'Bioavailability Assessment Tool'!N32) ->  | O32: =IF('Bio Ass test Data'!O32='Bioavailability Assessment Tool'!O32,"",'Bio Ass test Data'!O32-'Bioavailability Assessment Tool'!O32) ->  | P32: =IF('Bio Ass test Data'!P32='Bioavailability Assessment Tool'!P32,"",'Bio Ass test Data'!P32-'Bioavailability Assessment Tool'!P32) ->  | Q32: =IF('Bio Ass test Data'!Q32='Bioavailability Assessment Tool'!Q32,"",'Bio Ass test Data'!Q32-'Bioavailability Assessment Tool'!Q32) ->  | R32: =IF('Bio Ass test Data'!R32='Bioavailability Assessment Tool'!R32,"",'Bio Ass test Data'!R32-'Bioavailability Assessment Tool'!R32) ->  | S32: =IF('Bio Ass test Data'!S32='Bioavailability Assessment Tool'!S32,"",'Bio Ass test Data'!S32-'Bioavailability Assessment Tool'!S32) ->  | T32: =IF('Bio Ass test Data'!T32='Bioavailability Assessment Tool'!T32,"",'Bio Ass test Data'!T32-'Bioavailability Assessment Tool'!T32) ->  | U32: =IF('Bio Ass test Data'!U32='Bioavailability Assessment Tool'!U32,"",'Bio Ass test Data'!U32-'Bioavailability Assessment Tool'!U32) ->  | V32: =IF('Bio Ass test Data'!V32='Bioavailability Assessment Tool'!V32,"",'Bio Ass test Data'!V32-'Bioavailability Assessment Tool'!V32) ->  | W32: =IF('Bio Ass test Data'!W32='Bioavailability Assessment Tool'!W32,"",'Bio Ass test Data'!W32-'Bioavailability Assessment Tool'!W32) ->  | X32: =IF('Bio Ass test Data'!X32='Bioavailability Assessment Tool'!X32,"",'Bio Ass test Data'!X32-'Bioavailability Assessment Tool'!X32) ->  | Y32: =IF('Bio Ass test Data'!Y32='Bioavailability Assessment Tool'!Y32,"",'Bio Ass test Data'!Y32-'Bioavailability Assessment Tool'!Y32) ->  | Z32: =IF('Bio Ass test Data'!Z32='Bioavailability Assessment Tool'!Z32,"",'Bio Ass test Data'!Z32-'Bioavailability Assessment Tool'!Z32) ->  | AA32: =IF('Bio Ass test Data'!AA32='Bioavailability Assessment Tool'!AA32,"",'Bio Ass test Data'!AA32-'Bioavailability Assessment Tool'!AA32) ->  | AB32: =IF('Bio Ass test Data'!AB32='Bioavailability Assessment Tool'!AB32,"",'Bio Ass test Data'!AB32-'Bioavailability Assessment Tool'!AB32) -> 
B33: 29 | G33: 15 | J33: 7 | K33: 10 | L33: 3.2 | M33: =IF('Bio Ass test Data'!M33='Bioavailability Assessment Tool'!M33,"",'Bio Ass test Data'!M33-'Bioavailability Assessment Tool'!M33) ->  | N33: =IF('Bio Ass test Data'!N33='Bioavailability Assessment Tool'!N33,"",'Bio Ass test Data'!N33-'Bioavailability Assessment Tool'!N33) ->  | O33: =IF('Bio Ass test Data'!O33='Bioavailability Assessment Tool'!O33,"",'Bio Ass test Data'!O33-'Bioavailability Assessment Tool'!O33) ->  | P33: =IF('Bio Ass test Data'!P33='Bioavailability Assessment Tool'!P33,"",'Bio Ass test Data'!P33-'Bioavailability Assessment Tool'!P33) ->  | Q33: =IF('Bio Ass test Data'!Q33='Bioavailability Assessment Tool'!Q33,"",'Bio Ass test Data'!Q33-'Bioavailability Assessment Tool'!Q33) ->  | R33: =IF('Bio Ass test Data'!R33='Bioavailability Assessment Tool'!R33,"",'Bio Ass test Data'!R33-'Bioavailability Assessment Tool'!R33) ->  | S33: =IF('Bio Ass test Data'!S33='Bioavailability Assessment Tool'!S33,"",'Bio Ass test Data'!S33-'Bioavailability Assessment Tool'!S33) ->  | T33: =IF('Bio Ass test Data'!T33='Bioavailability Assessment Tool'!T33,"",'Bio Ass test Data'!T33-'Bioavailability Assessment Tool'!T33) ->  | U33: =IF('Bio Ass test Data'!U33='Bioavailability Assessment Tool'!U33,"",'Bio Ass test Data'!U33-'Bioavailability Assessment Tool'!U33) ->  | V33: =IF('Bio Ass test Data'!V33='Bioavailability Assessment Tool'!V33,"",'Bio Ass test Data'!V33-'Bioavailability Assessment Tool'!V33) ->  | W33: =IF('Bio Ass test Data'!W33='Bioavailability Assessment Tool'!W33,"",'Bio Ass test Data'!W33-'Bioavailability Assessment Tool'!W33) ->  | X33: =IF('Bio Ass test Data'!X33='Bioavailability Assessment Tool'!X33,"",'Bio Ass test Data'!X33-'Bioavailability Assessment Tool'!X33) ->  | Y33: =IF('Bio Ass test Data'!Y33='Bioavailability Assessment Tool'!Y33,"",'Bio Ass test Data'!Y33-'Bioavailability Assessment Tool'!Y33) ->  | Z33: =IF('Bio Ass test Data'!Z33='Bioavailability Assessment Tool'!Z33,"",'Bio Ass test Data'!Z33-'Bioavailability Assessment Tool'!Z33) ->  | AA33: =IF('Bio Ass test Data'!AA33='Bioavailability Assessment Tool'!AA33,"",'Bio Ass test Data'!AA33-'Bioavailability Assessment Tool'!AA33) ->  | AB33: =IF('Bio Ass test Data'!AB33='Bioavailability Assessment Tool'!AB33,"",'Bio Ass test Data'!AB33-'Bioavailability Assessment Tool'!AB33) -> 
B34: 30 | G34: 15 | J34: 7 | K34: 10 | L34: 158 | M34: =IF('Bio Ass test Data'!M34='Bioavailability Assessment Tool'!M34,"",'Bio Ass test Data'!M34-'Bioavailability Assessment Tool'!M34) ->  | N34: =IF('Bio Ass test Data'!N34='Bioavailability Assessment Tool'!N34,"",'Bio Ass test Data'!N34-'Bioavailability Assessment Tool'!N34) ->  | O34: =IF('Bio Ass test Data'!O34='Bioavailability Assessment Tool'!O34,"",'Bio Ass test Data'!O34-'Bioavailability Assessment Tool'!O34) ->  | P34: =IF('Bio Ass test Data'!P34='Bioavailability Assessment Tool'!P34,"",'Bio Ass test Data'!P34-'Bioavailability Assessment Tool'!P34) ->  | Q34: =IF('Bio Ass test Data'!Q34='Bioavailability Assessment Tool'!Q34,"",'Bio Ass test Data'!Q34-'Bioavailability Assessment Tool'!Q34) ->  | R34: =IF('Bio Ass test Data'!R34='Bioavailability Assessment Tool'!R34,"",'Bio Ass test Data'!R34-'Bioavailability Assessment Tool'!R34) ->  | S34: =IF('Bio Ass test Data'!S34='Bioavailability Assessment Tool'!S34,"",'Bio Ass test Data'!S34-'Bioavailability Assessment Tool'!S34) ->  | T34: =IF('Bio Ass test Data'!T34='Bioavailability Assessment Tool'!T34,"",'Bio Ass test Data'!T34-'Bioavailability Assessment Tool'!T34) ->  | U34: =IF('Bio Ass test Data'!U34='Bioavailability Assessment Tool'!U34,"",'Bio Ass test Data'!U34-'Bioavailability Assessment Tool'!U34) ->  | V34: =IF('Bio Ass test Data'!V34='Bioavailability Assessment Tool'!V34,"",'Bio Ass test Data'!V34-'Bioavailability Assessment Tool'!V34) ->  | W34: =IF('Bio Ass test Data'!W34='Bioavailability Assessment Tool'!W34,"",'Bio Ass test Data'!W34-'Bioavailability Assessment Tool'!W34) ->  | X34: =IF('Bio Ass test Data'!X34='Bioavailability Assessment Tool'!X34,"",'Bio Ass test Data'!X34-'Bioavailability Assessment Tool'!X34) ->  | Y34: =IF('Bio Ass test Data'!Y34='Bioavailability Assessment Tool'!Y34,"",'Bio Ass test Data'!Y34-'Bioavailability Assessment Tool'!Y34) ->  | Z34: =IF('Bio Ass test Data'!Z34='Bioavailability Assessment Tool'!Z34,"",'Bio Ass test Data'!Z34-'Bioavailability Assessment Tool'!Z34) ->  | AA34: =IF('Bio Ass test Data'!AA34='Bioavailability Assessment Tool'!AA34,"",'Bio Ass test Data'!AA34-'Bioavailability Assessment Tool'!AA34) ->  | AB34: =IF('Bio Ass test Data'!AB34='Bioavailability Assessment Tool'!AB34,"",'Bio Ass test Data'!AB34-'Bioavailability Assessment Tool'!AB34) -> 
B35: 31 | G35: 15 | J35: 7 | K35: 10 | L35: 160 | M35: =IF('Bio Ass test Data'!M35='Bioavailability Assessment Tool'!M35,"",'Bio Ass test Data'!M35-'Bioavailability Assessment Tool'!M35) ->  | N35: =IF('Bio Ass test Data'!N35='Bioavailability Assessment Tool'!N35,"",'Bio Ass test Data'!N35-'Bioavailability Assessment Tool'!N35) ->  | O35: =IF('Bio Ass test Data'!O35='Bioavailability Assessment Tool'!O35,"",'Bio Ass test Data'!O35-'Bioavailability Assessment Tool'!O35) ->  | P35: =IF('Bio Ass test Data'!P35='Bioavailability Assessment Tool'!P35,"",'Bio Ass test Data'!P35-'Bioavailability Assessment Tool'!P35) ->  | Q35: =IF('Bio Ass test Data'!Q35='Bioavailability Assessment Tool'!Q35,"",'Bio Ass test Data'!Q35-'Bioavailability Assessment Tool'!Q35) ->  | R35: =IF('Bio Ass test Data'!R35='Bioavailability Assessment Tool'!R35,"",'Bio Ass test Data'!R35-'Bioavailability Assessment Tool'!R35) ->  | S35: =IF('Bio Ass test Data'!S35='Bioavailability Assessment Tool'!S35,"",'Bio Ass test Data'!S35-'Bioavailability Assessment Tool'!S35) ->  | T35: =IF('Bio Ass test Data'!T35='Bioavailability Assessment Tool'!T35,"",'Bio Ass test Data'!T35-'Bioavailability Assessment Tool'!T35) ->  | U35: =IF('Bio Ass test Data'!U35='Bioavailability Assessment Tool'!U35,"",'Bio Ass test Data'!U35-'Bioavailability Assessment Tool'!U35) ->  | V35: =IF('Bio Ass test Data'!V35='Bioavailability Assessment Tool'!V35,"",'Bio Ass test Data'!V35-'Bioavailability Assessment Tool'!V35) ->  | W35: =IF('Bio Ass test Data'!W35='Bioavailability Assessment Tool'!W35,"",'Bio Ass test Data'!W35-'Bioavailability Assessment Tool'!W35) ->  | X35: =IF('Bio Ass test Data'!X35='Bioavailability Assessment Tool'!X35,"",'Bio Ass test Data'!X35-'Bioavailability Assessment Tool'!X35) ->  | Y35: =IF('Bio Ass test Data'!Y35='Bioavailability Assessment Tool'!Y35,"",'Bio Ass test Data'!Y35-'Bioavailability Assessment Tool'!Y35) ->  | Z35: =IF('Bio Ass test Data'!Z35='Bioavailability Assessment Tool'!Z35,"",'Bio Ass test Data'!Z35-'Bioavailability Assessment Tool'!Z35) ->  | AA35: =IF('Bio Ass test Data'!AA35='Bioavailability Assessment Tool'!AA35,"",'Bio Ass test Data'!AA35-'Bioavailability Assessment Tool'!AA35) ->  | AB35: =IF('Bio Ass test Data'!AB35='Bioavailability Assessment Tool'!AB35,"",'Bio Ass test Data'!AB35-'Bioavailability Assessment Tool'!AB35) -> 
B36: 32 | G36: 15 | J36: 7 | K36: 10 | L36: 162 | M36: =IF('Bio Ass test Data'!M36='Bioavailability Assessment Tool'!M36,"",'Bio Ass test Data'!M36-'Bioavailability Assessment Tool'!M36) ->  | N36: =IF('Bio Ass test Data'!N36='Bioavailability Assessment Tool'!N36,"",'Bio Ass test Data'!N36-'Bioavailability Assessment Tool'!N36) ->  | O36: =IF('Bio Ass test Data'!O36='Bioavailability Assessment Tool'!O36,"",'Bio Ass test Data'!O36-'Bioavailability Assessment Tool'!O36) ->  | P36: =IF('Bio Ass test Data'!P36='Bioavailability Assessment Tool'!P36,"",'Bio Ass test Data'!P36-'Bioavailability Assessment Tool'!P36) ->  | Q36: =IF('Bio Ass test Data'!Q36='Bioavailability Assessment Tool'!Q36,"",'Bio Ass test Data'!Q36-'Bioavailability Assessment Tool'!Q36) ->  | R36: =IF('Bio Ass test Data'!R36='Bioavailability Assessment Tool'!R36,"",'Bio Ass test Data'!R36-'Bioavailability Assessment Tool'!R36) ->  | S36: =IF('Bio Ass test Data'!S36='Bioavailability Assessment Tool'!S36,"",'Bio Ass test Data'!S36-'Bioavailability Assessment Tool'!S36) ->  | T36: =IF('Bio Ass test Data'!T36='Bioavailability Assessment Tool'!T36,"",'Bio Ass test Data'!T36-'Bioavailability Assessment Tool'!T36) ->  | U36: =IF('Bio Ass test Data'!U36='Bioavailability Assessment Tool'!U36,"",'Bio Ass test Data'!U36-'Bioavailability Assessment Tool'!U36) ->  | V36: =IF('Bio Ass test Data'!V36='Bioavailability Assessment Tool'!V36,"",'Bio Ass test Data'!V36-'Bioavailability Assessment Tool'!V36) ->  | W36: =IF('Bio Ass test Data'!W36='Bioavailability Assessment Tool'!W36,"",'Bio Ass test Data'!W36-'Bioavailability Assessment Tool'!W36) ->  | X36: =IF('Bio Ass test Data'!X36='Bioavailability Assessment Tool'!X36,"",'Bio Ass test Data'!X36-'Bioavailability Assessment Tool'!X36) ->  | Y36: =IF('Bio Ass test Data'!Y36='Bioavailability Assessment Tool'!Y36,"",'Bio Ass test Data'!Y36-'Bioavailability Assessment Tool'!Y36) ->  | Z36: =IF('Bio Ass test Data'!Z36='Bioavailability Assessment Tool'!Z36,"",'Bio Ass test Data'!Z36-'Bioavailability Assessment Tool'!Z36) ->  | AA36: =IF('Bio Ass test Data'!AA36='Bioavailability Assessment Tool'!AA36,"",'Bio Ass test Data'!AA36-'Bioavailability Assessment Tool'!AA36) ->  | AB36: =IF('Bio Ass test Data'!AB36='Bioavailability Assessment Tool'!AB36,"",'Bio Ass test Data'!AB36-'Bioavailability Assessment Tool'!AB36) -> 
B37: 33 | H37: 80 | J37: 5.4 | K37: 10 | L37: 60 | M37: =IF('Bio Ass test Data'!M37='Bioavailability Assessment Tool'!M37,"",'Bio Ass test Data'!M37-'Bioavailability Assessment Tool'!M37) ->  | N37: =IF('Bio Ass test Data'!N37='Bioavailability Assessment Tool'!N37,"",'Bio Ass test Data'!N37-'Bioavailability Assessment Tool'!N37) ->  | O37: =IF('Bio Ass test Data'!O37='Bioavailability Assessment Tool'!O37,"",'Bio Ass test Data'!O37-'Bioavailability Assessment Tool'!O37) ->  | P37: =IF('Bio Ass test Data'!P37='Bioavailability Assessment Tool'!P37,"",'Bio Ass test Data'!P37-'Bioavailability Assessment Tool'!P37) ->  | Q37: =IF('Bio Ass test Data'!Q37='Bioavailability Assessment Tool'!Q37,"",'Bio Ass test Data'!Q37-'Bioavailability Assessment Tool'!Q37) ->  | R37: =IF('Bio Ass test Data'!R37='Bioavailability Assessment Tool'!R37,"",'Bio Ass test Data'!R37-'Bioavailability Assessment Tool'!R37) ->  | S37: =IF('Bio Ass test Data'!S37='Bioavailability Assessment Tool'!S37,"",'Bio Ass test Data'!S37-'Bioavailability Assessment Tool'!S37) ->  | T37: =IF('Bio Ass test Data'!T37='Bioavailability Assessment Tool'!T37,"",'Bio Ass test Data'!T37-'Bioavailability Assessment Tool'!T37) ->  | U37: =IF('Bio Ass test Data'!U37='Bioavailability Assessment Tool'!U37,"",'Bio Ass test Data'!U37-'Bioavailability Assessment Tool'!U37) ->  | V37: =IF('Bio Ass test Data'!V37='Bioavailability Assessment Tool'!V37,"",'Bio Ass test Data'!V37-'Bioavailability Assessment Tool'!V37) ->  | W37: =IF('Bio Ass test Data'!W37='Bioavailability Assessment Tool'!W37,"",'Bio Ass test Data'!W37-'Bioavailability Assessment Tool'!W37) ->  | X37: =IF('Bio Ass test Data'!X37='Bioavailability Assessment Tool'!X37,"",'Bio Ass test Data'!X37-'Bioavailability Assessment Tool'!X37) ->  | Y37: =IF('Bio Ass test Data'!Y37='Bioavailability Assessment Tool'!Y37,"",'Bio Ass test Data'!Y37-'Bioavailability Assessment Tool'!Y37) ->  | Z37: =IF('Bio Ass test Data'!Z37='Bioavailability Assessment Tool'!Z37,"",'Bio Ass test Data'!Z37-'Bioavailability Assessment Tool'!Z37) ->  | AA37: =IF('Bio Ass test Data'!AA37='Bioavailability Assessment Tool'!AA37,"",'Bio Ass test Data'!AA37-'Bioavailability Assessment Tool'!AA37) ->  | AB37: =IF('Bio Ass test Data'!AB37='Bioavailability Assessment Tool'!AB37,"",'Bio Ass test Data'!AB37-'Bioavailability Assessment Tool'!AB37) -> 
B38: 34 | H38: 80 | J38: 5.5 | K38: 10 | L38: 60 | M38: =IF('Bio Ass test Data'!M38='Bioavailability Assessment Tool'!M38,"",'Bio Ass test Data'!M38-'Bioavailability Assessment Tool'!M38) ->  | N38: =IF('Bio Ass test Data'!N38='Bioavailability Assessment Tool'!N38,"",'Bio Ass test Data'!N38-'Bioavailability Assessment Tool'!N38) ->  | O38: =IF('Bio Ass test Data'!O38='Bioavailability Assessment Tool'!O38,"",'Bio Ass test Data'!O38-'Bioavailability Assessment Tool'!O38) ->  | P38: =IF('Bio Ass test Data'!P38='Bioavailability Assessment Tool'!P38,"",'Bio Ass test Data'!P38-'Bioavailability Assessment Tool'!P38) ->  | Q38: =IF('Bio Ass test Data'!Q38='Bioavailability Assessment Tool'!Q38,"",'Bio Ass test Data'!Q38-'Bioavailability Assessment Tool'!Q38) ->  | R38: =IF('Bio Ass test Data'!R38='Bioavailability Assessment Tool'!R38,"",'Bio Ass test Data'!R38-'Bioavailability Assessment Tool'!R38) ->  | S38: =IF('Bio Ass test Data'!S38='Bioavailability Assessment Tool'!S38,"",'Bio Ass test Data'!S38-'Bioavailability Assessment Tool'!S38) ->  | T38: =IF('Bio Ass test Data'!T38='Bioavailability Assessment Tool'!T38,"",'Bio Ass test Data'!T38-'Bioavailability Assessment Tool'!T38) ->  | U38: =IF('Bio Ass test Data'!U38='Bioavailability Assessment Tool'!U38,"",'Bio Ass test Data'!U38-'Bioavailability Assessment Tool'!U38) ->  | V38: =IF('Bio Ass test Data'!V38='Bioavailability Assessment Tool'!V38,"",'Bio Ass test Data'!V38-'Bioavailability Assessment Tool'!V38) ->  | W38: =IF('Bio Ass test Data'!W38='Bioavailability Assessment Tool'!W38,"",'Bio Ass test Data'!W38-'Bioavailability Assessment Tool'!W38) ->  | X38: =IF('Bio Ass test Data'!X38='Bioavailability Assessment Tool'!X38,"",'Bio Ass test Data'!X38-'Bioavailability Assessment Tool'!X38) ->  | Y38: =IF('Bio Ass test Data'!Y38='Bioavailability Assessment Tool'!Y38,"",'Bio Ass test Data'!Y38-'Bioavailability Assessment Tool'!Y38) ->  | Z38: =IF('Bio Ass test Data'!Z38='Bioavailability Assessment Tool'!Z38,"",'Bio Ass test Data'!Z38-'Bioavailability Assessment Tool'!Z38) ->  | AA38: =IF('Bio Ass test Data'!AA38='Bioavailability Assessment Tool'!AA38,"",'Bio Ass test Data'!AA38-'Bioavailability Assessment Tool'!AA38) ->  | AB38: =IF('Bio Ass test Data'!AB38='Bioavailability Assessment Tool'!AB38,"",'Bio Ass test Data'!AB38-'Bioavailability Assessment Tool'!AB38) -> 
B39: 35 | H39: 80 | J39: 5.6 | K39: 10 | L39: 60 | M39: =IF('Bio Ass test Data'!M39='Bioavailability Assessment Tool'!M39,"",'Bio Ass test Data'!M39-'Bioavailability Assessment Tool'!M39) ->  | N39: =IF('Bio Ass test Data'!N39='Bioavailability Assessment Tool'!N39,"",'Bio Ass test Data'!N39-'Bioavailability Assessment Tool'!N39) ->  | O39: =IF('Bio Ass test Data'!O39='Bioavailability Assessment Tool'!O39,"",'Bio Ass test Data'!O39-'Bioavailability Assessment Tool'!O39) ->  | P39: =IF('Bio Ass test Data'!P39='Bioavailability Assessment Tool'!P39,"",'Bio Ass test Data'!P39-'Bioavailability Assessment Tool'!P39) ->  | Q39: =IF('Bio Ass test Data'!Q39='Bioavailability Assessment Tool'!Q39,"",'Bio Ass test Data'!Q39-'Bioavailability Assessment Tool'!Q39) ->  | R39: =IF('Bio Ass test Data'!R39='Bioavailability Assessment Tool'!R39,"",'Bio Ass test Data'!R39-'Bioavailability Assessment Tool'!R39) ->  | S39: =IF('Bio Ass test Data'!S39='Bioavailability Assessment Tool'!S39,"",'Bio Ass test Data'!S39-'Bioavailability Assessment Tool'!S39) ->  | T39: =IF('Bio Ass test Data'!T39='Bioavailability Assessment Tool'!T39,"",'Bio Ass test Data'!T39-'Bioavailability Assessment Tool'!T39) ->  | U39: =IF('Bio Ass test Data'!U39='Bioavailability Assessment Tool'!U39,"",'Bio Ass test Data'!U39-'Bioavailability Assessment Tool'!U39) ->  | V39: =IF('Bio Ass test Data'!V39='Bioavailability Assessment Tool'!V39,"",'Bio Ass test Data'!V39-'Bioavailability Assessment Tool'!V39) ->  | W39: =IF('Bio Ass test Data'!W39='Bioavailability Assessment Tool'!W39,"",'Bio Ass test Data'!W39-'Bioavailability Assessment Tool'!W39) ->  | X39: =IF('Bio Ass test Data'!X39='Bioavailability Assessment Tool'!X39,"",'Bio Ass test Data'!X39-'Bioavailability Assessment Tool'!X39) ->  | Y39: =IF('Bio Ass test Data'!Y39='Bioavailability Assessment Tool'!Y39,"",'Bio Ass test Data'!Y39-'Bioavailability Assessment Tool'!Y39) ->  | Z39: =IF('Bio Ass test Data'!Z39='Bioavailability Assessment Tool'!Z39,"",'Bio Ass test Data'!Z39-'Bioavailability Assessment Tool'!Z39) ->  | AA39: =IF('Bio Ass test Data'!AA39='Bioavailability Assessment Tool'!AA39,"",'Bio Ass test Data'!AA39-'Bioavailability Assessment Tool'!AA39) ->  | AB39: =IF('Bio Ass test Data'!AB39='Bioavailability Assessment Tool'!AB39,"",'Bio Ass test Data'!AB39-'Bioavailability Assessment Tool'!AB39) -> 
B40: 36 | H40: 80 | J40: 8.4 | K40: 10 | L40: 60 | M40: =IF('Bio Ass test Data'!M40='Bioavailability Assessment Tool'!M40,"",'Bio Ass test Data'!M40-'Bioavailability Assessment Tool'!M40) ->  | N40: =IF('Bio Ass test Data'!N40='Bioavailability Assessment Tool'!N40,"",'Bio Ass test Data'!N40-'Bioavailability Assessment Tool'!N40) ->  | O40: =IF('Bio Ass test Data'!O40='Bioavailability Assessment Tool'!O40,"",'Bio Ass test Data'!O40-'Bioavailability Assessment Tool'!O40) ->  | P40: =IF('Bio Ass test Data'!P40='Bioavailability Assessment Tool'!P40,"",'Bio Ass test Data'!P40-'Bioavailability Assessment Tool'!P40) ->  | Q40: =IF('Bio Ass test Data'!Q40='Bioavailability Assessment Tool'!Q40,"",'Bio Ass test Data'!Q40-'Bioavailability Assessment Tool'!Q40) ->  | R40: =IF('Bio Ass test Data'!R40='Bioavailability Assessment Tool'!R40,"",'Bio Ass test Data'!R40-'Bioavailability Assessment Tool'!R40) ->  | S40: =IF('Bio Ass test Data'!S40='Bioavailability Assessment Tool'!S40,"",'Bio Ass test Data'!S40-'Bioavailability Assessment Tool'!S40) ->  | T40: =IF('Bio Ass test Data'!T40='Bioavailability Assessment Tool'!T40,"",'Bio Ass test Data'!T40-'Bioavailability Assessment Tool'!T40) ->  | U40: =IF('Bio Ass test Data'!U40='Bioavailability Assessment Tool'!U40,"",'Bio Ass test Data'!U40-'Bioavailability Assessment Tool'!U40) ->  | V40: =IF('Bio Ass test Data'!V40='Bioavailability Assessment Tool'!V40,"",'Bio Ass test Data'!V40-'Bioavailability Assessment Tool'!V40) ->  | W40: =IF('Bio Ass test Data'!W40='Bioavailability Assessment Tool'!W40,"",'Bio Ass test Data'!W40-'Bioavailability Assessment Tool'!W40) ->  | X40: =IF('Bio Ass test Data'!X40='Bioavailability Assessment Tool'!X40,"",'Bio Ass test Data'!X40-'Bioavailability Assessment Tool'!X40) ->  | Y40: =IF('Bio Ass test Data'!Y40='Bioavailability Assessment Tool'!Y40,"",'Bio Ass test Data'!Y40-'Bioavailability Assessment Tool'!Y40) ->  | Z40: =IF('Bio Ass test Data'!Z40='Bioavailability Assessment Tool'!Z40,"",'Bio Ass test Data'!Z40-'Bioavailability Assessment Tool'!Z40) ->  | AA40: =IF('Bio Ass test Data'!AA40='Bioavailability Assessment Tool'!AA40,"",'Bio Ass test Data'!AA40-'Bioavailability Assessment Tool'!AA40) ->  | AB40: =IF('Bio Ass test Data'!AB40='Bioavailability Assessment Tool'!AB40,"",'Bio Ass test Data'!AB40-'Bioavailability Assessment Tool'!AB40) -> 
B41: 37 | H41: 80 | J41: 8.5 | K41: 10 | L41: 60 | M41: =IF('Bio Ass test Data'!M41='Bioavailability Assessment Tool'!M41,"",'Bio Ass test Data'!M41-'Bioavailability Assessment Tool'!M41) ->  | N41: =IF('Bio Ass test Data'!N41='Bioavailability Assessment Tool'!N41,"",'Bio Ass test Data'!N41-'Bioavailability Assessment Tool'!N41) ->  | O41: =IF('Bio Ass test Data'!O41='Bioavailability Assessment Tool'!O41,"",'Bio Ass test Data'!O41-'Bioavailability Assessment Tool'!O41) ->  | P41: =IF('Bio Ass test Data'!P41='Bioavailability Assessment Tool'!P41,"",'Bio Ass test Data'!P41-'Bioavailability Assessment Tool'!P41) ->  | Q41: =IF('Bio Ass test Data'!Q41='Bioavailability Assessment Tool'!Q41,"",'Bio Ass test Data'!Q41-'Bioavailability Assessment Tool'!Q41) ->  | R41: =IF('Bio Ass test Data'!R41='Bioavailability Assessment Tool'!R41,"",'Bio Ass test Data'!R41-'Bioavailability Assessment Tool'!R41) ->  | S41: =IF('Bio Ass test Data'!S41='Bioavailability Assessment Tool'!S41,"",'Bio Ass test Data'!S41-'Bioavailability Assessment Tool'!S41) ->  | T41: =IF('Bio Ass test Data'!T41='Bioavailability Assessment Tool'!T41,"",'Bio Ass test Data'!T41-'Bioavailability Assessment Tool'!T41) ->  | U41: =IF('Bio Ass test Data'!U41='Bioavailability Assessment Tool'!U41,"",'Bio Ass test Data'!U41-'Bioavailability Assessment Tool'!U41) ->  | V41: =IF('Bio Ass test Data'!V41='Bioavailability Assessment Tool'!V41,"",'Bio Ass test Data'!V41-'Bioavailability Assessment Tool'!V41) ->  | W41: =IF('Bio Ass test Data'!W41='Bioavailability Assessment Tool'!W41,"",'Bio Ass test Data'!W41-'Bioavailability Assessment Tool'!W41) ->  | X41: =IF('Bio Ass test Data'!X41='Bioavailability Assessment Tool'!X41,"",'Bio Ass test Data'!X41-'Bioavailability Assessment Tool'!X41) ->  | Y41: =IF('Bio Ass test Data'!Y41='Bioavailability Assessment Tool'!Y41,"",'Bio Ass test Data'!Y41-'Bioavailability Assessment Tool'!Y41) ->  | Z41: =IF('Bio Ass test Data'!Z41='Bioavailability Assessment Tool'!Z41,"",'Bio Ass test Data'!Z41-'Bioavailability Assessment Tool'!Z41) ->  | AA41: =IF('Bio Ass test Data'!AA41='Bioavailability Assessment Tool'!AA41,"",'Bio Ass test Data'!AA41-'Bioavailability Assessment Tool'!AA41) ->  | AB41: =IF('Bio Ass test Data'!AB41='Bioavailability Assessment Tool'!AB41,"",'Bio Ass test Data'!AB41-'Bioavailability Assessment Tool'!AB41) -> 
B42: 38 | H42: 80 | J42: 8.7 | K42: 10 | L42: 60 | M42: =IF('Bio Ass test Data'!M42='Bioavailability Assessment Tool'!M42,"",'Bio Ass test Data'!M42-'Bioavailability Assessment Tool'!M42) ->  | N42: =IF('Bio Ass test Data'!N42='Bioavailability Assessment Tool'!N42,"",'Bio Ass test Data'!N42-'Bioavailability Assessment Tool'!N42) ->  | O42: =IF('Bio Ass test Data'!O42='Bioavailability Assessment Tool'!O42,"",'Bio Ass test Data'!O42-'Bioavailability Assessment Tool'!O42) ->  | P42: =IF('Bio Ass test Data'!P42='Bioavailability Assessment Tool'!P42,"",'Bio Ass test Data'!P42-'Bioavailability Assessment Tool'!P42) ->  | Q42: =IF('Bio Ass test Data'!Q42='Bioavailability Assessment Tool'!Q42,"",'Bio Ass test Data'!Q42-'Bioavailability Assessment Tool'!Q42) ->  | R42: =IF('Bio Ass test Data'!R42='Bioavailability Assessment Tool'!R42,"",'Bio Ass test Data'!R42-'Bioavailability Assessment Tool'!R42) ->  | S42: =IF('Bio Ass test Data'!S42='Bioavailability Assessment Tool'!S42,"",'Bio Ass test Data'!S42-'Bioavailability Assessment Tool'!S42) ->  | T42: =IF('Bio Ass test Data'!T42='Bioavailability Assessment Tool'!T42,"",'Bio Ass test Data'!T42-'Bioavailability Assessment Tool'!T42) ->  | U42: =IF('Bio Ass test Data'!U42='Bioavailability Assessment Tool'!U42,"",'Bio Ass test Data'!U42-'Bioavailability Assessment Tool'!U42) ->  | V42: =IF('Bio Ass test Data'!V42='Bioavailability Assessment Tool'!V42,"",'Bio Ass test Data'!V42-'Bioavailability Assessment Tool'!V42) ->  | W42: =IF('Bio Ass test Data'!W42='Bioavailability Assessment Tool'!W42,"",'Bio Ass test Data'!W42-'Bioavailability Assessment Tool'!W42) ->  | X42: =IF('Bio Ass test Data'!X42='Bioavailability Assessment Tool'!X42,"",'Bio Ass test Data'!X42-'Bioavailability Assessment Tool'!X42) ->  | Y42: =IF('Bio Ass test Data'!Y42='Bioavailability Assessment Tool'!Y42,"",'Bio Ass test Data'!Y42-'Bioavailability Assessment Tool'!Y42) ->  | Z42: =IF('Bio Ass test Data'!Z42='Bioavailability Assessment Tool'!Z42,"",'Bio Ass test Data'!Z42-'Bioavailability Assessment Tool'!Z42) ->  | AA42: =IF('Bio Ass test Data'!AA42='Bioavailability Assessment Tool'!AA42,"",'Bio Ass test Data'!AA42-'Bioavailability Assessment Tool'!AA42) ->  | AB42: =IF('Bio Ass test Data'!AB42='Bioavailability Assessment Tool'!AB42,"",'Bio Ass test Data'!AB42-'Bioavailability Assessment Tool'!AB42) -> 
B43: 39 | H43: 80 | J43: 7 | K43: 10 | L43: 0.9 | M43: =IF('Bio Ass test Data'!M43='Bioavailability Assessment Tool'!M43,"",'Bio Ass test Data'!M43-'Bioavailability Assessment Tool'!M43) ->  | N43: =IF('Bio Ass test Data'!N43='Bioavailability Assessment Tool'!N43,"",'Bio Ass test Data'!N43-'Bioavailability Assessment Tool'!N43) ->  | O43: =IF('Bio Ass test Data'!O43='Bioavailability Assessment Tool'!O43,"",'Bio Ass test Data'!O43-'Bioavailability Assessment Tool'!O43) ->  | P43: =IF('Bio Ass test Data'!P43='Bioavailability Assessment Tool'!P43,"",'Bio Ass test Data'!P43-'Bioavailability Assessment Tool'!P43) ->  | Q43: =IF('Bio Ass test Data'!Q43='Bioavailability Assessment Tool'!Q43,"",'Bio Ass test Data'!Q43-'Bioavailability Assessment Tool'!Q43) ->  | R43: =IF('Bio Ass test Data'!R43='Bioavailability Assessment Tool'!R43,"",'Bio Ass test Data'!R43-'Bioavailability Assessment Tool'!R43) ->  | S43: =IF('Bio Ass test Data'!S43='Bioavailability Assessment Tool'!S43,"",'Bio Ass test Data'!S43-'Bioavailability Assessment Tool'!S43) ->  | T43: =IF('Bio Ass test Data'!T43='Bioavailability Assessment Tool'!T43,"",'Bio Ass test Data'!T43-'Bioavailability Assessment Tool'!T43) ->  | U43: =IF('Bio Ass test Data'!U43='Bioavailability Assessment Tool'!U43,"",'Bio Ass test Data'!U43-'Bioavailability Assessment Tool'!U43) ->  | V43: =IF('Bio Ass test Data'!V43='Bioavailability Assessment Tool'!V43,"",'Bio Ass test Data'!V43-'Bioavailability Assessment Tool'!V43) ->  | W43: =IF('Bio Ass test Data'!W43='Bioavailability Assessment Tool'!W43,"",'Bio Ass test Data'!W43-'Bioavailability Assessment Tool'!W43) ->  | X43: =IF('Bio Ass test Data'!X43='Bioavailability Assessment Tool'!X43,"",'Bio Ass test Data'!X43-'Bioavailability Assessment Tool'!X43) ->  | Y43: =IF('Bio Ass test Data'!Y43='Bioavailability Assessment Tool'!Y43,"",'Bio Ass test Data'!Y43-'Bioavailability Assessment Tool'!Y43) ->  | Z43: =IF('Bio Ass test Data'!Z43='Bioavailability Assessment Tool'!Z43,"",'Bio Ass test Data'!Z43-'Bioavailability Assessment Tool'!Z43) ->  | AA43: =IF('Bio Ass test Data'!AA43='Bioavailability Assessment Tool'!AA43,"",'Bio Ass test Data'!AA43-'Bioavailability Assessment Tool'!AA43) ->  | AB43: =IF('Bio Ass test Data'!AB43='Bioavailability Assessment Tool'!AB43,"",'Bio Ass test Data'!AB43-'Bioavailability Assessment Tool'!AB43) -> 
B44: 40 | H44: 80 | J44: 7 | K44: 10 | L44: 1 | M44: =IF('Bio Ass test Data'!M44='Bioavailability Assessment Tool'!M44,"",'Bio Ass test Data'!M44-'Bioavailability Assessment Tool'!M44) ->  | N44: =IF('Bio Ass test Data'!N44='Bioavailability Assessment Tool'!N44,"",'Bio Ass test Data'!N44-'Bioavailability Assessment Tool'!N44) ->  | O44: =IF('Bio Ass test Data'!O44='Bioavailability Assessment Tool'!O44,"",'Bio Ass test Data'!O44-'Bioavailability Assessment Tool'!O44) ->  | P44: =IF('Bio Ass test Data'!P44='Bioavailability Assessment Tool'!P44,"",'Bio Ass test Data'!P44-'Bioavailability Assessment Tool'!P44) ->  | Q44: =IF('Bio Ass test Data'!Q44='Bioavailability Assessment Tool'!Q44,"",'Bio Ass test Data'!Q44-'Bioavailability Assessment Tool'!Q44) ->  | R44: =IF('Bio Ass test Data'!R44='Bioavailability Assessment Tool'!R44,"",'Bio Ass test Data'!R44-'Bioavailability Assessment Tool'!R44) ->  | S44: =IF('Bio Ass test Data'!S44='Bioavailability Assessment Tool'!S44,"",'Bio Ass test Data'!S44-'Bioavailability Assessment Tool'!S44) ->  | T44: =IF('Bio Ass test Data'!T44='Bioavailability Assessment Tool'!T44,"",'Bio Ass test Data'!T44-'Bioavailability Assessment Tool'!T44) ->  | U44: =IF('Bio Ass test Data'!U44='Bioavailability Assessment Tool'!U44,"",'Bio Ass test Data'!U44-'Bioavailability Assessment Tool'!U44) ->  | V44: =IF('Bio Ass test Data'!V44='Bioavailability Assessment Tool'!V44,"",'Bio Ass test Data'!V44-'Bioavailability Assessment Tool'!V44) ->  | W44: =IF('Bio Ass test Data'!W44='Bioavailability Assessment Tool'!W44,"",'Bio Ass test Data'!W44-'Bioavailability Assessment Tool'!W44) ->  | X44: =IF('Bio Ass test Data'!X44='Bioavailability Assessment Tool'!X44,"",'Bio Ass test Data'!X44-'Bioavailability Assessment Tool'!X44) ->  | Y44: =IF('Bio Ass test Data'!Y44='Bioavailability Assessment Tool'!Y44,"",'Bio Ass test Data'!Y44-'Bioavailability Assessment Tool'!Y44) ->  | Z44: =IF('Bio Ass test Data'!Z44='Bioavailability Assessment Tool'!Z44,"",'Bio Ass test Data'!Z44-'Bioavailability Assessment Tool'!Z44) ->  | AA44: =IF('Bio Ass test Data'!AA44='Bioavailability Assessment Tool'!AA44,"",'Bio Ass test Data'!AA44-'Bioavailability Assessment Tool'!AA44) ->  | AB44: =IF('Bio Ass test Data'!AB44='Bioavailability Assessment Tool'!AB44,"",'Bio Ass test Data'!AB44-'Bioavailability Assessment Tool'!AB44) -> 
B45: 41 | H45: 80 | J45: 7 | K45: 10 | L45: 1.2 | M45: =IF('Bio Ass test Data'!M45='Bioavailability Assessment Tool'!M45,"",'Bio Ass test Data'!M45-'Bioavailability Assessment Tool'!M45) ->  | N45: =IF('Bio Ass test Data'!N45='Bioavailability Assessment Tool'!N45,"",'Bio Ass test Data'!N45-'Bioavailability Assessment Tool'!N45) ->  | O45: =IF('Bio Ass test Data'!O45='Bioavailability Assessment Tool'!O45,"",'Bio Ass test Data'!O45-'Bioavailability Assessment Tool'!O45) ->  | P45: =IF('Bio Ass test Data'!P45='Bioavailability Assessment Tool'!P45,"",'Bio Ass test Data'!P45-'Bioavailability Assessment Tool'!P45) ->  | Q45: =IF('Bio Ass test Data'!Q45='Bioavailability Assessment Tool'!Q45,"",'Bio Ass test Data'!Q45-'Bioavailability Assessment Tool'!Q45) ->  | R45: =IF('Bio Ass test Data'!R45='Bioavailability Assessment Tool'!R45,"",'Bio Ass test Data'!R45-'Bioavailability Assessment Tool'!R45) ->  | S45: =IF('Bio Ass test Data'!S45='Bioavailability Assessment Tool'!S45,"",'Bio Ass test Data'!S45-'Bioavailability Assessment Tool'!S45) ->  | T45: =IF('Bio Ass test Data'!T45='Bioavailability Assessment Tool'!T45,"",'Bio Ass test Data'!T45-'Bioavailability Assessment Tool'!T45) ->  | U45: =IF('Bio Ass test Data'!U45='Bioavailability Assessment Tool'!U45,"",'Bio Ass test Data'!U45-'Bioavailability Assessment Tool'!U45) ->  | V45: =IF('Bio Ass test Data'!V45='Bioavailability Assessment Tool'!V45,"",'Bio Ass test Data'!V45-'Bioavailability Assessment Tool'!V45) ->  | W45: =IF('Bio Ass test Data'!W45='Bioavailability Assessment Tool'!W45,"",'Bio Ass test Data'!W45-'Bioavailability Assessment Tool'!W45) ->  | X45: =IF('Bio Ass test Data'!X45='Bioavailability Assessment Tool'!X45,"",'Bio Ass test Data'!X45-'Bioavailability Assessment Tool'!X45) ->  | Y45: =IF('Bio Ass test Data'!Y45='Bioavailability Assessment Tool'!Y45,"",'Bio Ass test Data'!Y45-'Bioavailability Assessment Tool'!Y45) ->  | Z45: =IF('Bio Ass test Data'!Z45='Bioavailability Assessment Tool'!Z45,"",'Bio Ass test Data'!Z45-'Bioavailability Assessment Tool'!Z45) ->  | AA45: =IF('Bio Ass test Data'!AA45='Bioavailability Assessment Tool'!AA45,"",'Bio Ass test Data'!AA45-'Bioavailability Assessment Tool'!AA45) ->  | AB45: =IF('Bio Ass test Data'!AB45='Bioavailability Assessment Tool'!AB45,"",'Bio Ass test Data'!AB45-'Bioavailability Assessment Tool'!AB45) -> 
B46: 42 | H46: 80 | J46: 7 | K46: 10 | L46: 199 | M46: =IF('Bio Ass test Data'!M46='Bioavailability Assessment Tool'!M46,"",'Bio Ass test Data'!M46-'Bioavailability Assessment Tool'!M46) ->  | N46: =IF('Bio Ass test Data'!N46='Bioavailability Assessment Tool'!N46,"",'Bio Ass test Data'!N46-'Bioavailability Assessment Tool'!N46) ->  | O46: =IF('Bio Ass test Data'!O46='Bioavailability Assessment Tool'!O46,"",'Bio Ass test Data'!O46-'Bioavailability Assessment Tool'!O46) ->  | P46: =IF('Bio Ass test Data'!P46='Bioavailability Assessment Tool'!P46,"",'Bio Ass test Data'!P46-'Bioavailability Assessment Tool'!P46) ->  | Q46: =IF('Bio Ass test Data'!Q46='Bioavailability Assessment Tool'!Q46,"",'Bio Ass test Data'!Q46-'Bioavailability Assessment Tool'!Q46) ->  | R46: =IF('Bio Ass test Data'!R46='Bioavailability Assessment Tool'!R46,"",'Bio Ass test Data'!R46-'Bioavailability Assessment Tool'!R46) ->  | S46: =IF('Bio Ass test Data'!S46='Bioavailability Assessment Tool'!S46,"",'Bio Ass test Data'!S46-'Bioavailability Assessment Tool'!S46) ->  | T46: =IF('Bio Ass test Data'!T46='Bioavailability Assessment Tool'!T46,"",'Bio Ass test Data'!T46-'Bioavailability Assessment Tool'!T46) ->  | U46: =IF('Bio Ass test Data'!U46='Bioavailability Assessment Tool'!U46,"",'Bio Ass test Data'!U46-'Bioavailability Assessment Tool'!U46) ->  | V46: =IF('Bio Ass test Data'!V46='Bioavailability Assessment Tool'!V46,"",'Bio Ass test Data'!V46-'Bioavailability Assessment Tool'!V46) ->  | W46: =IF('Bio Ass test Data'!W46='Bioavailability Assessment Tool'!W46,"",'Bio Ass test Data'!W46-'Bioavailability Assessment Tool'!W46) ->  | X46: =IF('Bio Ass test Data'!X46='Bioavailability Assessment Tool'!X46,"",'Bio Ass test Data'!X46-'Bioavailability Assessment Tool'!X46) ->  | Y46: =IF('Bio Ass test Data'!Y46='Bioavailability Assessment Tool'!Y46,"",'Bio Ass test Data'!Y46-'Bioavailability Assessment Tool'!Y46) ->  | Z46: =IF('Bio Ass test Data'!Z46='Bioavailability Assessment Tool'!Z46,"",'Bio Ass test Data'!Z46-'Bioavailability Assessment Tool'!Z46) ->  | AA46: =IF('Bio Ass test Data'!AA46='Bioavailability Assessment Tool'!AA46,"",'Bio Ass test Data'!AA46-'Bioavailability Assessment Tool'!AA46) ->  | AB46: =IF('Bio Ass test Data'!AB46='Bioavailability Assessment Tool'!AB46,"",'Bio Ass test Data'!AB46-'Bioavailability Assessment Tool'!AB46) -> 
B47: 43 | H47: 80 | J47: 7 | K47: 10 | L47: 200 | M47: =IF('Bio Ass test Data'!M47='Bioavailability Assessment Tool'!M47,"",'Bio Ass test Data'!M47-'Bioavailability Assessment Tool'!M47) ->  | N47: =IF('Bio Ass test Data'!N47='Bioavailability Assessment Tool'!N47,"",'Bio Ass test Data'!N47-'Bioavailability Assessment Tool'!N47) ->  | O47: =IF('Bio Ass test Data'!O47='Bioavailability Assessment Tool'!O47,"",'Bio Ass test Data'!O47-'Bioavailability Assessment Tool'!O47) ->  | P47: =IF('Bio Ass test Data'!P47='Bioavailability Assessment Tool'!P47,"",'Bio Ass test Data'!P47-'Bioavailability Assessment Tool'!P47) ->  | Q47: =IF('Bio Ass test Data'!Q47='Bioavailability Assessment Tool'!Q47,"",'Bio Ass test Data'!Q47-'Bioavailability Assessment Tool'!Q47) ->  | R47: =IF('Bio Ass test Data'!R47='Bioavailability Assessment Tool'!R47,"",'Bio Ass test Data'!R47-'Bioavailability Assessment Tool'!R47) ->  | S47: =IF('Bio Ass test Data'!S47='Bioavailability Assessment Tool'!S47,"",'Bio Ass test Data'!S47-'Bioavailability Assessment Tool'!S47) ->  | T47: =IF('Bio Ass test Data'!T47='Bioavailability Assessment Tool'!T47,"",'Bio Ass test Data'!T47-'Bioavailability Assessment Tool'!T47) ->  | U47: =IF('Bio Ass test Data'!U47='Bioavailability Assessment Tool'!U47,"",'Bio Ass test Data'!U47-'Bioavailability Assessment Tool'!U47) ->  | V47: =IF('Bio Ass test Data'!V47='Bioavailability Assessment Tool'!V47,"",'Bio Ass test Data'!V47-'Bioavailability Assessment Tool'!V47) ->  | W47: =IF('Bio Ass test Data'!W47='Bioavailability Assessment Tool'!W47,"",'Bio Ass test Data'!W47-'Bioavailability Assessment Tool'!W47) ->  | X47: =IF('Bio Ass test Data'!X47='Bioavailability Assessment Tool'!X47,"",'Bio Ass test Data'!X47-'Bioavailability Assessment Tool'!X47) ->  | Y47: =IF('Bio Ass test Data'!Y47='Bioavailability Assessment Tool'!Y47,"",'Bio Ass test Data'!Y47-'Bioavailability Assessment Tool'!Y47) ->  | Z47: =IF('Bio Ass test Data'!Z47='Bioavailability Assessment Tool'!Z47,"",'Bio Ass test Data'!Z47-'Bioavailability Assessment Tool'!Z47) ->  | AA47: =IF('Bio Ass test Data'!AA47='Bioavailability Assessment Tool'!AA47,"",'Bio Ass test Data'!AA47-'Bioavailability Assessment Tool'!AA47) ->  | AB47: =IF('Bio Ass test Data'!AB47='Bioavailability Assessment Tool'!AB47,"",'Bio Ass test Data'!AB47-'Bioavailability Assessment Tool'!AB47) -> 
B48: 44 | H48: 80 | J48: 7 | K48: 10 | L48: 202 | M48: =IF('Bio Ass test Data'!M48='Bioavailability Assessment Tool'!M48,"",'Bio Ass test Data'!M48-'Bioavailability Assessment Tool'!M48) ->  | N48: =IF('Bio Ass test Data'!N48='Bioavailability Assessment Tool'!N48,"",'Bio Ass test Data'!N48-'Bioavailability Assessment Tool'!N48) ->  | O48: =IF('Bio Ass test Data'!O48='Bioavailability Assessment Tool'!O48,"",'Bio Ass test Data'!O48-'Bioavailability Assessment Tool'!O48) ->  | P48: =IF('Bio Ass test Data'!P48='Bioavailability Assessment Tool'!P48,"",'Bio Ass test Data'!P48-'Bioavailability Assessment Tool'!P48) ->  | Q48: =IF('Bio Ass test Data'!Q48='Bioavailability Assessment Tool'!Q48,"",'Bio Ass test Data'!Q48-'Bioavailability Assessment Tool'!Q48) ->  | R48: =IF('Bio Ass test Data'!R48='Bioavailability Assessment Tool'!R48,"",'Bio Ass test Data'!R48-'Bioavailability Assessment Tool'!R48) ->  | S48: =IF('Bio Ass test Data'!S48='Bioavailability Assessment Tool'!S48,"",'Bio Ass test Data'!S48-'Bioavailability Assessment Tool'!S48) ->  | T48: =IF('Bio Ass test Data'!T48='Bioavailability Assessment Tool'!T48,"",'Bio Ass test Data'!T48-'Bioavailability Assessment Tool'!T48) ->  | U48: =IF('Bio Ass test Data'!U48='Bioavailability Assessment Tool'!U48,"",'Bio Ass test Data'!U48-'Bioavailability Assessment Tool'!U48) ->  | V48: =IF('Bio Ass test Data'!V48='Bioavailability Assessment Tool'!V48,"",'Bio Ass test Data'!V48-'Bioavailability Assessment Tool'!V48) ->  | W48: =IF('Bio Ass test Data'!W48='Bioavailability Assessment Tool'!W48,"",'Bio Ass test Data'!W48-'Bioavailability Assessment Tool'!W48) ->  | X48: =IF('Bio Ass test Data'!X48='Bioavailability Assessment Tool'!X48,"",'Bio Ass test Data'!X48-'Bioavailability Assessment Tool'!X48) ->  | Y48: =IF('Bio Ass test Data'!Y48='Bioavailability Assessment Tool'!Y48,"",'Bio Ass test Data'!Y48-'Bioavailability Assessment Tool'!Y48) ->  | Z48: =IF('Bio Ass test Data'!Z48='Bioavailability Assessment Tool'!Z48,"",'Bio Ass test Data'!Z48-'Bioavailability Assessment Tool'!Z48) ->  | AA48: =IF('Bio Ass test Data'!AA48='Bioavailability Assessment Tool'!AA48,"",'Bio Ass test Data'!AA48-'Bioavailability Assessment Tool'!AA48) ->  | AB48: =IF('Bio Ass test Data'!AB48='Bioavailability Assessment Tool'!AB48,"",'Bio Ass test Data'!AB48-'Bioavailability Assessment Tool'!AB48) -> 
B49: 45 | I49: 10 | J49: 6.4 | K49: 10 | L49: 60 | M49: =IF('Bio Ass test Data'!M49='Bioavailability Assessment Tool'!M49,"",'Bio Ass test Data'!M49-'Bioavailability Assessment Tool'!M49) ->  | N49: =IF('Bio Ass test Data'!N49='Bioavailability Assessment Tool'!N49,"",'Bio Ass test Data'!N49-'Bioavailability Assessment Tool'!N49) ->  | O49: =IF('Bio Ass test Data'!O49='Bioavailability Assessment Tool'!O49,"",'Bio Ass test Data'!O49-'Bioavailability Assessment Tool'!O49) ->  | P49: =IF('Bio Ass test Data'!P49='Bioavailability Assessment Tool'!P49,"",'Bio Ass test Data'!P49-'Bioavailability Assessment Tool'!P49) ->  | Q49: =IF('Bio Ass test Data'!Q49='Bioavailability Assessment Tool'!Q49,"",'Bio Ass test Data'!Q49-'Bioavailability Assessment Tool'!Q49) ->  | R49: =IF('Bio Ass test Data'!R49='Bioavailability Assessment Tool'!R49,"",'Bio Ass test Data'!R49-'Bioavailability Assessment Tool'!R49) ->  | S49: =IF('Bio Ass test Data'!S49='Bioavailability Assessment Tool'!S49,"",'Bio Ass test Data'!S49-'Bioavailability Assessment Tool'!S49) ->  | T49: =IF('Bio Ass test Data'!T49='Bioavailability Assessment Tool'!T49,"",'Bio Ass test Data'!T49-'Bioavailability Assessment Tool'!T49) ->  | U49: =IF('Bio Ass test Data'!U49='Bioavailability Assessment Tool'!U49,"",'Bio Ass test Data'!U49-'Bioavailability Assessment Tool'!U49) ->  | V49: =IF('Bio Ass test Data'!V49='Bioavailability Assessment Tool'!V49,"",'Bio Ass test Data'!V49-'Bioavailability Assessment Tool'!V49) ->  | W49: =IF('Bio Ass test Data'!W49='Bioavailability Assessment Tool'!W49,"",'Bio Ass test Data'!W49-'Bioavailability Assessment Tool'!W49) ->  | X49: =IF('Bio Ass test Data'!X49='Bioavailability Assessment Tool'!X49,"",'Bio Ass test Data'!X49-'Bioavailability Assessment Tool'!X49) ->  | Y49: =IF('Bio Ass test Data'!Y49='Bioavailability Assessment Tool'!Y49,"",'Bio Ass test Data'!Y49-'Bioavailability Assessment Tool'!Y49) ->  | Z49: =IF('Bio Ass test Data'!Z49='Bioavailability Assessment Tool'!Z49,"",'Bio Ass test Data'!Z49-'Bioavailability Assessment Tool'!Z49) ->  | AA49: =IF('Bio Ass test Data'!AA49='Bioavailability Assessment Tool'!AA49,"",'Bio Ass test Data'!AA49-'Bioavailability Assessment Tool'!AA49) ->  | AB49: =IF('Bio Ass test Data'!AB49='Bioavailability Assessment Tool'!AB49,"",'Bio Ass test Data'!AB49-'Bioavailability Assessment Tool'!AB49) -> 
B50: 46 | I50: 10 | J50: 6.5 | K50: 10 | L50: 60 | M50: =IF('Bio Ass test Data'!M50='Bioavailability Assessment Tool'!M50,"",'Bio Ass test Data'!M50-'Bioavailability Assessment Tool'!M50) ->  | N50: =IF('Bio Ass test Data'!N50='Bioavailability Assessment Tool'!N50,"",'Bio Ass test Data'!N50-'Bioavailability Assessment Tool'!N50) ->  | O50: =IF('Bio Ass test Data'!O50='Bioavailability Assessment Tool'!O50,"",'Bio Ass test Data'!O50-'Bioavailability Assessment Tool'!O50) ->  | P50: =IF('Bio Ass test Data'!P50='Bioavailability Assessment Tool'!P50,"",'Bio Ass test Data'!P50-'Bioavailability Assessment Tool'!P50) ->  | Q50: =IF('Bio Ass test Data'!Q50='Bioavailability Assessment Tool'!Q50,"",'Bio Ass test Data'!Q50-'Bioavailability Assessment Tool'!Q50) ->  | R50: =IF('Bio Ass test Data'!R50='Bioavailability Assessment Tool'!R50,"",'Bio Ass test Data'!R50-'Bioavailability Assessment Tool'!R50) ->  | S50: =IF('Bio Ass test Data'!S50='Bioavailability Assessment Tool'!S50,"",'Bio Ass test Data'!S50-'Bioavailability Assessment Tool'!S50) ->  | T50: =IF('Bio Ass test Data'!T50='Bioavailability Assessment Tool'!T50,"",'Bio Ass test Data'!T50-'Bioavailability Assessment Tool'!T50) ->  | U50: =IF('Bio Ass test Data'!U50='Bioavailability Assessment Tool'!U50,"",'Bio Ass test Data'!U50-'Bioavailability Assessment Tool'!U50) ->  | V50: =IF('Bio Ass test Data'!V50='Bioavailability Assessment Tool'!V50,"",'Bio Ass test Data'!V50-'Bioavailability Assessment Tool'!V50) ->  | W50: =IF('Bio Ass test Data'!W50='Bioavailability Assessment Tool'!W50,"",'Bio Ass test Data'!W50-'Bioavailability Assessment Tool'!W50) ->  | X50: =IF('Bio Ass test Data'!X50='Bioavailability Assessment Tool'!X50,"",'Bio Ass test Data'!X50-'Bioavailability Assessment Tool'!X50) ->  | Y50: =IF('Bio Ass test Data'!Y50='Bioavailability Assessment Tool'!Y50,"",'Bio Ass test Data'!Y50-'Bioavailability Assessment Tool'!Y50) ->  | Z50: =IF('Bio Ass test Data'!Z50='Bioavailability Assessment Tool'!Z50,"",'Bio Ass test Data'!Z50-'Bioavailability Assessment Tool'!Z50) ->  | AA50: =IF('Bio Ass test Data'!AA50='Bioavailability Assessment Tool'!AA50,"",'Bio Ass test Data'!AA50-'Bioavailability Assessment Tool'!AA50) ->  | AB50: =IF('Bio Ass test Data'!AB50='Bioavailability Assessment Tool'!AB50,"",'Bio Ass test Data'!AB50-'Bioavailability Assessment Tool'!AB50) -> 
B51: 47 | I51: 10 | J51: 6.6 | K51: 10 | L51: 60 | M51: =IF('Bio Ass test Data'!M51='Bioavailability Assessment Tool'!M51,"",'Bio Ass test Data'!M51-'Bioavailability Assessment Tool'!M51) ->  | N51: =IF('Bio Ass test Data'!N51='Bioavailability Assessment Tool'!N51,"",'Bio Ass test Data'!N51-'Bioavailability Assessment Tool'!N51) ->  | O51: =IF('Bio Ass test Data'!O51='Bioavailability Assessment Tool'!O51,"",'Bio Ass test Data'!O51-'Bioavailability Assessment Tool'!O51) ->  | P51: =IF('Bio Ass test Data'!P51='Bioavailability Assessment Tool'!P51,"",'Bio Ass test Data'!P51-'Bioavailability Assessment Tool'!P51) ->  | Q51: =IF('Bio Ass test Data'!Q51='Bioavailability Assessment Tool'!Q51,"",'Bio Ass test Data'!Q51-'Bioavailability Assessment Tool'!Q51) ->  | R51: =IF('Bio Ass test Data'!R51='Bioavailability Assessment Tool'!R51,"",'Bio Ass test Data'!R51-'Bioavailability Assessment Tool'!R51) ->  | S51: =IF('Bio Ass test Data'!S51='Bioavailability Assessment Tool'!S51,"",'Bio Ass test Data'!S51-'Bioavailability Assessment Tool'!S51) ->  | T51: =IF('Bio Ass test Data'!T51='Bioavailability Assessment Tool'!T51,"",'Bio Ass test Data'!T51-'Bioavailability Assessment Tool'!T51) ->  | U51: =IF('Bio Ass test Data'!U51='Bioavailability Assessment Tool'!U51,"",'Bio Ass test Data'!U51-'Bioavailability Assessment Tool'!U51) ->  | V51: =IF('Bio Ass test Data'!V51='Bioavailability Assessment Tool'!V51,"",'Bio Ass test Data'!V51-'Bioavailability Assessment Tool'!V51) ->  | W51: =IF('Bio Ass test Data'!W51='Bioavailability Assessment Tool'!W51,"",'Bio Ass test Data'!W51-'Bioavailability Assessment Tool'!W51) ->  | X51: =IF('Bio Ass test Data'!X51='Bioavailability Assessment Tool'!X51,"",'Bio Ass test Data'!X51-'Bioavailability Assessment Tool'!X51) ->  | Y51: =IF('Bio Ass test Data'!Y51='Bioavailability Assessment Tool'!Y51,"",'Bio Ass test Data'!Y51-'Bioavailability Assessment Tool'!Y51) ->  | Z51: =IF('Bio Ass test Data'!Z51='Bioavailability Assessment Tool'!Z51,"",'Bio Ass test Data'!Z51-'Bioavailability Assessment Tool'!Z51) ->  | AA51: =IF('Bio Ass test Data'!AA51='Bioavailability Assessment Tool'!AA51,"",'Bio Ass test Data'!AA51-'Bioavailability Assessment Tool'!AA51) ->  | AB51: =IF('Bio Ass test Data'!AB51='Bioavailability Assessment Tool'!AB51,"",'Bio Ass test Data'!AB51-'Bioavailability Assessment Tool'!AB51) -> 
B52: 48 | I52: 10 | J52: 8.6 | K52: 10 | L52: 60 | M52: =IF('Bio Ass test Data'!M52='Bioavailability Assessment Tool'!M52,"",'Bio Ass test Data'!M52-'Bioavailability Assessment Tool'!M52) ->  | N52: =IF('Bio Ass test Data'!N52='Bioavailability Assessment Tool'!N52,"",'Bio Ass test Data'!N52-'Bioavailability Assessment Tool'!N52) ->  | O52: =IF('Bio Ass test Data'!O52='Bioavailability Assessment Tool'!O52,"",'Bio Ass test Data'!O52-'Bioavailability Assessment Tool'!O52) ->  | P52: =IF('Bio Ass test Data'!P52='Bioavailability Assessment Tool'!P52,"",'Bio Ass test Data'!P52-'Bioavailability Assessment Tool'!P52) ->  | Q52: =IF('Bio Ass test Data'!Q52='Bioavailability Assessment Tool'!Q52,"",'Bio Ass test Data'!Q52-'Bioavailability Assessment Tool'!Q52) ->  | R52: =IF('Bio Ass test Data'!R52='Bioavailability Assessment Tool'!R52,"",'Bio Ass test Data'!R52-'Bioavailability Assessment Tool'!R52) ->  | S52: =IF('Bio Ass test Data'!S52='Bioavailability Assessment Tool'!S52,"",'Bio Ass test Data'!S52-'Bioavailability Assessment Tool'!S52) ->  | T52: =IF('Bio Ass test Data'!T52='Bioavailability Assessment Tool'!T52,"",'Bio Ass test Data'!T52-'Bioavailability Assessment Tool'!T52) ->  | U52: =IF('Bio Ass test Data'!U52='Bioavailability Assessment Tool'!U52,"",'Bio Ass test Data'!U52-'Bioavailability Assessment Tool'!U52) ->  | V52: =IF('Bio Ass test Data'!V52='Bioavailability Assessment Tool'!V52,"",'Bio Ass test Data'!V52-'Bioavailability Assessment Tool'!V52) ->  | W52: =IF('Bio Ass test Data'!W52='Bioavailability Assessment Tool'!W52,"",'Bio Ass test Data'!W52-'Bioavailability Assessment Tool'!W52) ->  | X52: =IF('Bio Ass test Data'!X52='Bioavailability Assessment Tool'!X52,"",'Bio Ass test Data'!X52-'Bioavailability Assessment Tool'!X52) ->  | Y52: =IF('Bio Ass test Data'!Y52='Bioavailability Assessment Tool'!Y52,"",'Bio Ass test Data'!Y52-'Bioavailability Assessment Tool'!Y52) ->  | Z52: =IF('Bio Ass test Data'!Z52='Bioavailability Assessment Tool'!Z52,"",'Bio Ass test Data'!Z52-'Bioavailability Assessment Tool'!Z52) ->  | AA52: =IF('Bio Ass test Data'!AA52='Bioavailability Assessment Tool'!AA52,"",'Bio Ass test Data'!AA52-'Bioavailability Assessment Tool'!AA52) ->  | AB52: =IF('Bio Ass test Data'!AB52='Bioavailability Assessment Tool'!AB52,"",'Bio Ass test Data'!AB52-'Bioavailability Assessment Tool'!AB52) -> 
B53: 49 | I53: 10 | J53: 8.7 | K53: 10 | L53: 60 | M53: =IF('Bio Ass test Data'!M53='Bioavailability Assessment Tool'!M53,"",'Bio Ass test Data'!M53-'Bioavailability Assessment Tool'!M53) ->  | N53: =IF('Bio Ass test Data'!N53='Bioavailability Assessment Tool'!N53,"",'Bio Ass test Data'!N53-'Bioavailability Assessment Tool'!N53) ->  | O53: =IF('Bio Ass test Data'!O53='Bioavailability Assessment Tool'!O53,"",'Bio Ass test Data'!O53-'Bioavailability Assessment Tool'!O53) ->  | P53: =IF('Bio Ass test Data'!P53='Bioavailability Assessment Tool'!P53,"",'Bio Ass test Data'!P53-'Bioavailability Assessment Tool'!P53) ->  | Q53: =IF('Bio Ass test Data'!Q53='Bioavailability Assessment Tool'!Q53,"",'Bio Ass test Data'!Q53-'Bioavailability Assessment Tool'!Q53) ->  | R53: =IF('Bio Ass test Data'!R53='Bioavailability Assessment Tool'!R53,"",'Bio Ass test Data'!R53-'Bioavailability Assessment Tool'!R53) ->  | S53: =IF('Bio Ass test Data'!S53='Bioavailability Assessment Tool'!S53,"",'Bio Ass test Data'!S53-'Bioavailability Assessment Tool'!S53) ->  | T53: =IF('Bio Ass test Data'!T53='Bioavailability Assessment Tool'!T53,"",'Bio Ass test Data'!T53-'Bioavailability Assessment Tool'!T53) ->  | U53: =IF('Bio Ass test Data'!U53='Bioavailability Assessment Tool'!U53,"",'Bio Ass test Data'!U53-'Bioavailability Assessment Tool'!U53) ->  | V53: =IF('Bio Ass test Data'!V53='Bioavailability Assessment Tool'!V53,"",'Bio Ass test Data'!V53-'Bioavailability Assessment Tool'!V53) ->  | W53: =IF('Bio Ass test Data'!W53='Bioavailability Assessment Tool'!W53,"",'Bio Ass test Data'!W53-'Bioavailability Assessment Tool'!W53) ->  | X53: =IF('Bio Ass test Data'!X53='Bioavailability Assessment Tool'!X53,"",'Bio Ass test Data'!X53-'Bioavailability Assessment Tool'!X53) ->  | Y53: =IF('Bio Ass test Data'!Y53='Bioavailability Assessment Tool'!Y53,"",'Bio Ass test Data'!Y53-'Bioavailability Assessment Tool'!Y53) ->  | Z53: =IF('Bio Ass test Data'!Z53='Bioavailability Assessment Tool'!Z53,"",'Bio Ass test Data'!Z53-'Bioavailability Assessment Tool'!Z53) ->  | AA53: =IF('Bio Ass test Data'!AA53='Bioavailability Assessment Tool'!AA53,"",'Bio Ass test Data'!AA53-'Bioavailability Assessment Tool'!AA53) ->  | AB53: =IF('Bio Ass test Data'!AB53='Bioavailability Assessment Tool'!AB53,"",'Bio Ass test Data'!AB53-'Bioavailability Assessment Tool'!AB53) -> 
B54: 50 | I54: 10 | J54: 8.8 | K54: 10 | L54: 60 | M54: =IF('Bio Ass test Data'!M54='Bioavailability Assessment Tool'!M54,"",'Bio Ass test Data'!M54-'Bioavailability Assessment Tool'!M54) ->  | N54: =IF('Bio Ass test Data'!N54='Bioavailability Assessment Tool'!N54,"",'Bio Ass test Data'!N54-'Bioavailability Assessment Tool'!N54) ->  | O54: =IF('Bio Ass test Data'!O54='Bioavailability Assessment Tool'!O54,"",'Bio Ass test Data'!O54-'Bioavailability Assessment Tool'!O54) ->  | P54: =IF('Bio Ass test Data'!P54='Bioavailability Assessment Tool'!P54,"",'Bio Ass test Data'!P54-'Bioavailability Assessment Tool'!P54) ->  | Q54: =IF('Bio Ass test Data'!Q54='Bioavailability Assessment Tool'!Q54,"",'Bio Ass test Data'!Q54-'Bioavailability Assessment Tool'!Q54) ->  | R54: =IF('Bio Ass test Data'!R54='Bioavailability Assessment Tool'!R54,"",'Bio Ass test Data'!R54-'Bioavailability Assessment Tool'!R54) ->  | S54: =IF('Bio Ass test Data'!S54='Bioavailability Assessment Tool'!S54,"",'Bio Ass test Data'!S54-'Bioavailability Assessment Tool'!S54) ->  | T54: =IF('Bio Ass test Data'!T54='Bioavailability Assessment Tool'!T54,"",'Bio Ass test Data'!T54-'Bioavailability Assessment Tool'!T54) ->  | U54: =IF('Bio Ass test Data'!U54='Bioavailability Assessment Tool'!U54,"",'Bio Ass test Data'!U54-'Bioavailability Assessment Tool'!U54) ->  | V54: =IF('Bio Ass test Data'!V54='Bioavailability Assessment Tool'!V54,"",'Bio Ass test Data'!V54-'Bioavailability Assessment Tool'!V54) ->  | W54: =IF('Bio Ass test Data'!W54='Bioavailability Assessment Tool'!W54,"",'Bio Ass test Data'!W54-'Bioavailability Assessment Tool'!W54) ->  | X54: =IF('Bio Ass test Data'!X54='Bioavailability Assessment Tool'!X54,"",'Bio Ass test Data'!X54-'Bioavailability Assessment Tool'!X54) ->  | Y54: =IF('Bio Ass test Data'!Y54='Bioavailability Assessment Tool'!Y54,"",'Bio Ass test Data'!Y54-'Bioavailability Assessment Tool'!Y54) ->  | Z54: =IF('Bio Ass test Data'!Z54='Bioavailability Assessment Tool'!Z54,"",'Bio Ass test Data'!Z54-'Bioavailability Assessment Tool'!Z54) ->  | AA54: =IF('Bio Ass test Data'!AA54='Bioavailability Assessment Tool'!AA54,"",'Bio Ass test Data'!AA54-'Bioavailability Assessment Tool'!AA54) ->  | AB54: =IF('Bio Ass test Data'!AB54='Bioavailability Assessment Tool'!AB54,"",'Bio Ass test Data'!AB54-'Bioavailability Assessment Tool'!AB54) -> 
B55: 51 | I55: 10 | J55: 7 | K55: 10 | L55: 1.9 | M55: =IF('Bio Ass test Data'!M55='Bioavailability Assessment Tool'!M55,"",'Bio Ass test Data'!M55-'Bioavailability Assessment Tool'!M55) ->  | N55: =IF('Bio Ass test Data'!N55='Bioavailability Assessment Tool'!N55,"",'Bio Ass test Data'!N55-'Bioavailability Assessment Tool'!N55) ->  | O55: =IF('Bio Ass test Data'!O55='Bioavailability Assessment Tool'!O55,"",'Bio Ass test Data'!O55-'Bioavailability Assessment Tool'!O55) ->  | P55: =IF('Bio Ass test Data'!P55='Bioavailability Assessment Tool'!P55,"",'Bio Ass test Data'!P55-'Bioavailability Assessment Tool'!P55) ->  | Q55: =IF('Bio Ass test Data'!Q55='Bioavailability Assessment Tool'!Q55,"",'Bio Ass test Data'!Q55-'Bioavailability Assessment Tool'!Q55) ->  | R55: =IF('Bio Ass test Data'!R55='Bioavailability Assessment Tool'!R55,"",'Bio Ass test Data'!R55-'Bioavailability Assessment Tool'!R55) ->  | S55: =IF('Bio Ass test Data'!S55='Bioavailability Assessment Tool'!S55,"",'Bio Ass test Data'!S55-'Bioavailability Assessment Tool'!S55) ->  | T55: =IF('Bio Ass test Data'!T55='Bioavailability Assessment Tool'!T55,"",'Bio Ass test Data'!T55-'Bioavailability Assessment Tool'!T55) ->  | U55: =IF('Bio Ass test Data'!U55='Bioavailability Assessment Tool'!U55,"",'Bio Ass test Data'!U55-'Bioavailability Assessment Tool'!U55) ->  | V55: =IF('Bio Ass test Data'!V55='Bioavailability Assessment Tool'!V55,"",'Bio Ass test Data'!V55-'Bioavailability Assessment Tool'!V55) ->  | W55: =IF('Bio Ass test Data'!W55='Bioavailability Assessment Tool'!W55,"",'Bio Ass test Data'!W55-'Bioavailability Assessment Tool'!W55) ->  | X55: =IF('Bio Ass test Data'!X55='Bioavailability Assessment Tool'!X55,"",'Bio Ass test Data'!X55-'Bioavailability Assessment Tool'!X55) ->  | Y55: =IF('Bio Ass test Data'!Y55='Bioavailability Assessment Tool'!Y55,"",'Bio Ass test Data'!Y55-'Bioavailability Assessment Tool'!Y55) ->  | Z55: =IF('Bio Ass test Data'!Z55='Bioavailability Assessment Tool'!Z55,"",'Bio Ass test Data'!Z55-'Bioavailability Assessment Tool'!Z55) ->  | AA55: =IF('Bio Ass test Data'!AA55='Bioavailability Assessment Tool'!AA55,"",'Bio Ass test Data'!AA55-'Bioavailability Assessment Tool'!AA55) ->  | AB55: =IF('Bio Ass test Data'!AB55='Bioavailability Assessment Tool'!AB55,"",'Bio Ass test Data'!AB55-'Bioavailability Assessment Tool'!AB55) -> 
B56: 52 | I56: 10 | J56: 7 | K56: 10 | L56: 2 | M56: =IF('Bio Ass test Data'!M56='Bioavailability Assessment Tool'!M56,"",'Bio Ass test Data'!M56-'Bioavailability Assessment Tool'!M56) ->  | N56: =IF('Bio Ass test Data'!N56='Bioavailability Assessment Tool'!N56,"",'Bio Ass test Data'!N56-'Bioavailability Assessment Tool'!N56) ->  | O56: =IF('Bio Ass test Data'!O56='Bioavailability Assessment Tool'!O56,"",'Bio Ass test Data'!O56-'Bioavailability Assessment Tool'!O56) ->  | P56: =IF('Bio Ass test Data'!P56='Bioavailability Assessment Tool'!P56,"",'Bio Ass test Data'!P56-'Bioavailability Assessment Tool'!P56) ->  | Q56: =IF('Bio Ass test Data'!Q56='Bioavailability Assessment Tool'!Q56,"",'Bio Ass test Data'!Q56-'Bioavailability Assessment Tool'!Q56) ->  | R56: =IF('Bio Ass test Data'!R56='Bioavailability Assessment Tool'!R56,"",'Bio Ass test Data'!R56-'Bioavailability Assessment Tool'!R56) ->  | S56: =IF('Bio Ass test Data'!S56='Bioavailability Assessment Tool'!S56,"",'Bio Ass test Data'!S56-'Bioavailability Assessment Tool'!S56) ->  | T56: =IF('Bio Ass test Data'!T56='Bioavailability Assessment Tool'!T56,"",'Bio Ass test Data'!T56-'Bioavailability Assessment Tool'!T56) ->  | U56: =IF('Bio Ass test Data'!U56='Bioavailability Assessment Tool'!U56,"",'Bio Ass test Data'!U56-'Bioavailability Assessment Tool'!U56) ->  | V56: =IF('Bio Ass test Data'!V56='Bioavailability Assessment Tool'!V56,"",'Bio Ass test Data'!V56-'Bioavailability Assessment Tool'!V56) ->  | W56: =IF('Bio Ass test Data'!W56='Bioavailability Assessment Tool'!W56,"",'Bio Ass test Data'!W56-'Bioavailability Assessment Tool'!W56) ->  | X56: =IF('Bio Ass test Data'!X56='Bioavailability Assessment Tool'!X56,"",'Bio Ass test Data'!X56-'Bioavailability Assessment Tool'!X56) ->  | Y56: =IF('Bio Ass test Data'!Y56='Bioavailability Assessment Tool'!Y56,"",'Bio Ass test Data'!Y56-'Bioavailability Assessment Tool'!Y56) ->  | Z56: =IF('Bio Ass test Data'!Z56='Bioavailability Assessment Tool'!Z56,"",'Bio Ass test Data'!Z56-'Bioavailability Assessment Tool'!Z56) ->  | AA56: =IF('Bio Ass test Data'!AA56='Bioavailability Assessment Tool'!AA56,"",'Bio Ass test Data'!AA56-'Bioavailability Assessment Tool'!AA56) ->  | AB56: =IF('Bio Ass test Data'!AB56='Bioavailability Assessment Tool'!AB56,"",'Bio Ass test Data'!AB56-'Bioavailability Assessment Tool'!AB56) -> 
B57: 53 | I57: 10 | J57: 7 | K57: 10 | L57: 2.1 | M57: =IF('Bio Ass test Data'!M57='Bioavailability Assessment Tool'!M57,"",'Bio Ass test Data'!M57-'Bioavailability Assessment Tool'!M57) ->  | N57: =IF('Bio Ass test Data'!N57='Bioavailability Assessment Tool'!N57,"",'Bio Ass test Data'!N57-'Bioavailability Assessment Tool'!N57) ->  | O57: =IF('Bio Ass test Data'!O57='Bioavailability Assessment Tool'!O57,"",'Bio Ass test Data'!O57-'Bioavailability Assessment Tool'!O57) ->  | P57: =IF('Bio Ass test Data'!P57='Bioavailability Assessment Tool'!P57,"",'Bio Ass test Data'!P57-'Bioavailability Assessment Tool'!P57) ->  | Q57: =IF('Bio Ass test Data'!Q57='Bioavailability Assessment Tool'!Q57,"",'Bio Ass test Data'!Q57-'Bioavailability Assessment Tool'!Q57) ->  | R57: =IF('Bio Ass test Data'!R57='Bioavailability Assessment Tool'!R57,"",'Bio Ass test Data'!R57-'Bioavailability Assessment Tool'!R57) ->  | S57: =IF('Bio Ass test Data'!S57='Bioavailability Assessment Tool'!S57,"",'Bio Ass test Data'!S57-'Bioavailability Assessment Tool'!S57) ->  | T57: =IF('Bio Ass test Data'!T57='Bioavailability Assessment Tool'!T57,"",'Bio Ass test Data'!T57-'Bioavailability Assessment Tool'!T57) ->  | U57: =IF('Bio Ass test Data'!U57='Bioavailability Assessment Tool'!U57,"",'Bio Ass test Data'!U57-'Bioavailability Assessment Tool'!U57) ->  | V57: =IF('Bio Ass test Data'!V57='Bioavailability Assessment Tool'!V57,"",'Bio Ass test Data'!V57-'Bioavailability Assessment Tool'!V57) ->  | W57: =IF('Bio Ass test Data'!W57='Bioavailability Assessment Tool'!W57,"",'Bio Ass test Data'!W57-'Bioavailability Assessment Tool'!W57) ->  | X57: =IF('Bio Ass test Data'!X57='Bioavailability Assessment Tool'!X57,"",'Bio Ass test Data'!X57-'Bioavailability Assessment Tool'!X57) ->  | Y57: =IF('Bio Ass test Data'!Y57='Bioavailability Assessment Tool'!Y57,"",'Bio Ass test Data'!Y57-'Bioavailability Assessment Tool'!Y57) ->  | Z57: =IF('Bio Ass test Data'!Z57='Bioavailability Assessment Tool'!Z57,"",'Bio Ass test Data'!Z57-'Bioavailability Assessment Tool'!Z57) ->  | AA57: =IF('Bio Ass test Data'!AA57='Bioavailability Assessment Tool'!AA57,"",'Bio Ass test Data'!AA57-'Bioavailability Assessment Tool'!AA57) ->  | AB57: =IF('Bio Ass test Data'!AB57='Bioavailability Assessment Tool'!AB57,"",'Bio Ass test Data'!AB57-'Bioavailability Assessment Tool'!AB57) -> 
B58: 54 | I58: 10 | J58: 7 | K58: 10 | L58: 87 | M58: =IF('Bio Ass test Data'!M58='Bioavailability Assessment Tool'!M58,"",'Bio Ass test Data'!M58-'Bioavailability Assessment Tool'!M58) ->  | N58: =IF('Bio Ass test Data'!N58='Bioavailability Assessment Tool'!N58,"",'Bio Ass test Data'!N58-'Bioavailability Assessment Tool'!N58) ->  | O58: =IF('Bio Ass test Data'!O58='Bioavailability Assessment Tool'!O58,"",'Bio Ass test Data'!O58-'Bioavailability Assessment Tool'!O58) ->  | P58: =IF('Bio Ass test Data'!P58='Bioavailability Assessment Tool'!P58,"",'Bio Ass test Data'!P58-'Bioavailability Assessment Tool'!P58) ->  | Q58: =IF('Bio Ass test Data'!Q58='Bioavailability Assessment Tool'!Q58,"",'Bio Ass test Data'!Q58-'Bioavailability Assessment Tool'!Q58) ->  | R58: =IF('Bio Ass test Data'!R58='Bioavailability Assessment Tool'!R58,"",'Bio Ass test Data'!R58-'Bioavailability Assessment Tool'!R58) ->  | S58: =IF('Bio Ass test Data'!S58='Bioavailability Assessment Tool'!S58,"",'Bio Ass test Data'!S58-'Bioavailability Assessment Tool'!S58) ->  | T58: =IF('Bio Ass test Data'!T58='Bioavailability Assessment Tool'!T58,"",'Bio Ass test Data'!T58-'Bioavailability Assessment Tool'!T58) ->  | U58: =IF('Bio Ass test Data'!U58='Bioavailability Assessment Tool'!U58,"",'Bio Ass test Data'!U58-'Bioavailability Assessment Tool'!U58) ->  | V58: =IF('Bio Ass test Data'!V58='Bioavailability Assessment Tool'!V58,"",'Bio Ass test Data'!V58-'Bioavailability Assessment Tool'!V58) ->  | W58: =IF('Bio Ass test Data'!W58='Bioavailability Assessment Tool'!W58,"",'Bio Ass test Data'!W58-'Bioavailability Assessment Tool'!W58) ->  | X58: =IF('Bio Ass test Data'!X58='Bioavailability Assessment Tool'!X58,"",'Bio Ass test Data'!X58-'Bioavailability Assessment Tool'!X58) ->  | Y58: =IF('Bio Ass test Data'!Y58='Bioavailability Assessment Tool'!Y58,"",'Bio Ass test Data'!Y58-'Bioavailability Assessment Tool'!Y58) ->  | Z58: =IF('Bio Ass test Data'!Z58='Bioavailability Assessment Tool'!Z58,"",'Bio Ass test Data'!Z58-'Bioavailability Assessment Tool'!Z58) ->  | AA58: =IF('Bio Ass test Data'!AA58='Bioavailability Assessment Tool'!AA58,"",'Bio Ass test Data'!AA58-'Bioavailability Assessment Tool'!AA58) ->  | AB58: =IF('Bio Ass test Data'!AB58='Bioavailability Assessment Tool'!AB58,"",'Bio Ass test Data'!AB58-'Bioavailability Assessment Tool'!AB58) -> 
B59: 55 | I59: 10 | J59: 7 | K59: 10 | L59: 88 | M59: =IF('Bio Ass test Data'!M59='Bioavailability Assessment Tool'!M59,"",'Bio Ass test Data'!M59-'Bioavailability Assessment Tool'!M59) ->  | N59: =IF('Bio Ass test Data'!N59='Bioavailability Assessment Tool'!N59,"",'Bio Ass test Data'!N59-'Bioavailability Assessment Tool'!N59) ->  | O59: =IF('Bio Ass test Data'!O59='Bioavailability Assessment Tool'!O59,"",'Bio Ass test Data'!O59-'Bioavailability Assessment Tool'!O59) ->  | P59: =IF('Bio Ass test Data'!P59='Bioavailability Assessment Tool'!P59,"",'Bio Ass test Data'!P59-'Bioavailability Assessment Tool'!P59) ->  | Q59: =IF('Bio Ass test Data'!Q59='Bioavailability Assessment Tool'!Q59,"",'Bio Ass test Data'!Q59-'Bioavailability Assessment Tool'!Q59) ->  | R59: =IF('Bio Ass test Data'!R59='Bioavailability Assessment Tool'!R59,"",'Bio Ass test Data'!R59-'Bioavailability Assessment Tool'!R59) ->  | S59: =IF('Bio Ass test Data'!S59='Bioavailability Assessment Tool'!S59,"",'Bio Ass test Data'!S59-'Bioavailability Assessment Tool'!S59) ->  | T59: =IF('Bio Ass test Data'!T59='Bioavailability Assessment Tool'!T59,"",'Bio Ass test Data'!T59-'Bioavailability Assessment Tool'!T59) ->  | U59: =IF('Bio Ass test Data'!U59='Bioavailability Assessment Tool'!U59,"",'Bio Ass test Data'!U59-'Bioavailability Assessment Tool'!U59) ->  | V59: =IF('Bio Ass test Data'!V59='Bioavailability Assessment Tool'!V59,"",'Bio Ass test Data'!V59-'Bioavailability Assessment Tool'!V59) ->  | W59: =IF('Bio Ass test Data'!W59='Bioavailability Assessment Tool'!W59,"",'Bio Ass test Data'!W59-'Bioavailability Assessment Tool'!W59) ->  | X59: =IF('Bio Ass test Data'!X59='Bioavailability Assessment Tool'!X59,"",'Bio Ass test Data'!X59-'Bioavailability Assessment Tool'!X59) ->  | Y59: =IF('Bio Ass test Data'!Y59='Bioavailability Assessment Tool'!Y59,"",'Bio Ass test Data'!Y59-'Bioavailability Assessment Tool'!Y59) ->  | Z59: =IF('Bio Ass test Data'!Z59='Bioavailability Assessment Tool'!Z59,"",'Bio Ass test Data'!Z59-'Bioavailability Assessment Tool'!Z59) ->  | AA59: =IF('Bio Ass test Data'!AA59='Bioavailability Assessment Tool'!AA59,"",'Bio Ass test Data'!AA59-'Bioavailability Assessment Tool'!AA59) ->  | AB59: =IF('Bio Ass test Data'!AB59='Bioavailability Assessment Tool'!AB59,"",'Bio Ass test Data'!AB59-'Bioavailability Assessment Tool'!AB59) -> 
B60: 56 | I60: 10 | J60: 7 | K60: 10 | L60: 89 | M60: =IF('Bio Ass test Data'!M60='Bioavailability Assessment Tool'!M60,"",'Bio Ass test Data'!M60-'Bioavailability Assessment Tool'!M60) ->  | N60: =IF('Bio Ass test Data'!N60='Bioavailability Assessment Tool'!N60,"",'Bio Ass test Data'!N60-'Bioavailability Assessment Tool'!N60) ->  | O60: =IF('Bio Ass test Data'!O60='Bioavailability Assessment Tool'!O60,"",'Bio Ass test Data'!O60-'Bioavailability Assessment Tool'!O60) ->  | P60: =IF('Bio Ass test Data'!P60='Bioavailability Assessment Tool'!P60,"",'Bio Ass test Data'!P60-'Bioavailability Assessment Tool'!P60) ->  | Q60: =IF('Bio Ass test Data'!Q60='Bioavailability Assessment Tool'!Q60,"",'Bio Ass test Data'!Q60-'Bioavailability Assessment Tool'!Q60) ->  | R60: =IF('Bio Ass test Data'!R60='Bioavailability Assessment Tool'!R60,"",'Bio Ass test Data'!R60-'Bioavailability Assessment Tool'!R60) ->  | S60: =IF('Bio Ass test Data'!S60='Bioavailability Assessment Tool'!S60,"",'Bio Ass test Data'!S60-'Bioavailability Assessment Tool'!S60) ->  | T60: =IF('Bio Ass test Data'!T60='Bioavailability Assessment Tool'!T60,"",'Bio Ass test Data'!T60-'Bioavailability Assessment Tool'!T60) ->  | U60: =IF('Bio Ass test Data'!U60='Bioavailability Assessment Tool'!U60,"",'Bio Ass test Data'!U60-'Bioavailability Assessment Tool'!U60) ->  | V60: =IF('Bio Ass test Data'!V60='Bioavailability Assessment Tool'!V60,"",'Bio Ass test Data'!V60-'Bioavailability Assessment Tool'!V60) ->  | W60: =IF('Bio Ass test Data'!W60='Bioavailability Assessment Tool'!W60,"",'Bio Ass test Data'!W60-'Bioavailability Assessment Tool'!W60) ->  | X60: =IF('Bio Ass test Data'!X60='Bioavailability Assessment Tool'!X60,"",'Bio Ass test Data'!X60-'Bioavailability Assessment Tool'!X60) ->  | Y60: =IF('Bio Ass test Data'!Y60='Bioavailability Assessment Tool'!Y60,"",'Bio Ass test Data'!Y60-'Bioavailability Assessment Tool'!Y60) ->  | Z60: =IF('Bio Ass test Data'!Z60='Bioavailability Assessment Tool'!Z60,"",'Bio Ass test Data'!Z60-'Bioavailability Assessment Tool'!Z60) ->  | AA60: =IF('Bio Ass test Data'!AA60='Bioavailability Assessment Tool'!AA60,"",'Bio Ass test Data'!AA60-'Bioavailability Assessment Tool'!AA60) ->  | AB60: =IF('Bio Ass test Data'!AB60='Bioavailability Assessment Tool'!AB60,"",'Bio Ass test Data'!AB60-'Bioavailability Assessment Tool'!AB60) -> 
B61: 57 | I61: 10 | J61: 7 | K61: 15 | L61: 60 | M61: =IF('Bio Ass test Data'!M61='Bioavailability Assessment Tool'!M61,"",'Bio Ass test Data'!M61-'Bioavailability Assessment Tool'!M61) ->  | N61: =IF('Bio Ass test Data'!N61='Bioavailability Assessment Tool'!N61,"",'Bio Ass test Data'!N61-'Bioavailability Assessment Tool'!N61) ->  | O61: =IF('Bio Ass test Data'!O61='Bioavailability Assessment Tool'!O61,"",'Bio Ass test Data'!O61-'Bioavailability Assessment Tool'!O61) ->  | P61: =IF('Bio Ass test Data'!P61='Bioavailability Assessment Tool'!P61,"",'Bio Ass test Data'!P61-'Bioavailability Assessment Tool'!P61) ->  | Q61: =IF('Bio Ass test Data'!Q61='Bioavailability Assessment Tool'!Q61,"",'Bio Ass test Data'!Q61-'Bioavailability Assessment Tool'!Q61) ->  | R61: =IF('Bio Ass test Data'!R61='Bioavailability Assessment Tool'!R61,"",'Bio Ass test Data'!R61-'Bioavailability Assessment Tool'!R61) ->  | S61: =IF('Bio Ass test Data'!S61='Bioavailability Assessment Tool'!S61,"",'Bio Ass test Data'!S61-'Bioavailability Assessment Tool'!S61) ->  | T61: =IF('Bio Ass test Data'!T61='Bioavailability Assessment Tool'!T61,"",'Bio Ass test Data'!T61-'Bioavailability Assessment Tool'!T61) ->  | U61: =IF('Bio Ass test Data'!U61='Bioavailability Assessment Tool'!U61,"",'Bio Ass test Data'!U61-'Bioavailability Assessment Tool'!U61) ->  | V61: =IF('Bio Ass test Data'!V61='Bioavailability Assessment Tool'!V61,"",'Bio Ass test Data'!V61-'Bioavailability Assessment Tool'!V61) ->  | W61: =IF('Bio Ass test Data'!W61='Bioavailability Assessment Tool'!W61,"",'Bio Ass test Data'!W61-'Bioavailability Assessment Tool'!W61) ->  | X61: =IF('Bio Ass test Data'!X61='Bioavailability Assessment Tool'!X61,"",'Bio Ass test Data'!X61-'Bioavailability Assessment Tool'!X61) ->  | Y61: =IF('Bio Ass test Data'!Y61='Bioavailability Assessment Tool'!Y61,"",'Bio Ass test Data'!Y61-'Bioavailability Assessment Tool'!Y61) ->  | Z61: =IF('Bio Ass test Data'!Z61='Bioavailability Assessment Tool'!Z61,"",'Bio Ass test Data'!Z61-'Bioavailability Assessment Tool'!Z61) ->  | AA61: =IF('Bio Ass test Data'!AA61='Bioavailability Assessment Tool'!AA61,"",'Bio Ass test Data'!AA61-'Bioavailability Assessment Tool'!AA61) ->  | AB61: =IF('Bio Ass test Data'!AB61='Bioavailability Assessment Tool'!AB61,"",'Bio Ass test Data'!AB61-'Bioavailability Assessment Tool'!AB61) -> 
B62: 58 | I62: 10 | J62: 7 | K62: 20 | L62: 60 | M62: =IF('Bio Ass test Data'!M62='Bioavailability Assessment Tool'!M62,"",'Bio Ass test Data'!M62-'Bioavailability Assessment Tool'!M62) ->  | N62: =IF('Bio Ass test Data'!N62='Bioavailability Assessment Tool'!N62,"",'Bio Ass test Data'!N62-'Bioavailability Assessment Tool'!N62) ->  | O62: =IF('Bio Ass test Data'!O62='Bioavailability Assessment Tool'!O62,"",'Bio Ass test Data'!O62-'Bioavailability Assessment Tool'!O62) ->  | P62: =IF('Bio Ass test Data'!P62='Bioavailability Assessment Tool'!P62,"",'Bio Ass test Data'!P62-'Bioavailability Assessment Tool'!P62) ->  | Q62: =IF('Bio Ass test Data'!Q62='Bioavailability Assessment Tool'!Q62,"",'Bio Ass test Data'!Q62-'Bioavailability Assessment Tool'!Q62) ->  | R62: =IF('Bio Ass test Data'!R62='Bioavailability Assessment Tool'!R62,"",'Bio Ass test Data'!R62-'Bioavailability Assessment Tool'!R62) ->  | S62: =IF('Bio Ass test Data'!S62='Bioavailability Assessment Tool'!S62,"",'Bio Ass test Data'!S62-'Bioavailability Assessment Tool'!S62) ->  | T62: =IF('Bio Ass test Data'!T62='Bioavailability Assessment Tool'!T62,"",'Bio Ass test Data'!T62-'Bioavailability Assessment Tool'!T62) ->  | U62: =IF('Bio Ass test Data'!U62='Bioavailability Assessment Tool'!U62,"",'Bio Ass test Data'!U62-'Bioavailability Assessment Tool'!U62) ->  | V62: =IF('Bio Ass test Data'!V62='Bioavailability Assessment Tool'!V62,"",'Bio Ass test Data'!V62-'Bioavailability Assessment Tool'!V62) ->  | W62: =IF('Bio Ass test Data'!W62='Bioavailability Assessment Tool'!W62,"",'Bio Ass test Data'!W62-'Bioavailability Assessment Tool'!W62) ->  | X62: =IF('Bio Ass test Data'!X62='Bioavailability Assessment Tool'!X62,"",'Bio Ass test Data'!X62-'Bioavailability Assessment Tool'!X62) ->  | Y62: =IF('Bio Ass test Data'!Y62='Bioavailability Assessment Tool'!Y62,"",'Bio Ass test Data'!Y62-'Bioavailability Assessment Tool'!Y62) ->  | Z62: =IF('Bio Ass test Data'!Z62='Bioavailability Assessment Tool'!Z62,"",'Bio Ass test Data'!Z62-'Bioavailability Assessment Tool'!Z62) ->  | AA62: =IF('Bio Ass test Data'!AA62='Bioavailability Assessment Tool'!AA62,"",'Bio Ass test Data'!AA62-'Bioavailability Assessment Tool'!AA62) ->  | AB62: =IF('Bio Ass test Data'!AB62='Bioavailability Assessment Tool'!AB62,"",'Bio Ass test Data'!AB62-'Bioavailability Assessment Tool'!AB62) -> 
B63: 59 | I63: 10 | J63: 7 | K63: 21 | L63: 60 | M63: =IF('Bio Ass test Data'!M63='Bioavailability Assessment Tool'!M63,"",'Bio Ass test Data'!M63-'Bioavailability Assessment Tool'!M63) ->  | N63: =IF('Bio Ass test Data'!N63='Bioavailability Assessment Tool'!N63,"",'Bio Ass test Data'!N63-'Bioavailability Assessment Tool'!N63) ->  | O63: =IF('Bio Ass test Data'!O63='Bioavailability Assessment Tool'!O63,"",'Bio Ass test Data'!O63-'Bioavailability Assessment Tool'!O63) ->  | P63: =IF('Bio Ass test Data'!P63='Bioavailability Assessment Tool'!P63,"",'Bio Ass test Data'!P63-'Bioavailability Assessment Tool'!P63) ->  | Q63: =IF('Bio Ass test Data'!Q63='Bioavailability Assessment Tool'!Q63,"",'Bio Ass test Data'!Q63-'Bioavailability Assessment Tool'!Q63) ->  | R63: =IF('Bio Ass test Data'!R63='Bioavailability Assessment Tool'!R63,"",'Bio Ass test Data'!R63-'Bioavailability Assessment Tool'!R63) ->  | S63: =IF('Bio Ass test Data'!S63='Bioavailability Assessment Tool'!S63,"",'Bio Ass test Data'!S63-'Bioavailability Assessment Tool'!S63) ->  | T63: =IF('Bio Ass test Data'!T63='Bioavailability Assessment Tool'!T63,"",'Bio Ass test Data'!T63-'Bioavailability Assessment Tool'!T63) ->  | U63: =IF('Bio Ass test Data'!U63='Bioavailability Assessment Tool'!U63,"",'Bio Ass test Data'!U63-'Bioavailability Assessment Tool'!U63) ->  | V63: =IF('Bio Ass test Data'!V63='Bioavailability Assessment Tool'!V63,"",'Bio Ass test Data'!V63-'Bioavailability Assessment Tool'!V63) ->  | W63: =IF('Bio Ass test Data'!W63='Bioavailability Assessment Tool'!W63,"",'Bio Ass test Data'!W63-'Bioavailability Assessment Tool'!W63) ->  | X63: =IF('Bio Ass test Data'!X63='Bioavailability Assessment Tool'!X63,"",'Bio Ass test Data'!X63-'Bioavailability Assessment Tool'!X63) ->  | Y63: =IF('Bio Ass test Data'!Y63='Bioavailability Assessment Tool'!Y63,"",'Bio Ass test Data'!Y63-'Bioavailability Assessment Tool'!Y63) ->  | Z63: =IF('Bio Ass test Data'!Z63='Bioavailability Assessment Tool'!Z63,"",'Bio Ass test Data'!Z63-'Bioavailability Assessment Tool'!Z63) ->  | AA63: =IF('Bio Ass test Data'!AA63='Bioavailability Assessment Tool'!AA63,"",'Bio Ass test Data'!AA63-'Bioavailability Assessment Tool'!AA63) ->  | AB63: =IF('Bio Ass test Data'!AB63='Bioavailability Assessment Tool'!AB63,"",'Bio Ass test Data'!AB63-'Bioavailability Assessment Tool'!AB63) -> 
B64: 60 | I64: 10 | J64: 7 | K64: 16 | L64: 60 | M64: =IF('Bio Ass test Data'!M64='Bioavailability Assessment Tool'!M64,"",'Bio Ass test Data'!M64-'Bioavailability Assessment Tool'!M64) ->  | N64: =IF('Bio Ass test Data'!N64='Bioavailability Assessment Tool'!N64,"",'Bio Ass test Data'!N64-'Bioavailability Assessment Tool'!N64) ->  | O64: =IF('Bio Ass test Data'!O64='Bioavailability Assessment Tool'!O64,"",'Bio Ass test Data'!O64-'Bioavailability Assessment Tool'!O64) ->  | P64: =IF('Bio Ass test Data'!P64='Bioavailability Assessment Tool'!P64,"",'Bio Ass test Data'!P64-'Bioavailability Assessment Tool'!P64) ->  | Q64: =IF('Bio Ass test Data'!Q64='Bioavailability Assessment Tool'!Q64,"",'Bio Ass test Data'!Q64-'Bioavailability Assessment Tool'!Q64) ->  | R64: =IF('Bio Ass test Data'!R64='Bioavailability Assessment Tool'!R64,"",'Bio Ass test Data'!R64-'Bioavailability Assessment Tool'!R64) ->  | S64: =IF('Bio Ass test Data'!S64='Bioavailability Assessment Tool'!S64,"",'Bio Ass test Data'!S64-'Bioavailability Assessment Tool'!S64) ->  | T64: =IF('Bio Ass test Data'!T64='Bioavailability Assessment Tool'!T64,"",'Bio Ass test Data'!T64-'Bioavailability Assessment Tool'!T64) ->  | U64: =IF('Bio Ass test Data'!U64='Bioavailability Assessment Tool'!U64,"",'Bio Ass test Data'!U64-'Bioavailability Assessment Tool'!U64) ->  | V64: =IF('Bio Ass test Data'!V64='Bioavailability Assessment Tool'!V64,"",'Bio Ass test Data'!V64-'Bioavailability Assessment Tool'!V64) ->  | W64: =IF('Bio Ass test Data'!W64='Bioavailability Assessment Tool'!W64,"",'Bio Ass test Data'!W64-'Bioavailability Assessment Tool'!W64) ->  | X64: =IF('Bio Ass test Data'!X64='Bioavailability Assessment Tool'!X64,"",'Bio Ass test Data'!X64-'Bioavailability Assessment Tool'!X64) ->  | Y64: =IF('Bio Ass test Data'!Y64='Bioavailability Assessment Tool'!Y64,"",'Bio Ass test Data'!Y64-'Bioavailability Assessment Tool'!Y64) ->  | Z64: =IF('Bio Ass test Data'!Z64='Bioavailability Assessment Tool'!Z64,"",'Bio Ass test Data'!Z64-'Bioavailability Assessment Tool'!Z64) ->  | AA64: =IF('Bio Ass test Data'!AA64='Bioavailability Assessment Tool'!AA64,"",'Bio Ass test Data'!AA64-'Bioavailability Assessment Tool'!AA64) ->  | AB64: =IF('Bio Ass test Data'!AB64='Bioavailability Assessment Tool'!AB64,"",'Bio Ass test Data'!AB64-'Bioavailability Assessment Tool'!AB64) -> 
B65: 61 | G65: 15 | J65: 7 | K65: 15 | L65: 60 | M65: =IF('Bio Ass test Data'!M65='Bioavailability Assessment Tool'!M65,"",'Bio Ass test Data'!M65-'Bioavailability Assessment Tool'!M65) ->  | N65: =IF('Bio Ass test Data'!N65='Bioavailability Assessment Tool'!N65,"",'Bio Ass test Data'!N65-'Bioavailability Assessment Tool'!N65) ->  | O65: =IF('Bio Ass test Data'!O65='Bioavailability Assessment Tool'!O65,"",'Bio Ass test Data'!O65-'Bioavailability Assessment Tool'!O65) ->  | P65: =IF('Bio Ass test Data'!P65='Bioavailability Assessment Tool'!P65,"",'Bio Ass test Data'!P65-'Bioavailability Assessment Tool'!P65) ->  | Q65: =IF('Bio Ass test Data'!Q65='Bioavailability Assessment Tool'!Q65,"",'Bio Ass test Data'!Q65-'Bioavailability Assessment Tool'!Q65) ->  | R65: =IF('Bio Ass test Data'!R65='Bioavailability Assessment Tool'!R65,"",'Bio Ass test Data'!R65-'Bioavailability Assessment Tool'!R65) ->  | S65: =IF('Bio Ass test Data'!S65='Bioavailability Assessment Tool'!S65,"",'Bio Ass test Data'!S65-'Bioavailability Assessment Tool'!S65) ->  | T65: =IF('Bio Ass test Data'!T65='Bioavailability Assessment Tool'!T65,"",'Bio Ass test Data'!T65-'Bioavailability Assessment Tool'!T65) ->  | U65: =IF('Bio Ass test Data'!U65='Bioavailability Assessment Tool'!U65,"",'Bio Ass test Data'!U65-'Bioavailability Assessment Tool'!U65) ->  | V65: =IF('Bio Ass test Data'!V65='Bioavailability Assessment Tool'!V65,"",'Bio Ass test Data'!V65-'Bioavailability Assessment Tool'!V65) ->  | W65: =IF('Bio Ass test Data'!W65='Bioavailability Assessment Tool'!W65,"",'Bio Ass test Data'!W65-'Bioavailability Assessment Tool'!W65) ->  | X65: =IF('Bio Ass test Data'!X65='Bioavailability Assessment Tool'!X65,"",'Bio Ass test Data'!X65-'Bioavailability Assessment Tool'!X65) ->  | Y65: =IF('Bio Ass test Data'!Y65='Bioavailability Assessment Tool'!Y65,"",'Bio Ass test Data'!Y65-'Bioavailability Assessment Tool'!Y65) ->  | Z65: =IF('Bio Ass test Data'!Z65='Bioavailability Assessment Tool'!Z65,"",'Bio Ass test Data'!Z65-'Bioavailability Assessment Tool'!Z65) ->  | AA65: =IF('Bio Ass test Data'!AA65='Bioavailability Assessment Tool'!AA65,"",'Bio Ass test Data'!AA65-'Bioavailability Assessment Tool'!AA65) ->  | AB65: =IF('Bio Ass test Data'!AB65='Bioavailability Assessment Tool'!AB65,"",'Bio Ass test Data'!AB65-'Bioavailability Assessment Tool'!AB65) -> 
B66: 62 | G66: 15 | J66: 7 | K66: 16 | L66: 60 | M66: =IF('Bio Ass test Data'!M66='Bioavailability Assessment Tool'!M66,"",'Bio Ass test Data'!M66-'Bioavailability Assessment Tool'!M66) ->  | N66: =IF('Bio Ass test Data'!N66='Bioavailability Assessment Tool'!N66,"",'Bio Ass test Data'!N66-'Bioavailability Assessment Tool'!N66) ->  | O66: =IF('Bio Ass test Data'!O66='Bioavailability Assessment Tool'!O66,"",'Bio Ass test Data'!O66-'Bioavailability Assessment Tool'!O66) ->  | P66: =IF('Bio Ass test Data'!P66='Bioavailability Assessment Tool'!P66,"",'Bio Ass test Data'!P66-'Bioavailability Assessment Tool'!P66) ->  | Q66: =IF('Bio Ass test Data'!Q66='Bioavailability Assessment Tool'!Q66,"",'Bio Ass test Data'!Q66-'Bioavailability Assessment Tool'!Q66) ->  | R66: =IF('Bio Ass test Data'!R66='Bioavailability Assessment Tool'!R66,"",'Bio Ass test Data'!R66-'Bioavailability Assessment Tool'!R66) ->  | S66: =IF('Bio Ass test Data'!S66='Bioavailability Assessment Tool'!S66,"",'Bio Ass test Data'!S66-'Bioavailability Assessment Tool'!S66) ->  | T66: =IF('Bio Ass test Data'!T66='Bioavailability Assessment Tool'!T66,"",'Bio Ass test Data'!T66-'Bioavailability Assessment Tool'!T66) ->  | U66: =IF('Bio Ass test Data'!U66='Bioavailability Assessment Tool'!U66,"",'Bio Ass test Data'!U66-'Bioavailability Assessment Tool'!U66) ->  | V66: =IF('Bio Ass test Data'!V66='Bioavailability Assessment Tool'!V66,"",'Bio Ass test Data'!V66-'Bioavailability Assessment Tool'!V66) ->  | W66: =IF('Bio Ass test Data'!W66='Bioavailability Assessment Tool'!W66,"",'Bio Ass test Data'!W66-'Bioavailability Assessment Tool'!W66) ->  | X66: =IF('Bio Ass test Data'!X66='Bioavailability Assessment Tool'!X66,"",'Bio Ass test Data'!X66-'Bioavailability Assessment Tool'!X66) ->  | Y66: =IF('Bio Ass test Data'!Y66='Bioavailability Assessment Tool'!Y66,"",'Bio Ass test Data'!Y66-'Bioavailability Assessment Tool'!Y66) ->  | Z66: =IF('Bio Ass test Data'!Z66='Bioavailability Assessment Tool'!Z66,"",'Bio Ass test Data'!Z66-'Bioavailability Assessment Tool'!Z66) ->  | AA66: =IF('Bio Ass test Data'!AA66='Bioavailability Assessment Tool'!AA66,"",'Bio Ass test Data'!AA66-'Bioavailability Assessment Tool'!AA66) ->  | AB66: =IF('Bio Ass test Data'!AB66='Bioavailability Assessment Tool'!AB66,"",'Bio Ass test Data'!AB66-'Bioavailability Assessment Tool'!AB66) -> 
B67: 63 | G67: 15 | J67: 7 | K67: 18 | L67: 60 | M67: =IF('Bio Ass test Data'!M67='Bioavailability Assessment Tool'!M67,"",'Bio Ass test Data'!M67-'Bioavailability Assessment Tool'!M67) ->  | N67: =IF('Bio Ass test Data'!N67='Bioavailability Assessment Tool'!N67,"",'Bio Ass test Data'!N67-'Bioavailability Assessment Tool'!N67) ->  | O67: =IF('Bio Ass test Data'!O67='Bioavailability Assessment Tool'!O67,"",'Bio Ass test Data'!O67-'Bioavailability Assessment Tool'!O67) ->  | P67: =IF('Bio Ass test Data'!P67='Bioavailability Assessment Tool'!P67,"",'Bio Ass test Data'!P67-'Bioavailability Assessment Tool'!P67) ->  | Q67: =IF('Bio Ass test Data'!Q67='Bioavailability Assessment Tool'!Q67,"",'Bio Ass test Data'!Q67-'Bioavailability Assessment Tool'!Q67) ->  | R67: =IF('Bio Ass test Data'!R67='Bioavailability Assessment Tool'!R67,"",'Bio Ass test Data'!R67-'Bioavailability Assessment Tool'!R67) ->  | S67: =IF('Bio Ass test Data'!S67='Bioavailability Assessment Tool'!S67,"",'Bio Ass test Data'!S67-'Bioavailability Assessment Tool'!S67) ->  | T67: =IF('Bio Ass test Data'!T67='Bioavailability Assessment Tool'!T67,"",'Bio Ass test Data'!T67-'Bioavailability Assessment Tool'!T67) ->  | U67: =IF('Bio Ass test Data'!U67='Bioavailability Assessment Tool'!U67,"",'Bio Ass test Data'!U67-'Bioavailability Assessment Tool'!U67) ->  | V67: =IF('Bio Ass test Data'!V67='Bioavailability Assessment Tool'!V67,"",'Bio Ass test Data'!V67-'Bioavailability Assessment Tool'!V67) ->  | W67: =IF('Bio Ass test Data'!W67='Bioavailability Assessment Tool'!W67,"",'Bio Ass test Data'!W67-'Bioavailability Assessment Tool'!W67) ->  | X67: =IF('Bio Ass test Data'!X67='Bioavailability Assessment Tool'!X67,"",'Bio Ass test Data'!X67-'Bioavailability Assessment Tool'!X67) ->  | Y67: =IF('Bio Ass test Data'!Y67='Bioavailability Assessment Tool'!Y67,"",'Bio Ass test Data'!Y67-'Bioavailability Assessment Tool'!Y67) ->  | Z67: =IF('Bio Ass test Data'!Z67='Bioavailability Assessment Tool'!Z67,"",'Bio Ass test Data'!Z67-'Bioavailability Assessment Tool'!Z67) ->  | AA67: =IF('Bio Ass test Data'!AA67='Bioavailability Assessment Tool'!AA67,"",'Bio Ass test Data'!AA67-'Bioavailability Assessment Tool'!AA67) ->  | AB67: =IF('Bio Ass test Data'!AB67='Bioavailability Assessment Tool'!AB67,"",'Bio Ass test Data'!AB67-'Bioavailability Assessment Tool'!AB67) -> 
B68: 64 | G68: 15 | J68: 7 | K68: 20 | L68: 60 | M68: =IF('Bio Ass test Data'!M68='Bioavailability Assessment Tool'!M68,"",'Bio Ass test Data'!M68-'Bioavailability Assessment Tool'!M68) ->  | N68: =IF('Bio Ass test Data'!N68='Bioavailability Assessment Tool'!N68,"",'Bio Ass test Data'!N68-'Bioavailability Assessment Tool'!N68) ->  | O68: =IF('Bio Ass test Data'!O68='Bioavailability Assessment Tool'!O68,"",'Bio Ass test Data'!O68-'Bioavailability Assessment Tool'!O68) ->  | P68: =IF('Bio Ass test Data'!P68='Bioavailability Assessment Tool'!P68,"",'Bio Ass test Data'!P68-'Bioavailability Assessment Tool'!P68) ->  | Q68: =IF('Bio Ass test Data'!Q68='Bioavailability Assessment Tool'!Q68,"",'Bio Ass test Data'!Q68-'Bioavailability Assessment Tool'!Q68) ->  | R68: =IF('Bio Ass test Data'!R68='Bioavailability Assessment Tool'!R68,"",'Bio Ass test Data'!R68-'Bioavailability Assessment Tool'!R68) ->  | S68: =IF('Bio Ass test Data'!S68='Bioavailability Assessment Tool'!S68,"",'Bio Ass test Data'!S68-'Bioavailability Assessment Tool'!S68) ->  | T68: =IF('Bio Ass test Data'!T68='Bioavailability Assessment Tool'!T68,"",'Bio Ass test Data'!T68-'Bioavailability Assessment Tool'!T68) ->  | U68: =IF('Bio Ass test Data'!U68='Bioavailability Assessment Tool'!U68,"",'Bio Ass test Data'!U68-'Bioavailability Assessment Tool'!U68) ->  | V68: =IF('Bio Ass test Data'!V68='Bioavailability Assessment Tool'!V68,"",'Bio Ass test Data'!V68-'Bioavailability Assessment Tool'!V68) ->  | W68: =IF('Bio Ass test Data'!W68='Bioavailability Assessment Tool'!W68,"",'Bio Ass test Data'!W68-'Bioavailability Assessment Tool'!W68) ->  | X68: =IF('Bio Ass test Data'!X68='Bioavailability Assessment Tool'!X68,"",'Bio Ass test Data'!X68-'Bioavailability Assessment Tool'!X68) ->  | Y68: =IF('Bio Ass test Data'!Y68='Bioavailability Assessment Tool'!Y68,"",'Bio Ass test Data'!Y68-'Bioavailability Assessment Tool'!Y68) ->  | Z68: =IF('Bio Ass test Data'!Z68='Bioavailability Assessment Tool'!Z68,"",'Bio Ass test Data'!Z68-'Bioavailability Assessment Tool'!Z68) ->  | AA68: =IF('Bio Ass test Data'!AA68='Bioavailability Assessment Tool'!AA68,"",'Bio Ass test Data'!AA68-'Bioavailability Assessment Tool'!AA68) ->  | AB68: =IF('Bio Ass test Data'!AB68='Bioavailability Assessment Tool'!AB68,"",'Bio Ass test Data'!AB68-'Bioavailability Assessment Tool'!AB68) -> 
B69: 65 | H69: 80 | J69: 7 | K69: 15 | L69: 60 | M69: =IF('Bio Ass test Data'!M69='Bioavailability Assessment Tool'!M69,"",'Bio Ass test Data'!M69-'Bioavailability Assessment Tool'!M69) ->  | N69: =IF('Bio Ass test Data'!N69='Bioavailability Assessment Tool'!N69,"",'Bio Ass test Data'!N69-'Bioavailability Assessment Tool'!N69) ->  | O69: =IF('Bio Ass test Data'!O69='Bioavailability Assessment Tool'!O69,"",'Bio Ass test Data'!O69-'Bioavailability Assessment Tool'!O69) ->  | P69: =IF('Bio Ass test Data'!P69='Bioavailability Assessment Tool'!P69,"",'Bio Ass test Data'!P69-'Bioavailability Assessment Tool'!P69) ->  | Q69: =IF('Bio Ass test Data'!Q69='Bioavailability Assessment Tool'!Q69,"",'Bio Ass test Data'!Q69-'Bioavailability Assessment Tool'!Q69) ->  | R69: =IF('Bio Ass test Data'!R69='Bioavailability Assessment Tool'!R69,"",'Bio Ass test Data'!R69-'Bioavailability Assessment Tool'!R69) ->  | S69: =IF('Bio Ass test Data'!S69='Bioavailability Assessment Tool'!S69,"",'Bio Ass test Data'!S69-'Bioavailability Assessment Tool'!S69) ->  | T69: =IF('Bio Ass test Data'!T69='Bioavailability Assessment Tool'!T69,"",'Bio Ass test Data'!T69-'Bioavailability Assessment Tool'!T69) ->  | U69: =IF('Bio Ass test Data'!U69='Bioavailability Assessment Tool'!U69,"",'Bio Ass test Data'!U69-'Bioavailability Assessment Tool'!U69) ->  | V69: =IF('Bio Ass test Data'!V69='Bioavailability Assessment Tool'!V69,"",'Bio Ass test Data'!V69-'Bioavailability Assessment Tool'!V69) ->  | W69: =IF('Bio Ass test Data'!W69='Bioavailability Assessment Tool'!W69,"",'Bio Ass test Data'!W69-'Bioavailability Assessment Tool'!W69) ->  | X69: =IF('Bio Ass test Data'!X69='Bioavailability Assessment Tool'!X69,"",'Bio Ass test Data'!X69-'Bioavailability Assessment Tool'!X69) ->  | Y69: =IF('Bio Ass test Data'!Y69='Bioavailability Assessment Tool'!Y69,"",'Bio Ass test Data'!Y69-'Bioavailability Assessment Tool'!Y69) ->  | Z69: =IF('Bio Ass test Data'!Z69='Bioavailability Assessment Tool'!Z69,"",'Bio Ass test Data'!Z69-'Bioavailability Assessment Tool'!Z69) ->  | AA69: =IF('Bio Ass test Data'!AA69='Bioavailability Assessment Tool'!AA69,"",'Bio Ass test Data'!AA69-'Bioavailability Assessment Tool'!AA69) ->  | AB69: =IF('Bio Ass test Data'!AB69='Bioavailability Assessment Tool'!AB69,"",'Bio Ass test Data'!AB69-'Bioavailability Assessment Tool'!AB69) -> 
B70: 66 | H70: 80 | J70: 7 | K70: 16 | L70: 60 | M70: =IF('Bio Ass test Data'!M70='Bioavailability Assessment Tool'!M70,"",'Bio Ass test Data'!M70-'Bioavailability Assessment Tool'!M70) ->  | N70: =IF('Bio Ass test Data'!N70='Bioavailability Assessment Tool'!N70,"",'Bio Ass test Data'!N70-'Bioavailability Assessment Tool'!N70) ->  | O70: =IF('Bio Ass test Data'!O70='Bioavailability Assessment Tool'!O70,"",'Bio Ass test Data'!O70-'Bioavailability Assessment Tool'!O70) ->  | P70: =IF('Bio Ass test Data'!P70='Bioavailability Assessment Tool'!P70,"",'Bio Ass test Data'!P70-'Bioavailability Assessment Tool'!P70) ->  | Q70: =IF('Bio Ass test Data'!Q70='Bioavailability Assessment Tool'!Q70,"",'Bio Ass test Data'!Q70-'Bioavailability Assessment Tool'!Q70) ->  | R70: =IF('Bio Ass test Data'!R70='Bioavailability Assessment Tool'!R70,"",'Bio Ass test Data'!R70-'Bioavailability Assessment Tool'!R70) ->  | S70: =IF('Bio Ass test Data'!S70='Bioavailability Assessment Tool'!S70,"",'Bio Ass test Data'!S70-'Bioavailability Assessment Tool'!S70) ->  | T70: =IF('Bio Ass test Data'!T70='Bioavailability Assessment Tool'!T70,"",'Bio Ass test Data'!T70-'Bioavailability Assessment Tool'!T70) ->  | U70: =IF('Bio Ass test Data'!U70='Bioavailability Assessment Tool'!U70,"",'Bio Ass test Data'!U70-'Bioavailability Assessment Tool'!U70) ->  | V70: =IF('Bio Ass test Data'!V70='Bioavailability Assessment Tool'!V70,"",'Bio Ass test Data'!V70-'Bioavailability Assessment Tool'!V70) ->  | W70: =IF('Bio Ass test Data'!W70='Bioavailability Assessment Tool'!W70,"",'Bio Ass test Data'!W70-'Bioavailability Assessment Tool'!W70) ->  | X70: =IF('Bio Ass test Data'!X70='Bioavailability Assessment Tool'!X70,"",'Bio Ass test Data'!X70-'Bioavailability Assessment Tool'!X70) ->  | Y70: =IF('Bio Ass test Data'!Y70='Bioavailability Assessment Tool'!Y70,"",'Bio Ass test Data'!Y70-'Bioavailability Assessment Tool'!Y70) ->  | Z70: =IF('Bio Ass test Data'!Z70='Bioavailability Assessment Tool'!Z70,"",'Bio Ass test Data'!Z70-'Bioavailability Assessment Tool'!Z70) ->  | AA70: =IF('Bio Ass test Data'!AA70='Bioavailability Assessment Tool'!AA70,"",'Bio Ass test Data'!AA70-'Bioavailability Assessment Tool'!AA70) ->  | AB70: =IF('Bio Ass test Data'!AB70='Bioavailability Assessment Tool'!AB70,"",'Bio Ass test Data'!AB70-'Bioavailability Assessment Tool'!AB70) -> 
B71: 67 | H71: 80 | J71: 7 | K71: 18 | L71: 60 | M71: =IF('Bio Ass test Data'!M71='Bioavailability Assessment Tool'!M71,"",'Bio Ass test Data'!M71-'Bioavailability Assessment Tool'!M71) ->  | N71: =IF('Bio Ass test Data'!N71='Bioavailability Assessment Tool'!N71,"",'Bio Ass test Data'!N71-'Bioavailability Assessment Tool'!N71) ->  | O71: =IF('Bio Ass test Data'!O71='Bioavailability Assessment Tool'!O71,"",'Bio Ass test Data'!O71-'Bioavailability Assessment Tool'!O71) ->  | P71: =IF('Bio Ass test Data'!P71='Bioavailability Assessment Tool'!P71,"",'Bio Ass test Data'!P71-'Bioavailability Assessment Tool'!P71) ->  | Q71: =IF('Bio Ass test Data'!Q71='Bioavailability Assessment Tool'!Q71,"",'Bio Ass test Data'!Q71-'Bioavailability Assessment Tool'!Q71) ->  | R71: =IF('Bio Ass test Data'!R71='Bioavailability Assessment Tool'!R71,"",'Bio Ass test Data'!R71-'Bioavailability Assessment Tool'!R71) ->  | S71: =IF('Bio Ass test Data'!S71='Bioavailability Assessment Tool'!S71,"",'Bio Ass test Data'!S71-'Bioavailability Assessment Tool'!S71) ->  | T71: =IF('Bio Ass test Data'!T71='Bioavailability Assessment Tool'!T71,"",'Bio Ass test Data'!T71-'Bioavailability Assessment Tool'!T71) ->  | U71: =IF('Bio Ass test Data'!U71='Bioavailability Assessment Tool'!U71,"",'Bio Ass test Data'!U71-'Bioavailability Assessment Tool'!U71) ->  | V71: =IF('Bio Ass test Data'!V71='Bioavailability Assessment Tool'!V71,"",'Bio Ass test Data'!V71-'Bioavailability Assessment Tool'!V71) ->  | W71: =IF('Bio Ass test Data'!W71='Bioavailability Assessment Tool'!W71,"",'Bio Ass test Data'!W71-'Bioavailability Assessment Tool'!W71) ->  | X71: =IF('Bio Ass test Data'!X71='Bioavailability Assessment Tool'!X71,"",'Bio Ass test Data'!X71-'Bioavailability Assessment Tool'!X71) ->  | Y71: =IF('Bio Ass test Data'!Y71='Bioavailability Assessment Tool'!Y71,"",'Bio Ass test Data'!Y71-'Bioavailability Assessment Tool'!Y71) ->  | Z71: =IF('Bio Ass test Data'!Z71='Bioavailability Assessment Tool'!Z71,"",'Bio Ass test Data'!Z71-'Bioavailability Assessment Tool'!Z71) ->  | AA71: =IF('Bio Ass test Data'!AA71='Bioavailability Assessment Tool'!AA71,"",'Bio Ass test Data'!AA71-'Bioavailability Assessment Tool'!AA71) ->  | AB71: =IF('Bio Ass test Data'!AB71='Bioavailability Assessment Tool'!AB71,"",'Bio Ass test Data'!AB71-'Bioavailability Assessment Tool'!AB71) -> 
B72: 68 | H72: 80 | J72: 7 | K72: 20 | L72: 60 | M72: =IF('Bio Ass test Data'!M72='Bioavailability Assessment Tool'!M72,"",'Bio Ass test Data'!M72-'Bioavailability Assessment Tool'!M72) ->  | N72: =IF('Bio Ass test Data'!N72='Bioavailability Assessment Tool'!N72,"",'Bio Ass test Data'!N72-'Bioavailability Assessment Tool'!N72) ->  | O72: =IF('Bio Ass test Data'!O72='Bioavailability Assessment Tool'!O72,"",'Bio Ass test Data'!O72-'Bioavailability Assessment Tool'!O72) ->  | P72: =IF('Bio Ass test Data'!P72='Bioavailability Assessment Tool'!P72,"",'Bio Ass test Data'!P72-'Bioavailability Assessment Tool'!P72) ->  | Q72: =IF('Bio Ass test Data'!Q72='Bioavailability Assessment Tool'!Q72,"",'Bio Ass test Data'!Q72-'Bioavailability Assessment Tool'!Q72) ->  | R72: =IF('Bio Ass test Data'!R72='Bioavailability Assessment Tool'!R72,"",'Bio Ass test Data'!R72-'Bioavailability Assessment Tool'!R72) ->  | S72: =IF('Bio Ass test Data'!S72='Bioavailability Assessment Tool'!S72,"",'Bio Ass test Data'!S72-'Bioavailability Assessment Tool'!S72) ->  | T72: =IF('Bio Ass test Data'!T72='Bioavailability Assessment Tool'!T72,"",'Bio Ass test Data'!T72-'Bioavailability Assessment Tool'!T72) ->  | U72: =IF('Bio Ass test Data'!U72='Bioavailability Assessment Tool'!U72,"",'Bio Ass test Data'!U72-'Bioavailability Assessment Tool'!U72) ->  | V72: =IF('Bio Ass test Data'!V72='Bioavailability Assessment Tool'!V72,"",'Bio Ass test Data'!V72-'Bioavailability Assessment Tool'!V72) ->  | W72: =IF('Bio Ass test Data'!W72='Bioavailability Assessment Tool'!W72,"",'Bio Ass test Data'!W72-'Bioavailability Assessment Tool'!W72) ->  | X72: =IF('Bio Ass test Data'!X72='Bioavailability Assessment Tool'!X72,"",'Bio Ass test Data'!X72-'Bioavailability Assessment Tool'!X72) ->  | Y72: =IF('Bio Ass test Data'!Y72='Bioavailability Assessment Tool'!Y72,"",'Bio Ass test Data'!Y72-'Bioavailability Assessment Tool'!Y72) ->  | Z72: =IF('Bio Ass test Data'!Z72='Bioavailability Assessment Tool'!Z72,"",'Bio Ass test Data'!Z72-'Bioavailability Assessment Tool'!Z72) ->  | AA72: =IF('Bio Ass test Data'!AA72='Bioavailability Assessment Tool'!AA72,"",'Bio Ass test Data'!AA72-'Bioavailability Assessment Tool'!AA72) ->  | AB72: =IF('Bio Ass test Data'!AB72='Bioavailability Assessment Tool'!AB72,"",'Bio Ass test Data'!AB72-'Bioavailability Assessment Tool'!AB72) -> 
B73: 69 | H73: 80 | J73: 7 | K73: 21 | L73: 60 | M73: =IF('Bio Ass test Data'!M73='Bioavailability Assessment Tool'!M73,"",'Bio Ass test Data'!M73-'Bioavailability Assessment Tool'!M73) ->  | N73: =IF('Bio Ass test Data'!N73='Bioavailability Assessment Tool'!N73,"",'Bio Ass test Data'!N73-'Bioavailability Assessment Tool'!N73) ->  | O73: =IF('Bio Ass test Data'!O73='Bioavailability Assessment Tool'!O73,"",'Bio Ass test Data'!O73-'Bioavailability Assessment Tool'!O73) ->  | P73: =IF('Bio Ass test Data'!P73='Bioavailability Assessment Tool'!P73,"",'Bio Ass test Data'!P73-'Bioavailability Assessment Tool'!P73) ->  | Q73: =IF('Bio Ass test Data'!Q73='Bioavailability Assessment Tool'!Q73,"",'Bio Ass test Data'!Q73-'Bioavailability Assessment Tool'!Q73) ->  | R73: =IF('Bio Ass test Data'!R73='Bioavailability Assessment Tool'!R73,"",'Bio Ass test Data'!R73-'Bioavailability Assessment Tool'!R73) ->  | S73: =IF('Bio Ass test Data'!S73='Bioavailability Assessment Tool'!S73,"",'Bio Ass test Data'!S73-'Bioavailability Assessment Tool'!S73) ->  | T73: =IF('Bio Ass test Data'!T73='Bioavailability Assessment Tool'!T73,"",'Bio Ass test Data'!T73-'Bioavailability Assessment Tool'!T73) ->  | U73: =IF('Bio Ass test Data'!U73='Bioavailability Assessment Tool'!U73,"",'Bio Ass test Data'!U73-'Bioavailability Assessment Tool'!U73) ->  | V73: =IF('Bio Ass test Data'!V73='Bioavailability Assessment Tool'!V73,"",'Bio Ass test Data'!V73-'Bioavailability Assessment Tool'!V73) ->  | W73: =IF('Bio Ass test Data'!W73='Bioavailability Assessment Tool'!W73,"",'Bio Ass test Data'!W73-'Bioavailability Assessment Tool'!W73) ->  | X73: =IF('Bio Ass test Data'!X73='Bioavailability Assessment Tool'!X73,"",'Bio Ass test Data'!X73-'Bioavailability Assessment Tool'!X73) ->  | Y73: =IF('Bio Ass test Data'!Y73='Bioavailability Assessment Tool'!Y73,"",'Bio Ass test Data'!Y73-'Bioavailability Assessment Tool'!Y73) ->  | Z73: =IF('Bio Ass test Data'!Z73='Bioavailability Assessment Tool'!Z73,"",'Bio Ass test Data'!Z73-'Bioavailability Assessment Tool'!Z73) ->  | AA73: =IF('Bio Ass test Data'!AA73='Bioavailability Assessment Tool'!AA73,"",'Bio Ass test Data'!AA73-'Bioavailability Assessment Tool'!AA73) ->  | AB73: =IF('Bio Ass test Data'!AB73='Bioavailability Assessment Tool'!AB73,"",'Bio Ass test Data'!AB73-'Bioavailability Assessment Tool'!AB73) -> 
B74: 70 | G74: 15 | J74: 7 | K74: 21 | L74: 60 | M74: =IF('Bio Ass test Data'!M74='Bioavailability Assessment Tool'!M74,"",'Bio Ass test Data'!M74-'Bioavailability Assessment Tool'!M74) ->  | N74: =IF('Bio Ass test Data'!N74='Bioavailability Assessment Tool'!N74,"",'Bio Ass test Data'!N74-'Bioavailability Assessment Tool'!N74) ->  | O74: =IF('Bio Ass test Data'!O74='Bioavailability Assessment Tool'!O74,"",'Bio Ass test Data'!O74-'Bioavailability Assessment Tool'!O74) ->  | P74: =IF('Bio Ass test Data'!P74='Bioavailability Assessment Tool'!P74,"",'Bio Ass test Data'!P74-'Bioavailability Assessment Tool'!P74) ->  | Q74: =IF('Bio Ass test Data'!Q74='Bioavailability Assessment Tool'!Q74,"",'Bio Ass test Data'!Q74-'Bioavailability Assessment Tool'!Q74) ->  | R74: =IF('Bio Ass test Data'!R74='Bioavailability Assessment Tool'!R74,"",'Bio Ass test Data'!R74-'Bioavailability Assessment Tool'!R74) ->  | S74: =IF('Bio Ass test Data'!S74='Bioavailability Assessment Tool'!S74,"",'Bio Ass test Data'!S74-'Bioavailability Assessment Tool'!S74) ->  | T74: =IF('Bio Ass test Data'!T74='Bioavailability Assessment Tool'!T74,"",'Bio Ass test Data'!T74-'Bioavailability Assessment Tool'!T74) ->  | U74: =IF('Bio Ass test Data'!U74='Bioavailability Assessment Tool'!U74,"",'Bio Ass test Data'!U74-'Bioavailability Assessment Tool'!U74) ->  | V74: =IF('Bio Ass test Data'!V74='Bioavailability Assessment Tool'!V74,"",'Bio Ass test Data'!V74-'Bioavailability Assessment Tool'!V74) ->  | W74: =IF('Bio Ass test Data'!W74='Bioavailability Assessment Tool'!W74,"",'Bio Ass test Data'!W74-'Bioavailability Assessment Tool'!W74) ->  | X74: =IF('Bio Ass test Data'!X74='Bioavailability Assessment Tool'!X74,"",'Bio Ass test Data'!X74-'Bioavailability Assessment Tool'!X74) ->  | Y74: =IF('Bio Ass test Data'!Y74='Bioavailability Assessment Tool'!Y74,"",'Bio Ass test Data'!Y74-'Bioavailability Assessment Tool'!Y74) ->  | Z74: =IF('Bio Ass test Data'!Z74='Bioavailability Assessment Tool'!Z74,"",'Bio Ass test Data'!Z74-'Bioavailability Assessment Tool'!Z74) ->  | AA74: =IF('Bio Ass test Data'!AA74='Bioavailability Assessment Tool'!AA74,"",'Bio Ass test Data'!AA74-'Bioavailability Assessment Tool'!AA74) ->  | AB74: =IF('Bio Ass test Data'!AB74='Bioavailability Assessment Tool'!AB74,"",'Bio Ass test Data'!AB74-'Bioavailability Assessment Tool'!AB74) -> 
B75: 71 | G75: 25 | J75: 7 | K75: 10 | L75: 60 | M75: =IF('Bio Ass test Data'!M75='Bioavailability Assessment Tool'!M75,"",'Bio Ass test Data'!M75-'Bioavailability Assessment Tool'!M75) ->  | N75: =IF('Bio Ass test Data'!N75='Bioavailability Assessment Tool'!N75,"",'Bio Ass test Data'!N75-'Bioavailability Assessment Tool'!N75) ->  | O75: =IF('Bio Ass test Data'!O75='Bioavailability Assessment Tool'!O75,"",'Bio Ass test Data'!O75-'Bioavailability Assessment Tool'!O75) ->  | P75: =IF('Bio Ass test Data'!P75='Bioavailability Assessment Tool'!P75,"",'Bio Ass test Data'!P75-'Bioavailability Assessment Tool'!P75) ->  | Q75: =IF('Bio Ass test Data'!Q75='Bioavailability Assessment Tool'!Q75,"",'Bio Ass test Data'!Q75-'Bioavailability Assessment Tool'!Q75) ->  | R75: =IF('Bio Ass test Data'!R75='Bioavailability Assessment Tool'!R75,"",'Bio Ass test Data'!R75-'Bioavailability Assessment Tool'!R75) ->  | S75: =IF('Bio Ass test Data'!S75='Bioavailability Assessment Tool'!S75,"",'Bio Ass test Data'!S75-'Bioavailability Assessment Tool'!S75) ->  | T75: =IF('Bio Ass test Data'!T75='Bioavailability Assessment Tool'!T75,"",'Bio Ass test Data'!T75-'Bioavailability Assessment Tool'!T75) ->  | U75: =IF('Bio Ass test Data'!U75='Bioavailability Assessment Tool'!U75,"",'Bio Ass test Data'!U75-'Bioavailability Assessment Tool'!U75) ->  | V75: =IF('Bio Ass test Data'!V75='Bioavailability Assessment Tool'!V75,"",'Bio Ass test Data'!V75-'Bioavailability Assessment Tool'!V75) ->  | W75: =IF('Bio Ass test Data'!W75='Bioavailability Assessment Tool'!W75,"",'Bio Ass test Data'!W75-'Bioavailability Assessment Tool'!W75) ->  | X75: =IF('Bio Ass test Data'!X75='Bioavailability Assessment Tool'!X75,"",'Bio Ass test Data'!X75-'Bioavailability Assessment Tool'!X75) ->  | Y75: =IF('Bio Ass test Data'!Y75='Bioavailability Assessment Tool'!Y75,"",'Bio Ass test Data'!Y75-'Bioavailability Assessment Tool'!Y75) ->  | Z75: =IF('Bio Ass test Data'!Z75='Bioavailability Assessment Tool'!Z75,"",'Bio Ass test Data'!Z75-'Bioavailability Assessment Tool'!Z75) ->  | AA75: =IF('Bio Ass test Data'!AA75='Bioavailability Assessment Tool'!AA75,"",'Bio Ass test Data'!AA75-'Bioavailability Assessment Tool'!AA75) ->  | AB75: =IF('Bio Ass test Data'!AB75='Bioavailability Assessment Tool'!AB75,"",'Bio Ass test Data'!AB75-'Bioavailability Assessment Tool'!AB75) -> 
B76: 72 | G76: 40 | J76: 6.6 | K76: 10 | L76: 60 | M76: =IF('Bio Ass test Data'!M76='Bioavailability Assessment Tool'!M76,"",'Bio Ass test Data'!M76-'Bioavailability Assessment Tool'!M76) ->  | N76: =IF('Bio Ass test Data'!N76='Bioavailability Assessment Tool'!N76,"",'Bio Ass test Data'!N76-'Bioavailability Assessment Tool'!N76) ->  | O76: =IF('Bio Ass test Data'!O76='Bioavailability Assessment Tool'!O76,"",'Bio Ass test Data'!O76-'Bioavailability Assessment Tool'!O76) ->  | P76: =IF('Bio Ass test Data'!P76='Bioavailability Assessment Tool'!P76,"",'Bio Ass test Data'!P76-'Bioavailability Assessment Tool'!P76) ->  | Q76: =IF('Bio Ass test Data'!Q76='Bioavailability Assessment Tool'!Q76,"",'Bio Ass test Data'!Q76-'Bioavailability Assessment Tool'!Q76) ->  | R76: =IF('Bio Ass test Data'!R76='Bioavailability Assessment Tool'!R76,"",'Bio Ass test Data'!R76-'Bioavailability Assessment Tool'!R76) ->  | S76: =IF('Bio Ass test Data'!S76='Bioavailability Assessment Tool'!S76,"",'Bio Ass test Data'!S76-'Bioavailability Assessment Tool'!S76) ->  | T76: =IF('Bio Ass test Data'!T76='Bioavailability Assessment Tool'!T76,"",'Bio Ass test Data'!T76-'Bioavailability Assessment Tool'!T76) ->  | U76: =IF('Bio Ass test Data'!U76='Bioavailability Assessment Tool'!U76,"",'Bio Ass test Data'!U76-'Bioavailability Assessment Tool'!U76) ->  | V76: =IF('Bio Ass test Data'!V76='Bioavailability Assessment Tool'!V76,"",'Bio Ass test Data'!V76-'Bioavailability Assessment Tool'!V76) ->  | W76: =IF('Bio Ass test Data'!W76='Bioavailability Assessment Tool'!W76,"",'Bio Ass test Data'!W76-'Bioavailability Assessment Tool'!W76) ->  | X76: =IF('Bio Ass test Data'!X76='Bioavailability Assessment Tool'!X76,"",'Bio Ass test Data'!X76-'Bioavailability Assessment Tool'!X76) ->  | Y76: =IF('Bio Ass test Data'!Y76='Bioavailability Assessment Tool'!Y76,"",'Bio Ass test Data'!Y76-'Bioavailability Assessment Tool'!Y76) ->  | Z76: =IF('Bio Ass test Data'!Z76='Bioavailability Assessment Tool'!Z76,"",'Bio Ass test Data'!Z76-'Bioavailability Assessment Tool'!Z76) ->  | AA76: =IF('Bio Ass test Data'!AA76='Bioavailability Assessment Tool'!AA76,"",'Bio Ass test Data'!AA76-'Bioavailability Assessment Tool'!AA76) ->  | AB76: =IF('Bio Ass test Data'!AB76='Bioavailability Assessment Tool'!AB76,"",'Bio Ass test Data'!AB76-'Bioavailability Assessment Tool'!AB76) -> 

Sheet Bioavailability Assessment Tool (hidden)
B3: INPUT DATA | M3: RESULTS (Copper) | Q3: RESULTS (Zinc) | U3: RESULTS (Mn) | Y3: RESULTS (Ni)
A4: =SUM(ModelConstantsNi!D$7:D$26*(6^ModelConstantsNi!E$7:E$26)*(20^ModelConstantsNi!F$7:F$26)*(88^ModelConstantsNi!G$7:G$26)) -> 42.52237823 | B4: ID | C4: Location | D4: Waterbody | E4: Date | F4: Measured Cu Concentration (dissolved) (µg l-1) | G4: Measured Zn Concentration (dissolved) (µg l-1) | H4: Measured Mn Concentration (dissolved) (µg l-1) | I4: Measured Ni Concentration (dissolved) (µg l-1) | J4: pH | K4: DOC | L4: Ca | M4: Site-specific PNEC Dissolved Copper (µg l-1) | N4: BioF | O4: Bioavailable Copper Concentration (µg l-1) | P4: Risk Characterisation Ratio | Q4: Site-specific PNEC Dissolved Zinc (µg l-1) | R4: BioF | S4: Bioavailable Zinc Concentration (µg l-1) | T4: Risk Characterisation Ratio | U4: Site-specific PNEC Dissolved Manganese (µg l-1) | V4: BioF | W4: Bioavailable Manganese Concentration (µg l-1) | X4: Risk Characterisation Ratio | Y4: Site-specific PNEC Dissolved Nickel (µg l-1) | Z4: BioF | AA4: Bioavailable Nickel Concentration (µg l-1) | AB4: Risk Characterisation Ratio
B5: 1 | C5: Sizewell - Average values from baseline surface water data | E5: 2024-02-27 | J5: 8.02 | K5: 10.36 | L5: 144.3 | M5: 28.62628995 | N5: 0.03493292361 | Q5: 48.08405504 | R5: 0.2266863723 | U5: 211.213862 | V5: 0.5823481415 | Y5: 16.85608235 | Z5: 0.2373030647
C6: (G3-G7) used for pH and calcium with a median value adopted
C7: for DOC.

Sheet IntermediateResultsCu (hidden)
A4: ID | B4: Constant (a) | C4: Constant (b) | D4: Constant (c ) | E4: Constant (d) | F4: Constant (e) | G4: Constant (f) | H4: Constant (g)
A5: 1
A6: 2
A7: 3
A8: 4
A9: 5
A10: 6
A11: 7
A12: 8
A13: 9
A14: 10
A15: 11
A16: 12
A17: 13
A18: 14
A19: 15
A20: 16
A21: 17
A22: 18
A23: 19
A24: 20
A25: 21
A26: 22
A27: 23
A28: 24
A29: 25
A30: 26
A31: 27
A32: 28
A33: 29
A34: 30
A35: 31
A36: 32
A37: 33
A38: 34
A39: 35
A40: 36
A41: 37
A42: 38
A43: 39
A44: 40
A45: 41
A46: 42
A47: 43
A48: 44
A49: 45
A50: 46
A51: 47
A52: 48
A53: 49
A54: 50
A55: 51
A56: 52
A57: 53
A58: 54
A59: 55
A60: 56
A61: 57
A62: 58
A63: 59
A64: 60
A65: 61
A66: 62
A67: 63
A68: 64
A69: 65
A70: 66
A71: 67
A72: 68
A73: 69
A74: 70
A75: 71
A76: 72
A77: 73
A78: 74
A79: 75
A80: 76
A81: 77
A82: 78
A83: 79
A84: 80
A85: 81
A86: 82
A87: 83
A88: 84
A89: 85
A90: 86
A91: 87
A92: 88
A93: 89
A94: 90
A95: 91
A96: 92
A97: 93
A98: 94
A99: 95
A100: 96
A101: 97
A102: 98
A103: 99
A104: 100
A105: 101
A106: 102
A107: 103
A108: 104
A109: 105
A110: 106
A111: 107
A112: 108
A113: 109
A114: 110
A115: 111
A116: 112
A117: 113
A118: 114
A119: 115
A120: 116
A121: 117
A122: 118
A123: 119
A124: 120
A125: 121
A126: 122
A127: 123
A128: 124
A129: 125
A130: 126
A131: 127
A132: 128
A133: 129
A134: 130
A135: 131
A136: 132
A137: 133
A138: 134
A139: 135
A140: 136
A141: 137
A142: 138
A143: 139
A144: 140
A145: 141
A146: 142
A147: 143
A148: 144
A149: 145
A150: 146
A151: 147
A152: 148
A153: 149
A154: 150
A155: 151
A156: 152
A157: 153
A158: 154
A159: 155
A160: 156
A161: 157
A162: 158
A163: 159
A164: 160
A165: 161
A166: 162
A167: 163
A168: 164
A169: 165
A170: 166
A171: 167
A172: 168
A173: 169
A174: 170
A175: 171
A176: 172
A177: 173
A178: 174
A179: 175
A180: 176
A181: 177
A182: 178
A183: 179
A184: 180
A185: 181
A186: 182
A187: 183
A188: 184
A189: 185
A190: 186
A191: 187
A192: 188
A193: 189
A194: 190
A195: 191
A196: 192
A197: 193
A198: 194
A199: 195
A200: 196
A201: 197
A202: 198
A203: 199
... 801 more rows

Sheet IntermediateResultsZn (hidden)
A4: ID | B4: Constant (a) | C4: Constant (b) | D4: Constant (c ) | E4: Constant (d) | F4: Constant (e) | G4: Constant (f) | H4: Constant (g) | I4: Constant (h)
A5: 1
A6: 2
A7: 3
A8: 4
A9: 5
A10: 6
A11: 7
A12: 8
A13: 9
A14: 10
A15: 11
A16: 12
A17: 13
A18: 14
A19: 15
A20: 16
A21: 17
A22: 18
A23: 19
A24: 20
A25: 21
A26: 22
A27: 23
A28: 24
A29: 25
A30: 26
A31: 27
A32: 28
A33: 29
A34: 30
A35: 31
A36: 32
A37: 33
A38: 34
A39: 35
A40: 36
A41: 37
A42: 38
A43: 39
A44: 40
A45: 41
A46: 42
A47: 43
A48: 44
A49: 45
A50: 46
A51: 47
A52: 48
A53: 49
A54: 50
A55: 51
A56: 52
A57: 53
A58: 54
A59: 55
A60: 56
A61: 57
A62: 58
A63: 59
A64: 60
A65: 61
A66: 62
A67: 63
A68: 64
A69: 65
A70: 66
A71: 67
A72: 68
A73: 69
A74: 70
A75: 71
A76: 72
A77: 73
A78: 74
A79: 75
A80: 76
A81: 77
A82: 78
A83: 79
A84: 80
A85: 81
A86: 82
A87: 83
A88: 84
A89: 85
A90: 86
A91: 87
A92: 88
A93: 89
A94: 90
A95: 91
A96: 92
A97: 93
A98: 94
A99: 95
A100: 96
A101: 97
A102: 98
A103: 99
A104: 100
A105: 101
A106: 102
A107: 103
A108: 104
A109: 105
A110: 106
A111: 107
A112: 108
A113: 109
A114: 110
A115: 111
A116: 112
A117: 113
A118: 114
A119: 115
A120: 116
A121: 117
A122: 118
A123: 119
A124: 120
A125: 121
A126: 122
A127: 123
A128: 124
A129: 125
A130: 126
A131: 127
A132: 128
A133: 129
A134: 130
A135: 131
A136: 132
A137: 133
A138: 134
A139: 135
A140: 136
A141: 137
A142: 138
A143: 139
A144: 140
A145: 141
A146: 142
A147: 143
A148: 144
A149: 145
A150: 146
A151: 147
A152: 148
A153: 149
A154: 150
A155: 151
A156: 152
A157: 153
A158: 154
A159: 155
A160: 156
A161: 157
A162: 158
A163: 159
A164: 160
A165: 161
A166: 162
A167: 163
A168: 164
A169: 165
A170: 166
A171: 167
A172: 168
A173: 169
A174: 170
A175: 171
A176: 172
A177: 173
A178: 174
A179: 175
A180: 176
A181: 177
A182: 178
A183: 179
A184: 180
A185: 181
A186: 182
A187: 183
A188: 184
A189: 185
A190: 186
A191: 187
A192: 188
A193: 189
A194: 190
A195: 191
A196: 192
A197: 193
A198: 194
A199: 195
A200: 196
A201: 197
A202: 198
A203: 199
... 801 more rows

Sheet IntermediateResultsMn (hidden)
A4: ID | B4: Constant (a) | C4: Constant (b) | D4: Constant (c ) | E4: Constant (d) | F4: Constant (e) | G4: Constant (f) | H4: Constant (g) | I4: Constant (h) | J4: Constant (i) | K4: Constant (j)
A5: 1 | B5: =MnConA6 -> -2.18318 | C5: =MnConB6 -> 0.41708 | D5: =MnConC6 -> 1.408673 | E5: =MnConD6 -> 1.330849 | F5: =MnConE6 -> 0.89606 | G5: =MnConF6 -> 0.882292 | H5: =MnConG6 -> 0.536758 | I5: =MnConH6 -> -0.14474 | J5: =MnConI6 -> -0.84075 | K5: =MnConJ6 -> 6.468994

Sheet IntermediateResultsNi (hidden)
A4: ID | B4: Constant (a) | C4: Constant (b) | D4: Constant (c ) | E4: Constant (d) | F4: Constant (e) | G4: Constant (f) | H4: Constant (g) | I4: Constant (h) | J4: Constant (i) | K4: Constant (j)
A5: 1
A6: 2
A7: 3
A8: 4
A9: 5
A10: 6
A11: 7
A12: 8
A13: 9
A14: 10
A15: 11
A16: 12
A17: 13
A18: 14
A19: 15
A20: 16
A21: 17
A22: 18
A23: 19
A24: 20
A25: 21
A26: 22

Sheet ModelConstantsCu (hidden)
B3: Formula | D3: Constants
B4: Hover here to view | D4: ID | E4: Name | F4: Value
D5: 0 | E5: m_433 | F5: 1.87055339e-09
D6: 1 | E6: m_432 | F6: -2.167029985e-06
D7: 2 | E7: m_431 | F7: 0.0006246362855
D8: 3 | E8: m_430 | F8: -0.003584852451
D9: 4 | E9: m_423 | F9: -2.023629666e-08
D10: 5 | E10: m_422 | F10: 2.488583123e-05
D11: 6 | E11: m_421 | F11: -0.007599749391
D12: 7 | E12: m_420 | F12: 0.039364235
D13: 8 | E13: m_413 | F13: 5.582123574e-08
D14: 9 | E14: m_412 | F14: -6.992641307e-05
D15: 10 | E15: m_411 | F15: 0.02318594861
D16: 11 | E16: m_410 | F16: 0.9227680755
D17: 12 | E17: m_403 | F17: -3.512524532e-08
D18: 13 | E18: m_402 | F18: 3.837858764e-05
D19: 14 | E19: m_401 | F19: -0.01133463447
D20: 15 | E20: m_400 | F20: -0.01581435187
D21: 16 | E21: m_333 | F21: -5.608663767e-08
D22: 17 | E22: m_332 | F22: 6.436880895e-05
D23: 18 | E23: m_331 | F23: -0.01839644306
D24: 19 | E24: m_330 | F24: 0.1088768373
D25: 20 | E25: m_323 | F25: 6.105747938e-07
D26: 21 | E26: m_322 | F26: -0.0007420645587
D27: 22 | E27: m_321 | F27: 0.2243946924
D28: 23 | E28: m_320 | F28: -1.23931363
D29: 24 | E29: m_313 | F29: -1.685680776e-06
D30: 25 | E30: m_312 | F30: 0.002083251662
D31: 26 | E31: m_311 | F31: -0.6822259761
D32: 27 | E32: m_310 | F32: -26.83254449
D33: 28 | E33: m_303 | F33: 1.054232567e-06
D34: 29 | E34: m_302 | F34: -0.001143543918
D35: 30 | E35: m_301 | F35: 0.3349105567
D36: 31 | E36: m_300 | F36: 0.370326899
D37: 32 | E37: m_233 | F37: 6.286262099e-07
D38: 33 | E38: m_232 | F38: -0.0007140301983
D39: 34 | E39: m_231 | F39: 0.2021683107
D40: 35 | E40: m_230 | F40: -1.231176718
D41: 36 | E41: m_223 | F41: -6.894153947e-06
D42: 37 | E42: m_222 | F42: 0.008268508181
D43: 38 | E43: m_221 | F43: -2.472929808
D44: 39 | E44: m_220 | F44: 14.4875587
D45: 40 | E45: m_213 | F45: 1.904305251e-05
D46: 41 | E46: m_212 | F46: -0.02318406083
D47: 42 | E47: m_211 | F47: 7.488330746
D48: 43 | E48: m_210 | F48: 289.3155872
D49: 44 | E49: m_203 | F49: -1.181680085e-05
D50: 45 | E50: m_202 | F50: 0.01271563539
D51: 46 | E51: m_201 | F51: -3.690052145
D52: 47 | E52: m_200 | F52: -2.704342193
D53: 48 | E53: m_133 | F53: -3.120068599e-06
D54: 49 | E54: m_132 | F54: 0.003504874243
D55: 50 | E55: m_131 | F55: -0.9824483565
D56: 51 | E56: m_130 | F56: 6.138681109
D57: 52 | E57: m_123 | F57: 3.450767642e-05
D58: 53 | E58: m_122 | F58: -0.04079366358
D59: 54 | E59: m_121 | F59: 12.05454683
D60: 55 | E60: m_120 | F60: -74.49007205
D61: 56 | E61: m_113 | F61: -9.536002648e-05
D62: 57 | E62: m_112 | F62: 0.1142249112
D63: 58 | E63: m_111 | F63: -36.34255001
D64: 59 | E64: m_110 | F64: -1370.119455
D65: 60 | E65: m_103 | F65: 5.861737359e-05
D66: 61 | E66: m_102 | F66: -0.06253148012
D67: 62 | E67: m_101 | F67: 17.96806083
D68: 63 | E68: m_100 | F68: 4.944799176
D69: 64 | E69: m_033 | F69: 5.779639128e-06
D70: 65 | E70: m_032 | F70: -0.006418885758
D71: 66 | E71: m_031 | F71: 1.780675172
D72: 67 | E72: m_030 | F72: -11.38164188
D73: 68 | E73: m_023 | F73: -6.45084804e-05
D74: 69 | E74: m_022 | F74: 0.07512633522
D75: 70 | E75: m_021 | F75: -21.92173528
D76: 71 | E76: m_020 | F76: 142.1264296
D77: 72 | E77: m_013 | F77: 0.0001783212537
D78: 73 | E78: m_012 | F78: -0.2100463802
D79: 74 | E79: m_011 | F79: 65.78385432
D80: 75 | E80: m_010 | F80: 2406.14637
D81: 76 | E81: m_003 | F81: -0.0001084771059
D82: 77 | E82: m_002 | F82: 0.1146838997
D83: 78 | E83: m_001 | F83: -32.61694946
D84: 79 | E84: m_000 | F84: 8.792403768

Sheet ModelConstantsZn (hidden)
B3: In the Equation
B4: PNEC = ((A * pH + (B)) *LN (Ca) + (C * pH + D)) * DOC^2 + ((E * pH + (F)) * LN (Ca) + (G * pH + (H))) * DOC + ((I * pH + J) * LN (Ca) + (K * pH + (L)))
B7: A | D7: 0.004876
B8: B | D8: -0.03508
B9: C | D9: -0.00622
B10: D | D10: 0.06395
B11: E | D11: 0.089024
B12: F | D12: -1.23195
B13: G | D13: 1.111861
B14: H | D14: -3.36775
B15: I | D15: -0.76055
B16: J | D16: 9.307831
B17: K | D17: -0.1765
B18: L | D18: -0.63864

Sheet ModelConstantsNi (hidden)
B3: In the Equation
B4: fnCuEstimatedPNEC =A * pH ^ 3 +B * pH ^ 2 * DOC +C * pH ^ 2 * Ca + D * pH ^ 2 + E * pH * DOC ^ 2 + F * pH * DOC * Ca + G * pH * DOC + H * pH * Ca ^ 2 + I * pH * Ca + J * pH + K * DOC ^ 3 + L* DOC ^ 2 * Ca + M* DOC ^ 2 + N * DOC * Ca ^ 2 + O * DOC * Ca + P * DOC +Q * Ca ^ 3 + R * Ca ^ 2+ S* Ca + T
A5: =SUM(ModelConstantsNi!D$7:D$26*(6^ModelConstantsNi!E$7:E$26)*(0.5^ModelConstantsNi!F$7:F$26)*(2^ModelConstantsNi!G$7:G$26)) -> 11.86542165
E6: ph | F6: doc | G6: Ca
B7: A | D7: -0.5696798232 | E7: 3 | F7: 0 | G7: 0
B8: B | D8: -0.5464422209 | E8: 2 | F8: 1 | G8: 0
B9: C | D9: 0.01787357421 | E9: 2 | F9: 0 | G9: 1
B10: D | D10: 13.91391705 | E10: 2 | F10: 0 | G10: 0
B11: E | D11: 0.0006774787931 | E11: 1 | F11: 2 | G11: 0
B12: F | D12: -0.002351339971 | E12: 1 | F12: 1 | G12: 1
B13: G | D13: 8.131268331 | E13: 1 | F13: 1 | G13: 0
B14: H | D14: 0.0007437877986 | E14: 1 | F14: 0 | G14: 2
B15: I | D15: -0.4089038592 | E15: 1 | F15: 0 | G15: 1
B16: J | D16: -114.8417145 | E16: 1 | F16: 0 | G16: 0
B17: K | D17: 2.07135901e-05 | E17: 0 | F17: 3 | G17: 0
B18: L | D18: 2.635565717e-05 | E18: 0 | F18: 2 | G18: 1
B19: M | D19: -0.007688573336 | E19: 0 | F19: 2 | G19: 0
B20: N | D20: 0.0003892055325 | E20: 0 | F20: 1 | G20: 2
B21: O | D21: -0.02453316469 | E21: 0 | F21: 1 | G21: 1
B22: P | D22: -28.07545757 | E22: 0 | F22: 1 | G22: 0
B23: Q | D23: -6.004509455e-05 | E23: 0 | F23: 0 | G23: 3
B24: R | D24: 0.001245761344 | E24: 0 | F24: 0 | G24: 2
B25: S | D25: 1.986171719 | E25: 0 | F25: 0 | G25: 1
B26: T | D26: 322.2094256 | E26: 0 | F26: 0 | G26: 0

Sheet ModelConstantsMn (hidden)
B4: (a) in formula (((a*DOC)+b)/((c*(pH^2))-(e*pH)+e)+(f*(Ca^g))+h | E4: (i) in formula (10^((i*pH)+j))
B5: Calcium band | C5: Fish Equation Constants | E5: Calcium band | F5: Algal Equation Constants
B6: 1 to <6 | C6: -2.18728 | E6: 1 to <6 | F6: -0.88247
B7: 6 to <24 | C7: -2.18616 | E7: 6 to <24 | F7: -0.88247
B8: 24 to <70 | C8: -2.18592 | E8: 24 to <70 | F8: -0.88247
B9: 70 to < 90 | C9: -2.18499 | E9: 70 to < 90 | F9: -0.84075
B10: 90 to <105 | C10: -2.18607 | E10: 90 to <105 | F10: -0.84075
B11: 105 to < 150 | C11: -2.18318 | E11: 105 to < 150 | F11: -0.84075
B12: 150 to < 170 | C12: -2.18281 | E12: 150 to < 170 | F12: -0.84075
B13: 170 to < 190 | C13: -2.18743 | E13: 170 to < 190 | F13: -0.84075
B14: 190 to 200 | C14: -2.18802 | E14: 190 to 200 | F14: -0.84075
B16: (b) in formula (((a*DOC)+b)/((c*(pH^2))-(e*pH)+e)+(f*(Ca^g))+h | E16: (j) in formula (10^((i*pH)+j))
B17: Calcium band | C17: Fish Equation Constants | E17: Calcium band | F17: Algal Equation Constants
B18: 1 to <6 | C18: 0.408877 | E18: 1 to <6 | F18: 6.532939
B19: 6 to <24 | C19: 0.411108 | E19: 6 to <24 | F19: 6.532939
B20: 24 to <70 | C20: 0.411597 | E20: 24 to <70 | F20: 6.532939
B21: 70 to < 90 | C21: 0.413449 | E21: 70 to < 90 | F21: 6.468994
B22: 90 to <105 | C22: 0.411291 | E22: 90 to <105 | F22: 6.468994
B23: 105 to < 150 | C23: 0.41708 | E23: 105 to < 150 | F23: 6.468994
B24: 150 to < 170 | C24: 0.417806 | E24: 150 to < 170 | F24: 6.468994
B25: 170 to < 190 | C25: 0.408572 | E25: 170 to < 190 | F25: 6.468994
B26: 190 to 200 | C26: 0.407404 | E26: 190 to 200 | F26: 6.468994
B28: (c) in formula (((a*DOC)+b)/((c*(pH^2))-(e*pH)+e)+(f*(Ca^g))+h
B29: Calcium band | C29: Fish Equation Constants
B30: 1 to <6 | C30: 1.403976
B31: 6 to <24 | C31: 1.405252
B32: 24 to <70 | C32: 1.405533
B33: 70 to < 90 | C33: 1.40658
B34: 90 to <105 | C34: 1.405355
B35: 105 to < 150 | C35: 1.408673
B36: 150 to < 170 | C36: 1.40919
B37: 170 to < 190 | C37: 1.403861
B38: 190 to 200 | C38: 1.403173
B40: (d) in formula (((a*DOC)+b)/((c*(pH^2))-(e*pH)+e)+(f*(Ca^g))+h
B41: Calcium band | C41: Fish Equation Constants
B42: 1 to <6 | C42: 1.331716
B43: 6 to <24 | C43: 1.331485
B44: 24 to <70 | C44: 1.331431
B45: 70 to < 90 | C45: 1.331252
B46: 90 to <105 | C46: 1.331466
B47: 105 to < 150 | C47: 1.330849
B48: 150 to < 170 | C48: 1.330654
B49: 170 to < 190 | C49: 1.33167
B50: 190 to 200 | C50: 1.33181
B52: (e) in formula (((a*DOC)+b)/((c*(pH^2))-(e*pH)+e)+(f*(Ca^g))+h
B53: Calcium band | C53: Fish Equation Constants
B54: 1 to <6 | C54: 0.8959
B55: 6 to <24 | C55: 0.895942
B56: 24 to <70 | C56: 0.895952
B57: 70 to < 90 | C57: 0.895983
B58: 90 to <105 | C58: 0.895946
B59: 105 to < 150 | C59: 0.89606
B60: 150 to < 170 | C60: 0.896109
B61: 170 to < 190 | C61: 0.895918
B62: 190 to 200 | C62: 0.89589
B64: (f) in formula (((a*DOC)+b)/((c*(pH^2))-(e*pH)+e)+(f*(Ca^g))+h
B65: Calcium band | C65: Fish Equation Constants
B66: 1 to <6 | C66: 0.677892
B67: 6 to <24 | C67: 0.719202
B68: 24 to <70 | C68: 0.770551
B69: 70 to < 90 | C69: 0.841977
B70: 90 to <105 | C70: 0.764989
B71: 105 to < 150 | C71: 0.882292
B72: 150 to < 170 | C72: 0.630159
B73: 170 to < 190 | C73: 0.69047
B74: 190 to 200 | C74: 0.584398
B76: (g) in formula (((a*DOC)+b)/((c*(pH^2))-(e*pH)+e)+(f*(Ca^g))+h
B77: Calcium band | C77: Fish Equation Constants
B78: 1 to <6 | C78: 0.581969
B79: 6 to <24 | C79: 0.495558
B80: 24 to <70 | C80: 0.577982
B81: 70 to < 90 | C81: 0.542869
B82: 90 to <105 | C82: 0.581969
B83: 105 to < 150 | C83: 0.536758
B84: 150 to < 170 | C84: 0.604949
B85: 170 to < 190 | C85: 0.596158
B86: 190 to 200 | C86: 0.637124
B88: (h) in formula (((a*DOC)+b)/((c*(pH^2))-(e*pH)+e)+(f*(Ca^g))+h
B89: Calcium band | C89: Fish Equation Constants
B90: 1 to <6 | C90: -0.42118
B91: 6 to <24 | C91: -0.34069
B92: 24 to <70 | C92: -0.32659
B93: 70 to < 90 | C93: -0.24797
B94: 90 to <105 | C94: -0.33408
B95: 105 to < 150 | C95: -0.14474
B96: 150 to < 170 | C96: -0.24642
B97: 170 to < 190 | C97: -0.51852
B98: 190 to 200 | C98: -0.53743

Sheet TestDataZn (hidden)
A1: EXPECTED RESULTS | X1: ACTUAL RESULTS | AG1: COMPARISON
A2: Location | B2: WB | C2: Date | D2: CuMeas | E2: ZnMeas | F2: MnMeas | G2: pH | H2: DOC | I2: Ca | J2: PNECBasic | K2: PNECBasicTrimmed | L2: PNECDefault | M2: PNECDefaultTrimmed | N2: BioFBasic | O2: BioFDefault | P2: Scale | Q2: BioFExtended | R2: PNECExtended | S2: PNECExtendedTrimmed | T2: PNEC Displayed | U2: BioFDisplayed | V2: Bioavailable Cu | W2: RCR | X2: Measured Copper Concentration (dissolved) (µg l-1) | Y2: Measured Zinc Concentration (dissolved) (µg l-1) | Z2: pH | AA2: DOC | AB2: Ca | AC2: Estimated PNEC (µg l-1) | AD2: BioF | AE2: Bioavailable Zinc Concentration (µg l-1) | AF2: Risk Characterisation Ratio | AG2: PNEC | AH2: BioF | AI2: BioM | AJ2: RCR | AK2: Constant A | AL2: Constant B | AM2: Constant C | AN2: Constant D | AO2: Constant E | AP2: Constant F | AQ2: Constant G | AR2: Constant H
G3: 1 | H3: 1 | I3: 5 | J3: =((0.004876*G3+(-0.03508))*LN(I3)+(-0.00622*G3+0.06395))*H3^2+((0.089024*G3+(-1.23195))*LN(I3)+(1.111861*G3+(-3.36775)))*H3+((-0.76055*G3+9.307831)*LN(I3)+(-0.1765*G3+(-0.63864))) -> 8.854939191 | K3: =IF(J3<ZnThreshold,ZnThreshold,J3) -> 10.9 | N3: =ZnThreshold/K3 -> 1 | T3: =K3 -> 10.9 | U3: =N3 -> 1 | Z3: 1 | AA3: 1 | AB3: 5 | AC3: 10.9 | AD3: 1 | AG3: =IF(AC3<>T3,"mismatch","") ->  | AH3: =IF(AD3<>U3,"mismatch","") ->  | AI3: =IF(AE3<>V3,"mismatch","") ->  | AJ3: =IF(AF3<>W3,"mismatch","") -> 
G4: 4 | H4: 1 | I4: 5 | J4: =((0.004876*G4+(-0.03508))*LN(I4)+(-0.00622*G4+0.06395))*H4^2+((0.089024*G4+(-1.23195))*LN(I4)+(1.111861*G4+(-3.36775)))*H4+((-0.76055*G4+9.307831)*LN(I4)+(-0.1765*G4+(-0.63864))) -> 8.423566838 | K4: 10.9 | N4: 1 | T4: =K4 -> 10.9 | U4: =N4 -> 1 | Z4: 4 | AA4: 1 | AB4: 5 | AC4: 10.9 | AD4: 1
G5: 8.1 | H5: 1 | I5: 5 | J5: 7.834024623 | K5: 10.9 | N5: 1 | T5: 10.9 | U5: 1 | Z5: 8.1 | AA5: 1 | AB5: 5 | AC5: 10.9 | AD5: 1
G6: 9.1 | H6: 1 | I6: 5 | J6: 7.690233838 | K6: 10.9 | N6: 1 | T6: 10.9 | U6: 1 | Z6: 9.1 | AA6: 1 | AB6: 5 | AC6: 10.9 | AD6: 1
G7: 1 | H7: 1 | I7: 31 | J7: 22.30944118 | K7: 22.30944118 | N7: 0.488582386 | T7: 22.30944118 | U7: 0.488582386 | Z7: 1 | AA7: 1 | AB7: 31 | AC7: 22.30944118 | AD7: 0.488582386
G8: 4 | H8: 1 | I8: 31 | J8: 18.22906147 | K8: 18.22906147 | N8: 0.5979463078 | T8: 18.22906147 | U8: 0.5979463078 | Z8: 4 | AA8: 1 | AB8: 31 | AC8: 18.22906147 | AD8: 0.5979463078
G9: 8.1 | H9: 1 | I9: 31 | J9: 12.65254253 | K9: 12.65254253 | N9: 0.8614869282 | T9: 12.65254253 | U9: 0.8614869282 | Z9: 8.1 | AA9: 1 | AB9: 31 | AC9: 12.65254253 | AD9: 0.8614869282
G10: 9.1 | H10: 1 | I10: 31 | J10: 11.29241596 | K10: 11.29241596 | N10: 0.9652496009 | T10: 11.29241596 | U10: 0.9652496009 | Z10: 9.1 | AA10: 1 | AB10: 31 | AC10: 11.29241596 | AD10: 0.9652496009
G11: 1 | H11: 1.1 | I11: 5 | J11: 8.447318341 | K11: 10.9 | N11: 1 | T11: 10.9 | U11: 1 | Z11: 1 | AA11: 1.1 | AB11: 5 | AC11: 10.9 | AD11: 1
G12: 4 | H12: 1.1 | I12: 5 | J12: 8.393513268 | K12: 10.9 | N12: 1 | T12: 10.9 | U12: 1 | Z12: 4 | AA12: 1.1 | AB12: 5 | AC12: 10.9 | AD12: 1
G13: 8.1 | H13: 1.1 | I13: 5 | J13: 8.319979669 | K13: 10.9 | N13: 1 | T13: 10.9 | U13: 1 | Z13: 8.1 | AA13: 1.1 | AB13: 5 | AC13: 10.9 | AD13: 1
G14: 9.1 | H14: 1.1 | I14: 5 | J14: 8.302044645 | K14: 10.9 | N14: 1 | T14: 10.9 | U14: 1 | Z14: 9.1 | AA14: 1.1 | AB14: 5 | AC14: 10.9 | AD14: 1
G15: 1 | H15: 1.1 | I15: 31 | J15: 21.68171502 | K15: 21.68171502 | N15: 0.5027277588 | T15: 21.68171502 | U15: 0.5027277588 | Z15: 1 | AA15: 1.1 | AB15: 31 | AC15: 21.68171502 | AD15: 0.5027277588
G16: 4 | H16: 1.1 | I16: 31 | J16: 18.03323599 | K16: 18.03323599 | N16: 0.6044394919 | T16: 18.03323599 | U16: 0.6044394919 | Z16: 4 | AA16: 1.1 | AB16: 31 | AC16: 18.03323599 | AD16: 0.6044394919
G17: 8.1 | H17: 1.1 | I17: 31 | J17: 13.04698132 | K17: 13.04698132 | N17: 0.8354422939 | T17: 13.04698132 | U17: 0.8354422939 | Z17: 8.1 | AA17: 1.1 | AB17: 31 | AC17: 13.04698132 | AD17: 0.8354422939
G18: 9.1 | H18: 1.1 | I18: 31 | J18: 11.83082164 | K18: 11.83082164 | N18: 0.9213223166 | T18: 11.83082164 | U18: 0.9213223166 | Z18: 9.1 | AA18: 1.1 | AB18: 31 | AC18: 11.83082164 | AD18: 0.9213223166
G19: 1 | H19: 3.1 | I19: 5 | J19: 0.3331991829 | K19: 10.9 | N19: 1 | T19: 10.9 | U19: 1 | Z19: 1 | AA19: 3.1 | AB19: 5 | AC19: 10.9 | AD19: 1
G20: 4 | H20: 3.1 | I20: 5 | J20: 7.85124772 | K20: 10.9 | N20: 1 | T20: 10.9 | U20: 1 | Z20: 4 | AA20: 3.1 | AB20: 5 | AC20: 10.9 | AD20: 1
G21: 8.1 | H21: 3.1 | I21: 5 | J21: 18.12591405 | K21: 18.12591405 | N21: 0.601348984 | T21: 18.12591405 | U21: 0.601348984 | Z21: 8.1 | AA21: 3.1 | AB21: 5 | AC21: 18.12591405 | AD21: 0.601348984
G22: 9.1 | H22: 3.1 | I22: 5 | J22: 20.63193023 | K22: 20.63193023 | N22: 0.5283073313 | T22: 20.63193023 | U22: 0.5283073313 | Z22: 9.1 | AA22: 3.1 | AB22: 5 | AC22: 20.63193023 | AD22: 0.5283073313
G23: 1 | H23: 3.1 | I23: 31 | J23: 8.934033245 | K23: 10.9 | N23: 1 | T23: 10.9 | U23: 1 | Z23: 1 | AA23: 3.1 | AB23: 31 | AC23: 10.9 | AD23: 1
G24: 4 | H24: 3.1 | I24: 31 | J24: 14.05617174 | K24: 14.05617174 | N24: 0.7754600755 | T24: 14.05617174 | U24: 0.7754600755 | Z24: 4 | AA24: 3.1 | AB24: 31 | AC24: 14.05617174 | AD24: 0.7754600755
G25: 8.1 | H25: 3.1 | I25: 31 | J25: 21.05642769 | K25: 21.05642769 | N25: 0.5176566587 | T25: 21.05642769 | U25: 0.5176566587 | Z25: 8.1 | AA25: 3.1 | AB25: 31 | AC25: 21.05642769 | AD25: 0.5176566587
G26: 9.1 | H26: 3.1 | I26: 31 | J26: 22.76380718 | K26: 22.76380718 | N26: 0.4788302726 | T26: 22.76380718 | U26: 0.4788302726 | Z26: 9.1 | AA26: 3.1 | AB26: 31 | AC26: 22.76380718 | AD26: 0.4788302726
G27: 1 | H27: 10.1 | I27: 5 | J27: -27.49175002 | K27: 10.9 | N27: 1 | T27: 10.9 | U27: 1 | Z27: 1 | AA27: 10.1 | AB27: 5 | AC27: 10.9 | AD27: 1
G28: 4 | H28: 10.1 | I28: 5 | J28: 6.835406192 | K28: 10.9 | N28: 1 | T28: 10.9 | U28: 1 | Z28: 4 | AA28: 10.1 | AB28: 5 | AC28: 10.9 | AD28: 1
G29: 8.1 | H29: 10.1 | I29: 5 | J29: 53.74918635 | K29: 53.74918635 | N29: 0.2027937675 | T29: 53.74918635 | U29: 0.2027937675 | Z29: 8.1 | AA29: 10.1 | AB29: 5 | AC29: 53.74918635 | AD29: 0.2027937675
G30: 9.1 | H30: 10.1 | I30: 5 | J30: 65.19157175 | K30: 65.19157175 | N30: 0.1671995276 | T30: 65.19157175 | U30: 0.1671995276 | Z30: 9.1 | AA30: 10.1 | AB30: 5 | AC30: 65.19157175 | AD30: 0.1671995276
G31: 1 | H31: 10.1 | I31: 31 | J31: -38.58023239 | K31: 10.9 | N31: 1 | T31: 10.9 | U31: 1 | Z31: 1 | AA31: 10.1 | AB31: 31 | AC31: 10.9 | AD31: 1
G32: 4 | H32: 10.1 | I32: 31 | J32: -0.7718735678 | K32: 10.9 | N32: 1 | T32: 10.9 | U32: 1 | Z32: 4 | AA32: 10.1 | AB32: 31 | AC32: 10.9 | AD32: 1
G33: 8.1 | H33: 10.1 | I33: 31 | J33: 50.89955015 | K33: 50.89955015 | N33: 0.2141472757 | T33: 50.89955015 | U33: 0.2141472757 | Z33: 8.1 | AA33: 10.1 | AB33: 31 | AC33: 50.89955015 | AD33: 0.2141472757
G34: 9.1 | H34: 10.1 | I34: 31 | J34: 63.50233643 | K34: 63.50233643 | N34: 0.1716472277 | T34: 63.50233643 | U34: 0.1716472277 | Z34: 9.1 | AA34: 10.1 | AB34: 31 | AC34: 63.50233643 | AD34: 0.1716472277
G35: 1 | H35: 30.1 | I35: 5 | J35: -102.0675947 | K35: =IF(J35<ZnThreshold,ZnThreshold,J35) -> 10.9 | N35: =ZnThreshold/K35 -> 1 | T35: 10.9 | U35: 1 | Z35: 1 | AA35: 30.1 | AB35: 5 | AC35: 10.9 | AD35: 1 | AG35: =IF(AC35<>T35,"mismatch","") ->  | AH35: =IF(AD35<>U35,"mismatch","") ->  | AI35: =IF(AE35<>V35,"mismatch","") ->  | AJ35: =IF(AF35<>W35,"mismatch","") -> 
G36: 4 | H36: 30.1 | I36: 5 | J36: 11.49375517 | K36: 11.49375517 | N36: 0.9483410637 | T36: 11.49375517 | U36: 0.9483410637 | Z36: 4 | AA36: 30.1 | AB36: 5 | AC36: 11.49375517 | AD36: 0.9483410637
G37: 8.1 | H37: 30.1 | I37: 5 | J37: 166.6942667 | K37: 166.6942667 | N37: 0.06538917154 | T37: 166.6942667 | U37: 0.06538917154 | Z37: 8.1 | AA37: 30.1 | AB37: 5 | AC37: 166.6942667 | AD37: 0.06538917154
G38: 9.1 | H38: 30.1 | I38: 5 | J38: 204.54805 | K38: 204.54805 | N38: 0.05328821272 | T38: 204.54805 | U38: 0.05328821272 | Z38: 9.1 | AA38: 30.1 | AB38: 5 | AC38: 204.54805 | AD38: 0.05328821272
G39: 1 | H39: 30.1 | I39: 31 | J39: -199.1699578 | K39: 10.9 | N39: 1 | T39: 10.9 | U39: 1 | Z39: 1 | AA39: 30.1 | AB39: 31 | AC39: 10.9 | AD39: 1
G40: 4 | H40: 30.1 | I40: 31 | J40: -50.92332104 | K40: 10.9 | N40: 1 | T40: 10.9 | U40: 1 | Z40: 4 | AA40: 30.1 | AB40: 31 | AC40: 10.9 | AD40: 1
G41: 8.1 | H41: 30.1 | I41: 31 | J41: 151.6804159 | K41: 151.6804159 | N41: 0.07186161733 | T41: 151.6804159 | U41: 0.07186161733 | Z41: 8.1 | AA41: 30.1 | AB41: 31 | AC41: 151.6804159 | AD41: 0.07186161733
G42: 9.1 | H42: 30.1 | I42: 31 | J42: 201.0959614 | K42: 201.0959614 | N42: 0.05420297813 | T42: 201.0959614 | U42: 0.05420297813 | Z42: 9.1 | AA42: 30.1 | AB42: 31 | AC42: 201.0959614 | AD42: 0.05420297813
E43: 15 | G43: 1 | H43: 1 | I43: 5 | J43: 8.854939191 | K43: 10.9 | N43: 1 | T43: 10.9 | U43: 1 | V43: =E43*U43 -> 15 | W43: =V43/ZnThreshold -> 1.376146789 | Y43: 15 | Z43: 1 | AA43: 1 | AB43: 5 | AC43: 10.9 | AD43: 1 | AE43: 15 | AF43: 1.376146789
E44: 15 | G44: 4 | H44: 1 | I44: 5 | J44: 8.423566838 | K44: 10.9 | N44: 1 | T44: 10.9 | U44: 1 | V44: 15 | W44: 1.376146789 | Y44: 15 | Z44: 4 | AA44: 1 | AB44: 5 | AC44: 10.9 | AD44: 1 | AE44: 15 | AF44: 1.376146789
E45: 15 | G45: 8.1 | H45: 1 | I45: 5 | J45: 7.834024623 | K45: 10.9 | N45: 1 | T45: 10.9 | U45: 1 | V45: 15 | W45: 1.376146789 | Y45: 15 | Z45: 8.1 | AA45: 1 | AB45: 5 | AC45: 10.9 | AD45: 1 | AE45: 15 | AF45: 1.376146789
E46: 15 | G46: 9.1 | H46: 1 | I46: 5 | J46: 7.690233838 | K46: 10.9 | N46: 1 | T46: 10.9 | U46: 1 | V46: 15 | W46: 1.376146789 | Y46: 15 | Z46: 9.1 | AA46: 1 | AB46: 5 | AC46: 10.9 | AD46: 1 | AE46: 15 | AF46: 1.376146789
E47: 15 | G47: 1 | H47: 1 | I47: 31 | J47: 22.30944118 | K47: 22.30944118 | N47: 0.488582386 | T47: 22.30944118 | U47: 0.488582386 | V47: 7.328735789 | W47: 0.6723610816 | Y47: 15 | Z47: 1 | AA47: 1 | AB47: 31 | AC47: 22.30944118 | AD47: 0.488582386 | AE47: 7.328735789 | AF47: 0.6723610816
E48: 15 | G48: 4 | H48: 1 | I48: 31 | J48: 18.22906147 | K48: 18.22906147 | N48: 0.5979463078 | T48: 18.22906147 | U48: 0.5979463078 | V48: 8.969194617 | W48: 0.8228618915 | Y48: 15 | Z48: 4 | AA48: 1 | AB48: 31 | AC48: 18.22906147 | AD48: 0.5979463078 | AE48: 8.969194617 | AF48: 0.8228618915
E49: 15 | G49: 8.1 | H49: 1 | I49: 31 | J49: 12.65254253 | K49: 12.65254253 | N49: 0.8614869282 | T49: 12.65254253 | U49: 0.8614869282 | V49: 12.92230392 | W49: 1.18553247 | Y49: 15 | Z49: 8.1 | AA49: 1 | AB49: 31 | AC49: 12.65254253 | AD49: 0.8614869282 | AE49: 12.92230392 | AF49: 1.18553247
E50: 15 | G50: 9.1 | H50: 1 | I50: 31 | J50: 11.29241596 | K50: 11.29241596 | N50: 0.9652496009 | T50: 11.29241596 | U50: 0.9652496009 | V50: 14.47874401 | W50: 1.328325139 | Y50: 15 | Z50: 9.1 | AA50: 1 | AB50: 31 | AC50: 11.29241596 | AD50: 0.9652496009 | AE50: 14.47874401 | AF50: 1.328325139
E51: 15 | G51: 1 | H51: 1.1 | I51: 5 | J51: 8.447318341 | K51: 10.9 | N51: 1 | T51: 10.9 | U51: 1 | V51: 15 | W51: 1.376146789 | Y51: 15 | Z51: 1 | AA51: 1.1 | AB51: 5 | AC51: 10.9 | AD51: 1 | AE51: 15 | AF51: 1.376146789
E52: 15 | G52: 4 | H52: 1.1 | I52: 5 | J52: 8.393513268 | K52: 10.9 | N52: 1 | T52: 10.9 | U52: 1 | V52: 15 | W52: 1.376146789 | Y52: 15 | Z52: 4 | AA52: 1.1 | AB52: 5 | AC52: 10.9 | AD52: 1 | AE52: 15 | AF52: 1.376146789
E53: 15 | G53: 8.1 | H53: 1.1 | I53: 5 | J53: 8.319979669 | K53: 10.9 | N53: 1 | T53: 10.9 | U53: 1 | V53: 15 | W53: 1.376146789 | Y53: 15 | Z53: 8.1 | AA53: 1.1 | AB53: 5 | AC53: 10.9 | AD53: 1 | AE53: 15 | AF53: 1.376146789
E54: 15 | G54: 9.1 | H54: 1.1 | I54: 5 | J54: 8.302044645 | K54: 10.9 | N54: 1 | T54: 10.9 | U54: 1 | V54: 15 | W54: 1.376146789 | Y54: 15 | Z54: 9.1 | AA54: 1.1 | AB54: 5 | AC54: 10.9 | AD54: 1 | AE54: 15 | AF54: 1.376146789
E55: 15 | G55: 1 | H55: 1.1 | I55: 31 | J55: 21.68171502 | K55: 21.68171502 | N55: 0.5027277588 | T55: 21.68171502 | U55: 0.5027277588 | V55: 7.540916383 | W55: 0.6918271911 | Y55: 15 | Z55: 1 | AA55: 1.1 | AB55: 31 | AC55: 21.68171502 | AD55: 0.5027277588 | AE55: 7.540916383 | AF55: 0.6918271911
E56: 15 | G56: 4 | H56: 1.1 | I56: 31 | J56: 18.03323599 | K56: 18.03323599 | N56: 0.6044394919 | T56: 18.03323599 | U56: 0.6044394919 | V56: 9.066592379 | W56: 0.831797466 | Y56: 15 | Z56: 4 | AA56: 1.1 | AB56: 31 | AC56: 18.03323599 | AD56: 0.6044394919 | AE56: 9.066592379 | AF56: 0.831797466
E57: 15 | G57: 8.1 | H57: 1.1 | I57: 31 | J57: 13.04698132 | K57: 13.04698132 | N57: 0.8354422939 | T57: 13.04698132 | U57: 0.8354422939 | V57: 12.53163441 | W57: 1.14969123 | Y57: 15 | Z57: 8.1 | AA57: 1.1 | AB57: 31 | AC57: 13.04698132 | AD57: 0.8354422939 | AE57: 12.53163441 | AF57: 1.14969123
E58: 15 | G58: 9.1 | H58: 1.1 | I58: 31 | J58: 11.83082164 | K58: 11.83082164 | N58: 0.9213223166 | T58: 11.83082164 | U58: 0.9213223166 | V58: 13.81983475 | W58: 1.267874748 | Y58: 15 | Z58: 9.1 | AA58: 1.1 | AB58: 31 | AC58: 11.83082164 | AD58: 0.9213223166 | AE58: 13.81983475 | AF58: 1.267874748
E59: 15 | G59: 1 | H59: 3.1 | I59: 5 | J59: 0.3331991829 | K59: 10.9 | N59: 1 | T59: 10.9 | U59: 1 | V59: 15 | W59: 1.376146789 | Y59: 15 | Z59: 1 | AA59: 3.1 | AB59: 5 | AC59: 10.9 | AD59: 1 | AE59: 15 | AF59: 1.376146789
E60: 15 | G60: 4 | H60: 3.1 | I60: 5 | J60: 7.85124772 | K60: 10.9 | N60: 1 | T60: 10.9 | U60: 1 | V60: 15 | W60: 1.376146789 | Y60: 15 | Z60: 4 | AA60: 3.1 | AB60: 5 | AC60: 10.9 | AD60: 1 | AE60: 15 | AF60: 1.376146789
E61: 15 | G61: 8.1 | H61: 3.1 | I61: 5 | J61: 18.12591405 | K61: 18.12591405 | N61: 0.601348984 | T61: 18.12591405 | U61: 0.601348984 | V61: 9.02023476 | W61: 0.8275444734 | Y61: 15 | Z61: 8.1 | AA61: 3.1 | AB61: 5 | AC61: 18.12591405 | AD61: 0.601348984 | AE61: 9.02023476 | AF61: 0.8275444734
E62: 15 | G62: 9.1 | H62: 3.1 | I62: 5 | J62: 20.63193023 | K62: 20.63193023 | N62: 0.5283073313 | T62: 20.63193023 | U62: 0.5283073313 | V62: 7.924609969 | W62: 0.7270284375 | Y62: 15 | Z62: 9.1 | AA62: 3.1 | AB62: 5 | AC62: 20.63193023 | AD62: 0.5283073313 | AE62: 7.924609969 | AF62: 0.7270284375
E63: 15 | G63: 1 | H63: 3.1 | I63: 31 | J63: 8.934033245 | K63: 10.9 | N63: 1 | T63: 10.9 | U63: 1 | V63: 15 | W63: 1.376146789 | Y63: 15 | Z63: 1 | AA63: 3.1 | AB63: 31 | AC63: 10.9 | AD63: 1 | AE63: 15 | AF63: 1.376146789
E64: 15 | G64: 4 | H64: 3.1 | I64: 31 | J64: 14.05617174 | K64: 14.05617174 | N64: 0.7754600755 | T64: 14.05617174 | U64: 0.7754600755 | V64: 11.63190113 | W64: 1.067146893 | Y64: 15 | Z64: 4 | AA64: 3.1 | AB64: 31 | AC64: 14.05617174 | AD64: 0.7754600755 | AE64: 11.63190113 | AF64: 1.067146893
E65: 15 | G65: 8.1 | H65: 3.1 | I65: 31 | J65: 21.05642769 | K65: 21.05642769 | N65: 0.5176566587 | T65: 21.05642769 | U65: 0.5176566587 | V65: 7.764849881 | W65: 0.7123715487 | Y65: 15 | Z65: 8.1 | AA65: 3.1 | AB65: 31 | AC65: 21.05642769 | AD65: 0.5176566587 | AE65: 7.764849881 | AF65: 0.7123715487
E66: 15 | G66: 9.1 | H66: 3.1 | I66: 31 | J66: 22.76380718 | K66: 22.76380718 | N66: 0.4788302726 | T66: 22.76380718 | U66: 0.4788302726 | V66: 7.182454089 | W66: 0.6589407421 | Y66: 15 | Z66: 9.1 | AA66: 3.1 | AB66: 31 | AC66: 22.76380718 | AD66: 0.4788302726 | AE66: 7.182454089 | AF66: 0.6589407421
E67: 15 | G67: 1 | H67: 10.1 | I67: 5 | J67: -27.49175002 | K67: =IF(J67<ZnThreshold,ZnThreshold,J67) -> 10.9 | N67: =ZnThreshold/K67 -> 1 | T67: 10.9 | U67: 1 | V67: 15 | W67: 1.376146789 | Y67: 15 | Z67: 1 | AA67: 10.1 | AB67: 5 | AC67: 10.9 | AD67: 1 | AE67: 15 | AF67: 1.376146789 | AG67: =IF(AC67<>T67,"mismatch","") ->  | AH67: =IF(AD67<>U67,"mismatch","") ->  | AI67: =IF(AE67<>V67,"mismatch","") ->  | AJ67: =IF(AF67<>W67,"mismatch","") -> 
E68: 15 | G68: 4 | H68: 10.1 | I68: 5 | J68: =((0.004876*G68+(-0.03508))*LN(I68)+(-0.00622*G68+0.06395))*H68^2+((0.089024*G68+(-1.23195))*LN(I68)+(1.111861*G68+(-3.36775)))*H68+((-0.76055*G68+9.307831)*LN(I68)+(-0.1765*G68+(-0.63864))) -> 6.835406192 | K68: 10.9 | N68: 1 | T68: =K68 -> 10.9 | U68: =N68 -> 1 | V68: 15 | W68: 1.376146789 | Y68: 15 | Z68: 4 | AA68: 10.1 | AB68: 5 | AC68: 10.9 | AD68: 1 | AE68: 15 | AF68: 1.376146789
E69: 15 | G69: 8.1 | H69: 10.1 | I69: 5 | J69: 53.74918635 | K69: 53.74918635 | N69: 0.2027937675 | T69: 53.74918635 | U69: 0.2027937675 | V69: 3.041906513 | W69: 0.279073992 | Y69: 15 | Z69: 8.1 | AA69: 10.1 | AB69: 5 | AC69: 53.74918635 | AD69: 0.2027937675 | AE69: 3.041906513 | AF69: 0.279073992
E70: 15 | G70: 9.1 | H70: 10.1 | I70: 5 | J70: 65.19157175 | K70: 65.19157175 | N70: 0.1671995276 | T70: 65.19157175 | U70: 0.1671995276 | V70: 2.507992914 | W70: 0.230091093 | Y70: 15 | Z70: 9.1 | AA70: 10.1 | AB70: 5 | AC70: 65.19157175 | AD70: 0.1671995276 | AE70: 2.507992914 | AF70: 0.230091093
E71: 15 | G71: 1 | H71: 10.1 | I71: 31 | J71: -38.58023239 | K71: 10.9 | N71: 1 | T71: 10.9 | U71: 1 | V71: 15 | W71: 1.376146789 | Y71: 15 | Z71: 1 | AA71: 10.1 | AB71: 31 | AC71: 10.9 | AD71: 1 | AE71: 15 | AF71: 1.376146789
E72: 15 | G72: 4 | H72: 10.1 | I72: 31 | J72: -0.7718735678 | K72: 10.9 | N72: 1 | T72: 10.9 | U72: 1 | V72: 15 | W72: 1.376146789 | Y72: 15 | Z72: 4 | AA72: 10.1 | AB72: 31 | AC72: 10.9 | AD72: 1 | AE72: 15 | AF72: 1.376146789
E73: 15 | G73: 8.1 | H73: 10.1 | I73: 31 | J73: 50.89955015 | K73: 50.89955015 | N73: 0.2141472757 | T73: 50.89955015 | U73: 0.2141472757 | V73: 3.212209136 | W73: 0.2946980858 | Y73: 15 | Z73: 8.1 | AA73: 10.1 | AB73: 31 | AC73: 50.89955015 | AD73: 0.2141472757 | AE73: 3.212209136 | AF73: 0.2946980858
E74: 15 | G74: 9.1 | H74: 10.1 | I74: 31 | J74: 63.50233643 | K74: 63.50233643 | N74: 0.1716472277 | T74: 63.50233643 | U74: 0.1716472277 | V74: 2.574708415 | W74: 0.2362117812 | Y74: 15 | Z74: 9.1 | AA74: 10.1 | AB74: 31 | AC74: 63.50233643 | AD74: 0.1716472277 | AE74: 2.574708415 | AF74: 0.2362117812
E75: 15 | G75: 1 | H75: 30.1 | I75: 5 | J75: -102.0675947 | K75: 10.9 | N75: 1 | T75: 10.9 | U75: 1 | V75: 15 | W75: 1.376146789 | Y75: 15 | Z75: 1 | AA75: 30.1 | AB75: 5 | AC75: 10.9 | AD75: 1 | AE75: 15 | AF75: 1.376146789
E76: 15 | G76: 4 | H76: 30.1 | I76: 5 | J76: 11.49375517 | K76: 11.49375517 | N76: 0.9483410637 | T76: 11.49375517 | U76: 0.9483410637 | V76: 14.22511596 | W76: 1.30505651 | Y76: 15 | Z76: 4 | AA76: 30.1 | AB76: 5 | AC76: 11.49375517 | AD76: 0.9483410637 | AE76: 14.22511596 | AF76: 1.30505651
E77: 15 | G77: 8.1 | H77: 30.1 | I77: 5 | J77: 166.6942667 | K77: 166.6942667 | N77: 0.06538917154 | T77: 166.6942667 | U77: 0.06538917154 | V77: 0.980837573 | W77: 0.08998509844 | Y77: 15 | Z77: 8.1 | AA77: 30.1 | AB77: 5 | AC77: 166.6942667 | AD77: 0.06538917154 | AE77: 0.980837573 | AF77: 0.08998509844
E78: 15 | G78: 9.1 | H78: 30.1 | I78: 5 | J78: 204.54805 | K78: 204.54805 | N78: 0.05328821272 | T78: 204.54805 | U78: 0.05328821272 | V78: 0.7993231907 | W78: 0.07333240282 | Y78: 15 | Z78: 9.1 | AA78: 30.1 | AB78: 5 | AC78: 204.54805 | AD78: 0.05328821272 | AE78: 0.7993231907 | AF78: 0.07333240282
E79: 15 | G79: 1 | H79: 30.1 | I79: 31 | J79: -199.1699578 | K79: 10.9 | N79: 1 | T79: 10.9 | U79: 1 | V79: 15 | W79: 1.376146789 | Y79: 15 | Z79: 1 | AA79: 30.1 | AB79: 31 | AC79: 10.9 | AD79: 1 | AE79: 15 | AF79: 1.376146789
E80: 15 | G80: 4 | H80: 30.1 | I80: 31 | J80: -50.92332104 | K80: 10.9 | N80: 1 | T80: 10.9 | U80: 1 | V80: 15 | W80: 1.376146789 | Y80: 15 | Z80: 4 | AA80: 30.1 | AB80: 31 | AC80: 10.9 | AD80: 1 | AE80: 15 | AF80: 1.376146789
E81: 15 | G81: 8.1 | H81: 30.1 | I81: 31 | J81: 151.6804159 | K81: 151.6804159 | N81: 0.07186161733 | T81: 151.6804159 | U81: 0.07186161733 | V81: 1.07792426 | W81: 0.09889213393 | Y81: 15 | Z81: 8.1 | AA81: 30.1 | AB81: 31 | AC81: 151.6804159 | AD81: 0.07186161733 | AE81: 1.07792426 | AF81: 0.09889213393
E82: 15 | G82: 9.1 | H82: 30.1 | I82: 31 | J82: 201.0959614 | K82: 201.0959614 | N82: 0.05420297813 | T82: 201.0959614 | U82: 0.05420297813 | V82: 0.813044672 | W82: 0.07459125431 | Y82: 15 | Z82: 9.1 | AA82: 30.1 | AB82: 31 | AC82: 201.0959614 | AD82: 0.05420297813 | AE82: 0.813044672 | AF82: 0.07459125431

Sheet TestDataMn (hidden)
A1: EXPECTED RESULTS | AO1: COMPARISON
A2: Location | B2: WB | C2: Date | D2: CuMeas | E2: ZnMeas | F2: Mn Meas | G2: pH | H2: DOC | I2: Ca | J2: EC10BasicFish | K2: EC10BasicAlgae | L2: EC10BasicFishTrimmed | M2: EC10BasicAlgaeTrimmed | N2: BioFBasicFish | O2: BioFBasicAlgae | P2: BioFBasicFishTrimmed | Q2: BioFBasicAlgaeTrimmed | R2: EC10DefaultCaFish | S2: EC10DefaultCaAlgae | T2: EC10DefaultCaFishTrimmed | U2: EC10DefaultCaAlgaeTrimmed | V2: BioFDefaultCaFish | W2: BioFDefaultCaAlgae | X2: BioFDefaultCaFishTrimmed | Y2: BioFDefaultCaAlgaeTrimmed | Z2: BioFSelected | AA2: PNECSelected | AB2: PNECTrimmed | AC2: PNEC Displayed | AD2: BioFDisplayed | AE2: Bioavailable Mn | AF2: RCR | AG2: Measured Mn Concentration (dissolved) (µg l-1) | AH2: pH | AI2: DOC | AJ2: Ca | AK2: Estimated PNEC (µg l-1) | AL2: BioF | AM2: Bioavailable Mn Concentration (µg l-1) | AN2: Risk Characterisation Ratio | AO2: PNEC | AP2: BioF | AQ2: BioM | AR2: RCR | AS2: Constant A | AT2: Constant B | AU2: Constant C | AV2: Constant D | AW2: Constant E | AX2: Constant F | AY2: Constant G | AZ2: Constant H | BA2: Constant I | BB2: Constant J
G3: 7 | H3: 15 | I3: 0.5 | R3: =((($AS3 * $H3) + $AT3) / (($AU3 * ($G3 ^ 2)) - ($AV3 * $G3) + $AW3)) + ($AX3 * (1 ^ $AY3)) + $AZ3 -> -0.2799952102 | S3: =10 ^ ((BA3 * G3) + BB3) -> 2.268031072 | T3: =IF(R3<MnFishRef, MnFishRef, R3) -> 0.426 | U3: =IF(S3<MnAlgalRef, MnAlgalRef, S3) -> 2.268031072 | V3: =MnFishRef/T3 -> 1 | W3: =MnAlgalRef/U3 -> 0.1366824308 | X3: =IF(V3>1,1,V3) -> 1 | Y3: =IF(W3>1,1,W3) -> 0.1366824308 | Z3: =IF(X3>Y3,X3,Y3) -> 1 | AA3: =MnThreshold/Z3 -> 123 | AB3: =IF(AA3<=MnThreshold, MnThreshold, AA3) -> 123 | AC3: =AB3 -> 123 | AD3: =Z3 -> 1 | AH3: 7 | AI3: 15 | AJ3: 0.5 | AK3: 123 | AL3: 1 | AO3: =IF(AK3<>AC3,"mismatch","") ->  | AP3: =IF(AL3<>AD3,"mismatch","") ->  | AQ3: =IF(AM3<>AE3,"mismatch","") ->  | AR3: =IF(AN3<>AF3,"mismatch","") ->  | AS3: =MnConA1 -> -2.18728 | AT3: =MnConB1 -> 0.408877 | AU3: =MnConC1 -> 1.403976 | AV3: =MnConD1 -> 1.331716 | AW3: =MnConE1 -> 0.8959 | AX3: =MnConF1 -> 0.677892 | AY3: =MnConG1 -> 0.581969 | AZ3: =MnConH1 -> -0.42118 | BA3: =MnConI1 -> -0.88247 | BB3: =MnConJ1 -> 6.532939
G4: 7 | H4: 15 | I4: 2 | J4: =((($AS4 * $H4) + $AT4) / (($AU4 * ($G4 ^ 2)) - ($AV4 * $G4) + $AW4)) + ($AX4 * ($I4 ^ $AY4)) + $AZ4 -> 0.05684310286 | K4: =10 ^ ((BA4 * G4) + BB4) -> 2.268031072 | L4: =IF(J4<MnFishRef, MnFishRef, J4) -> 0.426 | M4: =IF(K4<MnAlgalRef, MnAlgalRef, K4) -> 2.268031072 | N4: =MnFishRef/L4 -> 1 | O4: =MnAlgalRef/M4 -> 0.1366824308 | P4: =IF(N4>1,1,N4) -> 1 | Q4: =IF(O4>1,1,O4) -> 0.1366824308 | Z4: =IF(P4>Q4,P4,Q4) -> 1 | AA4: 123 | AB4: 123 | AC4: =AB4 -> 123 | AD4: =Z4 -> 1 | AH4: 7 | AI4: 15 | AJ4: 2 | AK4: 123 | AL4: 1 | AS4: =MnConA1 -> -2.18728 | AT4: =MnConB1 -> 0.408877 | AU4: =MnConC1 -> 1.403976 | AV4: =MnConD1 -> 1.331716 | AW4: =MnConE1 -> 0.8959 | AX4: =MnConF1 -> 0.677892 | AY4: =MnConG1 -> 0.581969 | AZ4: =MnConH1 -> -0.42118 | BA4: =MnConI1 -> -0.88247 | BB4: =MnConJ1 -> 6.532939
G5: 7 | H5: 15 | I5: 5 | J5: 0.771687726 | K5: 2.268031072 | L5: 0.771687726 | M5: 2.268031072 | N5: 0.5520367704 | O5: 0.1366824308 | P5: 0.5520367704 | Q5: 0.1366824308 | Z5: 0.5520367704 | AA5: 222.8112448 | AB5: 222.8112448 | AC5: 222.8112448 | AD5: 0.5520367704 | AH5: 7 | AI5: 15 | AJ5: 5 | AK5: 222.8112448 | AL5: 0.5520367704 | AS5: =MnConA1 -> -2.18728 | AT5: =MnConB1 -> 0.408877 | AU5: =MnConC1 -> 1.403976 | AV5: =MnConD1 -> 1.331716 | AW5: =MnConE1 -> 0.8959 | AX5: =MnConF1 -> 0.677892 | AY5: =MnConG1 -> 0.581969 | AZ5: =MnConH1 -> -0.42118 | BA5: =MnConI1 -> -0.88247 | BB5: =MnConJ1 -> 6.532939
G6: 7 | H6: 15 | I6: 30 | J6: 4.640164722 | K6: 2.268031072 | L6: 4.640164722 | M6: 2.268031072 | N6: 0.09180708563 | O6: 0.1366824308 | P6: 0.09180708563 | Q6: 0.1366824308 | Z6: 0.1366824308 | AA6: 899.8961993 | AB6: 899.8961993 | AC6: 899.8961993 | AD6: 0.1366824308 | AH6: 7 | AI6: 15 | AJ6: 30 | AK6: 899.8961993 | AL6: 0.1366824308 | AS6: =MnConA3 -> -2.18592 | AT6: =MnConB3 -> 0.411597 | AU6: =MnConC3 -> 1.405533 | AV6: =MnConD3 -> 1.331431 | AW6: =MnConE3 -> 0.895952 | AX6: =MnConF3 -> 0.770551 | AY6: =MnConG3 -> 0.577982 | AZ6: =MnConH3 -> -0.32659 | BA6: =MnConI3 -> -0.88247 | BB6: =MnConJ3 -> 6.532939
G7: 7 | H7: 15 | I7: 75 | J7: 7.991435336 | K7: 3.834811314 | L7: 7.991435336 | M7: 3.834811314 | N7: 0.05330706964 | O7: 0.08083839715 | P7: 0.05330706964 | Q7: 0.08083839715 | Z7: 0.08083839715 | AA7: 1521.554166 | AB7: 1521.554166 | AC7: 1521.554166 | AD7: 0.08083839715 | AH7: 7 | AI7: 15 | AJ7: 75 | AK7: 1521.554166 | AL7: 0.08083839715 | AS7: =MnConA4 -> -2.18499 | AT7: =MnConB4 -> 0.413449 | AU7: =MnConC4 -> 1.40658 | AV7: =MnConD4 -> 1.331252 | AW7: =MnConE4 -> 0.895983 | AX7: =MnConF4 -> 0.841977 | AY7: =MnConG4 -> 0.542869 | AZ7: =MnConH4 -> -0.24797 | BA7: =MnConI4 -> -0.84075 | BB7: =MnConJ4 -> 6.468994
G8: 7 | H8: 15 | I8: 95 | J8: 9.960183066 | K8: 3.834811314 | L8: 9.960183066 | M8: 3.834811314 | N8: 0.04277029821 | O8: 0.08083839715 | P8: 0.04277029821 | Q8: 0.08083839715 | Z8: 0.08083839715 | AA8: 1521.554166 | AB8: 1521.554166 | AC8: 1521.554166 | AD8: 0.08083839715 | AH8: 7 | AI8: 15 | AJ8: 95 | AK8: 1521.554166 | AL8: 0.08083839715 | AS8: =MnConA5 -> -2.18607 | AT8: =MnConB5 -> 0.411291 | AU8: =MnConC5 -> 1.405355 | AV8: =MnConD5 -> 1.331466 | AW8: =MnConE5 -> 0.895946 | AX8: =MnConF5 -> 0.764989 | AY8: =MnConG5 -> 0.581969 | AZ8: =MnConH5 -> -0.33408 | BA8: =MnConI5 -> -0.84075 | BB8: =MnConJ5 -> 6.468994
G9: 7 | H9: 15 | I9: 110 | J9: 10.32061883 | K9: 3.834811314 | L9: 10.32061883 | M9: 3.834811314 | N9: 0.04127659464 | O9: 0.08083839715 | P9: 0.04127659464 | Q9: 0.08083839715 | Z9: 0.08083839715 | AA9: 1521.554166 | AB9: 1521.554166 | AC9: 1521.554166 | AD9: 0.08083839715 | AH9: 7 | AI9: 15 | AJ9: 110 | AK9: 1521.554166 | AL9: 0.08083839715 | AS9: =MnConA6 -> -2.18318 | AT9: =MnConB6 -> 0.41708 | AU9: =MnConC6 -> 1.408673 | AV9: =MnConD6 -> 1.330849 | AW9: =MnConE6 -> 0.89606 | AX9: =MnConF6 -> 0.882292 | AY9: =MnConG6 -> 0.536758 | AZ9: =MnConH6 -> -0.14474 | BA9: =MnConI6 -> -0.84075 | BB9: =MnConJ6 -> 6.468994
G10: 7 | H10: 15 | I10: 155 | J10: 12.53999165 | K10: 3.834811314 | L10: 12.53999165 | M10: 3.834811314 | N10: 0.03397131449 | O10: 0.08083839715 | P10: 0.03397131449 | Q10: 0.08083839715 | Z10: 0.08083839715 | AA10: 1521.554166 | AB10: 1521.554166 | AC10: 1521.554166 | AD10: 0.08083839715 | AH10: 7 | AI10: 15 | AJ10: 155 | AK10: 1521.554166 | AL10: 0.08083839715 | AS10: =MnConA7 -> -2.18281 | AT10: =MnConB7 -> 0.417806 | AU10: =MnConC7 -> 1.40919 | AV10: =MnConD7 -> 1.330654 | AW10: =MnConE7 -> 0.896109 | AX10: =MnConF7 -> 0.630159 | AY10: =MnConG7 -> 0.604949 | AZ10: =MnConH7 -> -0.24642 | BA10: =MnConI7 -> -0.84075 | BB10: =MnConJ7 -> 6.468994
G11: 7 | H11: 15 | I11: 175 | J11: 13.95361887 | K11: 3.834811314 | L11: 13.95361887 | M11: 3.834811314 | N11: 0.03052971448 | O11: 0.08083839715 | P11: 0.03052971448 | Q11: 0.08083839715 | Z11: 0.08083839715 | AA11: 1521.554166 | AB11: 1521.554166 | AC11: 1521.554166 | AD11: 0.08083839715 | AH11: 7 | AI11: 15 | AJ11: 175 | AK11: 1521.554166 | AL11: 0.08083839715 | AS11: =MnConA8 -> -2.18743 | AT11: =MnConB8 -> 0.408572 | AU11: =MnConC8 -> 1.403861 | AV11: =MnConD8 -> 1.33167 | AW11: =MnConE8 -> 0.895918 | AX11: =MnConF8 -> 0.69047 | AY11: =MnConG8 -> 0.596158 | AZ11: =MnConH8 -> -0.51852 | BA11: =MnConI8 -> -0.84075 | BB11: =MnConJ8 -> 6.468994
G12: 7 | H12: 15 | I12: 195 | J12: 15.74215158 | K12: 3.834811314 | L12: 15.74215158 | M12: 3.834811314 | N12: 0.02706110394 | O12: 0.08083839715 | P12: 0.02706110394 | Q12: 0.08083839715 | Z12: 0.08083839715 | AA12: 1521.554166 | AB12: 1521.554166 | AC12: 1521.554166 | AD12: 0.08083839715 | AH12: 7 | AI12: 15 | AJ12: 195 | AK12: 1521.554166 | AL12: 0.08083839715 | AS12: =MnConA9 -> -2.18802 | AT12: =MnConB9 -> 0.407404 | AU12: =MnConC9 -> 1.403173 | AV12: =MnConD9 -> 1.33181 | AW12: =MnConE9 -> 0.89589 | AX12: =MnConF9 -> 0.584398 | AY12: =MnConG9 -> 0.637124 | AZ12: =MnConH9 -> -0.53743 | BA12: =MnConI9 -> -0.84075 | BB12: =MnConJ9 -> 6.468994
G13: 7 | H13: 15 | I13: 205 | R13: =((($AS13 * $H13) + $AT13) / (($AU13 * ($G13 ^ 2)) - ($AV13 * $G13) + $AW13)) + ($AX13 * (200 ^ $AY13)) + $AZ13 -> 16.01561687 | S13: =10 ^ ((BA13 * G13) + BB13) -> 3.834811314 | T13: =IF(R13<MnFishRef, MnFishRef, R13) -> 16.01561687 | U13: =IF(S13<MnAlgalRef, MnAlgalRef, S13) -> 3.834811314 | V13: =MnFishRef/T13 -> 0.02659903789 | W13: =MnAlgalRef/U13 -> 0.08083839715 | X13: =IF(V13>1,1,V13) -> 0.02659903789 | Y13: =IF(W13>1,1,W13) -> 0.08083839715 | Z13: =IF(X13>Y13,X13,Y13) -> 0.08083839715 | AA13: 1521.554166 | AB13: 1521.554166 | AC13: 1521.554166 | AD13: 0.08083839715 | AH13: 7 | AI13: 15 | AJ13: 205 | AK13: 1521.554166 | AL13: 0.08083839715 | AS13: =MnConA9 -> -2.18802 | AT13: =MnConB9 -> 0.407404 | AU13: =MnConC9 -> 1.403173 | AV13: =MnConD9 -> 1.33181 | AW13: =MnConE9 -> 0.89589 | AX13: =MnConF9 -> 0.584398 | AY13: =MnConG9 -> 0.637124 | AZ13: =MnConH9 -> -0.53743 | BA13: =MnConI9 -> -0.84075 | BB13: =MnConJ9 -> 6.468994
F14: 200 | G14: 7 | H14: 15 | I14: 0.5 | R14: =((($AS14 * $H14) + $AT14) / (($AU14 * ($G14 ^ 2)) - ($AV14 * $G14) + $AW14)) + ($AX14 * (1 ^ $AY14)) + $AZ14 -> -0.2799952102 | S14: =10 ^ ((BA14 * G14) + BB14) -> 2.268031072 | T14: =IF(R14<MnFishRef, MnFishRef, R14) -> 0.426 | U14: =IF(S14<MnAlgalRef, MnAlgalRef, S14) -> 2.268031072 | V14: =MnFishRef/T14 -> 1 | W14: =MnAlgalRef/U14 -> 0.1366824308 | X14: =IF(V14>1,1,V14) -> 1 | Y14: =IF(W14>1,1,W14) -> 0.1366824308 | Z14: =IF(X14>Y14,X14,Y14) -> 1 | AA14: 123 | AB14: 123 | AC14: 123 | AD14: 1 | AE14: =F14*AD14 -> 200 | AF14: =AE14/MnThreshold -> 1.62601626 | AG14: 200 | AH14: 7 | AI14: 15 | AJ14: 0.5 | AK14: 123 | AL14: 1 | AM14: 200 | AN14: 1.62601626 | AS14: =MnConA1 -> -2.18728 | AT14: =MnConB1 -> 0.408877 | AU14: =MnConC1 -> 1.403976 | AV14: =MnConD1 -> 1.331716 | AW14: =MnConE1 -> 0.8959 | AX14: =MnConF1 -> 0.677892 | AY14: =MnConG1 -> 0.581969 | AZ14: =MnConH1 -> -0.42118 | BA14: =MnConI1 -> -0.88247 | BB14: =MnConJ1 -> 6.532939
F15: 200 | G15: 7 | H15: 15 | I15: 2 | J15: =((($AS15 * $H15) + $AT15) / (($AU15 * ($G15 ^ 2)) - ($AV15 * $G15) + $AW15)) + ($AX15 * ($I15 ^ $AY15)) + $AZ15 -> 0.05684310286 | K15: =10 ^ ((BA15 * G15) + BB15) -> 2.268031072 | L15: =IF(J15<MnFishRef, MnFishRef, J15) -> 0.426 | M15: =IF(K15<MnAlgalRef, MnAlgalRef, K15) -> 2.268031072 | N15: =MnFishRef/L15 -> 1 | O15: =MnAlgalRef/M15 -> 0.1366824308 | P15: =IF(N15>1,1,N15) -> 1 | Q15: =IF(O15>1,1,O15) -> 0.1366824308 | Z15: =IF(P15>Q15,P15,Q15) -> 1 | AA15: 123 | AB15: 123 | AC15: 123 | AD15: 1 | AE15: 200 | AF15: 1.62601626 | AG15: 200 | AH15: 7 | AI15: 15 | AJ15: 2 | AK15: 123 | AL15: 1 | AM15: 200 | AN15: 1.62601626 | AS15: =MnConA1 -> -2.18728 | AT15: =MnConB1 -> 0.408877 | AU15: =MnConC1 -> 1.403976 | AV15: =MnConD1 -> 1.331716 | AW15: =MnConE1 -> 0.8959 | AX15: =MnConF1 -> 0.677892 | AY15: =MnConG1 -> 0.581969 | AZ15: =MnConH1 -> -0.42118 | BA15: =MnConI1 -> -0.88247 | BB15: =MnConJ1 -> 6.532939
F16: 200 | G16: 7 | H16: 15 | I16: 5 | J16: 0.771687726 | K16: 2.268031072 | L16: 0.771687726 | M16: 2.268031072 | N16: 0.5520367704 | O16: 0.1366824308 | P16: 0.5520367704 | Q16: 0.1366824308 | Z16: 0.5520367704 | AA16: 222.8112448 | AB16: 222.8112448 | AC16: 222.8112448 | AD16: 0.5520367704 | AE16: 110.4073541 | AF16: 0.8976207648 | AG16: 200 | AH16: 7 | AI16: 15 | AJ16: 5 | AK16: 222.8112448 | AL16: 0.5520367704 | AM16: 110.4073541 | AN16: 0.8976207648 | AS16: =MnConA1 -> -2.18728 | AT16: =MnConB1 -> 0.408877 | AU16: =MnConC1 -> 1.403976 | AV16: =MnConD1 -> 1.331716 | AW16: =MnConE1 -> 0.8959 | AX16: =MnConF1 -> 0.677892 | AY16: =MnConG1 -> 0.581969 | AZ16: =MnConH1 -> -0.42118 | BA16: =MnConI1 -> -0.88247 | BB16: =MnConJ1 -> 6.532939
F17: 200 | G17: 7 | H17: 15 | I17: 30 | J17: 4.640164722 | K17: 2.268031072 | L17: 4.640164722 | M17: 2.268031072 | N17: 0.09180708563 | O17: 0.1366824308 | P17: 0.09180708563 | Q17: 0.1366824308 | Z17: 0.1366824308 | AA17: 899.8961993 | AB17: 899.8961993 | AC17: 899.8961993 | AD17: 0.1366824308 | AE17: 27.33648616 | AF17: 0.222247855 | AG17: 200 | AH17: 7 | AI17: 15 | AJ17: 30 | AK17: 899.8961993 | AL17: 0.1366824308 | AM17: 27.33648616 | AN17: 0.222247855 | AS17: =MnConA3 -> -2.18592 | AT17: =MnConB3 -> 0.411597 | AU17: =MnConC3 -> 1.405533 | AV17: =MnConD3 -> 1.331431 | AW17: =MnConE3 -> 0.895952 | AX17: =MnConF3 -> 0.770551 | AY17: =MnConG3 -> 0.577982 | AZ17: =MnConH3 -> -0.32659 | BA17: =MnConI3 -> -0.88247 | BB17: =MnConJ3 -> 6.532939
F18: 200 | G18: 7 | H18: 15 | I18: 75 | J18: 7.991435336 | K18: 3.834811314 | L18: 7.991435336 | M18: 3.834811314 | N18: 0.05330706964 | O18: 0.08083839715 | P18: 0.05330706964 | Q18: 0.08083839715 | Z18: 0.08083839715 | AA18: 1521.554166 | AB18: 1521.554166 | AC18: 1521.554166 | AD18: 0.08083839715 | AE18: 16.16767943 | AF18: 0.1314445482 | AG18: 200 | AH18: 7 | AI18: 15 | AJ18: 75 | AK18: 1521.554166 | AL18: 0.08083839715 | AM18: 16.16767943 | AN18: 0.1314445482 | AS18: =MnConA4 -> -2.18499 | AT18: =MnConB4 -> 0.413449 | AU18: =MnConC4 -> 1.40658 | AV18: =MnConD4 -> 1.331252 | AW18: =MnConE4 -> 0.895983 | AX18: =MnConF4 -> 0.841977 | AY18: =MnConG4 -> 0.542869 | AZ18: =MnConH4 -> -0.24797 | BA18: =MnConI4 -> -0.84075 | BB18: =MnConJ4 -> 6.468994
F19: 200 | G19: 7 | H19: 15 | I19: 95 | J19: 9.960183066 | K19: 3.834811314 | L19: 9.960183066 | M19: 3.834811314 | N19: 0.04277029821 | O19: 0.08083839715 | P19: 0.04277029821 | Q19: 0.08083839715 | Z19: 0.08083839715 | AA19: 1521.554166 | AB19: 1521.554166 | AC19: 1521.554166 | AD19: 0.08083839715 | AE19: 16.16767943 | AF19: 0.1314445482 | AG19: 200 | AH19: 7 | AI19: 15 | AJ19: 95 | AK19: 1521.554166 | AL19: 0.08083839715 | AM19: 16.16767943 | AN19: 0.1314445482 | AS19: =MnConA5 -> -2.18607 | AT19: =MnConB5 -> 0.411291 | AU19: =MnConC5 -> 1.405355 | AV19: =MnConD5 -> 1.331466 | AW19: =MnConE5 -> 0.895946 | AX19: =MnConF5 -> 0.764989 | AY19: =MnConG5 -> 0.581969 | AZ19: =MnConH5 -> -0.33408 | BA19: =MnConI5 -> -0.84075 | BB19: =MnConJ5 -> 6.468994
F20: 200 | G20: 7 | H20: 15 | I20: 110 | J20: 10.32061883 | K20: 3.834811314 | L20: 10.32061883 | M20: 3.834811314 | N20: 0.04127659464 | O20: 0.08083839715 | P20: 0.04127659464 | Q20: 0.08083839715 | Z20: 0.08083839715 | AA20: 1521.554166 | AB20: 1521.554166 | AC20: 1521.554166 | AD20: 0.08083839715 | AE20: 16.16767943 | AF20: 0.1314445482 | AG20: 200 | AH20: 7 | AI20: 15 | AJ20: 110 | AK20: 1521.554166 | AL20: 0.08083839715 | AM20: 16.16767943 | AN20: 0.1314445482 | AS20: =MnConA6 -> -2.18318 | AT20: =MnConB6 -> 0.41708 | AU20: =MnConC6 -> 1.408673 | AV20: =MnConD6 -> 1.330849 | AW20: =MnConE6 -> 0.89606 | AX20: =MnConF6 -> 0.882292 | AY20: =MnConG6 -> 0.536758 | AZ20: =MnConH6 -> -0.14474 | BA20: =MnConI6 -> -0.84075 | BB20: =MnConJ6 -> 6.468994
F21: 200 | G21: 7 | H21: 15 | I21: 155 | J21: 12.53999165 | K21: 3.834811314 | L21: 12.53999165 | M21: 3.834811314 | N21: 0.03397131449 | O21: 0.08083839715 | P21: 0.03397131449 | Q21: 0.08083839715 | Z21: 0.08083839715 | AA21: 1521.554166 | AB21: 1521.554166 | AC21: 1521.554166 | AD21: 0.08083839715 | AE21: 16.16767943 | AF21: 0.1314445482 | AG21: 200 | AH21: 7 | AI21: 15 | AJ21: 155 | AK21: 1521.554166 | AL21: 0.08083839715 | AM21: 16.16767943 | AN21: 0.1314445482 | AS21: =MnConA7 -> -2.18281 | AT21: =MnConB7 -> 0.417806 | AU21: =MnConC7 -> 1.40919 | AV21: =MnConD7 -> 1.330654 | AW21: =MnConE7 -> 0.896109 | AX21: =MnConF7 -> 0.630159 | AY21: =MnConG7 -> 0.604949 | AZ21: =MnConH7 -> -0.24642 | BA21: =MnConI7 -> -0.84075 | BB21: =MnConJ7 -> 6.468994
F22: 200 | G22: 7 | H22: 15 | I22: 175 | J22: 13.95361887 | K22: 3.834811314 | L22: 13.95361887 | M22: 3.834811314 | N22: 0.03052971448 | O22: 0.08083839715 | P22: 0.03052971448 | Q22: 0.08083839715 | Z22: 0.08083839715 | AA22: 1521.554166 | AB22: 1521.554166 | AC22: 1521.554166 | AD22: 0.08083839715 | AE22: 16.16767943 | AF22: 0.1314445482 | AG22: 200 | AH22: 7 | AI22: 15 | AJ22: 175 | AK22: 1521.554166 | AL22: 0.08083839715 | AM22: 16.16767943 | AN22: 0.1314445482 | AS22: =MnConA8 -> -2.18743 | AT22: =MnConB8 -> 0.408572 | AU22: =MnConC8 -> 1.403861 | AV22: =MnConD8 -> 1.33167 | AW22: =MnConE8 -> 0.895918 | AX22: =MnConF8 -> 0.69047 | AY22: =MnConG8 -> 0.596158 | AZ22: =MnConH8 -> -0.51852 | BA22: =MnConI8 -> -0.84075 | BB22: =MnConJ8 -> 6.468994
F23: 200 | G23: 7 | H23: 15 | I23: 195 | J23: 15.74215158 | K23: 3.834811314 | L23: 15.74215158 | M23: 3.834811314 | N23: 0.02706110394 | O23: 0.08083839715 | P23: 0.02706110394 | Q23: 0.08083839715 | Z23: 0.08083839715 | AA23: 1521.554166 | AB23: 1521.554166 | AC23: 1521.554166 | AD23: 0.08083839715 | AE23: 16.16767943 | AF23: 0.1314445482 | AG23: 200 | AH23: 7 | AI23: 15 | AJ23: 195 | AK23: 1521.554166 | AL23: 0.08083839715 | AM23: 16.16767943 | AN23: 0.1314445482 | AS23: =MnConA9 -> -2.18802 | AT23: =MnConB9 -> 0.407404 | AU23: =MnConC9 -> 1.403173 | AV23: =MnConD9 -> 1.33181 | AW23: =MnConE9 -> 0.89589 | AX23: =MnConF9 -> 0.584398 | AY23: =MnConG9 -> 0.637124 | AZ23: =MnConH9 -> -0.53743 | BA23: =MnConI9 -> -0.84075 | BB23: =MnConJ9 -> 6.468994
F24: 200 | G24: 7 | H24: 15 | I24: 205 | R24: =((($AS24 * $H24) + $AT24) / (($AU24 * ($G24 ^ 2)) - ($AV24 * $G24) + $AW24)) + ($AX24 * (200 ^ $AY24)) + $AZ24 -> 16.01561687 | S24: =10 ^ ((BA24 * G24) + BB24) -> 3.834811314 | T24: =IF(R24<MnFishRef, MnFishRef, R24) -> 16.01561687 | U24: =IF(S24<MnAlgalRef, MnAlgalRef, S24) -> 3.834811314 | V24: =MnFishRef/T24 -> 0.02659903789 | W24: =MnAlgalRef/U24 -> 0.08083839715 | X24: =IF(V24>1,1,V24) -> 0.02659903789 | Y24: =IF(W24>1,1,W24) -> 0.08083839715 | Z24: =IF(X24>Y24,X24,Y24) -> 0.08083839715 | AA24: 1521.554166 | AB24: 1521.554166 | AC24: 1521.554166 | AD24: 0.08083839715 | AE24: 16.16767943 | AF24: 0.1314445482 | AG24: 200 | AH24: 7 | AI24: 15 | AJ24: 205 | AK24: 1521.554166 | AL24: 0.08083839715 | AM24: 16.16767943 | AN24: 0.1314445482 | AS24: =MnConA9 -> -2.18802 | AT24: =MnConB9 -> 0.407404 | AU24: =MnConC9 -> 1.403173 | AV24: =MnConD9 -> 1.33181 | AW24: =MnConE9 -> 0.89589 | AX24: =MnConF9 -> 0.584398 | AY24: =MnConG9 -> 0.637124 | AZ24: =MnConH9 -> -0.53743 | BA24: =MnConI9 -> -0.84075 | BB24: =MnConJ9 -> 6.468994

Sheet VersionControl (hidden)
A1: CURRENT
A2: ApplicationTitle | B2: M-BAT
A3: VersionNumber | B3: 30
A4: ReleaseNumber | B4: 0
A5: ReleaseDate | B5: 20 November 2013
A6: Changes | B6: See ChangeLog
A7: VersionTitle | B7: =CONCATENATE(VersionNumber, " (", ReleaseNumber, ") ", ReleaseDate) -> 30 (0) 20 November 2013
A8: FullTitle | B8: =B2&" "&"["&VersionTitle&"]" -> M-BAT [30 (0) 20 November 2013]
A9: FooterTitle | B9: =CONCATENATE("Version ",VersionNumber,".",ReleaseNumber,", created ",ReleaseDate) -> Version 30.0, created 20 November 2013

Sheet ChangeLog (hidden)
A1: Version | B1: Based on | C1: Description of Changes
A2: Cu PNEC Estimator 1 | C2: BLM turned into automated tool for Cu only, using VBA
A3: Cu PNEC Estimator 2 | B3: Cu PNEC Estimator 1 | C3: BioF column added to outputs
C4: pH domains altered (minimum = 5, max = 8.5)
C5: Threshold level set for Cu PNECs (user-configurable). Calculated PNECs are trimmed to this level. Instructions amended accordingly.
C6: Buttons added to clear the sheet and run the programme (and instructions amended accordingly)
C7: All numeric input and output columns: format set to 2 decimal places
C8: Calculator sheet layout altered (order of columns)
C9: Comments column hidden (comments now all shown as float-over boxes on highlighted cells)
C10: Calculations written into VBA code as custom functions, rather than formulae in cells
C11: Code amended to ignore empty rows, and to include rudimentary validation sequence to encourage users to input adequate, valid data.
A12: BLMTool 3.0 | B12: Cu PNEC Estimator 2 | C12: Design draft for addition of Zn, and new interface (for users and admin)
A13: BLMTool 4.0 | B13: BLMTool 3.0 | C13: Working draft with Cu and Zn in place
A14: BLMTool5.0 | B14: BLMTool 4.0 | C14: Added ID column, fixed errors, added units, cosmetic changes to main menu
A15: BLMTool6.0 | B15: BLMTool5.0 | C15: RCR calculation corrected (was PNEC/BioavailablePEC due to error in code. Should be BioavailablePEC/PNECGeneric)
C16: Addition of boundary conditions for Zn model (PNEC to be trimmed to Generic value if pH <6 or >9)
C17: Addition of soft-water threshold for Zn (of 3.1 ug/l) if Ca <7
C18: Correction of code so it now picks up Zn measured values from correct column (was picking them up from Cu meas column)
C19: Correction of test datasets, for validation of tool
A20: BLMTool7.0 | B20: BLMTool6.0 | C20: Correction of code, so that Zn PNEC is set to soft water threshold in all instances where Ca <7 (i.e. no PNEC calculation performed, and BioF = 1). Test data also revised accordingly.
A21: BLMTool8.0 | B21: BLMTool7.0 | C21: Spelling errors on front page corrected
A22: BLMTool8.1 | B22: BLMTool8.0 | C22: Code restructured to ensure consistency, to take account of new validation schedule and new parameter bands, and to allow easier addition of new metals in future.
A23: BLMTool8.2 | B23: BLMTool8.1 | C23: Addition of Extended BioF calculation
C24: Code tested for errors and de-bugged.
C25: Instructions re-worded
C26: Front-page layout altered and tidied
A27: BLMTool9.0 | B27: BLMTool8.2 | C27: Passwords re-set
A28: BLMTool10.0 | B28: BLMTool9.0 | C28: Deleted header (with version number) and replaced with footer (intro page only)
C29: Altered colour scheme to fit Agency branding
C30: Altered default font and size
C31: Renamed "Main Menu" as "Introduction"
C32: Altered text on introduction page
C33: Renamed "PNECCalculator" sheet as "Screening Tool"
C34: Added Help button and Help sheet (currently contains no Help text)
C35: Added Glossary button and Glossary sheet (currently contains no definitions)
C36: Removed WCA logo (awaiting EA logo)
C37: Altered text on message box that shows when calculation completes
C38: Altered colour of copper results to pale orange
C39: Altered pH range for the BioF Extender tool (>=4 to <5.5 for Cu; >=4 to <6 for Zn)
C40: Removed "sensitive conditions" phrase from flags outside pH range
C41: Corrected code to show BioF Flag for whenpH>=9 for Zn (i.e. 100% availability assumed)
C42: Altered case (Zinc to zinc) in Ca input flag
C43: Altered code to highlight RCR, BioM, PNEC and BioF in red, where RCR >1 (and to add flag to RCR and BioM)
A44: BLMTool11.0 | B44: BLMTool10.0 | C44: Updated glossary
A45: BLMTool12.0 | B45: BLMTool11.0 | C45: Added manganese mockup (identical to zinc)
A46: BLMTool13.0 | B46: BLMTool12.0 | C46: Added equations and constants for manganese, and amended code for Mn validation sequence and warning messages
A47: BLMTool14.0 | B47: BLMTool13.0 | C47: Introduction of second Zn threshold value of 10.9, and adjustment of PNECs using ratio between the two threshold values
C48: Introduction of fish and algal reference values to Mn model, to generate BioFs from EC10s. BioF limited to 1. PNEC = EQS/BioF.
A49: BLMTool15.0 | B49: BLMTool14.0 | C49: Mn bug fixed, and BioF flag text altered.
A50: BLMTool16.0 | B50: BLMTool15.0 | C50: Textual change to glossary
C51: Bug correction to Mn model
A52: BLMTool17.0 | B52: BLMTool16.0 | C52: Mn model altered so EC10 minimum is set to the reference value (for fish or algae, as appropriate)
A53: BLMTool18.0 | B53: BLMTool17.0 | C53: Errors corrected in the Zn BioF extender
C54: Removal of Zn PNEC-adjustment (i.e. removal ZnThreshold ratio as multiplier on final PNEC)
C55: Zn BioFs calculated using old threshold of 7.8
C56: Zn PNECs calculated Generic PNEC of 10.9
A57: BLMTool19.0 | B57: BLMTool18.0 | C57: Zn, Mn and Cu RCR calculation altered to = (Bioavailable Metal Concentration / Threshold value)
C58: Test-data sheets updated for all three metals, to match current calculation structure
A59: BLMTool20.0 | B59: BLMTool19.0 | C59: Change to colour of flag for Cu where RCR >1
C60: Textual edits
A61: BLMTool22.0 | B61: BLMTool20.0 | C61: Zinc calculation altered to use new formula, in which the constants do not change regardless of the input data for pH, DOC and Ca.
C62: Zinc test-data sheet also updated with new formula for zinc.
C63: Locked Zn threshold so that users cannot edit it (even if logged in to admin section) without unprotecting the sheet manually
C64: Edited Zn constants sheet, and locked cells so that users cannot edit values (even if logged in to admin section) without unprotecting the sheet manually
A65: BLMTool23.0 | B65: BLMTool22.0 | C65: Locked Mn and Cu thresholds so that users cannot edit it (even if logged in to admin section) without unprotecting the sheet manually
C66: Increased width of Location and Waterbody columns to accommodate 36 char and 14 char, respectively (in sheet "Screening Tool").
A67: BLMTool24.0 | B67: BLMTool23.0 | C67: Protection rules changed on sheet "Screening Tool", to allow users to select cells containing results, for manual copying to other sheets and documents.
C68: White highlighting of results removed for all metals. Results only highlighted (in red) when the PNEC is exceeded.
C69: For copper, comment removed from results when the pH extender is in use (i.e. from pH 5.4 to pH 4).
C70: For copper, comment changed for results when the full pH range is exceeded (< pH 4 or >pH8.5). Was ‘pH outside validation range. Generic PNEC has been used.’ Is now: ‘pH outside of range. 100% bioavailability assumed’
C71: All comments removed from the BIOF and risk characterization ratio columns as these are duplicated in other columns.
C72: For manganese, when the predicted PNEC is at or below the generic PNRC, comment simplified to "Sensitive Conditions".
A73: BLMTool25.0 | B73: BLMTool24.0 | C73: For copper, pH now capped at 8.5 and this value used as a default for calculating PNEC if pH was over 8.5. When this occurs, comment on PNEC reads "pH outside upper range, pH 8.5 assumed".
C74: For copper, when pH extender is used (i.e. pH 4 to <pH5) AND condtions are sensitive AND the calculated BioF is less than 100%, then the PNEC comment is "Sensitive conditions." However, if pH is >=100%, the PNEC comment is "Sensitive conditions, generic PNEC applies."
C75: To clarify the system for selecting/flagging results, sheets "Cu Requirements", "Zn Requirements" and "Mn Requirements" added
C76: Copper calculation code overhauled to accommodate changes
C77: CuTestResults updated to reflect recent changes to requirements
A78: BLMTool26.0 | B78: BLMTool25.0 | C78: Cu code corrected to pick up pH default value when using the Extender calculation (i.e. pH Band 2)
C79: Cu test results sheet updated
A80: BLMTool27.0 | B80: BLMTool26.0 | C80: Cu calculation replaced by a function with 80 constants
C81: Screening Tool and Intermediate Sheets formatting limited to 1000 rows
C82: Some redundant code left over from previous versions stripped out for all 3 metals
C83: Cu flagging removed until further notice.
A84: BLMTool28.0 | B84: BLMTool27.0 | C84: Cu pH-range limits replaced as follows:
C85: pH <4, PNEC = generic value for Copper
C86: pH >4 <5.5, PNEC calculated from extended BioF, using default pH value of 5.5
C87: pH >5.5 <8.5, PNEC and BioF calculated using unadjusted input values
C88: pH >8.5, PNEC and BioF calculated using default pH of 8.5
C89: All flagging for Cu (except for RCR > 1) remains switched off until further notice.
C90: Cu Test Results Sheet updated
A91: BLMTool29.0 | B91: BLMTool28.0 | C91: Edits to terminology
C92: Edits to introductory text and Glossary
C93: Removal of Help button from introductory page
C94: Introduction
C95: Update to Summary Sheets, to reflect current logic for each metal, and flagging requirements
C96: Created separate sheet to store flag messages
C97: Updated programs in "Developers Tools" module
A98: BLMTool30.0 | B98: BLMTool29.0 | C98: Added Ni
C99: Flagging and highlighting simplified
C100: pH or pH & Ca outside range: outside validated range: seek assisstance
C101: Ca above upper range: outisde validated range

Sheet Cu Summary (hidden)
A1: Copper
A3: Overarching Condition | D3: Intermediate Condition | F3: Result
A4: Measured pH | B4: Measured Ca | C4: Measured DOC | F4: PNEC Displayed | G4: PNEC Flag | H4: BioF Displayed | I4: BioM Calculated | J4: RCR Calculated | K4: BioM Flag | L4: PNEC Highlight | M4: BioM Highlight | N4: Ca Flag | O4: pH Flag | P4: DOC Flag
A5: <6.0 | B5: <3.1 | C5: <=10.0 | D5: PNEC Default[pH-low/calcium-low] (pH and Ca input values forced to default value of 6.0 and 3.0 respectively) | E5: < PNECGeneric | F5: PNEC Generic | G5: Sensitive conditions | H5: BioF Basic | N5: =flagCuCaLow -> The measured Ca is below the lower limit of the validated range for Cu. The Site-specific PNEC has been calculated using a Ca value of 3.1. For furthur clarification please seek advice. | O5: =flagCupHLow -> The measured pH is below the lower limit of the validated range for Cu. The Site-specific PNEC has been calculated using a pH value of 6. For furthur clarification please seek advice.
E6: >= PNECGeneric | F6: PNEC Basic | O6: =flagCupHLow -> The measured pH is below the lower limit of the validated range for Cu. The Site-specific PNEC has been calculated using a pH value of 6. For furthur clarification please seek advice.
A7: >6.0 to 8.5 | B7: <3.1 | C7: <=10.0 | D7: PNEC Default[Ca-low] (Ca input value forced to default value of 8.5) | E7: < PNECGeneric | F7: PNEC Generic | G7: Sensitive conditions | H7: BioF Basic | N7: =flagCuCaLow -> The measured Ca is below the lower limit of the validated range for Cu. The Site-specific PNEC has been calculated using a Ca value of 3.1. For furthur clarification please seek advice.
E8: >= PNECGeneric | F8: PNEC Basic
A9: >8.5 | B9: <3.1 | C9: <=10.0 | D9: PNEC Default[pH-high/Ca-low] (pH and Ca input values forced to default value of 8.5 and 3.0 respectively) | E9: < PNECGeneric | F9: PNEC Generic | G9: Sensitive conditions | H9: BioF Basic | N9: =flagCuCaLow -> The measured Ca is below the lower limit of the validated range for Cu. The Site-specific PNEC has been calculated using a Ca value of 3.1. For furthur clarification please seek advice. | O9: =flagCupHLow -> The measured pH is below the lower limit of the validated range for Cu. The Site-specific PNEC has been calculated using a pH value of 6. For furthur clarification please seek advice.
E10: >= PNECGeneric | F10: PNEC Basic | O10: =flagCupHHigh -> The measured pH is above the upper limit of the validated range for Cu. The Site-specific PNEC has been calculated using a pH value of 8.5. For furthur clarification please seek advice.
A11: <6.0 | B11: >93.0 | C11: <=10.0 | D11: PNEC Default[pH-low/Ca - high] (pH and Ca input value forced to default values of 6.0 and 93.0, respectively) | E11: < PNECGeneric | F11: PNEC Generic | G11: Sensitive conditions | H11: BioF Basic | N11: =flagCuCaHigh -> The measured Ca is above the upper limit of the validated range for Cu. The Site-specific PNEC has been calculated using a Ca value of 93. For furthur clarification please seek advice. | O11: =flagCupHLow -> The measured pH is below the lower limit of the validated range for Cu. The Site-specific PNEC has been calculated using a pH value of 6. For furthur clarification please seek advice.
E12: >= PNECGeneric | F12: PNEC Basic | N12: The measured Ca is above the upper limit of the validated range for Cu. The Site-specific PNEC has been calculated using a Ca value of 93. For furthur clarification please seek advice. | O12: =flagCupHLow -> The measured pH is below the lower limit of the validated range for Cu. The Site-specific PNEC has been calculated using a pH value of 6. For furthur clarification please seek advice.
A13: >6.0 to 8.5 | B13: >93.0 | C13: <=10.0 | D13: PNEC Default[Ca-high] ( Ca input value forced to default value of 93.0) | E13: < PNECGeneric | F13: PNEC Generic | G13: Sensitive conditions | H13: BioF Basic | N13: The measured Ca is above the upper limit of the validated range for Cu. The Site-specific PNEC has been calculated using a Ca value of 93. For furthur clarification please seek advice.
E14: >= PNECGeneric | F14: PNEC Basic | N14: The measured Ca is above the upper limit of the validated range for Cu. The Site-specific PNEC has been calculated using a Ca value of 93. For furthur clarification please seek advice.
A15: >8.5 | B15: >93.0 | C15: <=10.0 | D15: PNEC Default[pH-high/Ca -high] (pH and Ca input value forced to default values of 8.5 and 93.0, respectively) | E15: < PNECGeneric | F15: PNEC Generic | G15: Sensitive conditions | H15: BioF Basic | N15: The measured Ca is above the upper limit of the validated range for Cu. The Site-specific PNEC has been calculated using a Ca value of 93. For furthur clarification please seek advice. | O15: =flagCupHHigh -> The measured pH is above the upper limit of the validated range for Cu. The Site-specific PNEC has been calculated using a pH value of 8.5. For furthur clarification please seek advice.
E16: >= PNECGeneric | F16: PNEC Basic | N16: The measured Ca is above the upper limit of the validated range for Cu. The Site-specific PNEC has been calculated using a Ca value of 93. For furthur clarification please seek advice. | O16: =flagCupHHigh -> The measured pH is above the upper limit of the validated range for Cu. The Site-specific PNEC has been calculated using a pH value of 8.5. For furthur clarification please seek advice.
A17: <6.0 | B17: <=93.0 | C17: <=10.0 | D17: PNEC Default[pH-low/DOC] (pH and DOC input value forced to default values of 6.0 and 19.0, respectively) | E17: < PNECGeneric | F17: PNEC Generic | G17: Sensitive conditions | H17: BioF Basic | O17: =flagCupHLow -> The measured pH is below the lower limit of the validated range for Cu. The Site-specific PNEC has been calculated using a pH value of 6. For furthur clarification please seek advice.
E18: >= PNECGeneric | F18: PNEC Basic | O18: =flagCupHLow -> The measured pH is below the lower limit of the validated range for Cu. The Site-specific PNEC has been calculated using a pH value of 6. For furthur clarification please seek advice.
A19: >6.0 to 8.5 | B19: <=93.0 | C19: <=10.0 | D19: PNEC Default[DOC] (DOC input value forced to default value of 19.0) | E19: < PNECGeneric | F19: PNEC Generic | G19: Sensitive conditions | H19: BioF Basic
E20: >= PNECGeneric | F20: PNEC Basic
A21: >8.5 | B21: <=93.0 | C21: <=10.0 | D21: PNEC Default[pH-high/DOC] (pH and DOC input values forced to default values of 8.5 and 19.0, respectively) | E21: < PNECGeneric | F21: PNEC Generic | G21: Sensitive conditions | H21: BioF Basic | O21: =flagCupHHigh -> The measured pH is above the upper limit of the validated range for Cu. The Site-specific PNEC has been calculated using a pH value of 8.5. For furthur clarification please seek advice.
E22: >= PNECGeneric | F22: PNEC Basic | O22: =flagCupHHigh -> The measured pH is above the upper limit of the validated range for Cu. The Site-specific PNEC has been calculated using a pH value of 8.5. For furthur clarification please seek advice.
A23: <6.0 | B23: >93.0 | C23: <=10.0 | D23: PNEC Default[pH-low/Ca/DOC] (pH, Ca and DOC input value forced to default values of 6.0, 93.0 and 19.0, respectively) | E23: < PNECGeneric | F23: PNEC Generic | G23: Sensitive conditions | H23: BioF Basic | N23: =flagCuCaHigh -> The measured Ca is above the upper limit of the validated range for Cu. The Site-specific PNEC has been calculated using a Ca value of 93. For furthur clarification please seek advice. | O23: =flagCupHLow -> The measured pH is below the lower limit of the validated range for Cu. The Site-specific PNEC has been calculated using a pH value of 6. For furthur clarification please seek advice.
E24: >= PNECGeneric | F24: PNEC Basic | N24: The measured Ca is above the upper limit of the validated range for Cu. The Site-specific PNEC has been calculated using a Ca value of 93. For furthur clarification please seek advice. | O24: =flagCupHLow -> The measured pH is below the lower limit of the validated range for Cu. The Site-specific PNEC has been calculated using a pH value of 6. For furthur clarification please seek advice.
A25: >6.0 to 8.5 | B25: >93.0 | C25: <=10.0 | D25: PNEC Default[Ca/DOC] (Ca and DOC input value forced to default values of 93.0 and 19.0, respectively) | E25: < PNECGeneric | F25: PNEC Generic | G25: Sensitive conditions | H25: BioF Basic | N25: The measured Ca is above the upper limit of the validated range for Cu. The Site-specific PNEC has been calculated using a Ca value of 93. For furthur clarification please seek advice.
